Workbook

Sheet Visor
A1: Programas de Apoyo al Empleo Formal. PAEF-PAP-PARO y PAEF MICRO
A2: Reporte secotrial consolidado - Nóminas de Abril 2020 a Noviembre 2021
A4: Seleccione el sector económico | D4: Industrias manufactureras | N4: =IFERROR(VLOOKUP(D4,Hoja4!$C$2:$D$23,2,FALSE),"") -> C
A6: * El número de empleadores y empleados corresponde a beneficiarios únicos. El monto del subsidio equivale a los valores acomulados de todos los programas
E8: Total Empleadores beneficiados | I8: % | K8: Total Empleadores beneficiados | O8: % | Q8: Recursos asociados en Millones
B10: General | E10: =Hoja4!I24 -> 146025 | I10: =E10/$E$10 -> 1 | K10: =Hoja4!K24 -> 4236602 | O10: =K10/$K$10 -> 1 | Q10: =Hoja4!M24/1000000 -> 7973092.615
B11: ="Sección "&N4 -> Sección C | E11: =VLOOKUP(N4,Hoja4!$H$1:$M$24,2,FALSE) -> 22265 | I11: =E11/$E$10 -> 0.1524738915 | K11: =VLOOKUP(N4,Hoja4!$H$1:$M$24,4,FALSE) -> 662728 | O11: =K11/$K$10 -> 0.1564291383 | Q11: =VLOOKUP(N4,Hoja4!$H$1:$M$24,6,FALSE)/1000000 -> 1173057.093
B30: Empleadores | E30: Natural | H30: Jurídica | L30: Recurso en millones | O30: Natural | R30: Jurídica
B31: ="Total sección "&N4 -> Total sección C | E31: =COUNTIFS(insumos2!$AO$1:$AO$399999,"Aprobado con subsidio",insumos2!$AL$1:$AL$399999,"Natural") -> 3643 | H31: =COUNTIFS(insumos2!$AO$1:$AO$399999,"Aprobado con subsidio",insumos2!$AL$1:$AL$399999,"Jurídica") -> 18622 | L31: ="Total sección "&N4 -> Total sección C | O31: =SUMIFS(insumos1!$K$2:$K$372158,insumos1!$H$2:$H$372158,Visor!N4,insumos1!$I$2:$I$372158,"Natural")/1000000 -> 94181.6035 | R31: =SUMIFS(insumos1!$K$2:$K$372158,insumos1!$H$2:$H$372158,Visor!N4,insumos1!$I$2:$I$372158,"Jurídica")/1000000 -> 1078875.489
B32: ="% sección "&N4 -> % sección C | E32: =E31/(E31+H31) -> 0.1636200314 | H32: =H31/(E31+H31) -> 0.8363799686 | L32: ="% sección "&N4 -> % sección C | O32: =O31/(O31+R31) -> 0.08028731432 | R32: =R31/(O31+R31) -> 0.9197126857
B33: ="% general" -> % general | E33: 0.1646 | H33: 0.8354 | L33: ="% general" -> % general | O33: 0.0563 | R33: 0.9437
C36: Tamaño | E36: Empleadores | H36: % | J36: Empleados | N36: % | P36: Recursos en millones
C37: Micro | E37: =COUNTIFS(insumos2!$AO$2:$AO$399999,"Aprobado con subsidio",insumos2!$AP$2:$AP$399999,"MICRO") -> 13054 | H37: =E37/$E$42 -> 0.5863013699 | J37: =SUMIFS(insumos2!$AJ$2:$AJ$399999,insumos2!$AO$2:$AO$399999,"Aprobado con subsidio",insumos2!$AP$2:$AP$399999,"MICRO") -> 72384 | N37: =J37/$J$42 -> 0.1092212793 | P37: =SUMIFS(insumos1!$K$2:$K$372158,insumos1!$H$2:$H$372158,Visor!N4,insumos1!$J$2:$J$372158,"MICRO")/1000000 -> 189258.121
C38: Pequeña | E38: =COUNTIFS(insumos2!$AO$2:$AO$399999,"Aprobado con subsidio",insumos2!$AP$2:$AP$399999,"PEQUEÑA") -> 6971 | H38: 0.3130922973 | J38: =SUMIFS(insumos2!$AJ$2:$AJ$399999,insumos2!$AO$2:$AO$399999,"Aprobado con subsidio",insumos2!$AP$2:$AP$399999,"PEQUEÑA") -> 157946 | N38: 0.2383270361 | P38: =SUMIFS(insumos1!$K$2:$K$372158,insumos1!$H$2:$H$372158,Visor!N4,insumos1!$J$2:$J$372158,"PEQUEÑA")/1000000 -> 353403.29
C39: Mediana | E39: =COUNTIFS(insumos2!$AO$2:$AO$399999,"Aprobado con subsidio",insumos2!$AP$2:$AP$399999,"MEDIANA") -> 1687 | H39: 0.0757691444 | J39: =SUMIFS(insumos2!$AJ$2:$AJ$399999,insumos2!$AO$2:$AO$399999,"Aprobado con subsidio",insumos2!$AP$2:$AP$399999,"MEDIANA") -> 146975 | N39: 0.2217727333 | P39: =SUMIFS(insumos1!$K$2:$K$372158,insumos1!$H$2:$H$372158,Visor!N4,insumos1!$J$2:$J$372158,"MEDIANA")/1000000 -> 233001.651
C40: Grande | E40: =COUNTIFS(insumos2!$AO$2:$AO$399999,"Aprobado con subsidio",insumos2!$AP$2:$AP$399999,"GRANDE") -> 364 | H40: 0.01634852908 | J40: =SUMIFS(insumos2!$AJ$2:$AJ$399999,insumos2!$AO$2:$AO$399999,"Aprobado con subsidio",insumos2!$AP$2:$AP$399999,"GRANDE") -> 94298 | N40: 0.1422876353 | P40: =SUMIFS(insumos1!$K$2:$K$372158,insumos1!$H$2:$H$372158,Visor!N4,insumos1!$J$2:$J$372158,"GRANDE")/1000000 -> 136720.258
C41: Muy grande | E41: =COUNTIFS(insumos2!$AO$2:$AO$399999,"Aprobado con subsidio",insumos2!$AP$2:$AP$399999,"MUY GRANDE") -> 189 | H41: 0.008488659331 | J41: =SUMIFS(insumos2!$AJ$2:$AJ$399999,insumos2!$AO$2:$AO$399999,"Aprobado con subsidio",insumos2!$AP$2:$AP$399999,"MUY GRANDE") -> 191125 | N41: 0.2883913159 | P41: =SUMIFS(insumos1!$K$2:$K$372158,insumos1!$H$2:$H$372158,Visor!N4,insumos1!$J$2:$J$372158,"MUY GRANDE")/1000000 -> 260673.7725
C42: Total | E42: =COUNTIFS(insumos2!$AO$2:$AO$399999,"Aprobado con subsidio") -> 22265 | H42: 1 | J42: =SUMIFS(insumos2!$AJ$2:$AJ$399999,insumos2!$AO$2:$AO$399999,"Aprobado con subsidio") -> 662728 | N42: 1 | P42: =P41+P40+P39+P37+P38 -> 1173057.093
B44: Tamaño | C44: ="Sección "&N4 -> Sección C | D44: general | E44: ="Sección "&N4 -> Sección C | F44: general
B45: Micro | C45: =H37 -> 0.5863013699 | D45: 0.6376801371 | E45: =N37 -> 0.1092212793 | F45: 0.104427293
B46: Pequeña | C46: =H38 -> 0.3130922973 | D46: 0.2743797922 | E46: =N38 -> 0.2383270361 | F46: 0.1894298344
B47: Mediana | C47: =H39 -> 0.0757691444 | D47: 0.06616490439 | E47: =N39 -> 0.2217727333 | F47: 0.1934365931
B48: Grande | C48: =H40 -> 0.01634852908 | D48: 0.01371264116 | E48: =N40 -> 0.1422876353 | F48: 0.1301781558
B49: Muy Grande | C49: =H41 -> 0.008488659331 | D49: 0.008062525129 | E49: =N41 -> 0.2883913159 | F49: 0.3835281237
G61: Actividad económica | J61: =D4 -> Industrias manufactureras | U61: =N4 -> C
A66: Distribución Departamental | K66: Distribución en los principales municipios del País
A67: Departamento | D67: Empleadores | F67: % | G67: Empleados | I67: % | K67: Departamento | M67: Municipio | P67: Empleadores | R67: % | S67: Empleados | U67: %
A68: =IFERROR(insumos2!BG2,"") -> Bogotá | D68: =insumos2!BH2 -> 7709 | F68: =IFERROR(D68/$D$96,"") -> 0.3462384909 | G68: =insumos2!BI2 -> 203833 | I68: =G68/$G$96 -> 0.3075666035 | K68: =IFERROR(insumos2!BP2,"") -> Bogotá | M68: =IFERROR(insumos2!BQ2,"") -> Bogotá, d.c. | P68: =IF(K68<>"",insumos2!BR2,"") -> 7709 | R68: =IFERROR(P68/$P$96,"") -> 0.3462384909 | S68: =IF(K68<>"",insumos2!BS2,"") -> 203833 | U68: =IFERROR(S68/$S$96,"") -> 0.3075666035
A69: =IFERROR(insumos2!BG3,"") -> Antioquia | D69: =insumos2!BH3 -> 5716 | F69: =IFERROR(D69/$D$96,"") -> 0.2567258028 | G69: =insumos2!BI3 -> 189600 | I69: 0.286090221 | K69: =IFERROR(insumos2!BP3,"") -> Antioquia | M69: =IFERROR(insumos2!BQ3,"") -> Medellín | P69: =IF(K69<>"",insumos2!BR3,"") -> 3280 | R69: =IFERROR(P69/$P$96,"") -> 0.1473164159 | S69: =IF(K69<>"",insumos2!BS3,"") -> 90979 | U69: =IFERROR(S69/$S$96,"") -> 0.1372795476
A70: =IFERROR(insumos2!BG4,"") -> Valle del cauca | D70: =insumos2!BH4 -> 2356 | F70: 0.1058163036 | G70: =insumos2!BI4 -> 89233 | I70: 0.1346449826 | K70: =IFERROR(insumos2!BP4,"") -> Valle del cauca | M70: =IFERROR(insumos2!BQ4,"") -> Cali | P70: =IF(K70<>"",insumos2!BR4,"") -> 1644 | R70: 0.07383786212 | S70: =IF(K70<>"",insumos2!BS4,"") -> 46391 | U70: 0.07000006036
A71: =IFERROR(insumos2!BG5,"") -> Cundinamarca | D71: =insumos2!BH5 -> 1182 | F71: 0.05308780597 | G71: =insumos2!BI5 -> 42895 | I71: 0.06472489468 | K71: =IFERROR(insumos2!BP5,"") -> Atlántico | M71: =IFERROR(insumos2!BQ5,"") -> Barranquilla | P71: =IF(K71<>"",insumos2!BR5,"") -> 686 | R71: 0.03081068942 | S71: =IF(K71<>"",insumos2!BS5,"") -> 19591 | U71: 0.02956114726
A72: =IFERROR(insumos2!BG6,"") -> Santander | D72: =insumos2!BH6 -> 1024 | F72: 0.04599146643 | G72: =insumos2!BI6 -> 18177 | I72: 0.02742754192 | K72: =IFERROR(insumos2!BP6,"") -> Santander | M72: =IFERROR(insumos2!BQ6,"") -> Bucaramanga | P72: =IF(K72<>"",insumos2!BR6,"") -> 668 | R72: 0.03000224568 | S72: =IF(K72<>"",insumos2!BS6,"") -> 10455 | U72: 0.01577570285
A73: =IFERROR(insumos2!BG7,"") -> Atlántico | D73: =insumos2!BH7 -> 808 | F73: 0.03629014148 | G73: =insumos2!BI7 -> 28237 | I73: 0.04260722348 | K73: =IFERROR(insumos2!BP7,"") -> Antioquia | M73: =IFERROR(insumos2!BQ7,"") -> Itagüí | P73: =IF(K73<>"",insumos2!BR7,"") -> 607 | R73: 0.02726251965 | S73: =IF(K73<>"",insumos2!BS7,"") -> 24070 | U73: 0.03631957606
A74: =IFERROR(insumos2!BG8,"") -> Risaralda | D74: =insumos2!BH8 -> 541 | F74: 0.02429822592 | G74: =insumos2!BI8 -> 22179 | I74: 0.03346621842 | K74: =IFERROR(insumos2!BP8,"") -> Risaralda | M74: =IFERROR(insumos2!BQ8,"") -> Pereira | P74: =IF(K74<>"",insumos2!BR8,"") -> 314 | R74: 0.01410285201 | S74: =IF(K74<>"",insumos2!BS8,"") -> 12208 | U74: 0.01842083027
A75: =IFERROR(insumos2!BG9,"") -> Norte de stder | D75: =insumos2!BH9 -> 357 | F75: 0.01603413429 | G75: =insumos2!BI9 -> 7251 | I75: 0.01094114026 | K75: =IFERROR(insumos2!BP9,"") -> Bolívar | M75: =IFERROR(insumos2!BQ9,"") -> Cartagena de ind | P75: =IF(K75<>"",insumos2!BR9,"") -> 304 | R75: 0.0136537166 | S75: =IF(K75<>"",insumos2!BS9,"") -> 6769 | U75: 0.01021384339
A76: =IFERROR(insumos2!BG10,"") -> Bolívar | D76: =insumos2!BH10 -> 342 | F76: 0.01536043117 | G76: =insumos2!BI10 -> 7515 | I76: 0.01133949373 | K76: =IFERROR(insumos2!BP10,"") -> Norte de stder | M76: =IFERROR(insumos2!BQ10,"") -> Cucuta | P76: =IF(K76<>"",insumos2!BR10,"") -> 274 | R76: 0.01230631035 | S76: =IF(K76<>"",insumos2!BS10,"") -> 5720 | U76: 0.0086309919
A77: =IFERROR(insumos2!BG11,"") -> Caldas | D77: =insumos2!BH11 -> 309 | F77: 0.0138782843 | G77: =insumos2!BI11 -> 11088 | I77: 0.01673084584 | K77: =IFERROR(insumos2!BP11,"") -> Caldas | M77: =IFERROR(insumos2!BQ11,"") -> Manizales | P77: =IF(K77<>"",insumos2!BR11,"") -> 250 | R77: 0.01122838536 | S77: =IF(K77<>"",insumos2!BS11,"") -> 9472 | U77: 0.01429243973
A78: =IFERROR(insumos2!BG12,"") -> Boyacá | D78: =insumos2!BH12 -> 275 | F78: 0.01235122389 | G78: =insumos2!BI12 -> 4370 | I78: 0.006593957099 | K78: =IFERROR(insumos2!BP12,"") -> Antioquia | M78: =IFERROR(insumos2!BQ12,"") -> Envigado | P78: =IF(K78<>"",insumos2!BR12,"") -> 242 | R78: 0.01086907703 | S78: =IF(K78<>"",insumos2!BS12,"") -> 9083 | U78: 0.01370547193
A79: =IFERROR(insumos2!BG13,"") -> Tolima | D79: =insumos2!BH13 -> 247 | F79: 0.01109364473 | G79: =insumos2!BI13 -> 5387 | I79: 0.008128523316 | K79: =IFERROR(insumos2!BP13,"") -> Valle del cauca | M79: =IFERROR(insumos2!BQ13,"") -> Yumbo | P79: =IF(K79<>"",insumos2!BR13,"") -> 222 | R79: 0.009970806198 | S79: =IF(K79<>"",insumos2!BS13,"") -> 25955 | U79: 0.0391638802
A80: =IFERROR(insumos2!BG14,"") -> Huila | D80: =insumos2!BH14 -> 205 | F80: 0.009207275994 | G80: =insumos2!BI14 -> 2455 | I80: 0.00370438551 | K80: =IFERROR(insumos2!BP14,"") -> Antioquia | M80: =IFERROR(insumos2!BQ14,"") -> Sabaneta | P80: =IF(K80<>"",insumos2!BR14,"") -> 213 | R80: 0.009566584325 | S80: =IF(K80<>"",insumos2!BS14,"") -> 14196 | U80: 0.02142055262
A81: =IFERROR(insumos2!BG15,"") -> Quindío | D81: =insumos2!BH15 -> 181 | F81: 0.008129350999 | G81: =insumos2!BI15 -> 5805 | I81: 0.008759249647 | K81: =IFERROR(insumos2!BP15,"") -> Antioquia | M81: =IFERROR(insumos2!BQ15,"") -> La estrella | P81: =IF(K81<>"",insumos2!BR15,"") -> 210 | R81: 0.009431843701 | S81: =IF(K81<>"",insumos2!BS15,"") -> 11783 | U81: 0.01777954153
A82: =IFERROR(insumos2!BG16,"") -> Meta | D82: =insumos2!BH16 -> 167 | F82: 0.007500561419 | G82: =insumos2!BI16 -> 2603 | I82: 0.00392770488 | K82: =IFERROR(insumos2!BP16,"") -> Tolima | M82: =IFERROR(insumos2!BQ16,"") -> Ibagué | P82: =IF(K82<>"",insumos2!BR16,"") -> 205 | R82: 0.009207275994 | S82: =IF(K82<>"",insumos2!BS16,"") -> 4730 | U82: 0.007137166379
A83: =IFERROR(insumos2!BG17,"") -> Nariño | D83: =insumos2!BH17 -> 152 | F83: 0.006826858298 | G83: =insumos2!BI17 -> 2579 | I83: 0.003891490928 | K83: =IFERROR(insumos2!BP17,"") -> Risaralda | M83: =IFERROR(insumos2!BQ17,"") -> Dosquebradas | P83: =IF(K83<>"",insumos2!BR17,"") -> 191 | R83: 0.008578486414 | S83: =IF(K83<>"",insumos2!BS17,"") -> 8941 | U83: 0.01349120605
A84: =IFERROR(insumos2!BG18,"") -> Cauca | D84: =insumos2!BH18 -> 131 | F84: 0.005883673928 | G84: =insumos2!BI18 -> 8683 | I84: 0.01310190606 | K84: =IFERROR(insumos2!BP18,"") -> Cundinamarca | M84: =IFERROR(insumos2!BQ18,"") -> Soacha | P84: =IF(K84<>"",insumos2!BR18,"") -> 190 | R84: 0.008533572872 | S84: =IF(K84<>"",insumos2!BS18,"") -> 4062 | U84: 0.006129211381
A85: =IFERROR(insumos2!BG19,"") -> Magdalena | D85: =insumos2!BH19 -> 117 | F85: 0.005254884348 | G85: =insumos2!BI19 -> 3299 | I85: 0.004977909489 | K85: =IFERROR(insumos2!BP19,"") -> Antioquia | M85: =IFERROR(insumos2!BQ19,"") -> Bello | P85: =IF(K85<>"",insumos2!BR19,"") -> 188 | R85: 0.008443745789 | S85: =IF(K85<>"",insumos2!BS19,"") -> 5843 | U85: 0.008816588404
A86: =IFERROR(insumos2!BG20,"") -> Córdoba | D86: =insumos2!BH20 -> 104 | F86: 0.004671008309 | G86: =insumos2!BI20 -> 2763 | I86: 0.004169131227 | K86: =IFERROR(insumos2!BP20,"") -> Valle del cauca | M86: =IFERROR(insumos2!BQ20,"") -> Palmira | P86: =IF(K86<>"",insumos2!BR20,"") -> 185 | R86: 0.008309005165 | S86: =IF(K86<>"",insumos2!BS20,"") -> 8290 | U86: 0.0125089026
A87: =IFERROR(insumos2!BG21,"") -> Cesar | D87: =insumos2!BH21 -> 87 | F87: 0.003907478105 | G87: =insumos2!BI21 -> 1135 | I87: 0.001712618148 | K87: =IFERROR(insumos2!BP21,"") -> Antioquia | M87: =IFERROR(insumos2!BQ21,"") -> Rionegro | P87: =IF(K87<>"",insumos2!BR21,"") -> 176 | R87: 0.007904783292 | S87: =IF(K87<>"",insumos2!BS21,"") -> 5652 | U87: 0.008528385703
A88: =IFERROR(insumos2!BG22,"") -> Casanare | D88: =insumos2!BH22 -> 69 | F88: 0.003099034359 | G88: =insumos2!BI22 -> 795 | I88: 0.001199587161 | K88: =IFERROR(insumos2!BP22,"") -> Cundinamarca | M88: =IFERROR(insumos2!BQ22,"") -> Mosquera | P88: =IF(K88<>"",insumos2!BR22,"") -> 155 | R88: 0.006961598922 | S88: =IF(K88<>"",insumos2!BS22,"") -> 4486 | U88: 0.0067689912
A89: =IFERROR(insumos2!BG23,"") -> Sucre | D89: =insumos2!BH23 -> 55 | F89: 0.002470244779 | G89: =insumos2!BI23 -> 1102 | I89: 0.001662823964 | K89: =IFERROR(insumos2!BP23,"") -> Huila | M89: =IFERROR(insumos2!BQ23,"") -> Neiva | P89: =IF(K89<>"",insumos2!BR23,"") -> 150 | R89: 0.006737031215 | S89: =IF(K89<>"",insumos2!BS23,"") -> 1731 | U89: 0.00261193129
A90: =IFERROR(insumos2!BG24,"") -> Caquetá | D90: =insumos2!BH24 -> 32 | F90: 0.001437233326 | G90: =insumos2!BI24 -> 375 | I90: 0.0005658430004 | K90: =IFERROR(insumos2!BP24,"") -> Cundinamarca | M90: =IFERROR(insumos2!BQ24,"") -> Cota | P90: =IF(K90<>"",insumos2!BR24,"") -> 146 | R90: 0.006557377049 | S90: =IF(K90<>"",insumos2!BS24,"") -> 7923 | U90: 0.01195513091
A91: =IFERROR(insumos2!BG25,"") -> Arauca | D91: =insumos2!BH25 -> 23 | F91: 0.001033011453 | G91: =insumos2!BI25 -> 607 | I91: 0.0009159112034 | K91: =IFERROR(insumos2!BP25,"") -> Quindío | M91: =IFERROR(insumos2!BQ25,"") -> Armenia | P91: =IF(K91<>"",insumos2!BR25,"") -> 137 | R91: 0.006153155176 | S91: =IF(K91<>"",insumos2!BS25,"") -> 4797 | U91: 0.007238263662
A92: =IFERROR(insumos2!BG26,"") -> San Andrés | D92: =insumos2!BH26 -> 21 | F92: =D92/$D$96 -> 0.0009431843701 | G92: =insumos2!BI26 -> 181 | I92: 0.0002731135549 | K92: =IFERROR(insumos2!BP26,"") -> Cundinamarca | M92: =IFERROR(insumos2!BQ26,"") -> Funza | P92: =IF(K92<>"",insumos2!BR26,"") -> 128 | R92: 0.005748933303 | S92: =IF(K92<>"",insumos2!BS26,"") -> 6424 | U92: 0.009693267826
A93: =IFERROR(insumos2!BG27,"") -> La guajira | D93: =insumos2!BH27 -> 18 | F93: 0.0008084437458 | G93: =insumos2!BI27 -> 185 | I93: 0.0002791492136 | K93: =IFERROR(insumos2!BP27,"") -> Nariño | M93: =IFERROR(insumos2!BQ27,"") -> Pasto | P93: =IF(K93<>"",insumos2!BR27,"") -> 123 | R93: 0.005524365596 | S93: =IF(K93<>"",insumos2!BS27,"") -> 2313 | U93: 0.003490119627
A94: =IFERROR(insumos2!BG28,"") -> Putumayo | D94: =insumos2!BH28 -> 12 | F94: 0.0005389624972 | G94: =insumos2!BI28 -> 80 | I94: 0.0001207131734 | K94: =IFERROR(insumos2!BP28,"") -> Meta | M94: =IFERROR(insumos2!BQ28,"") -> Villavicencio | P94: =IF(K94<>"",insumos2!BR28,"") -> 120 | R94: 0.005389624972 | S94: =IF(K94<>"",insumos2!BS28,"") -> 1719 | U94: 0.002593824314
A95: =IFERROR(insumos2!BG29,"") -> Otros | D95: =insumos2!BH29 -> 25 | F95: 0.001122838536 | G95: =insumos2!BI29 -> 316 | I95: 0.000476817035 | K95: =IF(K94="","",IFERROR(insumos2!BP29,"")) -> Otros | M95: =IF(M94="","",IFERROR(insumos2!BQ29,"")) -> Otros | P95: =IF(K95<>"",insumos2!BR29,"") -> 3548 | R95: 0.159353245 | S95: =IF(K95<>"",insumos2!BS29,"") -> 105312 | U95: 0.1589068215
A96: =insumos2!BG30 -> Total | D96: =insumos2!BH30 -> 22265 | F96: =D96/$D$96 -> 1 | G96: =insumos2!BI30 -> 662728 | I96: 1 | K96: =insumos2!BP30 -> Total | P96: =insumos2!BR30 -> 22265 | R96: =P96/$P$96 -> 1 | S96: =insumos2!BS30 -> 662728 | U96: =S96/$S$96 -> 1
G129: Actividad económica | J129: =D4 -> Industrias manufactureras | U129: =N4 -> C
C135: Beneficiarios por combinación de programas - Nacional
C137: Combinación de programa | H137: Empleadores beneficiados | K137: % | L137: Empleados | O137: % | P137: Recursos en millones | S137: %
C138: =Hoja4!AY2 -> PAEF - PAP | H138: =Hoja4!AZ2 -> 54671 | K138: =H138/$H$151 -> 0.3743947954 | L138: =Hoja4!BB2 -> 2083401 | O138: =L138/$L$151 -> 0.4917622661 | P138: =Hoja4!BD2 -> 4062026.564 | S138: =P138/$P$151 -> 0.5094668732
C139: =Hoja4!AY3 -> PAEF | H139: =Hoja4!AZ3 -> 37055 | K139: =H139/$H$151 -> 0.2537579182 | L139: =Hoja4!BB3 -> 1009921 | O139: =L139/$L$151 -> 0.2383799564 | P139: =Hoja4!BD3 -> 1060821.889 | S139: =P139/$P$151 -> 0.1330502404
C140: =Hoja4!AY4 -> PAEF - PAP - MICRO | H140: =Hoja4!AZ4 -> 31292 | K140: 0.2142920733 | L140: =Hoja4!BB4 -> 411245 | O140: 0.09706953828 | P140: =Hoja4!BD4 -> 1387604.473 | S140: 0.1740359155
C141: =Hoja4!AY5 -> PAEF - MICRO | H141: =Hoja4!AZ5 -> 8239 | K141: 0.05642184557 | L141: =Hoja4!BB5 -> 90100 | O141: 0.02126704373 | P141: =Hoja4!BD5 -> 221012.67 | S141: 0.02771981722
C142: =Hoja4!AY6 -> PAEF - PAP - PARO - MICRO | H142: =Hoja4!AZ6 -> 6751 | K142: 0.04623180962 | L142: =Hoja4!BB6 -> 105861 | O142: 0.02498724213 | P142: =Hoja4!BD6 -> 378748.859 | S142: 0.04750338135
C143: =Hoja4!AY7 -> PAEF - PAP - PARO | H143: =Hoja4!AZ7 -> 2411 | K143: 0.01651087143 | L143: =Hoja4!BB7 -> 332915 | O143: 0.07858066441 | P143: =Hoja4!BD7 -> 667470.767 | S143: 0.08371541624
C144: =Hoja4!AY8 -> MICRO | H144: =Hoja4!AZ8 -> 1902 | K144: 0.01302516692 | L144: =Hoja4!BB8 -> 11891 | O144: 0.002806730488 | P144: =Hoja4!BD8 -> 14288.475 | S144: 0.001792086922
C145: =Hoja4!AY9 -> PAEF - PARO - MICRO | H145: =Hoja4!AZ9 -> 1481 | K145: 0.01014209896 | L145: =Hoja4!BB9 -> 20054 | O145: 0.004733510488 | P145: =Hoja4!BD9 -> 48042.346 | S145: 0.006025559757
C146: =Hoja4!AY10 -> PAEF - PARO | H146: =Hoja4!AZ10 -> 1099 | K146: 0.007526108543 | L146: =Hoja4!BB10 -> 110518 | O146: 0.02608647213 | P146: =Hoja4!BD10 -> 114941.3445 | S146: 0.01441615569
C147: =Hoja4!AY11 -> PARO | H147: =Hoja4!AZ11 -> 630 | K147: 0.004314329738 | L147: =Hoja4!BB11 -> 57037 | O147: 0.01346291202 | P147: =Hoja4!BD11 -> 13866.6 | S147: 0.00173917458
C148: =Hoja4!AY12 -> PARO - MICRO | H148: =Hoja4!AZ12 -> 312 | K148: 0.002136620442 | L148: =Hoja4!BB12 -> 2883 | O148: 0.0006804981917 | P148: =Hoja4!BD12 -> 3967.4545 | S148: 0.0004976054702
C149: =Hoja4!AY13 -> PAP | H149: =Hoja4!AZ13 -> 170 | K149: 0.001164184215 | L149: =Hoja4!BB13 -> 639 | O149: 0.0001508284233 | P149: =Hoja4!BD13 -> 152.24 | S149: 1.909422195e-05
C150: =Hoja4!AY14 -> PAP - MICRO | H150: =Hoja4!AZ14 -> 12 | K150: 8.21777093e-05 | L150: =Hoja4!BB14 -> 137 | O150: 3.23372363e-05 | P150: =Hoja4!BD14 -> 148.933 | S150: 1.86794519e-05
C151: Total General | H151: =SUM(H138:J150) -> 146025 | L151: =SUM(L138:N150) -> 4236602 | P151: =SUM(P138:R150) -> 7973092.615
C153: *Corresponde a los programas en los que se ha beneficiado el aportante.
C158: ="Beneficiarios por combinación de programas - Sección " & N4 -> Beneficiarios por combinación de programas - Sección C
C160: Combinación de programa | H160: Empleadores beneficiados | K160: % | L160: Empleados | O160: % | P160: Recursos en millones | S160: %
C161: =C138 -> PAEF - PAP | H161: =Hoja4!BA2 -> 8333 | K161: =H161/$H$174 -> 0.3742645408 | L161: =Hoja4!BC2 -> 245125 | O161: =L161/$L$174 -> 0.369872708 | P161: =Hoja4!BE2 -> 481578.3 | S161: =P161/$P$174 -> 0.4105327039
C162: =C139 -> PAEF | H162: =Hoja4!BA3 -> 5445 | K162: =H162/$H$174 -> 0.2445542331 | L162: =Hoja4!BC3 -> 179014 | O162: =L162/$L$174 -> 0.2701168504 | P162: =Hoja4!BE3 -> 173193.984 | S162: =P162/$P$174 -> 0.1476432691
C163: PAEF - PAP - MICRO | H163: =Hoja4!BA4 -> 4792 | K163: 0.2152256905 | L163: =Hoja4!BC4 -> 66520 | O163: 0.1003730037 | P163: =Hoja4!BE4 -> 225344.733 | S163: 0.1921003969
C164: PAEF - MICRO | H164: =Hoja4!BA5 -> 997 | K164: 0.04477880081 | L164: =Hoja4!BC5 -> 12672 | O164: 0.01912096667 | P164: =Hoja4!BE5 -> 28138.688 | S164: 0.0239874838
C165: PAEF - PAP - PARO - MICRO | H165: =Hoja4!BA6 -> 1229 | K165: 0.05519874242 | L165: =Hoja4!BC6 -> 20784 | O165: 0.03136128246 | P165: =Hoja4!BE6 -> 76912.8965 | S165: 0.06556620048
C166: PAEF - PAP - PARO | H166: =Hoja4!BA7 -> 530 | K166: 0.02380417696 | L166: =Hoja4!BC7 -> 66156 | O166: 0.09982375877 | P166: =Hoja4!BE7 -> 133144.7675 | S166: 0.1135023763
C167: MICRO | H167: =Hoja4!BA8 -> 212 | K167: 0.009521670784 | L167: =Hoja4!BC8 -> 1525 | O167: 0.002301094868 | P167: =Hoja4!BE8 -> 1723.214 | S167: 0.001468994144
C168: PAEF - PARO - MICRO | H168: =Hoja4!BA9 -> 232 | K168: 0.01041994161 | L168: =Hoja4!BC9 -> 3549 | O168: 0.005355138156 | P168: =Hoja4!BE9 -> 7969.607 | S168: 0.006793878193
C169: PAEF - PARO | H169: =Hoja4!BA10 -> 269 | K169: 0.01208174265 | L169: =Hoja4!BC10 -> 40902 | O169: 0.06171762774 | P169: =Hoja4!BE10 -> 38729.7195 | S169: 0.03301605672
C170: PARO | H170: =Hoja4!BA11 -> 157 | K170: 0.007051426005 | L170: =Hoja4!BC11 -> 25890 | O170: 0.03906580075 | P170: =Hoja4!BE11 -> 5736.6705 | S170: 0.004890359162
C171: PARO - MICRO | H171: =Hoja4!BA12 -> 47 | K171: 0.002110936447 | L171: =Hoja4!BC12 -> 503 | O171: 0.0007589840779 | P171: =Hoja4!BE12 -> 563.7635 | S171: 0.000480593403
C172: PAP | H172: =Hoja4!BA13 -> 21 | K172: 0.0009431843701 | L172: =Hoja4!BC13 -> 81 | O172: 0.0001222220881 | P172: =Hoja4!BE13 -> 18.04 | S172: 1.537862063e-05
C173: PAP - MICRO | H173: =Hoja4!BA14 -> 1 | K173: 4.491354143e-05 | L173: =Hoja4!BC14 -> 7 | O173: 1.056240268e-05 | P173: =Hoja4!BE14 -> 2.709 | S173: 2.309350514e-06
C174: Total General | H174: =SUM(H161:J173) -> 22265 | L174: =SUM(L161:N173) -> 662728 | P174: =SUM(P161:R173) -> 1173057.092
C176: *Corresponde a los programas en los que se ha beneficiado el aportante.
S179: Seleccióne uno para su análisis
S181: Aportantes
C199: *Corresponde a los programas en los que se ha beneficiado el aportante.
G200: Actividad económica | J200: =J61 -> Industrias manufactureras | U200: =U61 -> C
B204: Sexo | D204: ="Total empleadores sección "&N4 -> Total empleadores sección C | G204: %
B206: Hombres | D206: =VLOOKUP(N4,Hoja4!$H$2:$P$23,7,FALSE) -> 407647 | G206: =D206/$D$209 -> 0.6151045376
B207: Mujeres | D207: =VLOOKUP(N4,Hoja4!$H$2:$P$23,8,FALSE) -> 254760 | G207: =D207/$D$209 -> 0.3844111008
B208: No disponible | D208: =VLOOKUP(N4,Hoja4!$H$2:$P$23,9,FALSE) -> 321 | G208: =D208/$D$209 -> 0.0004843616084
B209: Total | D209: =D208+D207+D206 -> 662728 | G209: =D209/$D$209 -> 1
B212: ="Para la Sección "&U200&" hay "&ROUND(VLOOKUP(U200,Hoja4!$H$2:$R$23,11,FALSE),0)&" mujeres por cada 100 hombres beneficiados del Programa." -> Para la Sección C hay 62 mujeres por cada 100 hombres beneficiados del Programa.
B225: ="Grupo o División de la sección "&U200 -> Grupo o División de la sección C | I225: Empleadores | M225: % | O225: Empleados | S225: %
B226: =IF(insumos2!BX2=0,"",insumos2!BX2) -> Elaboración de productos alimenticios | I226: =IF(insumos2!BX2=0,"",insumos2!BY2) -> 3377 | M226: =IFERROR(I226/insumos2!$BV$28,"") -> 0.1516730294 | O226: =IF(insumos2!BZ2=0,"",insumos2!BZ2) -> 115761 | S226: =IFERROR(O226/insumos2!$BW$28,"") -> 0.1746734709
B227: =IF(insumos2!BX3=0,"",insumos2!BX3) -> Confección de prendas de vestir | I227: =IF(insumos2!BX3=0,"",insumos2!BY3) -> 2934 | M227: =IFERROR(I227/insumos2!$BV$28,"") -> 0.1317763306 | O227: =IF(insumos2!BZ3=0,"",insumos2!BZ3) -> 112009 | S227: =IFERROR(O227/insumos2!$BW$28,"") -> 0.169012023
B228: =IF(insumos2!BX4=0,"",insumos2!BX4) -> Instalación, mantenimiento y reparación especializado de maquinaria y equipo | I228: =IF(insumos2!BX4=0,"",insumos2!BY4) -> 2467 | M228: =IFERROR(I228/insumos2!$BV$28,"") -> 0.1108017067 | O228: =IF(insumos2!BZ4=0,"",insumos2!BZ4) -> 32593 | S228: =IFERROR(O228/insumos2!$BW$28,"") -> 0.04918005577
B229: =IF(insumos2!BX5=0,"",insumos2!BX5) -> Fabricación de productos elaborados de metal, excepto maquinaria y equipo | I229: =IF(insumos2!BX5=0,"",insumos2!BY5) -> 2273 | M229: =IFERROR(I229/insumos2!$BV$28,"") -> 0.1020884797 | O229: =IF(insumos2!BZ5=0,"",insumos2!BZ5) -> 44697 | S229: =IFERROR(O229/insumos2!$BW$28,"") -> 0.06744395891
B230: =IF(insumos2!BX6=0,"",insumos2!BX6) -> Fabricación de productos de caucho y de plástico | I230: =IF(insumos2!BX6=0,"",insumos2!BY6) -> 1202 | M230: =IFERROR(I230/insumos2!$BV$28,"") -> 0.0539860768 | O230: =IF(insumos2!BZ6=0,"",insumos2!BZ6) -> 42541 | S230: =IFERROR(O230/insumos2!$BW$28,"") -> 0.06419073889
B231: =IF(insumos2!BX7=0,"",insumos2!BX7) -> Actividades de impresión y de producción de copias a partir de grabaciones originales | I231: =IF(insumos2!BX7=0,"",insumos2!BY7) -> 1109 | M231: =IFERROR(I231/insumos2!$BV$28,"") -> 0.04980911745 | O231: =IF(insumos2!BZ7=0,"",insumos2!BZ7) -> 17885 | S231: =IFERROR(O231/insumos2!$BW$28,"") -> 0.02698693883
B232: =IF(insumos2!BX8=0,"",insumos2!BX8) -> Fabricación de muebles, colchones y somieres | I232: =IF(insumos2!BX8=0,"",insumos2!BY8) -> 1108 | M232: =IFERROR(I232/insumos2!$BV$28,"") -> 0.04976420391 | O232: =IF(insumos2!BZ8=0,"",insumos2!BZ8) -> 22284 | S232: =IFERROR(O232/insumos2!$BW$28,"") -> 0.03362465446
B233: =IF(insumos2!BX9=0,"",insumos2!BX9) -> Fabricación de sustancias y productos químicos | I233: =IF(insumos2!BX9=0,"",insumos2!BY9) -> 897 | M233: =IFERROR(I233/insumos2!$BV$28,"") -> 0.04028744667 | O233: =IF(insumos2!BZ9=0,"",insumos2!BZ9) -> 37463 | S233: =IFERROR(O233/insumos2!$BW$28,"") -> 0.0565284702
B234: =IF(insumos2!BX10=0,"",insumos2!BX10) -> Otras industrias manufactureras | I234: =IF(insumos2!BX10=0,"",insumos2!BY10) -> 854 | M234: =IFERROR(I234/insumos2!$BV$28,"") -> 0.03835616438 | O234: =IF(insumos2!BZ10=0,"",insumos2!BZ10) -> 16822 | S234: =IFERROR(O234/insumos2!$BW$28,"") -> 0.02538296254
B235: =IF(insumos2!BX11=0,"",insumos2!BX11) -> Fabricación de productos textiles | I235: =IF(insumos2!BX11=0,"",insumos2!BY11) -> 836 | M235: =IFERROR(I235/insumos2!$BV$28,"") -> 0.03754772064 | O235: =IF(insumos2!BZ11=0,"",insumos2!BZ11) -> 30502 | S235: =IFERROR(O235/insumos2!$BW$28,"") -> 0.0460249152
B236: =IF(insumos2!BX12=0,"",insumos2!BX12) -> Transformación de la madera y fabricación de productos de madera y de corcho, excepto muebles; fabricación de artículos de cestería y espartería | I236: =IF(insumos2!BX12=0,"",insumos2!BY12) -> 741 | M236: =IFERROR(I236/insumos2!$BV$28,"") -> 0.0332809342 | O236: =IF(insumos2!BZ12=0,"",insumos2!BZ12) -> 11511 | S236: =IFERROR(O236/insumos2!$BW$28,"") -> 0.01736911674
B237: =IF(insumos2!BX13=0,"",insumos2!BX13) -> Fabricación de otros productos minerales no metálicos | I237: =IF(insumos2!BX13=0,"",insumos2!BY13) -> 725 | M237: =IFERROR(I237/insumos2!$BV$28,"") -> 0.03256231754 | O237: =IF(insumos2!BZ13=0,"",insumos2!BZ13) -> 39234 | S237: =IFERROR(O237/insumos2!$BW$28,"") -> 0.05920075808
B238: =IF(insumos2!BX14=0,"",insumos2!BX14) -> Curtido y recurtido de cueros; fabricación de calzado; fabricación de artículos de viaje, maletas, bolsos de mano y artículos similares, y fabricación de artículos de talabartería y guarnicionería; adobo y teñido de pieles | I238: =IF(insumos2!BX14=0,"",insumos2!BY14) -> 716 | M238: =IFERROR(I238/insumos2!$BV$28,"") -> 0.03215809567 | O238: =IF(insumos2!BZ14=0,"",insumos2!BZ14) -> 22795 | S238: =IFERROR(O238/insumos2!$BW$28,"") -> 0.03439570985
B239: =IF(insumos2!BX15=0,"",insumos2!BX15) -> Fabricación de maquinaria y equipo n.c.p. | I239: =IF(insumos2!BX15=0,"",insumos2!BY15) -> 657 | M239: =IFERROR(I239/insumos2!$BV$28,"") -> 0.02950819672 | O239: =IF(insumos2!BZ15=0,"",insumos2!BZ15) -> 15270 | S239: =IFERROR(O239/insumos2!$BW$28,"") -> 0.02304112698
B240: =IF(insumos2!BX16=0,"",insumos2!BX16) -> Fabricación de papel, cartón y productos de papel y cartón | I240: =IF(insumos2!BX16=0,"",insumos2!BY16) -> 478 | M240: =IFERROR(I240/insumos2!$BV$28,"") -> 0.0214686728 | O240: =IF(insumos2!BZ16=0,"",insumos2!BZ16) -> 17644 | S240: =IFERROR(O240/insumos2!$BW$28,"") -> 0.0266232904
B241: =IF(insumos2!BX17=0,"",insumos2!BX17) -> Fabricación de vehículos automotores, remolques y semirremolques | I241: =IF(insumos2!BX17=0,"",insumos2!BY17) -> 446 | M241: =IFERROR(I241/insumos2!$BV$28,"") -> 0.02003143948 | O241: =IF(insumos2!BZ17=0,"",insumos2!BZ17) -> 18090 | S241: =IFERROR(O241/insumos2!$BW$28,"") -> 0.02729626634
B242: =IF(insumos2!BX18=0,"",insumos2!BX18) -> Fabricación de productos metalúrgicos básicos | I242: =IF(insumos2!BX18=0,"",insumos2!BY18) -> 410 | M242: =IFERROR(I242/insumos2!$BV$28,"") -> 0.01841455199 | O242: =IF(insumos2!BZ18=0,"",insumos2!BZ18) -> 11946 | S242: =IFERROR(O242/insumos2!$BW$28,"") -> 0.01802549462
B243: =IF(insumos2!BX19=0,"",insumos2!BX19) -> Fabricación de aparatos y equipo eléctrico | I243: =IF(insumos2!BX19=0,"",insumos2!BY19) -> 309 | M243: =IFERROR(I243/insumos2!$BV$28,"") -> 0.0138782843 | O243: =IF(insumos2!BZ19=0,"",insumos2!BZ19) -> 16433 | S243: =IFERROR(O243/insumos2!$BW$28,"") -> 0.02479599474
B244: =IF(insumos2!BX20=0,"",insumos2!BX20) -> Elaboración de bebidas | I244: =IF(insumos2!BX20=0,"",insumos2!BY20) -> 267 | M244: =IFERROR(I244/insumos2!$BV$28,"") -> 0.01199191556 | O244: =IF(insumos2!BZ20=0,"",insumos2!BZ20) -> 17365 | S244: =IFERROR(O244/insumos2!$BW$28,"") -> 0.02620230321
B245: =IF(insumos2!BX21=0,"",insumos2!BX21) -> Fabricación de productos farmacéuticos, sustancias químicas medicinales y productos botánicos de uso farmacéutico | I245: =IF(insumos2!BX21=0,"",insumos2!BY21) -> 182 | M245: =IFERROR(I245/insumos2!$BV$28,"") -> 0.008174264541 | O245: =IF(insumos2!BZ21=0,"",insumos2!BZ21) -> 8272 | S245: =IFERROR(O245/insumos2!$BW$28,"") -> 0.01248174213
B246: =IF(insumos2!BX22=0,"",insumos2!BX22) -> Fabricación de productos informáticos, electrónicos y ópticos | I246: =IF(insumos2!BX22=0,"",insumos2!BY22) -> 109 | M246: =IFERROR(I246/insumos2!$BV$28,"") -> 0.004895576016 | O246: =IF(insumos2!BZ22=0,"",insumos2!BZ22) -> 2047 | S246: =IFERROR(O246/insumos2!$BW$28,"") -> 0.003088748325
B247: =IF(insumos2!BX23=0,"",insumos2!BX23) -> Coquización, fabricación de productos de la refinación del petróleo y actividad de mezcla de combustibles | I247: =IF(insumos2!BX23=0,"",insumos2!BY23) -> 95 | M247: =IFERROR(I247/insumos2!$BV$28,"") -> 0.004266786436 | O247: =IF(insumos2!BZ23=0,"",insumos2!BZ23) -> 3376 | S247: =IFERROR(O247/insumos2!$BW$28,"") -> 0.005094095919
B248: =IF(insumos2!BX24=0,"",insumos2!BX24) -> Fabricación de otros tipos de equipo de transporte | I248: =IF(insumos2!BX24=0,"",insumos2!BY24) -> 69 | M248: =IFERROR(I248/insumos2!$BV$28,"") -> 0.003099034359 | O248: =IF(insumos2!BZ24=0,"",insumos2!BZ24) -> 6151 | S248: =IFERROR(O248/insumos2!$BW$28,"") -> 0.009281334122
B249: =IF(insumos2!BX25=0,"",insumos2!BX25) -> Elaboración de productos de tabaco | I249: =IF(insumos2!BX25=0,"",insumos2!BY25) -> 4 | M249: =IFERROR(I249/insumos2!$BV$28,"") -> 0.0001796541657 | O249: =IF(insumos2!BZ25=0,"",insumos2!BZ25) -> 37 | S249: =IFERROR(O249/insumos2!$BW$28,"") -> 5.582984271e-05
B250: =IF(insumos2!BX26=0,"",insumos2!BX26) ->  | I250: =IF(insumos2!BX26=0,"",insumos2!BY26) ->  | M250: =IFERROR(I250/insumos2!$BV$28,"") ->  | O250: =IF(insumos2!BZ26=0,"",insumos2!BZ26) ->  | S250: =IFERROR(O250/insumos2!$BW$28,"") -> 
G253: Postulaciones recibidas en la sección | K253: Cantidad | N253: %
G254: Total solicitudes | K254: =COUNT(insumos2!$AJ$2:$AJ$399999) -> 24174 | N254: =K254/$K$254 -> 1
G255: Empleadores con beneficiados | K255: =COUNTIFS(insumos2!$AO$2:$AO$399999,"Aprobado con subsidio") -> 22265 | N255: =K255/$K$254 -> 0.9210308596
G256: Empleadores sin beneficio | K256: =K254-K255 -> 1909 | N256: =K256/$K$254 -> 0.0789691404

Sheet insumos1 (hidden)
A1: Ciclo | B1: DIVIPOLA1 | C1: MpioNOM | D1: Depto | E1: DeptoNOM | F1: NOM_AECONOMICA1 | G1: SECTOR_ECONOMICO1 | H1: actividad | I1: TIPO_PERSONA1 | J1: SIZE1 | K1: Suma de RECURSOS1 | L1: Programas_beneficiarios | Q1: Suma de Suma de RECURSOS1 | R1: Etiquetas de columna
B2: 76001 | C2: CALI | D2: 76 | E2: VALLE DEL CAUCA | F2: ACTIVIDADES INMOBILIARIAS | G2: 6810 | H2: L | I2: Natural | J2: MICRO | K2: 3510000 | L2: PAEF | Q2: Etiquetas de fila | R2: 1 | S2: 2 | T2: 3 | U2: 4 | V2: 5 | W2: 6 | X2: 7 | Y2: 8 | Z2: 9 | AA2: 10 | AB2: 11 | AC2: EO_SA | AD2: Total general
B3: 63001 | C3: ARMENIA | D3: 63 | E3: QUINDÍO | F3: ALOJAMIENTO Y SERVICIOS DE COMIDA | G3: 5611 | H3: I | I3: Natural | J3: MICRO | K3: 20345000 | L3: PAEF - PAP | Q3: ACTIVIDADES ARTÍSTICAS, DE ENTRETENIMIENTO Y RECREACIÓN | R3: 15487875000 | S3: 15599142000 | T3: 12897144000 | U3: 11213397000 | V3: 13012425000 | W3: 11462866000 | X3: 11571104000 | Y3: 11202419000 | Z3: 11060261000 | AA3: 11675829000 | AB3: 10661911000 | AC3: 4176688000 | AD3: 140021061000
B4: 68001 | C4: BUCARAMANGA | D4: 68 | E4: SANTANDER | F4: INDUSTRIAS MANUFACTURERAS | G4: 1089 | H4: C | I4: Natural | J4: MICRO | K4: 19656000 | L4: PAEF | Q4: ACTIVIDADES DE ATENCIÓN DE LA SALUD HUMANA Y DE ASISTENCIA SOCIAL | R4: 63169470000 | S4: 59343570000 | T4: 43074720000 | U4: 34766199000 | V4: 33470467000 | W4: 26348770000 | X4: 24864742000 | Y4: 21808556000 | Z4: 21944785000 | AA4: 22446095000 | AB4: 19709237000 | AC4: 4906018000 | AD4: 375852629000
B5: 68001 | C5: BUCARAMANGA | D5: 68 | E5: SANTANDER | F5: ALOJAMIENTO Y SERVICIOS DE COMIDA | G5: 5611 | H5: I | I5: Natural | J5: MICRO | K5: 20358000 | L5: PAEF | Q5: ACTIVIDADES DE LOS HOGARES INDIVIDUALES EN CALIDAD DE EMPLEADORES; ACTIVIDADES NO DIFERENCIADAS DE LOS HOGARES INDIVIDUALES COMO PRODUCTORES DE BIENES Y SERVICIOS PARA USO PROPIO | R5: 53703000 | S5: 64233000 | T5: 50544000 | U5: 59319000 | V5: 45995000 | W5: 48629000 | X5: 47840000 | Y5: 51263000 | Z5: 66816000 | AA5: 50743000 | AB5: 73898000 | AC5: 2195000 | AD5: 615178000
B6: 15001 | C6: TUNJA | D6: 15 | E6: BOYACÁ | F6: EDUCACIÓN | G6: 8530 | H6: P | I6: Natural | J6: PEQUEÑA | K6: 41374000 | L6: PAEF | Q6: ACTIVIDADES DE ORGANIZACIONES Y ENTIDADES EXTRATERRITORIALES | R6: 6669000 | S6: 37206000 | T6: 15444000 | U6: 15093000 | V6: 12992000 | W6: 7550000 | X6: 7550000 | Y6: 10536000 | Z6: 4994000 | AA6: 20239000 | AD6: 138273000
B7: 76001 | C7: CALI | D7: 76 | E7: VALLE DEL CAUCA | F7: INDUSTRIAS MANUFACTURERAS | G7: 1084 | H7: C | I7: Natural | J7: MICRO | K7: 11232000 | L7: PAEF | Q7: ACTIVIDADES DE SERVICIOS ADMINISTRATIVOS Y DE APOYO | R7: 133808922000 | S7: 147424914000 | T7: 135768204000 | U7: 117859833000 | V7: 122010438000 | W7: 117864897000 | X7: 111245264000 | Y7: 83641688000 | Z7: 78337356000 | AA7: 86002923000 | AB7: 73768010000 | AC7: 17959704000 | AD7: 1225692153000
B8: 25797 | C8: TENA | D8: 25 | E8: CUNDINAMARCA | F8: COMERCIO AL POR MAYOR Y AL POR MENOR; REPARACIÓN DE VEHÍCULOS AUTOMOTORES Y MOTOCICLETAS | G8: 4731 | H8: G | I8: Natural | J8: MICRO | K8: 15944000 | L8: PAEF - PAP | Q8: ACTIVIDADES FINANCIERAS Y DE SEGUROS | R8: 7251309000 | S8: 7558785000 | T8: 5632497000 | U8: 4413123000 | V8: 4771350000 | W8: 4209638000 | X8: 4411793000 | Y8: 3828825000 | Z8: 3185105000 | AA8: 3331751000 | AB8: 2588258000 | AC8: 705981000 | AD8: 51888415000
B9: 17380 | C9: LA DORADA | D9: 17 | E9: CALDAS | F9: AGRICULTURA, GANADERÍA, CAZA, SILVICULTURA Y PESCA | G9: 141 | H9: A | I9: Natural | J9: MICRO | K9: 23703000 | L9: PAEF - PAP - MICRO | Q9: ACTIVIDADES INMOBILIARIAS | R9: 8052642000 | S9: 8673561000 | T9: 7076511000 | U9: 7244991000 | V9: 7637814000 | W9: 7404676000 | X9: 7099201000 | Y9: 5951076000 | Z9: 6224999000 | AA9: 6208288000 | AB9: 5656808000 | AC9: 1884147000 | AD9: 79114714000
B10: 11001 | C10: BOGOTÁ, D.C. | D10: 11 | E10: BOGOTÁ, D.C. | F10: OTRAS ACTIVIDADES DE SERVICIOS | G10: 9601 | H10: S | I10: Natural | J10: MICRO | K10: 21172000 | L10: PAEF - PAP - MICRO | Q10: ACTIVIDADES PROFESIONALES, CIENTÍFICAS Y TÉCNICAS | R10: 38787255000 | S10: 44501535000 | T10: 42058926000 | U10: 36757422000 | V10: 42561024000 | W10: 38047358000 | X10: 33171472000 | Y10: 27017263000 | Z10: 31363570000 | AA10: 31329788000 | AB10: 28294315000 | AC10: 9064014000 | AD10: 402953942000
B11: 15367 | C11: JENESANO | D11: 15 | E11: BOYACÁ | F11: EXPLOTACIÓN DE MINAS Y CANTERAS | G11: 811 | H11: B | I11: Natural | J11: MICRO | K11: 6496000 | L11: PAEF - PAP | Q11: ADMINISTRACIÓN PÚBLICA Y DEFENSA; PLANES DE SEGURIDAD SOCIAL DE AFILIACIÓN OBLIGATORIA | R11: 841698000 | S11: 1175499000 | T11: 4308876000 | U11: 1197261000 | V11: 5325234000 | W11: 5334473000 | X11: 5320268000 | Y11: 4800503000 | Z11: 4359920000 | AA11: 870291000 | AB11: 1102633000 | AC11: 3123248000 | AD11: 37759904000
B12: 11001 | C12: BOGOTÁ, D.C. | D12: 11 | E12: BOGOTÁ, D.C. | F12: AGRICULTURA, GANADERÍA, CAZA, SILVICULTURA Y PESCA | G12: 121 | H12: A | I12: Natural | J12: MICRO | K12: 9828000 | L12: PAEF | Q12: AGRICULTURA, GANADERÍA, CAZA, SILVICULTURA Y PESCA | R12: 29879577000 | S12: 31821309000 | T12: 29911167000 | U12: 23507172000 | V12: 21901099000 | W12: 17863871000 | X12: 17712151000 | Y12: 14413350000 | Z12: 17532894000 | AA12: 12241882000 | AB12: 10714729000 | AC12: 8590335000 | AD12: 236089536000
B13: 11001 | C13: BOGOTÁ, D.C. | D13: 11 | E13: BOGOTÁ, D.C. | F13: COMERCIO AL POR MAYOR Y AL POR MENOR; REPARACIÓN DE VEHÍCULOS AUTOMOTORES Y MOTOCICLETAS | G13: 4530 | H13: G | I13: Natural | J13: MICRO | K13: 2106000 | L13: PAEF | Q13: ALOJAMIENTO Y SERVICIOS DE COMIDA | R13: 37098594000 | S13: 36363951000 | T13: 33191262000 | U13: 30448548000 | V13: 33634135000 | W13: 31534904000 | X13: 27308304000 | Y13: 25650039000 | Z13: 27754359000 | AA13: 30925183000 | AB13: 25833243000 | AC13: 2046446000 | AD13: 341788968000
B14: 11001 | C14: BOGOTÁ, D.C. | D14: 11 | E14: BOGOTÁ, D.C. | F14: ACTIVIDADES DE SERVICIOS ADMINISTRATIVOS Y DE APOYO | G14: 7729 | H14: N | I14: Natural | J14: MICRO | K14: 30450000 | L14: PAEF - PAP - MICRO | Q14: COMERCIO AL POR MAYOR Y AL POR MENOR; REPARACIÓN DE VEHÍCULOS AUTOMOTORES Y MOTOCICLETAS | R14: 160029324000 | S14: 151233966000 | T14: 120997773000 | U14: 106466724000 | V14: 101776309000 | W14: 83140825000 | X14: 77206118000 | Y14: 63588260000 | Z14: 66304104000 | AA14: 85241054000 | AC14: 12259238000 | AD14: 1028243695000
B15: 25269 | C15: FACATATIVÁ | D15: 25 | E15: CUNDINAMARCA | F15: COMERCIO AL POR MAYOR Y AL POR MENOR; REPARACIÓN DE VEHÍCULOS AUTOMOTORES Y MOTOCICLETAS | G15: 4663 | H15: G | I15: Natural | J15: MICRO | K15: 1053000 | L15: PAEF | Q15: COMERCIO AL POR MAYOR Y AL POR MENOR; REPARACIÓN DE VEHÍCULOS AUTOMOTORES Y MOTOCICLETAS. | AB15: 64540497000 | AD15: 64540497000
B16: 11001 | C16: BOGOTÁ, D.C. | D16: 11 | E16: BOGOTÁ, D.C. | F16: COMERCIO AL POR MAYOR Y AL POR MENOR; REPARACIÓN DE VEHÍCULOS AUTOMOTORES Y MOTOCICLETAS | G16: 4774 | H16: G | I16: Natural | J16: MICRO | K16: 7722000 | L16: PAEF | Q16: CONSTRUCCIÓN | R16: 59637006000 | S16: 68136822000 | T16: 64444653000 | U16: 58476951000 | V16: 50573115000 | W16: 50366303000 | X16: 47593881000 | Y16: 43325865000 | Z16: 38946646000 | AA16: 44852815000 | AB16: 42488115000 | AC16: 6756983000 | AD16: 575599155000
B17: 25035 | C17: ANAPOIMA | D17: 25 | E17: CUNDINAMARCA | F17: ACTIVIDADES DE SERVICIOS ADMINISTRATIVOS Y DE APOYO | G17: 7730 | H17: N | I17: Natural | J17: MICRO | K17: 28742000 | L17: PAEF - PAP | Q17: DISTRIBUCIÓN DE AGUA; EVACUACIÓN Y TRATAMIENTO DE AGUAS RESIDUALES, GESTIÓN DE DESECHOS Y ACTIVIDADES DE SANEAMIENTO AMBIENTAL | R17: 3493152000 | S17: 3403998000 | T17: 4203225000 | U17: 2494908000 | V17: 2012691000 | W17: 1897715000 | X17: 1757712000 | Y17: 1665455000 | Z17: 1541508000 | AA17: 1622823000 | AB17: 1218578000 | AC17: 257212000 | AD17: 25568977000
B18: 8001 | C18: BARRANQUILLA | D18: 8 | E18: ATLÁNTICO | F18: ALOJAMIENTO Y SERVICIOS DE COMIDA | G18: 5611 | H18: I | I18: Natural | J18: MICRO | K18: 9477000 | L18: PAEF | Q18: EDUCACIÓN | R18: 27161784000 | S18: 29268486000 | T18: 26893269000 | U18: 28889757000 | V18: 31233825000 | W18: 29896995000 | X18: 30011790000 | Y18: 23380372000 | Z18: 15114704000 | AA18: 15513482000 | AB18: 20530311000 | AC18: 4561508000 | AD18: 282456283000
B19: 25473 | C19: MOSQUERA | D19: 25 | E19: CUNDINAMARCA | F19: ALOJAMIENTO Y SERVICIOS DE COMIDA | G19: 5511 | H19: I | I19: Natural | J19: MICRO | K19: 14446000 | L19: PAEF - PAP | Q19: EXPLOTACIÓN DE MINAS Y CANTERAS | R19: 11917503000 | S19: 12650040000 | T19: 12428910000 | U19: 11866959000 | V19: 9389242000 | W19: 9148594000 | X19: 7355448000 | Y19: 8388868000 | Z19: 8211359000 | AA19: 5644153000 | AB19: 5851554000 | AC19: 721720000 | AD19: 103574350000
B20: 5001 | C20: MEDELLÍN | D20: 5 | E20: ANTIOQUIA | F20: ALOJAMIENTO Y SERVICIOS DE COMIDA | G20: 5613 | H20: I | I20: Natural | J20: MICRO | K20: 23676000 | L20: PAEF - PAP - MICRO | Q20: INDUSTRIAS MANUFACTURERAS | R20: 147655521000 | S20: 141350157000 | T20: 113489883000 | U20: 93844764000 | V20: 93837609000 | W20: 74405105000 | X20: 67748738000 | Y20: 59465421000 | Z20: 57514549000 | AA20: 71463338000 | AB20: 62642202000 | AC20: 10585445000 | AD20: 994002732000
B21: 11001 | C21: BOGOTÁ, D.C. | D21: 11 | E21: BOGOTÁ, D.C. | F21: ALOJAMIENTO Y SERVICIOS DE COMIDA | G21: 5611 | H21: I | I21: Natural | J21: MICRO | K21: 17610000 | L21: PAEF - PAP - MICRO | Q21: INFORMACIÓN Y COMUNICACIONES | R21: 22157577000 | S21: 19511739000 | T21: 19300437000 | U21: 15005250000 | V21: 14974249000 | W21: 13390190000 | X21: 12263220000 | Y21: 10040469000 | Z21: 9773523000 | AA21: 11483698000 | AB21: 9430071000 | AC21: 1685650000 | AD21: 159016073000
B22: 25430 | C22: MADRID | D22: 25 | E22: CUNDINAMARCA | F22: OTRAS ACTIVIDADES DE SERVICIOS | G22: 9601 | H22: S | I22: Natural | J22: MICRO | K22: 7725000 | L22: PAEF - PAP | Q22: OTRAS | R22: 22113000 | S22: 53001000 | T22: 56511000 | U22: 47385000 | V22: 38795000 | W22: 39496000 | X22: 34583000 | Y22: 18169000 | Z22: 18064000 | AA22: 16067000 | AB22: 16521000 | AD22: 360705000
B23: 11001 | C23: BOGOTÁ, D.C. | D23: 11 | E23: BOGOTÁ, D.C. | F23: INDUSTRIAS MANUFACTURERAS | G23: 2511 | H23: C | I23: Natural | J23: MICRO | K23: 19042000 | L23: PAEF - PAP | Q23: OTRAS ACTIVIDADES DE SERVICIOS | R23: 18685836000 | S23: 19227780000 | T23: 16021044000 | U23: 13804830000 | V23: 14740328000 | W23: 13756463000 | X23: 13855824000 | Y23: 11248425000 | Z23: 12183466000 | AA23: 11368761000 | AB23: 10701251000 | AC23: 3028864000 | AD23: 158622872000
B24: 76001 | C24: CALI | D24: 76 | E24: VALLE DEL CAUCA | F24: ALOJAMIENTO Y SERVICIOS DE COMIDA | G24: 5611 | H24: I | I24: Natural | J24: MICRO | K24: 4212000 | L24: PAEF | Q24: SUMINISTRO DE ELECTRICIDAD, GAS, VAPOR Y AIRE ACONDICIONADO | R24: 611793000 | S24: 661284000 | T24: 421902000 | U24: 547911000 | V24: 404594000 | W24: 302352000 | X24: 259519000 | Y24: 257848000 | Z24: 301357000 | AA24: 149310000 | AB24: 263130000 | AC24: 115934000 | AD24: 4296934000
B25: 68001 | C25: BUCARAMANGA | D25: 68 | E25: SANTANDER | F25: ALOJAMIENTO Y SERVICIOS DE COMIDA | G25: 5611 | H25: I | I25: Natural | J25: MICRO | K25: 2457000 | L25: PAEF | Q25: TRANSPORTE Y ALMACENAMIENTO | R25: 69643314000 | S25: 65129805000 | T25: 55977480000 | U25: 47176155000 | V25: 47190439000 | W25: 44541004000 | X25: 45504585000 | Y25: 38474533000 | Z25: 42841372000 | AA25: 43788614000 | AB25: 43173234000 | AC25: 8556974000 | AD25: 551997509000
B26: 25175 | C26: CHÍA | D26: 25 | E26: CUNDINAMARCA | F26: AGRICULTURA, GANADERÍA, CAZA, SILVICULTURA Y PESCA | G26: 125 | H26: A | I26: Natural | J26: MICRO | K26: 15469000 | L26: PAEF - PAP | Q26: Total general | R26: 855452637000 | S26: 863190783000 | T26: 748220382000 | U26: 646103952000 | V26: 650554169000 | W26: 581012674000 | X26: 546351107000 | Y26: 458229203000 | Z26: 454585711000 | AA26: 496247127000 | AB26: 439258506000 | AC26: 100988304000 | AD26: 6840194555000
B27: 76147 | C27: CARTAGO | D27: 76 | E27: VALLE DEL CAUCA | F27: COMERCIO AL POR MAYOR Y AL POR MENOR; REPARACIÓN DE VEHÍCULOS AUTOMOTORES Y MOTOCICLETAS | G27: 4729 | H27: G | I27: Natural | J27: PEQUEÑA | K27: 14003000 | L27: PAEF - PAP
B28: 68001 | C28: BUCARAMANGA | D28: 68 | E28: SANTANDER | F28: COMERCIO AL POR MAYOR Y AL POR MENOR; REPARACIÓN DE VEHÍCULOS AUTOMOTORES Y MOTOCICLETAS | G28: 4771 | H28: G | I28: Natural | J28: MICRO | K28: 5616000 | L28: PAEF
B29: 68079 | C29: BARICHARA | D29: 68 | E29: SANTANDER | F29: INDUSTRIAS MANUFACTURERAS | G29: 2740 | H29: C | I29: Natural | J29: MICRO | K29: 3159000 | L29: PAEF
B30: 50001 | C30: VILLAVICENCIO | D30: 50 | E30: META | F30: ALOJAMIENTO Y SERVICIOS DE COMIDA | G30: 5611 | H30: I | I30: Natural | J30: MICRO | K30: 7020000 | L30: PAEF
B31: 19001 | C31: POPAYÁN | D31: 19 | E31: CAUCA | F31: COMERCIO AL POR MAYOR Y AL POR MENOR; REPARACIÓN DE VEHÍCULOS AUTOMOTORES Y MOTOCICLETAS | G31: 4719 | H31: G | I31: Natural | J31: MICRO | K31: 3159000 | L31: PAEF
B32: 25799 | C32: TENJO | D32: 25 | E32: CUNDINAMARCA | F32: COMERCIO AL POR MAYOR Y AL POR MENOR; REPARACIÓN DE VEHÍCULOS AUTOMOTORES Y MOTOCICLETAS | G32: 4719 | H32: G | I32: Natural | J32: MICRO | K32: 39209000 | L32: PAEF - PAP
B33: 73268 | C33: ESPINAL | D33: 73 | E33: TOLIMA | F33: COMERCIO AL POR MAYOR Y AL POR MENOR; REPARACIÓN DE VEHÍCULOS AUTOMOTORES Y MOTOCICLETAS | G33: 4541 | H33: G | I33: Natural | J33: MICRO | K33: 8998000 | L33: PAEF - PAP
B34: 11001 | C34: BOGOTÁ, D.C. | D34: 11 | E34: BOGOTÁ, D.C. | F34: ACTIVIDADES DE ATENCIÓN DE LA SALUD HUMANA Y DE ASISTENCIA SOCIAL | G34: 8899 | H34: Q | I34: Natural | J34: PEQUEÑA | K34: 26712000 | L34: PAEF - PAP - MICRO
B35: 25799 | C35: TENJO | D35: 25 | E35: CUNDINAMARCA | F35: INDUSTRIAS MANUFACTURERAS | G35: 1610 | H35: C | I35: Natural | J35: MICRO | K35: 17479000 | L35: PAEF - PAP
B36: 63690 | C36: SALENTO | D36: 63 | E36: QUINDÍO | F36: ALOJAMIENTO Y SERVICIOS DE COMIDA | G36: 5511 | H36: I | I36: Natural | J36: MICRO | K36: 1404000 | L36: PAEF
B37: 50001 | C37: VILLAVICENCIO | D37: 50 | E37: META | F37: ALOJAMIENTO Y SERVICIOS DE COMIDA | G37: 5611 | H37: I | I37: Natural | J37: MICRO | K37: 6318000 | L37: PAEF
B38: 5212 | C38: COPACABANA | D38: 5 | E38: ANTIOQUIA | F38: ALOJAMIENTO Y SERVICIOS DE COMIDA | G38: 5611 | H38: I | I38: Natural | J38: MICRO | K38: 16959000 | L38: PAEF - PAP - MICRO
B39: 68001 | C39: BUCARAMANGA | D39: 68 | E39: SANTANDER | F39: COMERCIO AL POR MAYOR Y AL POR MENOR; REPARACIÓN DE VEHÍCULOS AUTOMOTORES Y MOTOCICLETAS | G39: 4751 | H39: G | I39: Natural | J39: MICRO | K39: 8424000 | L39: PAEF
B40: 68001 | C40: BUCARAMANGA | D40: 68 | E40: SANTANDER | F40: COMERCIO AL POR MAYOR Y AL POR MENOR; REPARACIÓN DE VEHÍCULOS AUTOMOTORES Y MOTOCICLETAS | G40: 4751 | H40: G | I40: Natural | J40: MICRO | K40: 7371000 | L40: PAEF
B41: 66001 | C41: PEREIRA | D41: 66 | E41: RISARALDA | F41: OTRAS ACTIVIDADES DE SERVICIOS | G41: 9602 | H41: S | I41: Natural | J41: MICRO | K41: 1755000 | L41: PAEF
B42: 11001 | C42: BOGOTÁ, D.C. | D42: 11 | E42: BOGOTÁ, D.C. | F42: CONSTRUCCIÓN | G42: 4290 | H42: F | I42: Natural | J42: MICRO | K42: 17459000 | L42: PAEF - MICRO
B43: 41001 | C43: NEIVA | D43: 41 | E43: HUILA | F43: ALOJAMIENTO Y SERVICIOS DE COMIDA | G43: 5611 | H43: I | I43: Natural | J43: MICRO | K43: 1404000 | L43: PAEF
B44: 88001 | C44: SAN ANDRÉS | D44: 88 | E44: ARCHIPIÉLAGO DE SAN ANDRÉS, PROVIDENCIA Y SANTA CATALINA | F44: COMERCIO AL POR MAYOR Y AL POR MENOR; REPARACIÓN DE VEHÍCULOS AUTOMOTORES Y MOTOCICLETAS | G44: 4773 | H44: G | I44: Natural | J44: MICRO | K44: 14432000 | L44: PAEF - PAP
B45: 25317 | C45: GUACHETÁ | D45: 25 | E45: CUNDINAMARCA | F45: EXPLOTACIÓN DE MINAS Y CANTERAS | G45: 510 | H45: B | I45: Natural | J45: MICRO | K45: 29201000 | L45: PAEF - PAP - MICRO
B46: 41668 | C46: SAN AGUSTÍN | D46: 41 | E46: HUILA | F46: ALOJAMIENTO Y SERVICIOS DE COMIDA | G46: 5511 | H46: I | I46: Natural | J46: MICRO | K46: 11630000 | L46: PAEF - PAP
B47: 25019 | C47: ALBÁN | D47: 25 | E47: CUNDINAMARCA | F47: AGRICULTURA, GANADERÍA, CAZA, SILVICULTURA Y PESCA | G47: 145 | H47: A | I47: Natural | J47: MICRO | K47: 8298000 | L47: PAEF - PAP
B48: 25328 | C48: GUAYABAL DE SIQUIMA | D48: 25 | E48: CUNDINAMARCA | F48: AGRICULTURA, GANADERÍA, CAZA, SILVICULTURA Y PESCA | G48: 145 | H48: A | I48: Natural | J48: MICRO | K48: 8076000 | L48: PAEF - PAP
B49: 20001 | C49: VALLEDUPAR | D49: 20 | E49: CESAR | F49: COMERCIO AL POR MAYOR Y AL POR MENOR; REPARACIÓN DE VEHÍCULOS AUTOMOTORES Y MOTOCICLETAS | G49: 4751 | H49: G | I49: Natural | J49: MICRO | K49: 53352000 | L49: PAEF
B50: 25001 | C50: AGUA DE DIOS | D50: 25 | E50: CUNDINAMARCA | F50: AGRICULTURA, GANADERÍA, CAZA, SILVICULTURA Y PESCA | G50: 145 | H50: A | I50: Natural | J50: MICRO | K50: 11676000 | L50: PAEF - PAP
B51: 44430 | C51: MAICAO | D51: 44 | E51: LA GUAJIRA | F51: COMERCIO AL POR MAYOR Y AL POR MENOR; REPARACIÓN DE VEHÍCULOS AUTOMOTORES Y MOTOCICLETAS | G51: 4530 | H51: G | I51: Natural | J51: MICRO | K51: 8073000 | L51: PAEF
B52: 8001 | C52: BARRANQUILLA | D52: 8 | E52: ATLÁNTICO | F52: ALOJAMIENTO Y SERVICIOS DE COMIDA | G52: 5611 | H52: I | I52: Natural | J52: MICRO | K52: 28431000 | L52: PAEF
B53: 5001 | C53: MEDELLÍN | D53: 5 | E53: ANTIOQUIA | F53: ALOJAMIENTO Y SERVICIOS DE COMIDA | G53: 5611 | H53: I | I53: Natural | J53: MICRO | K53: 702000 | L53: PAEF
B54: 25402 | C54: LA VEGA | D54: 25 | E54: CUNDINAMARCA | F54: COMERCIO AL POR MAYOR Y AL POR MENOR; REPARACIÓN DE VEHÍCULOS AUTOMOTORES Y MOTOCICLETAS | G54: 4731 | H54: G | I54: Natural | J54: PEQUEÑA | K54: 10142000 | L54: PAEF - PAP
B55: 68001 | C55: BUCARAMANGA | D55: 68 | E55: SANTANDER | F55: COMERCIO AL POR MAYOR Y AL POR MENOR; REPARACIÓN DE VEHÍCULOS AUTOMOTORES Y MOTOCICLETAS | G55: 4751 | H55: G | I55: Natural | J55: MICRO | K55: 1755000 | L55: PAEF
B56: 5001 | C56: MEDELLÍN | D56: 5 | E56: ANTIOQUIA | F56: ALOJAMIENTO Y SERVICIOS DE COMIDA | G56: 5611 | H56: I | I56: Natural | J56: MICRO | K56: 702000 | L56: PAEF
B57: 52356 | C57: IPIALES | D57: 52 | E57: NARIÑO | F57: ALOJAMIENTO Y SERVICIOS DE COMIDA | G57: 5511 | H57: I | I57: Natural | J57: MICRO | K57: 1053000 | L57: PAEF
B58: 11001 | C58: BOGOTÁ, D.C. | D58: 11 | E58: BOGOTÁ, D.C. | F58: ALOJAMIENTO Y SERVICIOS DE COMIDA | G58: 5611 | H58: I | I58: Natural | J58: MICRO | K58: 19902000 | L58: PAEF - PAP
B59: 5001 | C59: MEDELLÍN | D59: 5 | E59: ANTIOQUIA | F59: COMERCIO AL POR MAYOR Y AL POR MENOR; REPARACIÓN DE VEHÍCULOS AUTOMOTORES Y MOTOCICLETAS | G59: 4723 | H59: G | I59: Natural | J59: MICRO | K59: 33460000 | L59: PAEF - PAP - MICRO
B60: 5088 | C60: BELLO | D60: 5 | E60: ANTIOQUIA | F60: ACTIVIDADES DE SERVICIOS ADMINISTRATIVOS Y DE APOYO | G60: 8291 | H60: N | I60: Natural | J60: MICRO | K60: 1786000 | L60: PAEF
B61: 68001 | C61: BUCARAMANGA | D61: 68 | E61: SANTANDER | F61: ALOJAMIENTO Y SERVICIOS DE COMIDA | G61: 5611 | H61: I | I61: Natural | J61: MICRO | K61: 2808000 | L61: PAEF
B62: 5001 | C62: MEDELLÍN | D62: 5 | E62: ANTIOQUIA | F62: ALOJAMIENTO Y SERVICIOS DE COMIDA | G62: 5519 | H62: I | I62: Natural | J62: MICRO | K62: 24287000 | L62: PAEF - PAP
B63: 63001 | C63: ARMENIA | D63: 63 | E63: QUINDÍO | F63: ALOJAMIENTO Y SERVICIOS DE COMIDA | G63: 5611 | H63: I | I63: Natural | J63: MICRO | K63: 1053000 | L63: PAEF
B64: 5001 | C64: MEDELLÍN | D64: 5 | E64: ANTIOQUIA | F64: OTRAS ACTIVIDADES DE SERVICIOS | G64: 9609 | H64: S | I64: Natural | J64: MICRO | K64: 3510000 | L64: PAEF
B65: 5001 | C65: MEDELLÍN | D65: 5 | E65: ANTIOQUIA | F65: ALOJAMIENTO Y SERVICIOS DE COMIDA | G65: 5611 | H65: I | I65: Natural | J65: PEQUEÑA | K65: 37506000 | L65: PAEF - PAP
B66: 23001 | C66: MONTERÍA | D66: 23 | E66: CÓRDOBA | F66: AGRICULTURA, GANADERÍA, CAZA, SILVICULTURA Y PESCA | G66: 141 | H66: A | I66: Natural | J66: MICRO | K66: 10477000 | L66: PAEF - PAP
B67: 25269 | C67: FACATATIVÁ | D67: 25 | E67: CUNDINAMARCA | F67: COMERCIO AL POR MAYOR Y AL POR MENOR; REPARACIÓN DE VEHÍCULOS AUTOMOTORES Y MOTOCICLETAS | G67: 4752 | H67: G | I67: Natural | J67: MICRO | K67: 4872000 | L67: PAEF - PAP
B68: 5001 | C68: MEDELLÍN | D68: 5 | E68: ANTIOQUIA | F68: COMERCIO AL POR MAYOR Y AL POR MENOR; REPARACIÓN DE VEHÍCULOS AUTOMOTORES Y MOTOCICLETAS | G68: 4752 | H68: G | I68: Natural | J68: MICRO | K68: 3510000 | L68: PAEF
B69: 76001 | C69: CALI | D69: 76 | E69: VALLE DEL CAUCA | F69: ALOJAMIENTO Y SERVICIOS DE COMIDA | G69: 5519 | H69: I | I69: Natural | J69: MICRO | K69: 9126000 | L69: PAEF
B70: 47001 | C70: SANTA MARTA | D70: 47 | E70: MAGDALENA | F70: COMERCIO AL POR MAYOR Y AL POR MENOR; REPARACIÓN DE VEHÍCULOS AUTOMOTORES Y MOTOCICLETAS | G70: 4729 | H70: G | I70: Natural | J70: MICRO | K70: 1404000 | L70: PAEF
B71: 68001 | C71: BUCARAMANGA | D71: 68 | E71: SANTANDER | F71: ALOJAMIENTO Y SERVICIOS DE COMIDA | G71: 5611 | H71: I | I71: Natural | J71: MICRO | K71: 2808000 | L71: PAEF
B72: 66170 | C72: DOSQUEBRADAS | D72: 66 | E72: RISARALDA | F72: ALOJAMIENTO Y SERVICIOS DE COMIDA | G72: 5512 | H72: I | I72: Natural | J72: MICRO | K72: 1755000 | L72: PAEF
B73: 47001 | C73: SANTA MARTA | D73: 47 | E73: MAGDALENA | F73: ALOJAMIENTO Y SERVICIOS DE COMIDA | G73: 5611 | H73: I | I73: Natural | J73: MICRO | K73: 2106000 | L73: PAEF
B74: 50001 | C74: VILLAVICENCIO | D74: 50 | E74: META | F74: ALOJAMIENTO Y SERVICIOS DE COMIDA | G74: 5611 | H74: I | I74: Natural | J74: PEQUEÑA | K74: 51502000 | L74: PAEF - PAP
B75: 17001 | C75: MANIZALES | D75: 17 | E75: CALDAS | F75: COMERCIO AL POR MAYOR Y AL POR MENOR; REPARACIÓN DE VEHÍCULOS AUTOMOTORES Y MOTOCICLETAS | G75: 4771 | H75: G | I75: Natural | J75: MICRO | K75: 18926000 | L75: PAEF - PAP
B76: 11001 | C76: BOGOTÁ, D.C. | D76: 11 | E76: BOGOTÁ, D.C. | F76: INDUSTRIAS MANUFACTURERAS | G76: 3290 | H76: C | I76: Natural | J76: PEQUEÑA | K76: 55954000 | L76: PAEF - PAP
B77: 11001 | C77: BOGOTÁ, D.C. | D77: 11 | E77: BOGOTÁ, D.C. | F77: COMERCIO AL POR MAYOR Y AL POR MENOR; REPARACIÓN DE VEHÍCULOS AUTOMOTORES Y MOTOCICLETAS | G77: 4641 | H77: G | I77: Natural | J77: MICRO | K77: 1404000 | L77: PAEF
B78: 25307 | C78: GIRARDOT | D78: 25 | E78: CUNDINAMARCA | F78: INDUSTRIAS MANUFACTURERAS | G78: 1081 | H78: C | I78: Natural | J78: MICRO | K78: 17292000 | L78: PAEF - PAP
B79: 25754 | C79: SOACHA | D79: 25 | E79: CUNDINAMARCA | F79: COMERCIO AL POR MAYOR Y AL POR MENOR; REPARACIÓN DE VEHÍCULOS AUTOMOTORES Y MOTOCICLETAS | G79: 4731 | H79: G | I79: Natural | J79: MICRO | K79: 44931000 | L79: PAEF - PAP - MICRO
B80: 68001 | C80: BUCARAMANGA | D80: 68 | E80: SANTANDER | F80: ALOJAMIENTO Y SERVICIOS DE COMIDA | G80: 5611 | H80: I | I80: Natural | J80: MICRO | K80: 3861000 | L80: PAEF
B81: 17001 | C81: MANIZALES | D81: 17 | E81: CALDAS | F81: COMERCIO AL POR MAYOR Y AL POR MENOR; REPARACIÓN DE VEHÍCULOS AUTOMOTORES Y MOTOCICLETAS | G81: 4781 | H81: G | I81: Natural | J81: MICRO | K81: 3510000 | L81: PAEF
B82: 25758 | C82: SOPÓ | D82: 25 | E82: CUNDINAMARCA | F82: COMERCIO AL POR MAYOR Y AL POR MENOR; REPARACIÓN DE VEHÍCULOS AUTOMOTORES Y MOTOCICLETAS | G82: 4752 | H82: G | I82: Natural | J82: MICRO | K82: 3510000 | L82: PAEF
B83: 41001 | C83: NEIVA | D83: 41 | E83: HUILA | F83: CONSTRUCCIÓN | G83: 4330 | H83: F | I83: Natural | J83: MICRO | K83: 1404000 | L83: PAEF
B84: 11001 | C84: BOGOTÁ, D.C. | D84: 11 | E84: BOGOTÁ, D.C. | F84: INDUSTRIAS MANUFACTURERAS | G84: 2229 | H84: C | I84: Natural | J84: MICRO | K84: 27240000 | L84: PAEF - MICRO
B85: 25260 | C85: EL ROSAL | D85: 25 | E85: CUNDINAMARCA | F85: COMERCIO AL POR MAYOR Y AL POR MENOR; REPARACIÓN DE VEHÍCULOS AUTOMOTORES Y MOTOCICLETAS | G85: 4731 | H85: G | I85: Natural | J85: MICRO | K85: 22259000 | L85: PAEF - PAP
B86: 25843 | C86: VILLA DE SAN DIEGO DE UBATE | D86: 25 | E86: CUNDINAMARCA | F86: INDUSTRIAS MANUFACTURERAS | G86: 1610 | H86: C | I86: Natural | J86: MICRO | K86: 2284000 | L86: PAEF - PAP
B87: 25843 | C87: VILLA DE SAN DIEGO DE UBATE | D87: 25 | E87: CUNDINAMARCA | F87: ALOJAMIENTO Y SERVICIOS DE COMIDA | G87: 5511 | H87: I | I87: Natural | J87: MICRO | K87: 3819000 | L87: PAEF - PAP
B88: 11001 | C88: BOGOTÁ, D.C. | D88: 11 | E88: BOGOTÁ, D.C. | F88: ACTIVIDADES DE ATENCIÓN DE LA SALUD HUMANA Y DE ASISTENCIA SOCIAL | G88: 8699 | H88: Q | I88: Natural | J88: MICRO | K88: 14446000 | L88: PAEF - PAP
B89: 68001 | C89: BUCARAMANGA | D89: 68 | E89: SANTANDER | F89: COMERCIO AL POR MAYOR Y AL POR MENOR; REPARACIÓN DE VEHÍCULOS AUTOMOTORES Y MOTOCICLETAS | G89: 4755 | H89: G | I89: Natural | J89: MICRO | K89: 3510000 | L89: PAEF
B90: 25799 | C90: TENJO | D90: 25 | E90: CUNDINAMARCA | F90: TRANSPORTE Y ALMACENAMIENTO | G90: 4923 | H90: H | I90: Natural | J90: MICRO | K90: 38466500 | L90: PAEF - PAP - PARO - MICRO
B91: 11001 | C91: BOGOTÁ, D.C. | D91: 11 | E91: BOGOTÁ, D.C. | F91: INDUSTRIAS MANUFACTURERAS | G91: 2410 | H91: C | I91: Natural | J91: MICRO | K91: 8240000 | L91: PAEF - PAP - MICRO
B92: 54001 | C92: CÚCUTA | D92: 54 | E92: NORTE DE SANTANDER | F92: COMERCIO AL POR MAYOR Y AL POR MENOR; REPARACIÓN DE VEHÍCULOS AUTOMOTORES Y MOTOCICLETAS | G92: 4711 | H92: G | I92: Natural | J92: PEQUEÑA | K92: 3861000 | L92: PAEF
B93: 8001 | C93: BARRANQUILLA | D93: 8 | E93: ATLÁNTICO | F93: ALOJAMIENTO Y SERVICIOS DE COMIDA | G93: 5511 | H93: I | I93: Natural | J93: MICRO | K93: 2457000 | L93: PAEF
B94: 47001 | C94: SANTA MARTA | D94: 47 | E94: MAGDALENA | F94: ALOJAMIENTO Y SERVICIOS DE COMIDA | G94: 5514 | H94: I | I94: Natural | J94: MICRO | K94: 5967000 | L94: PAEF
B95: 25843 | C95: VILLA DE SAN DIEGO DE UBATE | D95: 25 | E95: CUNDINAMARCA | F95: OTRAS ACTIVIDADES DE SERVICIOS | G95: 9601 | H95: S | I95: Natural | J95: MICRO | K95: 5092000 | L95: PAEF - PAP
B96: 11001 | C96: BOGOTÁ, D.C. | D96: 11 | E96: BOGOTÁ, D.C. | F96: TRANSPORTE Y ALMACENAMIENTO | G96: 4922 | H96: H | I96: Natural | J96: MICRO | K96: 8690000 | L96: PAEF - PAP
B97: 91001 | C97: LETICIA | D97: 91 | E97: AMAZONAS | F97: COMERCIO AL POR MAYOR Y AL POR MENOR; REPARACIÓN DE VEHÍCULOS AUTOMOTORES Y MOTOCICLETAS | G97: 4742 | H97: G | I97: Natural | J97: MICRO | K97: 6276000 | L97: PAEF - PAP
B98: 76001 | C98: CALI | D98: 76 | E98: VALLE DEL CAUCA | F98: INDUSTRIAS MANUFACTURERAS | G98: 1410 | H98: C | I98: Natural | J98: MICRO | K98: 702000 | L98: PAEF
B99: 5001 | C99: MEDELLÍN | D99: 5 | E99: ANTIOQUIA | F99: INDUSTRIAS MANUFACTURERAS | G99: 3290 | H99: C | I99: Natural | J99: MICRO | K99: 20270000 | L99: PAEF - PAP
B100: 25867 | C100: VIANÍ | D100: 25 | E100: CUNDINAMARCA | F100: ALOJAMIENTO Y SERVICIOS DE COMIDA | G100: 5611 | H100: I | I100: Natural | J100: MICRO | K100: 15677000 | L100: PAEF - PAP
B101: 5001 | C101: MEDELLÍN | D101: 5 | E101: ANTIOQUIA | F101: OTRAS ACTIVIDADES DE SERVICIOS | G101: 9602 | H101: S | I101: Natural | J101: MICRO | K101: 7638000 | L101: PAEF - PAP
B102: 25898 | C102: ZIPACÓN | D102: 25 | E102: CUNDINAMARCA | F102: AGRICULTURA, GANADERÍA, CAZA, SILVICULTURA Y PESCA | G102: 125 | H102: A | I102: Natural | J102: PEQUEÑA | K102: 29889000 | L102: PAEF - PAP
B103: 73001 | C103: IBAGUÉ | D103: 73 | E103: TOLIMA | F103: INDUSTRIAS MANUFACTURERAS | G103: 1410 | H103: C | I103: Natural | J103: MICRO | K103: 5794000 | L103: PAEF - PAP
B104: 66001 | C104: PEREIRA | D104: 66 | E104: RISARALDA | F104: ACTIVIDADES DE SERVICIOS ADMINISTRATIVOS Y DE APOYO | G104: 7912 | H104: N | I104: Natural | J104: MICRO | K104: 1053000 | L104: PAEF
B105: 5001 | C105: MEDELLÍN | D105: 5 | E105: ANTIOQUIA | F105: ALOJAMIENTO Y SERVICIOS DE COMIDA | G105: 5611 | H105: I | I105: Natural | J105: MICRO | K105: 6174000 | L105: PARO - MICRO
B106: 50226 | C106: CUMARAL | D106: 50 | E106: META | F106: COMERCIO AL POR MAYOR Y AL POR MENOR; REPARACIÓN DE VEHÍCULOS AUTOMOTORES Y MOTOCICLETAS | G106: 4752 | H106: G | I106: Natural | J106: MICRO | K106: 10459000 | L106: PAEF - PAP
B107: 5001 | C107: MEDELLÍN | D107: 5 | E107: ANTIOQUIA | F107: ACTIVIDADES DE SERVICIOS ADMINISTRATIVOS Y DE APOYO | G107: 8299 | H107: N | I107: Natural | J107: MICRO | K107: 1624000 | L107: PAEF - PAP
B108: 50001 | C108: VILLAVICENCIO | D108: 50 | E108: META | F108: ALOJAMIENTO Y SERVICIOS DE COMIDA | G108: 5611 | H108: I | I108: Natural | J108: MEDIANA | K108: 56316000 | L108: PAEF - PAP
B109: 25530 | C109: PARATEBUENO | D109: 25 | E109: CUNDINAMARCA | F109: INDUSTRIAS MANUFACTURERAS | G109: 1040 | H109: C | I109: Jurídica | J109: MICRO | K109: 29759000 | L109: PAEF - PAP
B110: 11001 | C110: BOGOTÁ, D.C. | D110: 11 | E110: BOGOTÁ, D.C. | F110: ALOJAMIENTO Y SERVICIOS DE COMIDA | G110: 5611 | H110: I | I110: Natural | J110: MICRO | K110: 4914000 | L110: PAEF
B111: 68001 | C111: BUCARAMANGA | D111: 68 | E111: SANTANDER | F111: ACTIVIDADES FINANCIERAS Y DE SEGUROS | G111: 6499 | H111: K | I111: Natural | J111: MICRO | K111: 5616000 | L111: PAEF
B112: 5001 | C112: MEDELLÍN | D112: 5 | E112: ANTIOQUIA | F112: COMERCIO AL POR MAYOR Y AL POR MENOR; REPARACIÓN DE VEHÍCULOS AUTOMOTORES Y MOTOCICLETAS | G112: 4751 | H112: G | I112: Natural | J112: MICRO | K112: 2897000 | L112: PAEF - PAP
B113: 44430 | C113: MAICAO | D113: 44 | E113: LA GUAJIRA | F113: COMERCIO AL POR MAYOR Y AL POR MENOR; REPARACIÓN DE VEHÍCULOS AUTOMOTORES Y MOTOCICLETAS | G113: 4752 | H113: G | I113: Natural | J113: MICRO | K113: 36248000 | L113: PAEF - PAP - MICRO
B114: 5697 | C114: EL SANTUARIO | D114: 5 | E114: ANTIOQUIA | F114: INDUSTRIAS MANUFACTURERAS | G114: 1081 | H114: C | I114: Natural | J114: MICRO | K114: 25019000 | L114: PAEF - PAP
B115: 47001 | C115: SANTA MARTA | D115: 47 | E115: MAGDALENA | F115: ALOJAMIENTO Y SERVICIOS DE COMIDA | G115: 5511 | H115: I | I115: Natural | J115: MICRO | K115: 6318000 | L115: PAEF
B116: 5001 | C116: MEDELLÍN | D116: 5 | E116: ANTIOQUIA | F116: ALOJAMIENTO Y SERVICIOS DE COMIDA | G116: 5611 | H116: I | I116: Natural | J116: MICRO | K116: 40621000 | L116: PAEF - PAP - MICRO
B117: 5001 | C117: MEDELLÍN | D117: 5 | E117: ANTIOQUIA | F117: COMERCIO AL POR MAYOR Y AL POR MENOR; REPARACIÓN DE VEHÍCULOS AUTOMOTORES Y MOTOCICLETAS | G117: 4729 | H117: G | I117: Natural | J117: MICRO | K117: 702000 | L117: PAEF
B118: 5360 | C118: ITAGUI | D118: 5 | E118: ANTIOQUIA | F118: TRANSPORTE Y ALMACENAMIENTO | G118: 4921 | H118: H | I118: Natural | J118: MICRO | K118: 8120000 | L118: PAEF - PAP
B119: 5034 | C119: ANDES | D119: 5 | E119: ANTIOQUIA | F119: COMERCIO AL POR MAYOR Y AL POR MENOR; REPARACIÓN DE VEHÍCULOS AUTOMOTORES Y MOTOCICLETAS | G119: 4755 | H119: G | I119: Natural | J119: MICRO | K119: 8906000 | L119: PAEF - PAP - PARO
B120: 5837 | C120: TURBO | D120: 5 | E120: ANTIOQUIA | F120: COMERCIO AL POR MAYOR Y AL POR MENOR; REPARACIÓN DE VEHÍCULOS AUTOMOTORES Y MOTOCICLETAS | G120: 4775 | H120: G | I120: Natural | J120: MICRO | K120: 3159000 | L120: PAEF
B121: 5172 | C121: CHIGORODÓ | D121: 5 | E121: ANTIOQUIA | F121: COMERCIO AL POR MAYOR Y AL POR MENOR; REPARACIÓN DE VEHÍCULOS AUTOMOTORES Y MOTOCICLETAS | G121: 4721 | H121: G | I121: Natural | J121: PEQUEÑA | K121: 19315000 | L121: PAEF - PAP
B122: 66001 | C122: PEREIRA | D122: 66 | E122: RISARALDA | F122: ACTIVIDADES INMOBILIARIAS | G122: 6810 | H122: L | I122: Natural | J122: MICRO | K122: 1053000 | L122: PAEF
B123: 5266 | C123: ENVIGADO | D123: 5 | E123: ANTIOQUIA | F123: COMERCIO AL POR MAYOR Y AL POR MENOR; REPARACIÓN DE VEHÍCULOS AUTOMOTORES Y MOTOCICLETAS | G123: 4729 | H123: G | I123: Natural | J123: PEQUEÑA | K123: 46426000 | L123: PAEF
B124: 5001 | C124: MEDELLÍN | D124: 5 | E124: ANTIOQUIA | F124: ACTIVIDADES DE ATENCIÓN DE LA SALUD HUMANA Y DE ASISTENCIA SOCIAL | G124: 8899 | H124: Q | I124: Natural | J124: MICRO | K124: 12895000 | L124: PAEF - PAP - MICRO
B125: 5615 | C125: RIONEGRO | D125: 5 | E125: ANTIOQUIA | F125: COMERCIO AL POR MAYOR Y AL POR MENOR; REPARACIÓN DE VEHÍCULOS AUTOMOTORES Y MOTOCICLETAS | G125: 4663 | H125: G | I125: Natural | J125: MICRO | K125: 21363000 | L125: PAEF - PAP - MICRO
B126: 5615 | C126: RIONEGRO | D126: 5 | E126: ANTIOQUIA | F126: TRANSPORTE Y ALMACENAMIENTO | G126: 4921 | H126: H | I126: Natural | J126: MICRO | K126: 21247000 | L126: PAEF - PAP - MICRO
B127: 5001 | C127: MEDELLÍN | D127: 5 | E127: ANTIOQUIA | F127: ALOJAMIENTO Y SERVICIOS DE COMIDA | G127: 5611 | H127: I | I127: Natural | J127: MICRO | K127: 2766000 | L127: PAEF - PAP
B128: 5001 | C128: MEDELLÍN | D128: 5 | E128: ANTIOQUIA | F128: ALOJAMIENTO Y SERVICIOS DE COMIDA | G128: 5611 | H128: I | I128: Natural | J128: MICRO | K128: 5448000 | L128: MICRO
B129: 20001 | C129: VALLEDUPAR | D129: 20 | E129: CESAR | F129: COMERCIO AL POR MAYOR Y AL POR MENOR; REPARACIÓN DE VEHÍCULOS AUTOMOTORES Y MOTOCICLETAS | G129: 4773 | H129: G | I129: Natural | J129: MICRO | K129: 5265000 | L129: PAEF
B130: 70001 | C130: SINCELEJO | D130: 70 | E130: SUCRE | F130: AGRICULTURA, GANADERÍA, CAZA, SILVICULTURA Y PESCA | G130: 145 | H130: A | I130: Natural | J130: PEQUEÑA | K130: 80601000 | L130: PAEF - PAP - MICRO
B131: 68001 | C131: BUCARAMANGA | D131: 68 | E131: SANTANDER | F131: COMERCIO AL POR MAYOR Y AL POR MENOR; REPARACIÓN DE VEHÍCULOS AUTOMOTORES Y MOTOCICLETAS | G131: 4751 | H131: G | I131: Natural | J131: MICRO | K131: 3510000 | L131: PAEF
B132: 23001 | C132: MONTERÍA | D132: 23 | E132: CÓRDOBA | F132: COMERCIO AL POR MAYOR Y AL POR MENOR; REPARACIÓN DE VEHÍCULOS AUTOMOTORES Y MOTOCICLETAS | G132: 4719 | H132: G | I132: Natural | J132: MICRO | K132: 19870000 | L132: PAEF - PAP
B133: 13430 | C133: MAGANGUÉ | D133: 13 | E133: BOLÍVAR | F133: COMERCIO AL POR MAYOR Y AL POR MENOR; REPARACIÓN DE VEHÍCULOS AUTOMOTORES Y MOTOCICLETAS | G133: 4719 | H133: G | I133: Natural | J133: PEQUEÑA | K133: 15056000 | L133: PAEF - PAP
B134: 15407 | C134: VILLA DE LEYVA | D134: 15 | E134: BOYACÁ | F134: COMERCIO AL POR MAYOR Y AL POR MENOR; REPARACIÓN DE VEHÍCULOS AUTOMOTORES Y MOTOCICLETAS | G134: 4731 | H134: G | I134: Natural | J134: MICRO | K134: 15150000 | L134: PAEF - MICRO
B135: 11001 | C135: BOGOTÁ, D.C. | D135: 11 | E135: BOGOTÁ, D.C. | F135: CONSTRUCCIÓN | G135: 4322 | H135: F | I135: Natural | J135: MICRO | K135: 14997000 | L135: PAEF
B136: 11001 | C136: BOGOTÁ, D.C. | D136: 11 | E136: BOGOTÁ, D.C. | F136: INDUSTRIAS MANUFACTURERAS | G136: 2013 | H136: C | I136: Natural | J136: MICRO | K136: 14441000 | L136: PAEF - PAP
B137: 11001 | C137: BOGOTÁ, D.C. | D137: 11 | E137: BOGOTÁ, D.C. | F137: COMERCIO AL POR MAYOR Y AL POR MENOR; REPARACIÓN DE VEHÍCULOS AUTOMOTORES Y MOTOCICLETAS | G137: 4663 | H137: G | I137: Natural | J137: MICRO | K137: 35211000 | L137: PAEF - PAP - MICRO
B138: 15176 | C138: CHIQUINQUIRÁ | D138: 15 | E138: BOYACÁ | F138: COMERCIO AL POR MAYOR Y AL POR MENOR; REPARACIÓN DE VEHÍCULOS AUTOMOTORES Y MOTOCICLETAS | G138: 4752 | H138: G | I138: Natural | J138: MICRO | K138: 5925000 | L138: PAEF - PAP
B139: 11001 | C139: BOGOTÁ, D.C. | D139: 11 | E139: BOGOTÁ, D.C. | F139: COMERCIO AL POR MAYOR Y AL POR MENOR; REPARACIÓN DE VEHÍCULOS AUTOMOTORES Y MOTOCICLETAS | G139: 4731 | H139: G | I139: Natural | J139: PEQUEÑA | K139: 35482000 | L139: PAEF - PAP
B140: 11001 | C140: BOGOTÁ, D.C. | D140: 11 | E140: BOGOTÁ, D.C. | F140: OTRAS ACTIVIDADES DE SERVICIOS | G140: 9601 | H140: S | I140: Natural | J140: MICRO | K140: 81441000 | L140: PAEF - PAP - MICRO
B141: 11001 | C141: BOGOTÁ, D.C. | D141: 11 | E141: BOGOTÁ, D.C. | F141: TRANSPORTE Y ALMACENAMIENTO | G141: 4923 | H141: H | I141: Natural | J141: MICRO | K141: 7722000 | L141: PAEF
B142: 11001 | C142: BOGOTÁ, D.C. | D142: 11 | E142: BOGOTÁ, D.C. | F142: INDUSTRIAS MANUFACTURERAS | G142: 1081 | H142: C | I142: Natural | J142: MICRO | K142: 17403000 | L142: PAEF - PAP - MICRO
B143: 11001 | C143: BOGOTÁ, D.C. | D143: 11 | E143: BOGOTÁ, D.C. | F143: TRANSPORTE Y ALMACENAMIENTO | G143: 4923 | H143: H | I143: Natural | J143: PEQUEÑA | K143: 17995000 | L143: PAEF - PAP
B144: 11001 | C144: BOGOTÁ, D.C. | D144: 11 | E144: BOGOTÁ, D.C. | F144: COMERCIO AL POR MAYOR Y AL POR MENOR; REPARACIÓN DE VEHÍCULOS AUTOMOTORES Y MOTOCICLETAS | G144: 4752 | H144: G | I144: Natural | J144: MICRO | K144: 7506000 | L144: PAEF - PAP
B145: 15001 | C145: TUNJA | D145: 15 | E145: BOYACÁ | F145: EXPLOTACIÓN DE MINAS Y CANTERAS | G145: 811 | H145: B | I145: Natural | J145: MICRO | K145: 2808000 | L145: PAEF
B146: 15469 | C146: MONIQUIRÁ | D146: 15 | E146: BOYACÁ | F146: COMERCIO AL POR MAYOR Y AL POR MENOR; REPARACIÓN DE VEHÍCULOS AUTOMOTORES Y MOTOCICLETAS | G146: 4752 | H146: G | I146: Natural | J146: MICRO | K146: 2106000 | L146: PAEF
B147: 15469 | C147: MONIQUIRÁ | D147: 15 | E147: BOYACÁ | F147: COMERCIO AL POR MAYOR Y AL POR MENOR; REPARACIÓN DE VEHÍCULOS AUTOMOTORES Y MOTOCICLETAS | G147: 4731 | H147: G | I147: Natural | J147: MICRO | K147: 4081000 | L147: PAEF - PAP
B148: 68001 | C148: BUCARAMANGA | D148: 68 | E148: SANTANDER | F148: COMERCIO AL POR MAYOR Y AL POR MENOR; REPARACIÓN DE VEHÍCULOS AUTOMOTORES Y MOTOCICLETAS | G148: 4530 | H148: G | I148: Natural | J148: MICRO | K148: 11542000 | L148: PAEF - PAP
B149: 76001 | C149: CALI | D149: 76 | E149: VALLE DEL CAUCA | F149: ALOJAMIENTO Y SERVICIOS DE COMIDA | G149: 5611 | H149: I | I149: Natural | J149: MICRO | K149: 18200000 | L149: PAEF - PAP - MICRO
B150: 85001 | C150: YOPAL | D150: 85 | E150: CASANARE | F150: COMERCIO AL POR MAYOR Y AL POR MENOR; REPARACIÓN DE VEHÍCULOS AUTOMOTORES Y MOTOCICLETAS | G150: 4530 | H150: G | I150: Natural | J150: MICRO | K150: 22622000 | L150: PAEF - PAP - PARO - MICRO
B151: 15238 | C151: DUITAMA | D151: 15 | E151: BOYACÁ | F151: EXPLOTACIÓN DE MINAS Y CANTERAS | G151: 510 | H151: B | I151: Natural | J151: PEQUEÑA | K151: 21500000 | L151: PAEF - PAP
B152: 13001 | C152: CARTAGENA | D152: 13 | E152: BOLÍVAR | F152: AGRICULTURA, GANADERÍA, CAZA, SILVICULTURA Y PESCA | G152: 130 | H152: A | I152: Natural | J152: PEQUEÑA | K152: 33813000 | L152: PAEF - PAP
B153: 15646 | C153: SAMACÁ | D153: 15 | E153: BOYACÁ | F153: COMERCIO AL POR MAYOR Y AL POR MENOR; REPARACIÓN DE VEHÍCULOS AUTOMOTORES Y MOTOCICLETAS | G153: 4731 | H153: G | I153: Natural | J153: MICRO | K153: 7811000 | L153: PAEF - PAP
B154: 15753 | C154: SOATÁ | D154: 15 | E154: BOYACÁ | F154: ALOJAMIENTO Y SERVICIOS DE COMIDA | G154: 5511 | H154: I | I154: Natural | J154: MICRO | K154: 2808000 | L154: PAEF
B155: 11001 | C155: BOGOTÁ, D.C. | D155: 11 | E155: BOGOTÁ, D.C. | F155: COMERCIO AL POR MAYOR Y AL POR MENOR; REPARACIÓN DE VEHÍCULOS AUTOMOTORES Y MOTOCICLETAS | G155: 4520 | H155: G | I155: Natural | J155: MICRO | K155: 17718000 | L155: PAEF - PAP
B156: 15001 | C156: TUNJA | D156: 15 | E156: BOYACÁ | F156: ACTIVIDADES PROFESIONALES, CIENTÍFICAS Y TÉCNICAS | G156: 7310 | H156: M | I156: Natural | J156: MICRO | K156: 3159000 | L156: PAEF
B157: 11001 | C157: BOGOTÁ, D.C. | D157: 11 | E157: BOGOTÁ, D.C. | F157: ALOJAMIENTO Y SERVICIOS DE COMIDA | G157: 5611 | H157: I | I157: Natural | J157: MICRO | K157: 15846000 | L157: PAEF - PAP
B158: 15759 | C158: SOGAMOSO | D158: 15 | E158: BOYACÁ | F158: TRANSPORTE Y ALMACENAMIENTO | G158: 4923 | H158: H | I158: Natural | J158: PEQUEÑA | K158: 69398000 | L158: PAEF - PAP - MICRO
B159: 15820 | C159: TÓPAGA | D159: 15 | E159: BOYACÁ | F159: EXPLOTACIÓN DE MINAS Y CANTERAS | G159: 510 | H159: B | I159: Natural | J159: MICRO | K159: 6534000 | L159: MICRO
B160: 85001 | C160: YOPAL | D160: 85 | E160: CASANARE | F160: COMERCIO AL POR MAYOR Y AL POR MENOR; REPARACIÓN DE VEHÍCULOS AUTOMOTORES Y MOTOCICLETAS | G160: 4759 | H160: G | I160: Natural | J160: MICRO | K160: 9563000 | L160: PAEF - PAP
B161: 17001 | C161: MANIZALES | D161: 17 | E161: CALDAS | F161: COMERCIO AL POR MAYOR Y AL POR MENOR; REPARACIÓN DE VEHÍCULOS AUTOMOTORES Y MOTOCICLETAS | G161: 4731 | H161: G | I161: Natural | J161: MICRO | K161: 2457000 | L161: PAEF
B162: 5001 | C162: MEDELLÍN | D162: 5 | E162: ANTIOQUIA | F162: INDUSTRIAS MANUFACTURERAS | G162: 2599 | H162: C | I162: Natural | J162: MICRO | K162: 19311000 | L162: PAEF - PAP
B163: 63001 | C163: ARMENIA | D163: 63 | E163: QUINDÍO | F163: AGRICULTURA, GANADERÍA, CAZA, SILVICULTURA Y PESCA | G163: 322 | H163: A | I163: Natural | J163: MICRO | K163: 22142000 | L163: PAEF - PAP
B164: 66170 | C164: DOSQUEBRADAS | D164: 66 | E164: RISARALDA | F164: COMERCIO AL POR MAYOR Y AL POR MENOR; REPARACIÓN DE VEHÍCULOS AUTOMOTORES Y MOTOCICLETAS | G164: 4752 | H164: G | I164: Natural | J164: MICRO | K164: 15593000 | L164: PAEF - PAP
B165: 17380 | C165: LA DORADA | D165: 17 | E165: CALDAS | F165: AGRICULTURA, GANADERÍA, CAZA, SILVICULTURA Y PESCA | G165: 161 | H165: A | I165: Natural | J165: PEQUEÑA | K165: 10440000 | L165: PAEF - PAP
B166: 11001 | C166: BOGOTÁ, D.C. | D166: 11 | E166: BOGOTÁ, D.C. | F166: COMERCIO AL POR MAYOR Y AL POR MENOR; REPARACIÓN DE VEHÍCULOS AUTOMOTORES Y MOTOCICLETAS | G166: 4761 | H166: G | I166: Natural | J166: MICRO | K166: 50665000 | L166: PAEF - PAP - MICRO
B167: 11001 | C167: BOGOTÁ, D.C. | D167: 11 | E167: BOGOTÁ, D.C. | F167: COMERCIO AL POR MAYOR Y AL POR MENOR; REPARACIÓN DE VEHÍCULOS AUTOMOTORES Y MOTOCICLETAS | G167: 4752 | H167: G | I167: Natural | J167: PEQUEÑA | K167: 45099000 | L167: PAEF
B168: 76001 | C168: CALI | D168: 76 | E168: VALLE DEL CAUCA | F168: COMERCIO AL POR MAYOR Y AL POR MENOR; REPARACIÓN DE VEHÍCULOS AUTOMOTORES Y MOTOCICLETAS | G168: 4774 | H168: G | I168: Natural | J168: MICRO | K168: 44927000 | L168: PAEF - PAP - MICRO
B169: 11001 | C169: BOGOTÁ, D.C. | D169: 11 | E169: BOGOTÁ, D.C. | F169: COMERCIO AL POR MAYOR Y AL POR MENOR; REPARACIÓN DE VEHÍCULOS AUTOMOTORES Y MOTOCICLETAS | G169: 4631 | H169: G | I169: Jurídica | J169: MICRO | K169: 16315000 | L169: PAEF - PAP
B170: 76001 | C170: CALI | D170: 76 | E170: VALLE DEL CAUCA | F170: ALOJAMIENTO Y SERVICIOS DE COMIDA | G170: 5511 | H170: I | I170: Natural | J170: MICRO | K170: 39585000 | L170: PAEF - PAP - PARO - MICRO
B171: 27001 | C171: QUIBDÓ | D171: 27 | E171: CHOCÓ | F171: COMERCIO AL POR MAYOR Y AL POR MENOR; REPARACIÓN DE VEHÍCULOS AUTOMOTORES Y MOTOCICLETAS | G171: 4775 | H171: G | I171: Natural | J171: PEQUEÑA | K171: 36268000 | L171: PAEF
B172: 47001 | C172: SANTA MARTA | D172: 47 | E172: MAGDALENA | F172: AGRICULTURA, GANADERÍA, CAZA, SILVICULTURA Y PESCA | G172: 141 | H172: A | I172: Natural | J172: MICRO | K172: 2808000 | L172: PAEF
B173: 41001 | C173: NEIVA | D173: 41 | E173: HUILA | F173: COMERCIO AL POR MAYOR Y AL POR MENOR; REPARACIÓN DE VEHÍCULOS AUTOMOTORES Y MOTOCICLETAS | G173: 4752 | H173: G | I173: Natural | J173: MICRO | K173: 26748000 | L173: PAEF - PAP
B174: 41001 | C174: NEIVA | D174: 41 | E174: HUILA | F174: ACTIVIDADES DE SERVICIOS ADMINISTRATIVOS Y DE APOYO | G174: 7730 | H174: N | I174: Natural | J174: MICRO | K174: 4872000 | L174: PAEF - PAP
B175: 52001 | C175: PASTO | D175: 52 | E175: NARIÑO | F175: COMERCIO AL POR MAYOR Y AL POR MENOR; REPARACIÓN DE VEHÍCULOS AUTOMOTORES Y MOTOCICLETAS | G175: 4530 | H175: G | I175: Natural | J175: MICRO | K175: 23395000 | L175: PAEF - PAP - PARO - MICRO
B176: 76001 | C176: CALI | D176: 76 | E176: VALLE DEL CAUCA | F176: COMERCIO AL POR MAYOR Y AL POR MENOR; REPARACIÓN DE VEHÍCULOS AUTOMOTORES Y MOTOCICLETAS | G176: 4724 | H176: G | I176: Natural | J176: MICRO | K176: 22892000 | L176: PAEF - PAP - MICRO
B177: 52356 | C177: IPIALES | D177: 52 | E177: NARIÑO | F177: TRANSPORTE Y ALMACENAMIENTO | G177: 4923 | H177: H | I177: Natural | J177: MICRO | K177: 9763000 | L177: PAEF - PAP
B178: 86001 | C178: MOCOA | D178: 86 | E178: PUTUMAYO | F178: COMERCIO AL POR MAYOR Y AL POR MENOR; REPARACIÓN DE VEHÍCULOS AUTOMOTORES Y MOTOCICLETAS | G178: 4731 | H178: G | I178: Natural | J178: MICRO | K178: 13712000 | L178: PAEF - PAP
B179: 54001 | C179: CÚCUTA | D179: 54 | E179: NORTE DE SANTANDER | F179: OTRAS | G179: 90 | H179: Otras | I179: Natural | J179: PEQUEÑA | K179: 6318000 | L179: PAEF
B180: 54498 | C180: OCAÑA | D180: 54 | E180: NORTE DE SANTANDER | F180: COMERCIO AL POR MAYOR Y AL POR MENOR; REPARACIÓN DE VEHÍCULOS AUTOMOTORES Y MOTOCICLETAS | G180: 4731 | H180: G | I180: Natural | J180: MICRO | K180: 16129000 | L180: PAEF - PAP
B181: 8001 | C181: BARRANQUILLA | D181: 8 | E181: ATLÁNTICO | F181: ACTIVIDADES INMOBILIARIAS | G181: 6810 | H181: L | I181: Natural | J181: MICRO | K181: 21122000 | L181: PAEF - PAP
B182: 54498 | C182: OCAÑA | D182: 54 | E182: NORTE DE SANTANDER | F182: COMERCIO AL POR MAYOR Y AL POR MENOR; REPARACIÓN DE VEHÍCULOS AUTOMOTORES Y MOTOCICLETAS | G182: 4772 | H182: G | I182: Natural | J182: MICRO | K182: 32850000 | L182: PAEF - PAP
B183: 8758 | C183: SOLEDAD | D183: 8 | E183: ATLÁNTICO | F183: COMERCIO AL POR MAYOR Y AL POR MENOR; REPARACIÓN DE VEHÍCULOS AUTOMOTORES Y MOTOCICLETAS | G183: 4541 | H183: G | I183: Natural | J183: MICRO | K183: 13272000 | L183: PAEF - PAP - MICRO
B184: 54405 | C184: LOS PATIOS | D184: 54 | E184: NORTE DE SANTANDER | F184: TRANSPORTE Y ALMACENAMIENTO | G184: 4923 | H184: H | I184: Natural | J184: MICRO | K184: 5493000 | L184: PAEF - PAP - MICRO
B185: 15686 | C185: SANTANA | D185: 15 | E185: BOYACÁ | F185: COMERCIO AL POR MAYOR Y AL POR MENOR; REPARACIÓN DE VEHÍCULOS AUTOMOTORES Y MOTOCICLETAS | G185: 4731 | H185: G | I185: Natural | J185: MICRO | K185: 2855000 | L185: PAEF - PAP
B186: 23001 | C186: MONTERÍA | D186: 23 | E186: CÓRDOBA | F186: INDUSTRIAS MANUFACTURERAS | G186: 1040 | H186: C | I186: Natural | J186: PEQUEÑA | K186: 76501000 | L186: PAEF - PAP
B187: 8001 | C187: BARRANQUILLA | D187: 8 | E187: ATLÁNTICO | F187: COMERCIO AL POR MAYOR Y AL POR MENOR; REPARACIÓN DE VEHÍCULOS AUTOMOTORES Y MOTOCICLETAS | G187: 4530 | H187: G | I187: Natural | J187: MICRO | K187: 2326000 | L187: PAEF - PAP
B188: 11001 | C188: BOGOTÁ, D.C. | D188: 11 | E188: BOGOTÁ, D.C. | F188: TRANSPORTE Y ALMACENAMIENTO | G188: 5221 | H188: H | I188: Natural | J188: MICRO | K188: 4212000 | L188: PAEF
B189: 11001 | C189: BOGOTÁ, D.C. | D189: 11 | E189: BOGOTÁ, D.C. | F189: TRANSPORTE Y ALMACENAMIENTO | G189: 4923 | H189: H | I189: Natural | J189: MICRO | K189: 5082000 | L189: MICRO
B190: 68001 | C190: BUCARAMANGA | D190: 68 | E190: SANTANDER | F190: COMERCIO AL POR MAYOR Y AL POR MENOR; REPARACIÓN DE VEHÍCULOS AUTOMOTORES Y MOTOCICLETAS | G190: 4761 | H190: G | I190: Natural | J190: MICRO | K190: 16224000 | L190: PAEF - PARO - MICRO
B191: 68547 | C191: PIEDECUESTA | D191: 68 | E191: SANTANDER | F191: COMERCIO AL POR MAYOR Y AL POR MENOR; REPARACIÓN DE VEHÍCULOS AUTOMOTORES Y MOTOCICLETAS | G191: 4723 | H191: G | I191: Natural | J191: MICRO | K191: 1755000 | L191: PAEF
B192: 68001 | C192: BUCARAMANGA | D192: 68 | E192: SANTANDER | F192: ACTIVIDADES INMOBILIARIAS | G192: 6810 | H192: L | I192: Natural | J192: PEQUEÑA | K192: 6318000 | L192: PAEF
B193: 11001 | C193: BOGOTÁ, D.C. | D193: 11 | E193: BOGOTÁ, D.C. | F193: ALOJAMIENTO Y SERVICIOS DE COMIDA | G193: 5530 | H193: I | I193: Natural | J193: PEQUEÑA | K193: 34478000 | L193: PAEF
B194: 11001 | C194: BOGOTÁ, D.C. | D194: 11 | E194: BOGOTÁ, D.C. | F194: ALOJAMIENTO Y SERVICIOS DE COMIDA | G194: 5511 | H194: I | I194: Natural | J194: MICRO | K194: 23542000 | L194: PAEF - PAP - MICRO
B195: 11001 | C195: BOGOTÁ, D.C. | D195: 11 | E195: BOGOTÁ, D.C. | F195: COMERCIO AL POR MAYOR Y AL POR MENOR; REPARACIÓN DE VEHÍCULOS AUTOMOTORES Y MOTOCICLETAS | G195: 4773 | H195: G | I195: Natural | J195: MICRO | K195: 12549000 | L195: PAEF
B196: 8001 | C196: BARRANQUILLA | D196: 8 | E196: ATLÁNTICO | F196: OTRAS ACTIVIDADES DE SERVICIOS | G196: 9601 | H196: S | I196: Natural | J196: PEQUEÑA | K196: 123097000 | L196: PAEF - PAP
B197: 68276 | C197: FLORIDABLANCA | D197: 68 | E197: SANTANDER | F197: AGRICULTURA, GANADERÍA, CAZA, SILVICULTURA Y PESCA | G197: 126 | H197: A | I197: Natural | J197: MICRO | K197: 48474000 | L197: PAEF - PAP - MICRO
B198: 68001 | C198: BUCARAMANGA | D198: 68 | E198: SANTANDER | F198: INDUSTRIAS MANUFACTURERAS | G198: 1521 | H198: C | I198: Natural | J198: MICRO | K198: 5532000 | L198: PAEF - PAP
B199: 68001 | C199: BUCARAMANGA | D199: 68 | E199: SANTANDER | F199: AGRICULTURA, GANADERÍA, CAZA, SILVICULTURA Y PESCA | G199: 126 | H199: A | I199: Natural | J199: PEQUEÑA | K199: 29191000 | L199: PAEF - PAP
B200: 68001 | C200: BUCARAMANGA | D200: 68 | E200: SANTANDER | F200: EDUCACIÓN | G200: 8559 | H200: P | I200: Natural | J200: MICRO | K200: 6978000 | L200: PAEF - PAP
... 4300 more rows

Sheet insumos2 (hidden)
A1: TIPO DE IDENTIFICACION POSTULANTE | B1: NUMERO IDENTIFICACION EMPRESA | C1: CIUDAD - DIVIPOLA - R | D1: Municipio | E1: TOTAL COTIZANTES CON CONCEPTO DE CONFORMIDAD TOTAL A GIRAR | F1: TOTAL COTIZANTES CON CONCEPTO DE NO CONFORMIDAD | G1: TIPO DE PERSONA | H1: Departamento DIVIPOLA (P) | I1: Nombre dpto | J1: ESTADO_TOTAL A GIRAR | K1: Tamaño del Empleador | L1: STRCODPAR_CIIU_EMPRESA | M1: ACTIVIDAD ECONOMICA | N1: ACTIVIDAD ECONOMICA | O1: Division 3DC_TD 3D | P1: grupo especial 2DC_TD 3D | Q1: SEXO_F_ | R1: SEXO_M_ | S1: SEXO_ND_ | T1: Programas_beneficiarios | V1: Departamentos | W1: empleadores | X1: Departamentos | Y1: empleadores | AF1: TIPO DE IDENTIFICACION POSTULANTE | AG1: NUMERO IDENTIFICACION EMPRESA | AH1: CIUDAD - DIVIPOLA - R | AI1: Municipio | AJ1: TOTAL COTIZANTES CON CONCEPTO DE CONFORMIDAD TOTAL A GIRAR | AK1: TOTAL COTIZANTES CON CONCEPTO DE NO CONFORMIDAD | AL1: TIPO DE PERSONA | AM1: Departamento DIVIPOLA (P) | AN1: Nombre dpto | AO1: ESTADO_TOTAL A GIRAR | AP1: Tamaño del Empleador | AQ1: STRCODPAR_CIIU_EMPRESA | AR1: ACTIVIDAD ECONOMICA | AS1: ACTIVIDAD ECONOMICA | AT1: Division 3DC_TD 3D | AU1: grupo especial 2DC_TD 3D | AV1: SEXO_F_ | AW1: SEXO_M_ | AX1: SEXO_ND_ | AY1: Programas_beneficiarios | BA1: Departamentos | BB1: empleadores | BC1: Departamentos | BD1: empleadores | BE1: nomdpto | BG1: =BE1 -> nomdpto | BH1: empleadores | BI1: empleados | BK1: codmunicipio | BL1: aportantes | BM1: codmunicipio | BN1: aportantes | BO1: cod_dpto | BP1: nom_dpto | BQ1: nom_mpio | BR1: empleadores | BS1: empleados | BU1: Grupo | BV1: empleadores | BW1: empleados | BX1: Grupo | BY1: empleadores | BZ1: empleados
C2: 76001 | D2: CALI | E2: 5 | G2: Natural | H2: 76 | I2: VALLE DEL CAUCA | J2: Aprobado con subsidio | K2: MICRO | L2: 6810 | M2: ACTIVIDADES INMOBILIARIAS | N2: L | O2: Actividades inmobiliarias realizadas con bienes propios o arrendados | P2: Actividades inmobiliarias realizadas con bienes propios o arrendados | Q2: 2 | R2: 3 | S2: 0 | T2: PAEF | V2: 68 | W2: =COUNTIFS($J$2:$J$399999,"Aprobado con subsidio",$H$2:$H$399999,V2) -> 6446 | X2: =_xlfn._xlws.SORT($V$2:$W$34,2,-1) -> 11 | Y2: 49078 | Z2: =VLOOKUP(X2,Hoja4!$A$29:$B$61,2,FALSE) -> Bogotá | AF2: =_xlfn._xlws.FILTER($A$2:$T$399999,$N$2:$N$399999=Visor!$N$4,"") -> 0 | AG2: 0 | AH2: 5001 | AI2: MEDELLÍN | AJ2: 0 | AK2: 0 | AL2: Natural | AM2: 5 | AN2: ANTIOQUIA | AO2: 0 | AP2: MICRO | AQ2: 1084 | AR2: INDUSTRIAS MANUFACTURERAS | AS2: C | AT2: Elaboración de otros productos alimenticios | AU2: Elaboración de productos alimenticios | AV2: 0 | AW2: 0 | AX2: 0 | AY2: No beneficiario | BA2: 68 | BB2: =COUNTIFS($AO$2:$AO$399999,"Aprobado con subsidio",$AM$2:$AM$399999,BA2) -> 1024 | BC2: =_xlfn._xlws.SORT($BA$2:$BB$34,2,-1) -> 11 | BD2: 7709 | BE2: =VLOOKUP(BC2,Hoja4!$A$29:$B$61,2,FALSE) -> Bogotá | BG2: =BE2 -> Bogotá | BH2: =BD2 -> 7709 | BI2: =SUMIFS($AJ$2:$AJ$399999,$AO$2:$AO$399999,"Aprobado con subsidio",$AM$2:$AM$399999,BC2) -> 203833 | BK2: =_xlfn.UNIQUE($AH$2:$AH$399999) -> 5001 | BL2: =COUNTIFS($AO$2:$AO$399999,"Aprobado con subsidio",$AH$2:$AH$399999,BK2) -> 3280 | BM2: =_xlfn._xlws.SORT($BK$2:$BL$1122,2,-1) -> 11001 | BN2: 7709 | BO2: =IF(LEN(BM2)=5,MID(BM2,1,2),MID(BM2,1,1))*1 -> 11 | BP2: =VLOOKUP(BO2,Hoja4!$A$29:$B$61,2,FALSE) -> Bogotá | BQ2: =VLOOKUP(BM2,Hoja4!$D$29:$E$1150,2,FALSE) -> Bogotá, d.c. | BR2: =BN2 -> 7709 | BS2: =SUMIFS($AJ$2:$AJ$399999,$AH$2:$AH$399999,BM2) -> 203833 | BU2: =_xlfn.UNIQUE($AU$2:$AU$399999) -> Elaboración de productos alimenticios | BV2: =COUNTIFS($AU$2:$AU$399999,BU2,$AO$2:$AO$399999,"Aprobado con subsidio") -> 3377 | BW2: =SUMIFS($AJ$2:$AJ$399999,$AU$2:$AU$399999,BU2,$AO$2:$AO$399999,"Aprobado con subsidio") -> 115761 | BX2: =_xlfn._xlws.SORT(BU2:BW26,2,-1) -> Elaboración de productos alimenticios | BY2: 3377 | BZ2: 115761
C3: 50001 | D3: VILLAVICENCIO | E3: 0 | G3: Natural | H3: 50 | I3: META | J3: 0 | K3: PEQUEÑA | L3: 4731 | M3: COMERCIO AL POR MAYOR Y AL POR MENOR; REPARACIÓN DE VEHÍCULOS AUTOMOTORES Y MOTOCICLETAS | N3: G | O3: Comercio al por menor de combustible, lubricantes, aditivos y productos de limpieza para automotores, en establecimientos especializados | P3: Comercio al por menor de combustible, lubricantes, aditivos y productos de limpieza para automotores, en establecimientos especializados | Q3: 0 | R3: 0 | S3: 0 | T3: No beneficiario | V3: 13 | W3: =COUNTIFS($J$2:$J$399999,"Aprobado con subsidio",$H$2:$H$399999,V3) -> 3883 | X3: 5 | Y3: 29118 | Z3: =VLOOKUP(X3,Hoja4!$A$29:$B$61,2,FALSE) -> Antioquia | AF3: 0 | AG3: 0 | AH3: 68001 | AI3: BUCARAMANGA | AJ3: 0 | AK3: 0 | AL3: Natural | AM3: 68 | AN3: SANTANDER | AO3: Aprobado con subsidio | AP3: MICRO | AQ3: 1089 | AR3: INDUSTRIAS MANUFACTURERAS | AS3: C | AT3: Elaboración de otros productos alimenticios | AU3: Elaboración de productos alimenticios | AV3: 0 | AW3: 0 | AX3: 0 | AY3: PAEF | BA3: 13 | BB3: 342 | BC3: 5 | BD3: 5716 | BE3: =VLOOKUP(BC3,Hoja4!$A$29:$B$61,2,FALSE) -> Antioquia | BG3: =BE3 -> Antioquia | BH3: =BD3 -> 5716 | BI3: 189600 | BK3: 68001 | BL3: 668 | BM3: 5001 | BN3: 3280 | BO3: =IF(LEN(BM3)=5,MID(BM3,1,2),MID(BM3,1,1))*1 -> 5 | BP3: =VLOOKUP(BO3,Hoja4!$A$29:$B$61,2,FALSE) -> Antioquia | BQ3: =VLOOKUP(BM3,Hoja4!$D$29:$E$1150,2,FALSE) -> Medellín | BR3: 3280 | BS3: 90979 | BU3: Fabricación de productos elaborados de metal, excepto maquinaria y equipo | BV3: 2273 | BW3: 44697 | BX3: Confección de prendas de vestir | BY3: 2934 | BZ3: 112009
C4: 63001 | D4: ARMENIA | E4: 5 | G4: Natural | H4: 63 | I4: QUINDÍO | J4: Aprobado con subsidio | K4: MICRO | L4: 5611 | M4: ALOJAMIENTO Y SERVICIOS DE COMIDA | N4: I | O4: Actividades de restaurantes, cafeterías y servicio móvil de comidas | P4: Actividades de restaurantes, cafeterías y servicio móvil de comidas | Q4: 2 | R4: 3 | S4: 0 | T4: PAEF - PAP | V4: 15 | W4: 2423 | X4: 76 | Y4: 14224 | Z4: =VLOOKUP(X4,Hoja4!$A$29:$B$61,2,FALSE) -> Valle del cauca | AF4: 0 | AG4: 0 | AH4: 76001 | AI4: CALI | AJ4: 0 | AK4: 0 | AL4: Natural | AM4: 76 | AN4: VALLE DEL CAUCA | AO4: Aprobado con subsidio | AP4: MICRO | AQ4: 1084 | AR4: INDUSTRIAS MANUFACTURERAS | AS4: C | AT4: Elaboración de otros productos alimenticios | AU4: Elaboración de productos alimenticios | AV4: 0 | AW4: 0 | AX4: 0 | AY4: PAEF | BA4: 15 | BB4: 275 | BC4: 76 | BD4: 2356 | BE4: =VLOOKUP(BC4,Hoja4!$A$29:$B$61,2,FALSE) -> Valle del cauca | BG4: Valle del cauca | BH4: 2356 | BI4: 89233 | BK4: 76001 | BL4: 1644 | BM4: 76001 | BN4: 1644 | BO4: 76 | BP4: =VLOOKUP(BO4,Hoja4!$A$29:$B$61,2,FALSE) -> Valle del cauca | BQ4: =VLOOKUP(BM4,Hoja4!$D$29:$E$1150,2,FALSE) -> Cali | BR4: 1644 | BS4: 46391 | BU4: Fabricación de productos textiles | BV4: 836 | BW4: 30502 | BX4: Instalación, mantenimiento y reparación especializado de maquinaria y equipo | BY4: 2467 | BZ4: 32593
C5: 5001 | D5: MEDELLÍN | E5: 0 | G5: Natural | H5: 5 | I5: ANTIOQUIA | J5: 0 | K5: MICRO | L5: 1084 | M5: INDUSTRIAS MANUFACTURERAS | N5: C | O5: Elaboración de otros productos alimenticios | P5: Elaboración de productos alimenticios | Q5: 0 | R5: 0 | S5: 0 | T5: No beneficiario | V5: 5 | W5: 29118 | X5: 25 | Y5: 6650 | Z5: =VLOOKUP(X5,Hoja4!$A$29:$B$61,2,FALSE) -> Cundinamarca | AF5: 0 | AG5: 0 | AH5: 11001 | AI5: BOGOTÁ, D.C. | AJ5: 5 | AK5: 0 | AL5: Natural | AM5: 11 | AN5: BOGOTÁ, D.C. | AO5: Aprobado con subsidio | AP5: MICRO | AQ5: 2511 | AR5: INDUSTRIAS MANUFACTURERAS | AS5: C | AT5: Fabricación de productos metálicos para uso estructural, tanques, depósitos y generadores de vapor. | AU5: Fabricación de productos elaborados de metal, excepto maquinaria y equipo | AV5: 1 | AW5: 4 | AX5: 0 | AY5: PAEF - PAP | BA5: 5 | BB5: 5716 | BC5: 25 | BD5: 1182 | BE5: =VLOOKUP(BC5,Hoja4!$A$29:$B$61,2,FALSE) -> Cundinamarca | BG5: Cundinamarca | BH5: 1182 | BI5: 42895 | BK5: 11001 | BL5: 7709 | BM5: 8001 | BN5: 686 | BO5: 8 | BP5: =VLOOKUP(BO5,Hoja4!$A$29:$B$61,2,FALSE) -> Atlántico | BQ5: =VLOOKUP(BM5,Hoja4!$D$29:$E$1150,2,FALSE) -> Barranquilla | BR5: 686 | BS5: 19591 | BU5: Fabricación de aparatos y equipo eléctrico | BV5: 309 | BW5: 16433 | BX5: Fabricación de productos elaborados de metal, excepto maquinaria y equipo | BY5: 2273 | BZ5: 44697
C6: 68001 | D6: BUCARAMANGA | E6: 0 | G6: Natural | H6: 68 | I6: SANTANDER | J6: Aprobado con subsidio | K6: MICRO | L6: 1089 | M6: INDUSTRIAS MANUFACTURERAS | N6: C | O6: Elaboración de otros productos alimenticios | P6: Elaboración de productos alimenticios | Q6: 0 | R6: 0 | S6: 0 | T6: PAEF | V6: 76 | W6: 14224 | X6: 8 | Y6: 6568 | Z6: =VLOOKUP(X6,Hoja4!$A$29:$B$61,2,FALSE) -> Atlántico | AF6: 0 | AG6: 0 | AH6: 17001 | AI6: MANIZALES | AJ6: 0 | AK6: 0 | AL6: Natural | AM6: 17 | AN6: CALDAS | AO6: 0 | AP6: 0 | AQ6: 1312 | AR6: INDUSTRIAS MANUFACTURERAS | AS6: C | AT6: Preparación, hilatura, tejeduría y acabado de productos textiles | AU6: Fabricación de productos textiles | AV6: 0 | AW6: 0 | AX6: 0 | AY6: No beneficiario | BA6: 76 | BB6: 2356 | BC6: 68 | BD6: 1024 | BE6: =VLOOKUP(BC6,Hoja4!$A$29:$B$61,2,FALSE) -> Santander | BG6: Santander | BH6: 1024 | BI6: 18177 | BK6: 17001 | BL6: 250 | BM6: 68001 | BN6: 668 | BO6: 68 | BP6: =VLOOKUP(BO6,Hoja4!$A$29:$B$61,2,FALSE) -> Santander | BQ6: =VLOOKUP(BM6,Hoja4!$D$29:$E$1150,2,FALSE) -> Bucaramanga | BR6: 668 | BS6: 10455 | BU6: Transformación de la madera y fabricación de productos de madera y de corcho, excepto muebles; fabricación de artículos de cestería y espartería | BV6: 741 | BW6: 11511 | BX6: Fabricación de productos de caucho y de plástico | BY6: 1202 | BZ6: 42541
C7: 68001 | D7: BUCARAMANGA | E7: 0 | G7: Natural | H7: 68 | I7: SANTANDER | J7: Aprobado con subsidio | K7: MICRO | L7: 5611 | M7: ALOJAMIENTO Y SERVICIOS DE COMIDA | N7: I | O7: Actividades de restaurantes, cafeterías y servicio móvil de comidas | P7: Actividades de restaurantes, cafeterías y servicio móvil de comidas | Q7: 0 | R7: 0 | S7: 0 | T7: PAEF | V7: 54 | W7: 2722 | X7: 68 | Y7: 6446 | Z7: =VLOOKUP(X7,Hoja4!$A$29:$B$61,2,FALSE) -> Santander | AF7: 0 | AG7: 0 | AH7: 68079 | AI7: BARICHARA | AJ7: 0 | AK7: 0 | AL7: Natural | AM7: 68 | AN7: SANTANDER | AO7: Aprobado con subsidio | AP7: MICRO | AQ7: 2740 | AR7: INDUSTRIAS MANUFACTURERAS | AS7: C | AT7: Fabricación de equipos eléctricos de iluminación | AU7: Fabricación de aparatos y equipo eléctrico | AV7: 0 | AW7: 0 | AX7: 0 | AY7: PAEF | BA7: 54 | BB7: 357 | BC7: 8 | BD7: 808 | BE7: =VLOOKUP(BC7,Hoja4!$A$29:$B$61,2,FALSE) -> Atlántico | BG7: Atlántico | BH7: 808 | BI7: 28237 | BK7: 68079 | BL7: 4 | BM7: 5360 | BN7: 607 | BO7: 5 | BP7: =VLOOKUP(BO7,Hoja4!$A$29:$B$61,2,FALSE) -> Antioquia | BQ7: =VLOOKUP(BM7,Hoja4!$D$29:$E$1150,2,FALSE) -> Itagüí | BR7: 607 | BS7: 24070 | BU7: Otras industrias manufactureras | BV7: 854 | BW7: 16822 | BX7: Actividades de impresión y de producción de copias a partir de grabaciones originales | BY7: 1109 | BZ7: 17885
C8: 52001 | D8: PASTO | E8: 0 | G8: Natural | H8: 52 | I8: NARIÑO | J8: 0 | K8: MICRO | L8: 4771 | M8: COMERCIO AL POR MAYOR Y AL POR MENOR; REPARACIÓN DE VEHÍCULOS AUTOMOTORES Y MOTOCICLETAS | N8: G | O8: Comercio al por menor de otros productos en establecimientos especializados | P8: Comercio al por menor de otros productos en establecimientos especializados | Q8: 0 | R8: 0 | S8: 0 | T8: No beneficiario | V8: 11 | W8: 49078 | X8: 13 | Y8: 3883 | Z8: =VLOOKUP(X8,Hoja4!$A$29:$B$61,2,FALSE) -> Bolívar | AF8: 0 | AG8: 0 | AH8: 25799 | AI8: TENJO | AJ8: 6 | AK8: 0 | AL8: Natural | AM8: 25 | AN8: CUNDINAMARCA | AO8: Aprobado con subsidio | AP8: MICRO | AQ8: 1610 | AR8: INDUSTRIAS MANUFACTURERAS | AS8: C | AT8: Aserrado, acepillado e impregnación de la madera | AU8: Transformación de la madera y fabricación de productos de madera y de corcho, excepto muebles; fabricación de artículos de cestería y espartería | AV8: 1 | AW8: 5 | AX8: 0 | AY8: PAEF - PAP | BA8: 11 | BB8: 7709 | BC8: 66 | BD8: 541 | BE8: =VLOOKUP(BC8,Hoja4!$A$29:$B$61,2,FALSE) -> Risaralda | BG8: Risaralda | BH8: 541 | BI8: 22179 | BK8: 25799 | BL8: 41 | BM8: 66001 | BN8: 314 | BO8: 66 | BP8: =VLOOKUP(BO8,Hoja4!$A$29:$B$61,2,FALSE) -> Risaralda | BQ8: =VLOOKUP(BM8,Hoja4!$D$29:$E$1150,2,FALSE) -> Pereira | BR8: 314 | BS8: 12208 | BU8: Confección de prendas de vestir | BV8: 2934 | BW8: 112009 | BX8: Fabricación de muebles, colchones y somieres | BY8: 1108 | BZ8: 22284
C9: 11001 | D9: BOGOTÁ, D.C. | E9: 0 | G9: Natural | H9: 11 | I9: BOGOTÁ, D.C. | J9: 0 | K9: 0 | L9: 4664 | M9: COMERCIO AL POR MAYOR Y AL POR MENOR; REPARACIÓN DE VEHÍCULOS AUTOMOTORES Y MOTOCICLETAS | N9: G | O9: Comercio al por mayor especializado de otros productos | P9: Comercio al por mayor especializado de otros productos | Q9: 0 | R9: 0 | S9: 0 | T9: No beneficiario | V9: 66 | W9: 3377 | X9: 66 | Y9: 3377 | Z9: =VLOOKUP(X9,Hoja4!$A$29:$B$61,2,FALSE) -> Risaralda | AF9: 0 | AG9: 0 | AH9: 5001 | AI9: MEDELLÍN | AJ9: 0 | AK9: 0 | AL9: Natural | AM9: 5 | AN9: ANTIOQUIA | AO9: 0 | AP9: 0 | AQ9: 2511 | AR9: INDUSTRIAS MANUFACTURERAS | AS9: C | AT9: Fabricación de productos metálicos para uso estructural, tanques, depósitos y generadores de vapor. | AU9: Fabricación de productos elaborados de metal, excepto maquinaria y equipo | AV9: 0 | AW9: 0 | AX9: 0 | AY9: No beneficiario | BA9: 66 | BB9: 541 | BC9: 54 | BD9: 357 | BE9: =VLOOKUP(BC9,Hoja4!$A$29:$B$61,2,FALSE) -> Norte de stder | BG9: Norte de stder | BH9: 357 | BI9: 7251 | BK9: 63401 | BL9: 10 | BM9: 13001 | BN9: 304 | BO9: 13 | BP9: =VLOOKUP(BO9,Hoja4!$A$29:$B$61,2,FALSE) -> Bolívar | BQ9: =VLOOKUP(BM9,Hoja4!$D$29:$E$1150,2,FALSE) -> Cartagena de ind | BR9: 304 | BS9: 6769 | BU9: Fabricación de productos de caucho y de plástico | BV9: 1202 | BW9: 42541 | BX9: Fabricación de sustancias y productos químicos | BY9: 897 | BZ9: 37463
C10: 11001 | D10: BOGOTÁ, D.C. | E10: 0 | G10: Natural | H10: 11 | I10: BOGOTÁ, D.C. | J10: 0 | K10: MICRO | L10: 8622 | M10: ACTIVIDADES DE ATENCIÓN DE LA SALUD HUMANA Y DE ASISTENCIA SOCIAL | N10: Q | O10: Actividades de práctica médica y odontológica, sin internación | P10: Actividades de práctica médica y odontológica, sin internación | Q10: 0 | R10: 0 | S10: 0 | T10: No beneficiario | V10: 52 | W10: 1766 | X10: 54 | Y10: 2722 | Z10: =VLOOKUP(X10,Hoja4!$A$29:$B$61,2,FALSE) -> Norte de stder | AF10: 0 | AG10: 0 | AH10: 63401 | AI10: LA TEBAIDA | AJ10: 0 | AK10: 0 | AL10: Natural | AM10: 63 | AN10: QUINDÍO | AO10: 0 | AP10: 0 | AQ10: 3210 | AR10: INDUSTRIAS MANUFACTURERAS | AS10: C | AT10: Fabricación de joyas, bisutería y artículos conexos | AU10: Otras industrias manufactureras | AV10: 0 | AW10: 0 | AX10: 0 | AY10: No beneficiario | BA10: 52 | BB10: 152 | BC10: 13 | BD10: 342 | BE10: =VLOOKUP(BC10,Hoja4!$A$29:$B$61,2,FALSE) -> Bolívar | BG10: Bolívar | BH10: 342 | BI10: 7515 | BK10: 73268 | BL10: 13 | BM10: 54001 | BN10: 274 | BO10: 54 | BP10: =VLOOKUP(BO10,Hoja4!$A$29:$B$61,2,FALSE) -> Norte de stder | BQ10: =VLOOKUP(BM10,Hoja4!$D$29:$E$1150,2,FALSE) -> Cucuta | BR10: 274 | BS10: 5720 | BU10: Fabricación de productos metalúrgicos básicos | BV10: 410 | BW10: 11946 | BX10: Otras industrias manufactureras | BY10: 854 | BZ10: 16822
C11: 11001 | D11: BOGOTÁ, D.C. | E11: 0 | G11: Natural | H11: 11 | I11: BOGOTÁ, D.C. | J11: 0 | K11: 0 | L11: 4771 | M11: COMERCIO AL POR MAYOR Y AL POR MENOR; REPARACIÓN DE VEHÍCULOS AUTOMOTORES Y MOTOCICLETAS | N11: G | O11: Comercio al por menor de otros productos en establecimientos especializados | P11: Comercio al por menor de otros productos en establecimientos especializados | Q11: 0 | R11: 0 | S11: 0 | T11: No beneficiario | V11: 19 | W11: 1124 | X11: 15 | Y11: 2423 | Z11: =VLOOKUP(X11,Hoja4!$A$29:$B$61,2,FALSE) -> Boyacá | AF11: 0 | AG11: 0 | AH11: 73268 | AI11: ESPINAL | AJ11: 0 | AK11: 0 | AL11: Natural | AM11: 73 | AN11: TOLIMA | AO11: 0 | AP11: 0 | AQ11: 1084 | AR11: INDUSTRIAS MANUFACTURERAS | AS11: C | AT11: Elaboración de otros productos alimenticios | AU11: Elaboración de productos alimenticios | AV11: 0 | AW11: 0 | AX11: 0 | AY11: No beneficiario | BA11: 19 | BB11: 131 | BC11: 17 | BD11: 309 | BE11: =VLOOKUP(BC11,Hoja4!$A$29:$B$61,2,FALSE) -> Caldas | BG11: Caldas | BH11: 309 | BI11: 11088 | BK11: 8001 | BL11: 686 | BM11: 17001 | BN11: 250 | BO11: 17 | BP11: =VLOOKUP(BO11,Hoja4!$A$29:$B$61,2,FALSE) -> Caldas | BQ11: =VLOOKUP(BM11,Hoja4!$D$29:$E$1150,2,FALSE) -> Manizales | BR11: 250 | BS11: 9472 | BU11: Fabricación de sustancias y productos químicos | BV11: 897 | BW11: 37463 | BX11: Fabricación de productos textiles | BY11: 836 | BZ11: 30502
C12: 15001 | D12: TUNJA | E12: 21 | G12: Natural | H12: 15 | I12: BOYACÁ | J12: Aprobado con subsidio | K12: PEQUEÑA | L12: 8530 | M12: EDUCACIÓN | N12: P | O12: Establecimientos que combinan diferentes niveles de educación | P12: Establecimientos que combinan diferentes niveles de educación | Q12: 15 | R12: 6 | S12: 0 | T12: PAEF | V12: 47 | W12: 1488 | X12: 73 | Y12: 2237 | Z12: =VLOOKUP(X12,Hoja4!$A$29:$B$61,2,FALSE) -> Tolima | AF12: 0 | AG12: 0 | AH12: 8001 | AI12: BARRANQUILLA | AJ12: 0 | AK12: 0 | AL12: Natural | AM12: 8 | AN12: ATLÁNTICO | AO12: 0 | AP12: 0 | AQ12: 1410 | AR12: INDUSTRIAS MANUFACTURERAS | AS12: C | AT12: Confección de prendas de vestir, excepto prendas de piel | AU12: Confección de prendas de vestir | AV12: 0 | AW12: 0 | AX12: 0 | AY12: No beneficiario | BA12: 47 | BB12: 117 | BC12: 15 | BD12: 275 | BE12: =VLOOKUP(BC12,Hoja4!$A$29:$B$61,2,FALSE) -> Boyacá | BG12: Boyacá | BH12: 275 | BI12: 4370 | BK12: 25307 | BL12: 15 | BM12: 5266 | BN12: 242 | BO12: 5 | BP12: =VLOOKUP(BO12,Hoja4!$A$29:$B$61,2,FALSE) -> Antioquia | BQ12: =VLOOKUP(BM12,Hoja4!$D$29:$E$1150,2,FALSE) -> Envigado | BR12: 242 | BS12: 9083 | BU12: Curtido y recurtido de cueros; fabricación de calzado; fabricación de artículos de viaje, maletas, bolsos de mano y artículos similares, y fabricación de artículos de talabartería y guarnicionería; adobo y teñido de pieles | BV12: 716 | BW12: 22795 | BX12: Transformación de la madera y fabricación de productos de madera y de corcho, excepto muebles; fabricación de artículos de cestería y espartería | BY12: 741 | BZ12: 11511
C13: 11001 | D13: BOGOTÁ, D.C. | E13: 0 | G13: Natural | H13: 11 | I13: BOGOTÁ, D.C. | J13: 0 | K13: 0 | L13: 4645 | M13: COMERCIO AL POR MAYOR Y AL POR MENOR; REPARACIÓN DE VEHÍCULOS AUTOMOTORES Y MOTOCICLETAS | N13: G | O13: Comercio al por mayor de artículos y enseres domésticos (incluidas prendas de vestir) | P13: Comercio al por mayor de artículos y enseres domésticos (incluidas prendas de vestir) | Q13: 0 | R13: 0 | S13: 0 | T13: No beneficiario | V13: 50 | W13: 2215 | X13: 17 | Y13: 2228 | Z13: =VLOOKUP(X13,Hoja4!$A$29:$B$61,2,FALSE) -> Caldas | AF13: 0 | AG13: 0 | AH13: 11001 | AI13: BOGOTÁ, D.C. | AJ13: 38 | AK13: 0 | AL13: Natural | AM13: 11 | AN13: BOGOTÁ, D.C. | AO13: Aprobado con subsidio | AP13: PEQUEÑA | AQ13: 3290 | AR13: INDUSTRIAS MANUFACTURERAS | AS13: C | AT13: Otras industrias manufactureras n.c.p. | AU13: Otras industrias manufactureras | AV13: 12 | AW13: 26 | AX13: 0 | AY13: PAEF - PAP | BA13: 50 | BB13: 167 | BC13: 73 | BD13: 247 | BE13: =VLOOKUP(BC13,Hoja4!$A$29:$B$61,2,FALSE) -> Tolima | BG13: Tolima | BH13: 247 | BI13: 5387 | BK13: 25843 | BL13: 12 | BM13: 76892 | BN13: 222 | BO13: 76 | BP13: =VLOOKUP(BO13,Hoja4!$A$29:$B$61,2,FALSE) -> Valle del cauca | BQ13: =VLOOKUP(BM13,Hoja4!$D$29:$E$1150,2,FALSE) -> Yumbo | BR13: 222 | BS13: 25955 | BU13: Fabricación de otros productos minerales no metálicos | BV13: 725 | BW13: 39234 | BX13: Fabricación de otros productos minerales no metálicos | BY13: 725 | BZ13: 39234
C14: 76001 | D14: CALI | E14: 0 | G14: Natural | H14: 76 | I14: VALLE DEL CAUCA | J14: Aprobado con subsidio | K14: MICRO | L14: 1084 | M14: INDUSTRIAS MANUFACTURERAS | N14: C | O14: Elaboración de otros productos alimenticios | P14: Elaboración de productos alimenticios | Q14: 0 | R14: 0 | S14: 0 | T14: PAEF | V14: 63 | W14: 1491 | X14: 50 | Y14: 2215 | Z14: =VLOOKUP(X14,Hoja4!$A$29:$B$61,2,FALSE) -> Meta | AF14: 0 | AG14: 0 | AH14: 25307 | AI14: GIRARDOT | AJ14: 7 | AK14: 0 | AL14: Natural | AM14: 25 | AN14: CUNDINAMARCA | AO14: Aprobado con subsidio | AP14: MICRO | AQ14: 1081 | AR14: INDUSTRIAS MANUFACTURERAS | AS14: C | AT14: Elaboración de otros productos alimenticios | AU14: Elaboración de productos alimenticios | AV14: 2 | AW14: 5 | AX14: 0 | AY14: PAEF - PAP | BA14: 63 | BB14: 181 | BC14: 41 | BD14: 205 | BE14: =VLOOKUP(BC14,Hoja4!$A$29:$B$61,2,FALSE) -> Huila | BG14: Huila | BH14: 205 | BI14: 2455 | BK14: 13001 | BL14: 304 | BM14: 5631 | BN14: 213 | BO14: 5 | BP14: =VLOOKUP(BO14,Hoja4!$A$29:$B$61,2,FALSE) -> Antioquia | BQ14: =VLOOKUP(BM14,Hoja4!$D$29:$E$1150,2,FALSE) -> Sabaneta | BR14: 213 | BS14: 14196 | BU14: Fabricación de vehículos automotores, remolques y semirremolques | BV14: 446 | BW14: 18090 | BX14: Curtido y recurtido de cueros; fabricación de calzado; fabricación de artículos de viaje, maletas, bolsos de mano y artículos similares, y fabricación de artículos de talabartería y guarnicionería; adobo y teñido de pieles | BY14: 716 | BZ14: 22795
C15: 25797 | D15: TENA | E15: 4 | G15: Natural | H15: 25 | I15: CUNDINAMARCA | J15: Aprobado con subsidio | K15: MICRO | L15: 4731 | M15: COMERCIO AL POR MAYOR Y AL POR MENOR; REPARACIÓN DE VEHÍCULOS AUTOMOTORES Y MOTOCICLETAS | N15: G | O15: Comercio al por menor de combustible, lubricantes, aditivos y productos de limpieza para automotores, en establecimientos especializados | P15: Comercio al por menor de combustible, lubricantes, aditivos y productos de limpieza para automotores, en establecimientos especializados | Q15: 0 | R15: 4 | S15: 0 | T15: PAEF - PAP | V15: 70 | W15: 762 | X15: 41 | Y15: 2038 | Z15: =VLOOKUP(X15,Hoja4!$A$29:$B$61,2,FALSE) -> Huila | AF15: 0 | AG15: 0 | AH15: 11001 | AI15: BOGOTÁ, D.C. | AJ15: 7 | AK15: 0 | AL15: Natural | AM15: 11 | AN15: BOGOTÁ, D.C. | AO15: Aprobado con subsidio | AP15: MICRO | AQ15: 2229 | AR15: INDUSTRIAS MANUFACTURERAS | AS15: C | AT15: Fabricación de productos de plástico | AU15: Fabricación de productos de caucho y de plástico | AV15: 3 | AW15: 4 | AX15: 0 | AY15: PAEF - MICRO | BA15: 70 | BB15: 55 | BC15: 63 | BD15: 181 | BE15: =VLOOKUP(BC15,Hoja4!$A$29:$B$61,2,FALSE) -> Quindío | BG15: Quindío | BH15: 181 | BI15: 5805 | BK15: 73001 | BL15: 205 | BM15: 5380 | BN15: 210 | BO15: 5 | BP15: =VLOOKUP(BO15,Hoja4!$A$29:$B$61,2,FALSE) -> Antioquia | BQ15: =VLOOKUP(BM15,Hoja4!$D$29:$E$1150,2,FALSE) -> La estrella | BR15: 210 | BS15: 11783 | BU15: Fabricación de muebles, colchones y somieres | BV15: 1108 | BW15: 22284 | BX15: Fabricación de maquinaria y equipo n.c.p. | BY15: 657 | BZ15: 15270
C16: 5001 | D16: MEDELLÍN | E16: 0 | G16: Natural | H16: 5 | I16: ANTIOQUIA | J16: 0 | K16: PEQUEÑA | L16: 121 | M16: AGRICULTURA, GANADERÍA, CAZA, SILVICULTURA Y PESCA | N16: A | O16: Cultivos agrícolas permanentes | P16: Cultivos agrícolas permanentes | Q16: 0 | R16: 0 | S16: 0 | T16: No beneficiario | V16: 41 | W16: 2038 | X16: 52 | Y16: 1766 | Z16: =VLOOKUP(X16,Hoja4!$A$29:$B$61,2,FALSE) -> Nariño | AF16: 0 | AG16: 0 | AH16: 25843 | AI16: VILLA DE SAN DIEGO DE UBATE | AJ16: 4 | AK16: 0 | AL16: Natural | AM16: 25 | AN16: CUNDINAMARCA | AO16: Aprobado con subsidio | AP16: MICRO | AQ16: 1610 | AR16: INDUSTRIAS MANUFACTURERAS | AS16: C | AT16: Aserrado, acepillado e impregnación de la madera | AU16: Transformación de la madera y fabricación de productos de madera y de corcho, excepto muebles; fabricación de artículos de cestería y espartería | AV16: 1 | AW16: 3 | AX16: 0 | AY16: PAEF - PAP | BA16: 41 | BB16: 205 | BC16: 50 | BD16: 167 | BE16: =VLOOKUP(BC16,Hoja4!$A$29:$B$61,2,FALSE) -> Meta | BG16: Meta | BH16: 167 | BI16: 2603 | BK16: 25530 | BL16: 1 | BM16: 73001 | BN16: 205 | BO16: 73 | BP16: =VLOOKUP(BO16,Hoja4!$A$29:$B$61,2,FALSE) -> Tolima | BQ16: =VLOOKUP(BM16,Hoja4!$D$29:$E$1150,2,FALSE) -> Ibagué | BR16: 205 | BS16: 4730 | BU16: Instalación, mantenimiento y reparación especializado de maquinaria y equipo | BV16: 2467 | BW16: 32593 | BX16: Fabricación de papel, cartón y productos de papel y cartón | BY16: 478 | BZ16: 17644
C17: 63001 | D17: ARMENIA | E17: 0 | G17: Natural | H17: 63 | I17: QUINDÍO | J17: 0 | K17: MICRO | L17: 123 | M17: AGRICULTURA, GANADERÍA, CAZA, SILVICULTURA Y PESCA | N17: A | O17: Cultivos agrícolas permanentes | P17: Cultivos agrícolas permanentes | Q17: 0 | R17: 0 | S17: 0 | T17: No beneficiario | V17: 25 | W17: 6650 | X17: 23 | Y17: 1536 | Z17: =VLOOKUP(X17,Hoja4!$A$29:$B$61,2,FALSE) -> Córdoba | AF17: 0 | AG17: 0 | AH17: 11001 | AI17: BOGOTÁ, D.C. | AJ17: 4 | AK17: 0 | AL17: Natural | AM17: 11 | AN17: BOGOTÁ, D.C. | AO17: Aprobado con subsidio | AP17: MICRO | AQ17: 2410 | AR17: INDUSTRIAS MANUFACTURERAS | AS17: C | AT17: Industrias básicas de hierro y de acero | AU17: Fabricación de productos metalúrgicos básicos | AV17: 0 | AW17: 4 | AX17: 0 | AY17: PAEF - PAP - MICRO | BA17: 25 | BB17: 1182 | BC17: 52 | BD17: 152 | BE17: =VLOOKUP(BC17,Hoja4!$A$29:$B$61,2,FALSE) -> Nariño | BG17: Nariño | BH17: 152 | BI17: 2579 | BK17: 5697 | BL17: 62 | BM17: 66170 | BN17: 191 | BO17: 66 | BP17: =VLOOKUP(BO17,Hoja4!$A$29:$B$61,2,FALSE) -> Risaralda | BQ17: =VLOOKUP(BM17,Hoja4!$D$29:$E$1150,2,FALSE) -> Dosquebradas | BR17: 191 | BS17: 8941 | BU17: Actividades de impresión y de producción de copias a partir de grabaciones originales | BV17: 1109 | BW17: 17885 | BX17: Fabricación de vehículos automotores, remolques y semirremolques | BY17: 446 | BZ17: 18090
C18: 17380 | D18: LA DORADA | E18: 6 | G18: Natural | H18: 17 | I18: CALDAS | J18: Aprobado con subsidio | K18: MICRO | L18: 141 | M18: AGRICULTURA, GANADERÍA, CAZA, SILVICULTURA Y PESCA | N18: A | O18: Ganadería | P18: Ganadería | Q18: 0 | R18: 6 | S18: 0 | T18: PAEF - PAP - MICRO | V18: 8 | W18: 6568 | X18: 63 | Y18: 1491 | Z18: =VLOOKUP(X18,Hoja4!$A$29:$B$61,2,FALSE) -> Quindío | AF18: 0 | AG18: 0 | AH18: 76001 | AI18: CALI | AJ18: 2 | AK18: 0 | AL18: Natural | AM18: 76 | AN18: VALLE DEL CAUCA | AO18: Aprobado con subsidio | AP18: MICRO | AQ18: 1410 | AR18: INDUSTRIAS MANUFACTURERAS | AS18: C | AT18: Confección de prendas de vestir, excepto prendas de piel | AU18: Confección de prendas de vestir | AV18: 0 | AW18: 2 | AX18: 0 | AY18: PAEF | BA18: 8 | BB18: 808 | BC18: 19 | BD18: 131 | BE18: =VLOOKUP(BC18,Hoja4!$A$29:$B$61,2,FALSE) -> Cauca | BG18: Cauca | BH18: 131 | BI18: 8683 | BK18: 54001 | BL18: 274 | BM18: 25754 | BN18: 190 | BO18: 25 | BP18: =VLOOKUP(BO18,Hoja4!$A$29:$B$61,2,FALSE) -> Cundinamarca | BQ18: =VLOOKUP(BM18,Hoja4!$D$29:$E$1150,2,FALSE) -> Soacha | BR18: 190 | BS18: 4062 | BU18: Fabricación de maquinaria y equipo n.c.p. | BV18: 657 | BW18: 15270 | BX18: Fabricación de productos metalúrgicos básicos | BY18: 410 | BZ18: 11946
C19: 11001 | D19: BOGOTÁ, D.C. | E19: 4 | G19: Natural | H19: 11 | I19: BOGOTÁ, D.C. | J19: Aprobado con subsidio | K19: MICRO | L19: 9601 | M19: OTRAS ACTIVIDADES DE SERVICIOS | N19: S | O19: Otras actividades de servicios personales | P19: Otras actividades de servicios personales | Q19: 4 | R19: 0 | S19: 0 | T19: PAEF - PAP - MICRO | V19: 85 | W19: 866 | X19: 47 | Y19: 1488 | Z19: =VLOOKUP(X19,Hoja4!$A$29:$B$61,2,FALSE) -> Magdalena | AF19: 0 | AG19: 0 | AH19: 13001 | AI19: CARTAGENA | AJ19: 0 | AK19: 0 | AL19: Natural | AM19: 13 | AN19: BOLÍVAR | AO19: 0 | AP19: MICRO | AQ19: 1084 | AR19: INDUSTRIAS MANUFACTURERAS | AS19: C | AT19: Elaboración de otros productos alimenticios | AU19: Elaboración de productos alimenticios | AV19: 0 | AW19: 0 | AX19: 0 | AY19: No beneficiario | BA19: 85 | BB19: 69 | BC19: 47 | BD19: 117 | BE19: =VLOOKUP(BC19,Hoja4!$A$29:$B$61,2,FALSE) -> Magdalena | BG19: Magdalena | BH19: 117 | BI19: 3299 | BK19: 15244 | BL19: 0 | BM19: 5088 | BN19: 188 | BO19: 5 | BP19: =VLOOKUP(BO19,Hoja4!$A$29:$B$61,2,FALSE) -> Antioquia | BQ19: =VLOOKUP(BM19,Hoja4!$D$29:$E$1150,2,FALSE) -> Bello | BR19: 188 | BS19: 5843 | BU19: Coquización, fabricación de productos de la refinación del petróleo y actividad de mezcla de combustibles | BV19: 95 | BW19: 3376 | BX19: Fabricación de aparatos y equipo eléctrico | BY19: 309 | BZ19: 16433
C20: 15367 | D20: JENESANO | E20: 5 | G20: Natural | H20: 15 | I20: BOYACÁ | J20: Aprobado con subsidio | K20: MICRO | L20: 811 | M20: EXPLOTACIÓN DE MINAS Y CANTERAS | N20: B | O20: Extracción de piedra, arena, arcillas, cal, yeso, caolín, bentonitas y similares | P20: Extracción de piedra, arena, arcillas, cal, yeso, caolín, bentonitas y similares | Q20: 1 | R20: 4 | S20: 0 | T20: PAEF - PAP | V20: 73 | W20: 2237 | X20: 20 | Y20: 1401 | Z20: =VLOOKUP(X20,Hoja4!$A$29:$B$61,2,FALSE) -> Cesar | AF20: 0 | AG20: 0 | AH20: 5001 | AI20: MEDELLÍN | AJ20: 6 | AK20: 0 | AL20: Natural | AM20: 5 | AN20: ANTIOQUIA | AO20: Aprobado con subsidio | AP20: MICRO | AQ20: 3290 | AR20: INDUSTRIAS MANUFACTURERAS | AS20: C | AT20: Otras industrias manufactureras n.c.p. | AU20: Otras industrias manufactureras | AV20: 4 | AW20: 2 | AX20: 0 | AY20: PAEF - PAP | BA20: 73 | BB20: 247 | BC20: 23 | BD20: 104 | BE20: =VLOOKUP(BC20,Hoja4!$A$29:$B$61,2,FALSE) -> Córdoba | BG20: Córdoba | BH20: 104 | BI20: 2763 | BK20: 23001 | BL20: 74 | BM20: 76520 | BN20: 185 | BO20: 76 | BP20: =VLOOKUP(BO20,Hoja4!$A$29:$B$61,2,FALSE) -> Valle del cauca | BQ20: =VLOOKUP(BM20,Hoja4!$D$29:$E$1150,2,FALSE) -> Palmira | BR20: 185 | BS20: 8290 | BU20: Elaboración de bebidas | BV20: 267 | BW20: 17365 | BX20: Elaboración de bebidas | BY20: 267 | BZ20: 17365
C21: 11001 | D21: BOGOTÁ, D.C. | E21: 10 | G21: Natural | H21: 11 | I21: BOGOTÁ, D.C. | J21: Aprobado con subsidio | K21: MICRO | L21: 121 | M21: AGRICULTURA, GANADERÍA, CAZA, SILVICULTURA Y PESCA | N21: A | O21: Cultivos agrícolas permanentes | P21: Cultivos agrícolas permanentes | Q21: 0 | R21: 10 | S21: 0 | T21: PAEF | V21: 20 | W21: 1401 | X21: 19 | Y21: 1124 | Z21: =VLOOKUP(X21,Hoja4!$A$29:$B$61,2,FALSE) -> Cauca | AF21: 0 | AG21: 0 | AH21: 73001 | AI21: IBAGUÉ | AJ21: 5 | AK21: 0 | AL21: Natural | AM21: 73 | AN21: TOLIMA | AO21: Aprobado con subsidio | AP21: MICRO | AQ21: 1410 | AR21: INDUSTRIAS MANUFACTURERAS | AS21: C | AT21: Confección de prendas de vestir, excepto prendas de piel | AU21: Confección de prendas de vestir | AV21: 2 | AW21: 3 | AX21: 0 | AY21: PAEF - PAP | BA21: 20 | BB21: 87 | BC21: 20 | BD21: 87 | BE21: =VLOOKUP(BC21,Hoja4!$A$29:$B$61,2,FALSE) -> Cesar | BG21: Cesar | BH21: 87 | BI21: 1135 | BK21: 76892 | BL21: 222 | BM21: 5615 | BN21: 176 | BO21: 5 | BP21: =VLOOKUP(BO21,Hoja4!$A$29:$B$61,2,FALSE) -> Antioquia | BQ21: =VLOOKUP(BM21,Hoja4!$D$29:$E$1150,2,FALSE) -> Rionegro | BR21: 176 | BS21: 5652 | BU21: Fabricación de papel, cartón y productos de papel y cartón | BV21: 478 | BW21: 17644 | BX21: Fabricación de productos farmacéuticos, sustancias químicas medicinales y productos botánicos de uso farmacéutico | BY21: 182 | BZ21: 8272
C22: 25175 | D22: CHÍA | E22: 0 | G22: Natural | H22: 25 | I22: CUNDINAMARCA | J22: 0 | K22: 0 | L22: 5611 | M22: ALOJAMIENTO Y SERVICIOS DE COMIDA | N22: I | O22: Actividades de restaurantes, cafeterías y servicio móvil de comidas | P22: Actividades de restaurantes, cafeterías y servicio móvil de comidas | Q22: 0 | R22: 0 | S22: 0 | T22: No beneficiario | V22: 97 | W22: 8 | X22: 85 | Y22: 866 | Z22: =VLOOKUP(X22,Hoja4!$A$29:$B$61,2,FALSE) -> Casanare | AF22: 0 | AG22: 0 | AH22: 25530 | AI22: PARATEBUENO | AJ22: 11 | AK22: 0 | AL22: Jurídica | AM22: 25 | AN22: CUNDINAMARCA | AO22: Aprobado con subsidio | AP22: MICRO | AQ22: 1040 | AR22: INDUSTRIAS MANUFACTURERAS | AS22: C | AT22: Elaboración de productos lácteos | AU22: Elaboración de productos alimenticios | AV22: 4 | AW22: 7 | AX22: 0 | AY22: PAEF - PAP | BA22: 97 | BB22: 0 | BC22: 85 | BD22: 69 | BE22: =VLOOKUP(BC22,Hoja4!$A$29:$B$61,2,FALSE) -> Casanare | BG22: Casanare | BH22: 69 | BI22: 795 | BK22: 5615 | BL22: 176 | BM22: 25473 | BN22: 155 | BO22: 25 | BP22: =VLOOKUP(BO22,Hoja4!$A$29:$B$61,2,FALSE) -> Cundinamarca | BQ22: =VLOOKUP(BM22,Hoja4!$D$29:$E$1150,2,FALSE) -> Mosquera | BR22: 155 | BS22: 4486 | BU22: Fabricación de productos farmacéuticos, sustancias químicas medicinales y productos botánicos de uso farmacéutico | BV22: 182 | BW22: 8272 | BX22: Fabricación de productos informáticos, electrónicos y ópticos | BY22: 109 | BZ22: 2047
C23: 11001 | D23: BOGOTÁ, D.C. | E23: 6 | G23: Natural | H23: 11 | I23: BOGOTÁ, D.C. | J23: Aprobado con subsidio | K23: MICRO | L23: 4530 | M23: COMERCIO AL POR MAYOR Y AL POR MENOR; REPARACIÓN DE VEHÍCULOS AUTOMOTORES Y MOTOCICLETAS | N23: G | O23: Comercio de partes, piezas (autopartes) y accesorios (lujos) para vehículos automotores | P23: Comercio de partes, piezas (autopartes) y accesorios (lujos) para vehículos automotores | Q23: 0 | R23: 6 | S23: 0 | T23: PAEF | V23: 81 | W23: 331 | X23: 70 | Y23: 762 | Z23: =VLOOKUP(X23,Hoja4!$A$29:$B$61,2,FALSE) -> Sucre | AF23: 0 | AG23: 0 | AH23: 5697 | AI23: EL SANTUARIO | AJ23: 9 | AK23: 0 | AL23: Natural | AM23: 5 | AN23: ANTIOQUIA | AO23: Aprobado con subsidio | AP23: MICRO | AQ23: 1081 | AR23: INDUSTRIAS MANUFACTURERAS | AS23: C | AT23: Elaboración de otros productos alimenticios | AU23: Elaboración de productos alimenticios | AV23: 7 | AW23: 2 | AX23: 0 | AY23: PAEF - PAP | BA23: 81 | BB23: 23 | BC23: 70 | BD23: 55 | BE23: =VLOOKUP(BC23,Hoja4!$A$29:$B$61,2,FALSE) -> Sucre | BG23: Sucre | BH23: 55 | BI23: 1102 | BK23: 47001 | BL23: 99 | BM23: 41001 | BN23: 150 | BO23: 41 | BP23: =VLOOKUP(BO23,Hoja4!$A$29:$B$61,2,FALSE) -> Huila | BQ23: =VLOOKUP(BM23,Hoja4!$D$29:$E$1150,2,FALSE) -> Neiva | BR23: 150 | BS23: 1731 | BU23: Fabricación de productos informáticos, electrónicos y ópticos | BV23: 109 | BW23: 2047 | BX23: Coquización, fabricación de productos de la refinación del petróleo y actividad de mezcla de combustibles | BY23: 95 | BZ23: 3376
C24: 13001 | D24: CARTAGENA | E24: 0 | G24: Natural | H24: 13 | I24: BOLÍVAR | J24: 0 | K24: 0 | L24: 5611 | M24: ALOJAMIENTO Y SERVICIOS DE COMIDA | N24: I | O24: Actividades de restaurantes, cafeterías y servicio móvil de comidas | P24: Actividades de restaurantes, cafeterías y servicio móvil de comidas | Q24: 0 | R24: 0 | S24: 0 | T24: No beneficiario | V24: 44 | W24: 448 | X24: 18 | Y24: 507 | Z24: =VLOOKUP(X24,Hoja4!$A$29:$B$61,2,FALSE) -> Caquetá | AF24: 0 | AG24: 0 | AH24: 54001 | AI24: CÚCUTA | AJ24: 0 | AK24: 0 | AL24: Natural | AM24: 54 | AN24: NORTE DE SANTANDER | AO24: 0 | AP24: 0 | AQ24: 2229 | AR24: INDUSTRIAS MANUFACTURERAS | AS24: C | AT24: Fabricación de productos de plástico | AU24: Fabricación de productos de caucho y de plástico | AV24: 0 | AW24: 0 | AX24: 0 | AY24: No beneficiario | BA24: 44 | BB24: 18 | BC24: 18 | BD24: 32 | BE24: =VLOOKUP(BC24,Hoja4!$A$29:$B$61,2,FALSE) -> Caquetá | BG24: Caquetá | BH24: 32 | BI24: 375 | BK24: 63001 | BL24: 137 | BM24: 25214 | BN24: 146 | BO24: 25 | BP24: =VLOOKUP(BO24,Hoja4!$A$29:$B$61,2,FALSE) -> Cundinamarca | BQ24: =VLOOKUP(BM24,Hoja4!$D$29:$E$1150,2,FALSE) -> Cota | BR24: 146 | BS24: 7923 | BU24: Fabricación de otros tipos de equipo de transporte | BV24: 69 | BW24: 6151 | BX24: Fabricación de otros tipos de equipo de transporte | BY24: 69 | BZ24: 6151
C25: 11001 | D25: BOGOTÁ, D.C. | E25: 11 | G25: Natural | H25: 11 | I25: BOGOTÁ, D.C. | J25: Aprobado con subsidio | K25: MICRO | L25: 7729 | M25: ACTIVIDADES DE SERVICIOS ADMINISTRATIVOS Y DE APOYO | N25: N | O25: Alquiler y arrendamiento de efectos personales y enseres domésticos | P25: Alquiler y arrendamiento de efectos personales y enseres domésticos | Q25: 1 | R25: 10 | S25: 0 | T25: PAEF - PAP - MICRO | V25: 17 | W25: 2228 | X25: 44 | Y25: 448 | Z25: =VLOOKUP(X25,Hoja4!$A$29:$B$61,2,FALSE) -> La guajira | AF25: 0 | AG25: 0 | AH25: 11001 | AI25: BOGOTÁ, D.C. | AJ25: 0 | AK25: 0 | AL25: Natural | AM25: 11 | AN25: BOGOTÁ, D.C. | AO25: 0 | AP25: 0 | AQ25: 1081 | AR25: INDUSTRIAS MANUFACTURERAS | AS25: C | AT25: Elaboración de otros productos alimenticios | AU25: Elaboración de productos alimenticios | AV25: 0 | AW25: 0 | AX25: 0 | AY25: No beneficiario | BA25: 17 | BB25: 309 | BC25: 81 | BD25: 23 | BE25: =VLOOKUP(BC25,Hoja4!$A$29:$B$61,2,FALSE) -> Arauca | BG25: =BE25 -> Arauca | BH25: =BD25 -> 23 | BI25: 607 | BK25: 25126 | BL25: 44 | BM25: 63001 | BN25: 137 | BO25: 63 | BP25: =VLOOKUP(BO25,Hoja4!$A$29:$B$61,2,FALSE) -> Quindío | BQ25: =VLOOKUP(BM25,Hoja4!$D$29:$E$1150,2,FALSE) -> Armenia | BR25: 137 | BS25: 4797 | BU25: Elaboración de productos de tabaco | BV25: 4 | BW25: 37 | BX25: Elaboración de productos de tabaco | BY25: 4 | BZ25: 37
C26: 13001 | D26: CARTAGENA | E26: 0 | G26: Jurídica | H26: 13 | I26: BOLÍVAR | J26: 0 | K26: 0 | L26: 4774 | M26: COMERCIO AL POR MAYOR Y AL POR MENOR; REPARACIÓN DE VEHÍCULOS AUTOMOTORES Y MOTOCICLETAS | N26: G | O26: Comercio al por menor de otros productos en establecimientos especializados | P26: Comercio al por menor de otros productos en establecimientos especializados | Q26: 0 | R26: 0 | S26: 0 | T26: No beneficiario | V26: 18 | W26: 507 | X26: 88 | Y26: 360 | Z26: =VLOOKUP(X26,Hoja4!$A$29:$B$61,2,FALSE) -> San Andrés | AF26: 0 | AG26: 0 | AH26: 5001 | AI26: MEDELLÍN | AJ26: 0 | AK26: 0 | AL26: Natural | AM26: 5 | AN26: ANTIOQUIA | AO26: 0 | AP26: 0 | AQ26: 2592 | AR26: INDUSTRIAS MANUFACTURERAS | AS26: C | AT26: Fabricación de otros productos elaborados de metal y actividades de servicios relacionadas con el trabajo de metales | AU26: Fabricación de productos elaborados de metal, excepto maquinaria y equipo | AV26: 0 | AW26: 0 | AX26: 0 | AY26: No beneficiario | BA26: 18 | BB26: 32 | BC26: 88 | BD26: 21 | BE26: =VLOOKUP(BC26,Hoja4!$A$29:$B$61,2,FALSE) -> San Andrés | BG26: San Andrés | BH26: =BD26 -> 21 | BI26: 181 | BK26: 25899 | BL26: 53 | BM26: 25286 | BN26: 128 | BO26: 25 | BP26: =VLOOKUP(BO26,Hoja4!$A$29:$B$61,2,FALSE) -> Cundinamarca | BQ26: =VLOOKUP(BM26,Hoja4!$D$29:$E$1150,2,FALSE) -> Funza | BR26: 128 | BS26: 6424 | BU26: 0 | BV26: 0 | BW26: 0 | BX26: 0 | BY26: 0 | BZ26: 0
C27: 25269 | D27: FACATATIVÁ | E27: 3 | G27: Natural | H27: 25 | I27: CUNDINAMARCA | J27: Aprobado con subsidio | K27: MICRO | L27: 4663 | M27: COMERCIO AL POR MAYOR Y AL POR MENOR; REPARACIÓN DE VEHÍCULOS AUTOMOTORES Y MOTOCICLETAS | N27: G | O27: Comercio al por mayor especializado de otros productos | P27: Comercio al por mayor especializado de otros productos | Q27: 0 | R27: 3 | S27: 0 | T27: PAEF | V27: 23 | W27: 1536 | X27: 81 | Y27: 331 | Z27: =VLOOKUP(X27,Hoja4!$A$29:$B$61,2,FALSE) -> Arauca | AF27: 0 | AG27: 0 | AH27: 11001 | AI27: BOGOTÁ, D.C. | AJ27: 5 | AK27: 0 | AL27: Natural | AM27: 11 | AN27: BOGOTÁ, D.C. | AO27: Aprobado con subsidio | AP27: MICRO | AQ27: 2013 | AR27: INDUSTRIAS MANUFACTURERAS | AS27: C | AT27: Fabricación de sustancias químicas básicas, abonos y compuestos inorgánicos nitrogenados, plásticos y caucho sintético en formas primarias | AU27: Fabricación de sustancias y productos químicos | AV27: 4 | AW27: 1 | AX27: 0 | AY27: PAEF - PAP | BA27: 23 | BB27: 104 | BC27: 44 | BD27: 18 | BE27: =VLOOKUP(BC27,Hoja4!$A$29:$B$61,2,FALSE) -> La guajira | BG27: La guajira | BH27: =BD27 -> 18 | BI27: 185 | BK27: 50006 | BL27: 20 | BM27: 52001 | BN27: 123 | BO27: 52 | BP27: =VLOOKUP(BO27,Hoja4!$A$29:$B$61,2,FALSE) -> Nariño | BQ27: =VLOOKUP(BM27,Hoja4!$D$29:$E$1150,2,FALSE) -> Pasto | BR27: 123 | BS27: 2313 | BV27: 0 | BW27: 0
C28: 11001 | D28: BOGOTÁ, D.C. | E28: 0 | G28: Natural | H28: 11 | I28: BOGOTÁ, D.C. | J28: Aprobado con subsidio | K28: MICRO | L28: 4774 | M28: COMERCIO AL POR MAYOR Y AL POR MENOR; REPARACIÓN DE VEHÍCULOS AUTOMOTORES Y MOTOCICLETAS | N28: G | O28: Comercio al por menor de otros productos en establecimientos especializados | P28: Comercio al por menor de otros productos en establecimientos especializados | Q28: 0 | R28: 0 | S28: 0 | T28: PAEF | V28: 88 | W28: 360 | X28: 86 | Y28: 285 | Z28: =VLOOKUP(X28,Hoja4!$A$29:$B$61,2,FALSE) -> Putumayo | AF28: 0 | AG28: 0 | AH28: 15244 | AI28: EL COCUY | AJ28: 0 | AK28: 0 | AL28: Natural | AM28: 15 | AN28: BOYACÁ | AO28: 0 | AP28: 0 | AQ28: 1630 | AR28: INDUSTRIAS MANUFACTURERAS | AS28: C | AT28: Fabricación de partes y piezas de madera, de carpintería y ebanistería para la construcción | AU28: Transformación de la madera y fabricación de productos de madera y de corcho, excepto muebles; fabricación de artículos de cestería y espartería | AV28: 0 | AW28: 0 | AX28: 0 | AY28: No beneficiario | BA28: 88 | BB28: 21 | BC28: 86 | BD28: 12 | BE28: =VLOOKUP(BC28,Hoja4!$A$29:$B$61,2,FALSE) -> Putumayo | BG28: Putumayo | BH28: =BD28 -> 12 | BI28: 80 | BK28: 25386 | BL28: 3 | BM28: 50001 | BN28: 120 | BO28: 50 | BP28: =VLOOKUP(BO28,Hoja4!$A$29:$B$61,2,FALSE) -> Meta | BQ28: =VLOOKUP(BM28,Hoja4!$D$29:$E$1150,2,FALSE) -> Villavicencio | BR28: 120 | BS28: 1719 | BV28: =SUM(BV2:BV27) -> 22265 | BW28: =SUM(BW2:BW27) -> 662728
C29: 25035 | D29: ANAPOIMA | E29: 10 | G29: Natural | H29: 25 | I29: CUNDINAMARCA | J29: Aprobado con subsidio | K29: MICRO | L29: 7730 | M29: ACTIVIDADES DE SERVICIOS ADMINISTRATIVOS Y DE APOYO | N29: N | O29: Alquiler y arrendamiento de otros tipos de maquinaria, equipo y bienes tangibles n.c.p. | P29: Alquiler y arrendamiento de otros tipos de maquinaria, equipo y bienes tangibles n.c.p. | Q29: 1 | R29: 9 | S29: 0 | T29: PAEF - PAP | V29: 91 | W29: 98 | X29: 27 | Y29: 238 | Z29: =VLOOKUP(X29,Hoja4!$A$29:$B$61,2,FALSE) -> Chocó | AF29: 0 | AG29: 0 | AH29: 11001 | AI29: BOGOTÁ, D.C. | AJ29: 3 | AK29: 0 | AL29: Natural | AM29: 11 | AN29: BOGOTÁ, D.C. | AO29: Aprobado con subsidio | AP29: MICRO | AQ29: 1081 | AR29: INDUSTRIAS MANUFACTURERAS | AS29: C | AT29: Elaboración de otros productos alimenticios | AU29: Elaboración de productos alimenticios | AV29: 0 | AW29: 3 | AX29: 0 | AY29: PAEF - PAP - MICRO | BA29: 91 | BB29: 6 | BC29: 27 | BD29: 11 | BE29: =VLOOKUP(BC29,Hoja4!$A$29:$B$61,2,FALSE) -> Chocó | BG29: Otros | BH29: =SUM(BD29:BD34) -> 25 | BI29: =SUMIFS($AJ$2:$AJ$399999,$AO$2:$AO$399999,"Aprobado con subsidio")-SUM(BI2:BI28) -> 316 | BK29: 25875 | BL29: 5 | BM29: 5212 | BN29: 105 | BP29: Otros | BQ29: Otros | BR29: =SUM(BN29:BN1000) -> 3548 | BS29: =SUMIFS($AJ$2:$AJ$399999,$AO$2:$AO$399999,"Aprobado con subsidio")-SUM(BS2:BS28) -> 105312
C30: 8001 | D30: BARRANQUILLA | E30: 0 | G30: Natural | H30: 8 | I30: ATLÁNTICO | J30: Aprobado con subsidio | K30: MICRO | L30: 5611 | M30: ALOJAMIENTO Y SERVICIOS DE COMIDA | N30: I | O30: Actividades de restaurantes, cafeterías y servicio móvil de comidas | P30: Actividades de restaurantes, cafeterías y servicio móvil de comidas | Q30: 0 | R30: 0 | S30: 0 | T30: PAEF | V30: 95 | W30: 69 | X30: 91 | Y30: 98 | Z30: =VLOOKUP(X30,Hoja4!$A$29:$B$61,2,FALSE) -> Amazonas | AF30: 0 | AG30: 0 | AH30: 11001 | AI30: BOGOTÁ, D.C. | AJ30: 0 | AK30: 0 | AL30: Natural | AM30: 11 | AN30: BOGOTÁ, D.C. | AO30: 0 | AP30: 0 | AQ30: 1081 | AR30: INDUSTRIAS MANUFACTURERAS | AS30: C | AT30: Elaboración de otros productos alimenticios | AU30: Elaboración de productos alimenticios | AV30: 0 | AW30: 0 | AX30: 0 | AY30: No beneficiario | BA30: 95 | BB30: 6 | BC30: 91 | BD30: 6 | BE30: =VLOOKUP(BC30,Hoja4!$A$29:$B$61,2,FALSE) -> Amazonas | BG30: Total | BH30: =SUM(BH2:BH29) -> 22265 | BI30: =SUM(BI2:BI29) -> 662728 | BK30: 25513 | BL30: 7 | BM30: 47001 | BN30: 99 | BP30: Total | BR30: =SUM(BR2:BR29) -> 22265 | BS30: =SUM(BS2:BS29) -> 662728
C31: 13001 | D31: CARTAGENA | E31: 0 | G31: Natural | H31: 13 | I31: BOLÍVAR | J31: 0 | K31: MICRO | L31: 4774 | M31: COMERCIO AL POR MAYOR Y AL POR MENOR; REPARACIÓN DE VEHÍCULOS AUTOMOTORES Y MOTOCICLETAS | N31: G | O31: Comercio al por menor de otros productos en establecimientos especializados | P31: Comercio al por menor de otros productos en establecimientos especializados | Q31: 0 | R31: 0 | S31: 0 | T31: No beneficiario | V31: 86 | W31: 285 | X31: 95 | Y31: 69 | Z31: =VLOOKUP(X31,Hoja4!$A$29:$B$61,2,FALSE) -> Guaviare | AF31: 0 | AG31: 0 | AH31: 5001 | AI31: MEDELLÍN | AJ31: 7 | AK31: 0 | AL31: Natural | AM31: 5 | AN31: ANTIOQUIA | AO31: Aprobado con subsidio | AP31: MICRO | AQ31: 2599 | AR31: INDUSTRIAS MANUFACTURERAS | AS31: C | AT31: Fabricación de otros productos elaborados de metal y actividades de servicios relacionadas con el trabajo de metales | AU31: Fabricación de productos elaborados de metal, excepto maquinaria y equipo | AV31: 3 | AW31: 4 | AX31: 0 | AY31: PAEF - PAP | BA31: 86 | BB31: 12 | BC31: 95 | BD31: 6 | BE31: =VLOOKUP(BC31,Hoja4!$A$29:$B$61,2,FALSE) -> Guaviare | BK31: 50001 | BL31: 120 | BM31: 68307 | BN31: 96
C32: 25473 | D32: MOSQUERA | E32: 4 | G32: Natural | H32: 25 | I32: CUNDINAMARCA | J32: Aprobado con subsidio | K32: MICRO | L32: 5511 | M32: ALOJAMIENTO Y SERVICIOS DE COMIDA | N32: I | O32: Actividades de alojamiento de estancias cortas | P32: Actividades de alojamiento de estancias cortas | Q32: 3 | R32: 1 | S32: 0 | T32: PAEF - PAP | V32: 27 | W32: 238 | X32: 99 | Y32: 21 | Z32: =VLOOKUP(X32,Hoja4!$A$29:$B$61,2,FALSE) -> Vichada | AF32: 0 | AG32: 0 | AH32: 23001 | AI32: MONTERÍA | AJ32: 40 | AK32: 0 | AL32: Natural | AM32: 23 | AN32: CÓRDOBA | AO32: Aprobado con subsidio | AP32: PEQUEÑA | AQ32: 1040 | AR32: INDUSTRIAS MANUFACTURERAS | AS32: C | AT32: Elaboración de productos lácteos | AU32: Elaboración de productos alimenticios | AV32: 15 | AW32: 25 | AX32: 0 | AY32: PAEF - PAP | BA32: 27 | BB32: 11 | BC32: 94 | BD32: 1 | BE32: =VLOOKUP(BC32,Hoja4!$A$29:$B$61,2,FALSE) -> Guainía | BK32: 25754 | BL32: 190 | BM32: 68276 | BN32: 87
C33: 11001 | D33: BOGOTÁ, D.C. | E33: 0 | G33: Natural | H33: 11 | I33: BOGOTÁ, D.C. | J33: 0 | K33: 0 | L33: 5611 | M33: ALOJAMIENTO Y SERVICIOS DE COMIDA | N33: I | O33: Actividades de restaurantes, cafeterías y servicio móvil de comidas | P33: Actividades de restaurantes, cafeterías y servicio móvil de comidas | Q33: 0 | R33: 0 | S33: 0 | T33: No beneficiario | V33: 94 | W33: 19 | X33: 94 | Y33: 19 | Z33: =VLOOKUP(X33,Hoja4!$A$29:$B$61,2,FALSE) -> Guainía | AF33: 0 | AG33: 0 | AH33: 68001 | AI33: BUCARAMANGA | AJ33: 6 | AK33: 0 | AL33: Natural | AM33: 68 | AN33: SANTANDER | AO33: Aprobado con subsidio | AP33: MICRO | AQ33: 1521 | AR33: INDUSTRIAS MANUFACTURERAS | AS33: C | AT33: Fabricación de calzado | AU33: Curtido y recurtido de cueros; fabricación de calzado; fabricación de artículos de viaje, maletas, bolsos de mano y artículos similares, y fabricación de artículos de talabartería y guarnicionería; adobo y teñido de pieles | AV33: 2 | AW33: 4 | AX33: 0 | AY33: PAEF - PAP | BA33: 94 | BB33: 1 | BC33: 99 | BD33: 1 | BE33: =VLOOKUP(BC33,Hoja4!$A$29:$B$61,2,FALSE) -> Vichada | BK33: 25740 | BL33: 13 | BM33: 15238 | BN33: 76
C34: 5001 | D34: MEDELLÍN | E34: 3 | G34: Natural | H34: 5 | I34: ANTIOQUIA | J34: Aprobado con subsidio | K34: MICRO | L34: 5613 | M34: ALOJAMIENTO Y SERVICIOS DE COMIDA | N34: I | O34: Actividades de restaurantes, cafeterías y servicio móvil de comidas | P34: Actividades de restaurantes, cafeterías y servicio móvil de comidas | Q34: 2 | R34: 1 | S34: 0 | T34: PAEF - PAP - MICRO | V34: 99 | W34: 21 | X34: 97 | Y34: 8 | Z34: =VLOOKUP(X34,Hoja4!$A$29:$B$61,2,FALSE) -> Vaupés | AF34: 0 | AG34: 0 | AH34: 76892 | AI34: YUMBO | AJ34: 7 | AK34: 0 | AL34: Natural | AM34: 76 | AN34: VALLE DEL CAUCA | AO34: Aprobado con subsidio | AP34: MICRO | AQ34: 3290 | AR34: INDUSTRIAS MANUFACTURERAS | AS34: C | AT34: Otras industrias manufactureras n.c.p. | AU34: Otras industrias manufactureras | AV34: 5 | AW34: 2 | AX34: 0 | AY34: PAEF - PAP - MICRO | BA34: 99 | BB34: 1 | BC34: 97 | BD34: 0 | BE34: =VLOOKUP(BC34,Hoja4!$A$29:$B$61,2,FALSE) -> Vaupés | BK34: 76834 | BL34: 42 | BM34: 23001 | BN34: 74
C35: 11001 | D35: BOGOTÁ, D.C. | E35: 4 | G35: Natural | H35: 11 | I35: BOGOTÁ, D.C. | J35: Aprobado con subsidio | K35: MICRO | L35: 5611 | M35: ALOJAMIENTO Y SERVICIOS DE COMIDA | N35: I | O35: Actividades de restaurantes, cafeterías y servicio móvil de comidas | P35: Actividades de restaurantes, cafeterías y servicio móvil de comidas | Q35: 4 | R35: 0 | S35: 0 | T35: PAEF - PAP - MICRO | AF35: 0 | AG35: 0 | AH35: 73001 | AI35: IBAGUÉ | AJ35: 13 | AK35: 0 | AL35: Natural | AM35: 73 | AN35: TOLIMA | AO35: Aprobado con subsidio | AP35: PEQUEÑA | AQ35: 1081 | AR35: INDUSTRIAS MANUFACTURERAS | AS35: C | AT35: Elaboración de otros productos alimenticios | AU35: Elaboración de productos alimenticios | AV35: 9 | AW35: 4 | AX35: 0 | AY35: PAEF - PAP | BK35: 50226 | BL35: 4 | BM35: 25175 | BN35: 72
C36: 25430 | D36: MADRID | E36: 4 | G36: Natural | H36: 25 | I36: CUNDINAMARCA | J36: Aprobado con subsidio | K36: MICRO | L36: 9601 | M36: OTRAS ACTIVIDADES DE SERVICIOS | N36: S | O36: Otras actividades de servicios personales | P36: Otras actividades de servicios personales | Q36: 2 | R36: 2 | S36: 0 | T36: PAEF - PAP | AF36: 0 | AG36: 0 | AH36: 5001 | AI36: MEDELLÍN | AJ36: 4 | AK36: 0 | AL36: Natural | AM36: 5 | AN36: ANTIOQUIA | AO36: Aprobado con subsidio | AP36: MICRO | AQ36: 1410 | AR36: INDUSTRIAS MANUFACTURERAS | AS36: C | AT36: Confección de prendas de vestir, excepto prendas de piel | AU36: Confección de prendas de vestir | AV36: 3 | AW36: 1 | AX36: 0 | AY36: PAEF - PAP | BK36: 18001 | BL36: 21 | BM36: 5318 | BN36: 69
C37: 11001 | D37: BOGOTÁ, D.C. | E37: 5 | G37: Natural | H37: 11 | I37: BOGOTÁ, D.C. | J37: Aprobado con subsidio | K37: MICRO | L37: 2511 | M37: INDUSTRIAS MANUFACTURERAS | N37: C | O37: Fabricación de productos metálicos para uso estructural, tanques, depósitos y generadores de vapor. | P37: Fabricación de productos elaborados de metal, excepto maquinaria y equipo | Q37: 1 | R37: 4 | S37: 0 | T37: PAEF - PAP | AF37: 0 | AG37: 0 | AH37: 5001 | AI37: MEDELLÍN | AJ37: 8 | AK37: 0 | AL37: Natural | AM37: 5 | AN37: ANTIOQUIA | AO37: Aprobado con subsidio | AP37: PEQUEÑA | AQ37: 2396 | AR37: INDUSTRIAS MANUFACTURERAS | AS37: C | AT37: Fabricación de productos minerales no metálicos n.c.p. | AU37: Fabricación de otros productos minerales no metálicos | AV37: 0 | AW37: 8 | AX37: 0 | AY37: PAEF - PAP | BK37: 5360 | BL37: 607 | BM37: 5129 | BN37: 68
C38: 19001 | D38: POPAYÁN | E38: 0 | G38: Natural | H38: 19 | I38: CAUCA | J38: 0 | K38: 0 | L38: 5611 | M38: ALOJAMIENTO Y SERVICIOS DE COMIDA | N38: I | O38: Actividades de restaurantes, cafeterías y servicio móvil de comidas | P38: Actividades de restaurantes, cafeterías y servicio móvil de comidas | Q38: 0 | R38: 0 | S38: 0 | T38: No beneficiario | AF38: 0 | AG38: 0 | AH38: 5615 | AI38: RIONEGRO | AJ38: 20 | AK38: 0 | AL38: Natural | AM38: 5 | AN38: ANTIOQUIA | AO38: Aprobado con subsidio | AP38: PEQUEÑA | AQ38: 2012 | AR38: INDUSTRIAS MANUFACTURERAS | AS38: C | AT38: Fabricación de sustancias químicas básicas, abonos y compuestos inorgánicos nitrogenados, plásticos y caucho sintético en formas primarias | AU38: Fabricación de sustancias y productos químicos | AV38: 9 | AW38: 11 | AX38: 0 | AY38: PAEF | BK38: 5088 | BL38: 188 | BM38: 20001 | BN38: 66
C39: 73001 | D39: IBAGUÉ | E39: 0 | G39: Natural | H39: 73 | I39: TOLIMA | J39: 0 | K39: 0 | L39: 5611 | M39: ALOJAMIENTO Y SERVICIOS DE COMIDA | N39: I | O39: Actividades de restaurantes, cafeterías y servicio móvil de comidas | P39: Actividades de restaurantes, cafeterías y servicio móvil de comidas | Q39: 0 | R39: 0 | S39: 0 | T39: No beneficiario | AF39: 0 | AG39: 0 | AH39: 47001 | AI39: SANTA MARTA | AJ39: 0 | AK39: 0 | AL39: Natural | AM39: 47 | AN39: MAGDALENA | AO39: 0 | AP39: MICRO | AQ39: 1610 | AR39: INDUSTRIAS MANUFACTURERAS | AS39: C | AT39: Aserrado, acepillado e impregnación de la madera | AU39: Transformación de la madera y fabricación de productos de madera y de corcho, excepto muebles; fabricación de artículos de cestería y espartería | AV39: 0 | AW39: 0 | AX39: 0 | AY39: No beneficiario | BK39: 5376 | BL39: 41 | BM39: 5237 | BN39: 64
C40: 76001 | D40: CALI | E40: 0 | G40: Natural | H40: 76 | I40: VALLE DEL CAUCA | J40: Aprobado con subsidio | K40: MICRO | L40: 5611 | M40: ALOJAMIENTO Y SERVICIOS DE COMIDA | N40: I | O40: Actividades de restaurantes, cafeterías y servicio móvil de comidas | P40: Actividades de restaurantes, cafeterías y servicio móvil de comidas | Q40: 0 | R40: 0 | S40: 0 | T40: PAEF | AF40: 0 | AG40: 0 | AH40: 73001 | AI40: IBAGUÉ | AJ40: 7 | AK40: 0 | AL40: Natural | AM40: 73 | AN40: TOLIMA | AO40: Aprobado con subsidio | AP40: MICRO | AQ40: 2920 | AR40: INDUSTRIAS MANUFACTURERAS | AS40: C | AT40: Fabricación de carrocerías para vehículos automotores; fabricación de remolques y semirremolques | AU40: Fabricación de vehículos automotores, remolques y semirremolques | AV40: 2 | AW40: 5 | AX40: 0 | AY40: PAEF - PAP | BK40: 5148 | BL40: 24 | BM40: 25817 | BN40: 63
C41: 54001 | D41: CÚCUTA | E41: 0 | G41: Natural | H41: 54 | I41: NORTE DE SANTANDER | J41: 0 | K41: MICRO | L41: 8559 | M41: EDUCACIÓN | N41: P | O41: Otros tipos de educación | P41: Otros tipos de educación | Q41: 0 | R41: 0 | S41: 0 | T41: No beneficiario | AF41: 0 | AG41: 0 | AH41: 11001 | AI41: BOGOTÁ, D.C. | AJ41: 5 | AK41: 0 | AL41: Jurídica | AM41: 11 | AN41: BOGOTÁ, D.C. | AO41: Aprobado con subsidio | AP41: MICRO | AQ41: 2930 | AR41: INDUSTRIAS MANUFACTURERAS | AS41: C | AT41: Fabricación de partes, piezas (autopartes) y accesorios (lujos) para vehículos automotores | AU41: Fabricación de vehículos automotores, remolques y semirremolques | AV41: 2 | AW41: 3 | AX41: 0 | AY41: PAEF - PAP | BK41: 5237 | BL41: 64 | BM41: 5697 | BN41: 62
C42: 11001 | D42: BOGOTÁ, D.C. | E42: 0 | G42: Natural | H42: 11 | I42: BOGOTÁ, D.C. | J42: 0 | K42: 0 | L42: 5611 | M42: ALOJAMIENTO Y SERVICIOS DE COMIDA | N42: I | O42: Actividades de restaurantes, cafeterías y servicio móvil de comidas | P42: Actividades de restaurantes, cafeterías y servicio móvil de comidas | Q42: 0 | R42: 0 | S42: 0 | T42: No beneficiario | AF42: 0 | AG42: 0 | AH42: 11001 | AI42: BOGOTÁ, D.C. | AJ42: 5 | AK42: 0 | AL42: Natural | AM42: 11 | AN42: BOGOTÁ, D.C. | AO42: Aprobado con subsidio | AP42: MICRO | AQ42: 2432 | AR42: INDUSTRIAS MANUFACTURERAS | AS42: C | AT42: Fundición de metales | AU42: Fabricación de productos metalúrgicos básicos | AV42: 1 | AW42: 4 | AX42: 0 | AY42: PAEF - PAP - MICRO | BK42: 5308 | BL42: 47 | BM42: 76130 | BN42: 61
C43: 17001 | D43: MANIZALES | E43: 0 | G43: Natural | H43: 17 | I43: CALDAS | J43: 0 | K43: 0 | L43: 1312 | M43: INDUSTRIAS MANUFACTURERAS | N43: C | O43: Preparación, hilatura, tejeduría y acabado de productos textiles | P43: Fabricación de productos textiles | Q43: 0 | R43: 0 | S43: 0 | T43: No beneficiario | AF43: 0 | AG43: 0 | AH43: 63001 | AI43: ARMENIA | AJ43: 4 | AK43: 0 | AL43: Natural | AM43: 63 | AN43: QUINDÍO | AO43: Aprobado con subsidio | AP43: MICRO | AQ43: 3120 | AR43: INDUSTRIAS MANUFACTURERAS | AS43: C | AT43: Fabricación de colchones y somieres | AU43: Fabricación de muebles, colchones y somieres | AV43: 1 | AW43: 3 | AX43: 0 | AY43: PAEF - PAP - MICRO | BK43: 5321 | BL43: 2 | BM43: 68081 | BN43: 56
C44: 68001 | D44: BUCARAMANGA | E44: 0 | G44: Natural | H44: 68 | I44: SANTANDER | J44: Aprobado con subsidio | K44: MICRO | L44: 5611 | M44: ALOJAMIENTO Y SERVICIOS DE COMIDA | N44: I | O44: Actividades de restaurantes, cafeterías y servicio móvil de comidas | P44: Actividades de restaurantes, cafeterías y servicio móvil de comidas | Q44: 0 | R44: 0 | S44: 0 | T44: PAEF | AF44: 0 | AG44: 0 | AH44: 11001 | AI44: BOGOTÁ, D.C. | AJ44: 7 | AK44: 0 | AL44: Natural | AM44: 11 | AN44: BOGOTÁ, D.C. | AO44: Aprobado con subsidio | AP44: MICRO | AQ44: 3110 | AR44: INDUSTRIAS MANUFACTURERAS | AS44: C | AT44: Fabricación de muebles | AU44: Fabricación de muebles, colchones y somieres | AV44: 2 | AW44: 5 | AX44: 0 | AY44: PAEF - PAP | BK44: 76895 | BL44: 6 | BM44: 25430 | BN44: 54
C45: 11001 | D45: BOGOTÁ, D.C. | E45: 0 | G45: Natural | H45: 11 | I45: BOGOTÁ, D.C. | J45: 0 | K45: MICRO | L45: 4753 | M45: COMERCIO AL POR MAYOR Y AL POR MENOR; REPARACIÓN DE VEHÍCULOS AUTOMOTORES Y MOTOCICLETAS | N45: G | O45: Comercio al por menor de otros enseres domésticos en establecimientos especializados | P45: Comercio al por menor de otros enseres domésticos en establecimientos especializados | Q45: 0 | R45: 0 | S45: 0 | T45: No beneficiario | AF45: 0 | AG45: 0 | AH45: 68001 | AI45: BUCARAMANGA | AJ45: 9 | AK45: 0 | AL45: Natural | AM45: 68 | AN45: SANTANDER | AO45: Aprobado con subsidio | AP45: MICRO | AQ45: 2229 | AR45: INDUSTRIAS MANUFACTURERAS | AS45: C | AT45: Fabricación de productos de plástico | AU45: Fabricación de productos de caucho y de plástico | AV45: 2 | AW45: 7 | AX45: 0 | AY45: PAEF - PARO | BK45: 5604 | BL45: 3 | BM45: 15759 | BN45: 54
C46: 25175 | D46: CHÍA | E46: 4 | G46: Natural | H46: 25 | I46: CUNDINAMARCA | J46: Aprobado con subsidio | K46: MICRO | L46: 125 | M46: AGRICULTURA, GANADERÍA, CAZA, SILVICULTURA Y PESCA | N46: A | O46: Cultivos agrícolas permanentes | P46: Cultivos agrícolas permanentes | Q46: 1 | R46: 3 | S46: 0 | T46: PAEF - PAP | AF46: 0 | AG46: 0 | AH46: 11001 | AI46: BOGOTÁ, D.C. | AJ46: 10 | AK46: 0 | AL46: Natural | AM46: 11 | AN46: BOGOTÁ, D.C. | AO46: Aprobado con subsidio | AP46: PEQUEÑA | AQ46: 1313 | AR46: INDUSTRIAS MANUFACTURERAS | AS46: C | AT46: Preparación, hilatura, tejeduría y acabado de productos textiles | AU46: Fabricación de productos textiles | AV46: 4 | AW46: 6 | AX46: 0 | AY46: PAEF - PAP | BK46: 5761 | BL46: 2 | BM46: 15001 | BN46: 54
C47: 25430 | D47: MADRID | E47: 0 | G47: Natural | H47: 25 | I47: CUNDINAMARCA | J47: 0 | K47: PEQUEÑA | L47: 113 | M47: AGRICULTURA, GANADERÍA, CAZA, SILVICULTURA Y PESCA | N47: A | O47: Cultivos agrícolas transitorios | P47: Cultivos agrícolas transitorios | Q47: 0 | R47: 0 | S47: 0 | T47: No beneficiario | AF47: 0 | AG47: 0 | AH47: 11001 | AI47: BOGOTÁ, D.C. | AJ47: 15 | AK47: 0 | AL47: Natural | AM47: 11 | AN47: BOGOTÁ, D.C. | AO47: Aprobado con subsidio | AP47: PEQUEÑA | AQ47: 2229 | AR47: INDUSTRIAS MANUFACTURERAS | AS47: C | AT47: Fabricación de productos de plástico | AU47: Fabricación de productos de caucho y de plástico | AV47: 3 | AW47: 12 | AX47: 0 | AY47: PAEF - PAP | BK47: 13052 | BL47: 3 | BM47: 5440 | BN47: 54
C48: 76147 | D48: CARTAGO | E48: 11 | G48: Natural | H48: 76 | I48: VALLE DEL CAUCA | J48: Aprobado con subsidio | K48: PEQUEÑA | L48: 4729 | M48: COMERCIO AL POR MAYOR Y AL POR MENOR; REPARACIÓN DE VEHÍCULOS AUTOMOTORES Y MOTOCICLETAS | N48: G | O48: Comercio al por menor de alimentos (víveres en general), bebidas y tabaco, en establecimientos especializados | P48: Comercio al por menor de alimentos (víveres en general), bebidas y tabaco, en establecimientos especializados | Q48: 1 | R48: 10 | S48: 0 | T48: PAEF - PAP | AF48: 0 | AG48: 0 | AH48: 25126 | AI48: CAJICÁ | AJ48: 12 | AK48: 0 | AL48: Natural | AM48: 25 | AN48: CUNDINAMARCA | AO48: Aprobado con subsidio | AP48: PEQUEÑA | AQ48: 2599 | AR48: INDUSTRIAS MANUFACTURERAS | AS48: C | AT48: Fabricación de otros productos elaborados de metal y actividades de servicios relacionadas con el trabajo de metales | AU48: Fabricación de productos elaborados de metal, excepto maquinaria y equipo | AV48: 5 | AW48: 7 | AX48: 0 | AY48: PAEF - PAP | BK48: 52835 | BL48: 17 | BM48: 25899 | BN48: 53
C49: 68001 | D49: BUCARAMANGA | E49: 0 | G49: Natural | H49: 68 | I49: SANTANDER | J49: Aprobado con subsidio | K49: MICRO | L49: 4771 | M49: COMERCIO AL POR MAYOR Y AL POR MENOR; REPARACIÓN DE VEHÍCULOS AUTOMOTORES Y MOTOCICLETAS | N49: G | O49: Comercio al por menor de otros productos en establecimientos especializados | P49: Comercio al por menor de otros productos en establecimientos especializados | Q49: 0 | R49: 0 | S49: 0 | T49: PAEF | AF49: 0 | AG49: 0 | AH49: 11001 | AI49: BOGOTÁ, D.C. | AJ49: 7 | AK49: 0 | AL49: Natural | AM49: 11 | AN49: BOGOTÁ, D.C. | AO49: Aprobado con subsidio | AP49: MICRO | AQ49: 3312 | AR49: INDUSTRIAS MANUFACTURERAS | AS49: C | AT49: Mantenimiento y reparación especializado de productos elaborados en metal y de maquinaria y equipo | AU49: Instalación, mantenimiento y reparación especializado de maquinaria y equipo | AV49: 0 | AW49: 7 | AX49: 0 | AY49: PAEF - PAP - MICRO | BK49: 15087 | BL49: 3 | BM49: 76147 | BN49: 53
C50: 76001 | D50: CALI | E50: 0 | G50: Natural | H50: 76 | I50: VALLE DEL CAUCA | J50: 0 | K50: 0 | L50: 4771 | M50: COMERCIO AL POR MAYOR Y AL POR MENOR; REPARACIÓN DE VEHÍCULOS AUTOMOTORES Y MOTOCICLETAS | N50: G | O50: Comercio al por menor de otros productos en establecimientos especializados | P50: Comercio al por menor de otros productos en establecimientos especializados | Q50: 0 | R50: 0 | S50: 0 | T50: No beneficiario | AF50: 0 | AG50: 0 | AH50: 11001 | AI50: BOGOTÁ, D.C. | AJ50: 7 | AK50: 0 | AL50: Natural | AM50: 11 | AN50: BOGOTÁ, D.C. | AO50: Aprobado con subsidio | AP50: MICRO | AQ50: 2229 | AR50: INDUSTRIAS MANUFACTURERAS | AS50: C | AT50: Fabricación de productos de plástico | AU50: Fabricación de productos de caucho y de plástico | AV50: 3 | AW50: 4 | AX50: 0 | AY50: PAEF | BK50: 15189 | BL50: 2 | BM50: 8758 | BN50: 53
C51: 76001 | D51: CALI | E51: 0 | G51: Natural | H51: 76 | I51: VALLE DEL CAUCA | J51: 0 | K51: 0 | L51: 5611 | M51: ALOJAMIENTO Y SERVICIOS DE COMIDA | N51: I | O51: Actividades de restaurantes, cafeterías y servicio móvil de comidas | P51: Actividades de restaurantes, cafeterías y servicio móvil de comidas | Q51: 0 | R51: 0 | S51: 0 | T51: No beneficiario | AF51: 0 | AG51: 0 | AH51: 11001 | AI51: BOGOTÁ, D.C. | AJ51: 3 | AK51: 0 | AL51: Natural | AM51: 11 | AN51: BOGOTÁ, D.C. | AO51: Aprobado con subsidio | AP51: MICRO | AQ51: 2511 | AR51: INDUSTRIAS MANUFACTURERAS | AS51: C | AT51: Fabricación de productos metálicos para uso estructural, tanques, depósitos y generadores de vapor. | AU51: Fabricación de productos elaborados de metal, excepto maquinaria y equipo | AV51: 0 | AW51: 3 | AX51: 0 | AY51: PAEF - PAP | BK51: 15176 | BL51: 4 | BM51: 19001 | BN51: 49
C52: 5001 | D52: MEDELLÍN | E52: 0 | G52: Natural | H52: 5 | I52: ANTIOQUIA | J52: 0 | K52: 0 | L52: 4771 | M52: COMERCIO AL POR MAYOR Y AL POR MENOR; REPARACIÓN DE VEHÍCULOS AUTOMOTORES Y MOTOCICLETAS | N52: G | O52: Comercio al por menor de otros productos en establecimientos especializados | P52: Comercio al por menor de otros productos en establecimientos especializados | Q52: 0 | R52: 0 | S52: 0 | T52: No beneficiario | AF52: 0 | AG52: 0 | AH52: 25126 | AI52: CAJICÁ | AJ52: 25 | AK52: 0 | AL52: Natural | AM52: 25 | AN52: CUNDINAMARCA | AO52: Aprobado con subsidio | AP52: PEQUEÑA | AQ52: 1081 | AR52: INDUSTRIAS MANUFACTURERAS | AS52: C | AT52: Elaboración de otros productos alimenticios | AU52: Elaboración de productos alimenticios | AV52: 16 | AW52: 9 | AX52: 0 | AY52: PAEF - PAP | BK52: 15238 | BL52: 76 | BM52: 5308 | BN52: 47
C53: 68079 | D53: BARICHARA | E53: 0 | G53: Natural | H53: 68 | I53: SANTANDER | J53: Aprobado con subsidio | K53: MICRO | L53: 2740 | M53: INDUSTRIAS MANUFACTURERAS | N53: C | O53: Fabricación de equipos eléctricos de iluminación | P53: Fabricación de aparatos y equipo eléctrico | Q53: 0 | R53: 0 | S53: 0 | T53: PAEF | AF53: 0 | AG53: 0 | AH53: 11001 | AI53: BOGOTÁ, D.C. | AJ53: 27 | AK53: 0 | AL53: Natural | AM53: 11 | AN53: BOGOTÁ, D.C. | AO53: Aprobado con subsidio | AP53: PEQUEÑA | AQ53: 1011 | AR53: INDUSTRIAS MANUFACTURERAS | AS53: C | AT53: Procesamiento y conservación de carne, pescado, crustáceos y moluscos | AU53: Elaboración de productos alimenticios | AV53: 7 | AW53: 20 | AX53: 0 | AY53: PAEF - PAP | BK53: 50573 | BL53: 5 | BM53: 25126 | BN53: 44
C54: 88001 | D54: SAN ANDRÉS | E54: 0 | G54: Natural | H54: 88 | I54: ARCHIPIÉLAGO DE SAN ANDRÉS, PROVIDENCIA Y SANTA CATALINA | J54: 0 | K54: 0 | L54: 4754 | M54: COMERCIO AL POR MAYOR Y AL POR MENOR; REPARACIÓN DE VEHÍCULOS AUTOMOTORES Y MOTOCICLETAS | N54: G | O54: Comercio al por menor de otros enseres domésticos en establecimientos especializados | P54: Comercio al por menor de otros enseres domésticos en establecimientos especializados | Q54: 0 | R54: 0 | S54: 0 | T54: No beneficiario | AF54: 0 | AG54: 0 | AH54: 25899 | AI54: ZIPAQUIRÁ | AJ54: 5 | AK54: 0 | AL54: Natural | AM54: 25 | AN54: CUNDINAMARCA | AO54: Aprobado con subsidio | AP54: MICRO | AQ54: 2392 | AR54: INDUSTRIAS MANUFACTURERAS | AS54: C | AT54: Fabricación de productos minerales no metálicos n.c.p. | AU54: Fabricación de otros productos minerales no metálicos | AV54: 0 | AW54: 5 | AX54: 0 | AY54: PAEF - PAP | BK54: 85440 | BL54: 13 | BM54: 70001 | BN54: 43
C55: 50001 | D55: VILLAVICENCIO | E55: 0 | G55: Natural | H55: 50 | I55: META | J55: Aprobado con subsidio | K55: MICRO | L55: 5611 | M55: ALOJAMIENTO Y SERVICIOS DE COMIDA | N55: I | O55: Actividades de restaurantes, cafeterías y servicio móvil de comidas | P55: Actividades de restaurantes, cafeterías y servicio móvil de comidas | Q55: 0 | R55: 0 | S55: 0 | T55: PAEF | AF55: 0 | AG55: 0 | AH55: 11001 | AI55: BOGOTÁ, D.C. | AJ55: 8 | AK55: 0 | AL55: Natural | AM55: 11 | AN55: BOGOTÁ, D.C. | AO55: Aprobado con subsidio | AP55: MICRO | AQ55: 1630 | AR55: INDUSTRIAS MANUFACTURERAS | AS55: C | AT55: Fabricación de partes y piezas de madera, de carpintería y ebanistería para la construcción | AU55: Transformación de la madera y fabricación de productos de madera y de corcho, excepto muebles; fabricación de artículos de cestería y espartería | AV55: 0 | AW55: 8 | AX55: 0 | AY55: PAEF | BK55: 25430 | BL55: 54 | BM55: 76834 | BN55: 42
C56: 76001 | D56: CALI | E56: 0 | G56: Natural | H56: 76 | I56: VALLE DEL CAUCA | J56: 0 | K56: 0 | L56: 5611 | M56: ALOJAMIENTO Y SERVICIOS DE COMIDA | N56: I | O56: Actividades de restaurantes, cafeterías y servicio móvil de comidas | P56: Actividades de restaurantes, cafeterías y servicio móvil de comidas | Q56: 0 | R56: 0 | S56: 0 | T56: No beneficiario | AF56: 0 | AG56: 0 | AH56: 11001 | AI56: BOGOTÁ, D.C. | AJ56: 3 | AK56: 0 | AL56: Natural | AM56: 11 | AN56: BOGOTÁ, D.C. | AO56: Aprobado con subsidio | AP56: MICRO | AQ56: 1811 | AR56: INDUSTRIAS MANUFACTURERAS | AS56: C | AT56: Actividades de impresión y actividades de servicios relacionados con la impresión | AU56: Actividades de impresión y de producción de copias a partir de grabaciones originales | AV56: 1 | AW56: 2 | AX56: 0 | AY56: PAEF - PAP - PARO - MICRO | BK56: 15466 | BL56: 1 | BM56: 25799 | BN56: 41
C57: 13001 | D57: CARTAGENA | E57: 0 | G57: Natural | H57: 13 | I57: BOLÍVAR | J57: 0 | K57: 0 | L57: 5611 | M57: ALOJAMIENTO Y SERVICIOS DE COMIDA | N57: I | O57: Actividades de restaurantes, cafeterías y servicio móvil de comidas | P57: Actividades de restaurantes, cafeterías y servicio móvil de comidas | Q57: 0 | R57: 0 | S57: 0 | T57: No beneficiario | AF57: 0 | AG57: 0 | AH57: 50006 | AI57: ACACÍAS | AJ57: 8 | AK57: 0 | AL57: Natural | AM57: 50 | AN57: META | AO57: Aprobado con subsidio | AP57: MICRO | AQ57: 1081 | AR57: INDUSTRIAS MANUFACTURERAS | AS57: C | AT57: Elaboración de otros productos alimenticios | AU57: Elaboración de productos alimenticios | AV57: 3 | AW57: 5 | AX57: 0 | AY57: PAEF | BK57: 15516 | BL57: 14 | BM57: 5376 | BN57: 41
C58: 19455 | D58: MIRANDA | E58: 0 | G58: Natural | H58: 19 | I58: CAUCA | J58: 0 | K58: 0 | L58: 4719 | M58: COMERCIO AL POR MAYOR Y AL POR MENOR; REPARACIÓN DE VEHÍCULOS AUTOMOTORES Y MOTOCICLETAS | N58: G | O58: Comercio al por menor en establecimientos no especializados | P58: Comercio al por menor en establecimientos no especializados | Q58: 0 | R58: 0 | S58: 0 | T58: No beneficiario | AF58: 0 | AG58: 0 | AH58: 11001 | AI58: BOGOTÁ, D.C. | AJ58: 6 | AK58: 0 | AL58: Natural | AM58: 11 | AN58: BOGOTÁ, D.C. | AO58: Aprobado con subsidio | AP58: MICRO | AQ58: 1081 | AR58: INDUSTRIAS MANUFACTURERAS | AS58: C | AT58: Elaboración de otros productos alimenticios | AU58: Elaboración de productos alimenticios | AV58: 5 | AW58: 1 | AX58: 0 | AY58: PAEF - PAP | BK58: 15806 | BL58: 5 | BM58: 5045 | BN58: 41
C59: 76001 | D59: CALI | E59: 0 | G59: Natural | H59: 76 | I59: VALLE DEL CAUCA | J59: 0 | K59: 0 | L59: 5611 | M59: ALOJAMIENTO Y SERVICIOS DE COMIDA | N59: I | O59: Actividades de restaurantes, cafeterías y servicio móvil de comidas | P59: Actividades de restaurantes, cafeterías y servicio móvil de comidas | Q59: 0 | R59: 0 | S59: 0 | T59: No beneficiario | AF59: 0 | AG59: 0 | AH59: 25307 | AI59: GIRARDOT | AJ59: 6 | AK59: 0 | AL59: Natural | AM59: 25 | AN59: CUNDINAMARCA | AO59: Aprobado con subsidio | AP59: MICRO | AQ59: 3312 | AR59: INDUSTRIAS MANUFACTURERAS | AS59: C | AT59: Mantenimiento y reparación especializado de productos elaborados en metal y de maquinaria y equipo | AU59: Instalación, mantenimiento y reparación especializado de maquinaria y equipo | AV59: 1 | AW59: 5 | AX59: 0 | AY59: PAEF - PAP | BK59: 15759 | BL59: 54 | BM59: 85001 | BN59: 38
C60: 73001 | D60: IBAGUÉ | E60: 0 | G60: Natural | H60: 73 | I60: TOLIMA | J60: 0 | K60: 0 | L60: 5611 | M60: ALOJAMIENTO Y SERVICIOS DE COMIDA | N60: I | O60: Actividades de restaurantes, cafeterías y servicio móvil de comidas | P60: Actividades de restaurantes, cafeterías y servicio móvil de comidas | Q60: 0 | R60: 0 | S60: 0 | T60: No beneficiario | AF60: 0 | AG60: 0 | AH60: 25386 | AI60: LA MESA | AJ60: 4 | AK60: 0 | AL60: Natural | AM60: 25 | AN60: CUNDINAMARCA | AO60: Aprobado con subsidio | AP60: MICRO | AQ60: 3110 | AR60: INDUSTRIAS MANUFACTURERAS | AS60: C | AT60: Fabricación de muebles | AU60: Fabricación de muebles, colchones y somieres | AV60: 0 | AW60: 4 | AX60: 0 | AY60: PAEF - PAP - MICRO | BK60: 85001 | BL60: 38 | BM60: 76111 | BN60: 34
C61: 63001 | D61: ARMENIA | E61: 0 | G61: Natural | H61: 63 | I61: QUINDÍO | J61: 0 | K61: 0 | L61: 8512 | M61: EDUCACIÓN | N61: P | O61: Educación de la primera infancia, preescolar y básica primaria | P61: Educación de la primera infancia, preescolar y básica primaria | Q61: 0 | R61: 0 | S61: 0 | T61: No beneficiario | AF61: 0 | AG61: 0 | AH61: 25386 | AI61: LA MESA | AJ61: 3 | AK61: 0 | AL61: Natural | AM61: 25 | AN61: CUNDINAMARCA | AO61: Aprobado con subsidio | AP61: MICRO | AQ61: 1081 | AR61: INDUSTRIAS MANUFACTURERAS | AS61: C | AT61: Elaboración de otros productos alimenticios | AU61: Elaboración de productos alimenticios | AV61: 2 | AW61: 1 | AX61: 0 | AY61: PAEF - PAP - MICRO | BK61: 15638 | BL61: 1 | BM61: 19698 | BN61: 31
C62: 73001 | D62: IBAGUÉ | E62: 0 | G62: Natural | H62: 73 | I62: TOLIMA | J62: 0 | K62: MICRO | L62: 8621 | M62: ACTIVIDADES DE ATENCIÓN DE LA SALUD HUMANA Y DE ASISTENCIA SOCIAL | N62: Q | O62: Actividades de práctica médica y odontológica, sin internación | P62: Actividades de práctica médica y odontológica, sin internación | Q62: 0 | R62: 0 | S62: 0 | T62: No beneficiario | AF62: 0 | AG62: 0 | AH62: 11001 | AI62: BOGOTÁ, D.C. | AJ62: 3 | AK62: 0 | AL62: Natural | AM62: 11 | AN62: BOGOTÁ, D.C. | AO62: Aprobado con subsidio | AP62: MICRO | AQ62: 3110 | AR62: INDUSTRIAS MANUFACTURERAS | AS62: C | AT62: Fabricación de muebles | AU62: Fabricación de muebles, colchones y somieres | AV62: 0 | AW62: 3 | AX62: 0 | AY62: PAEF | BK62: 15646 | BL62: 10 | BM62: 68547 | BN62: 30
C63: 19001 | D63: POPAYÁN | E63: 0 | G63: Natural | H63: 19 | I63: CAUCA | J63: Aprobado con subsidio | K63: MICRO | L63: 4719 | M63: COMERCIO AL POR MAYOR Y AL POR MENOR; REPARACIÓN DE VEHÍCULOS AUTOMOTORES Y MOTOCICLETAS | N63: G | O63: Comercio al por menor en establecimientos no especializados | P63: Comercio al por menor en establecimientos no especializados | Q63: 0 | R63: 0 | S63: 0 | T63: PAEF | AF63: 0 | AG63: 0 | AH63: 25875 | AI63: VILLETA | AJ63: 12 | AK63: 0 | AL63: Natural | AM63: 25 | AN63: CUNDINAMARCA | AO63: Aprobado con subsidio | AP63: MICRO | AQ63: 2821 | AR63: INDUSTRIAS MANUFACTURERAS | AS63: C | AT63: Fabricación de maquinaria y equipo de uso especial | AU63: Fabricación de maquinaria y equipo n.c.p. | AV63: 2 | AW63: 9 | AX63: 1 | AY63: PAEF - PAP - MICRO | BK63: 25817 | BL63: 63 | BM63: 54874 | BN63: 29
C64: 25799 | D64: TENJO | E64: 10 | G64: Natural | H64: 25 | I64: CUNDINAMARCA | J64: Aprobado con subsidio | K64: MICRO | L64: 4719 | M64: COMERCIO AL POR MAYOR Y AL POR MENOR; REPARACIÓN DE VEHÍCULOS AUTOMOTORES Y MOTOCICLETAS | N64: G | O64: Comercio al por menor en establecimientos no especializados | P64: Comercio al por menor en establecimientos no especializados | Q64: 6 | R64: 4 | S64: 0 | T64: PAEF - PAP | AF64: 0 | AG64: 0 | AH64: 25513 | AI64: PACHO | AJ64: 5 | AK64: 0 | AL64: Natural | AM64: 25 | AN64: CUNDINAMARCA | AO64: Aprobado con subsidio | AP64: MICRO | AQ64: 3312 | AR64: INDUSTRIAS MANUFACTURERAS | AS64: C | AT64: Mantenimiento y reparación especializado de productos elaborados en metal y de maquinaria y equipo | AU64: Instalación, mantenimiento y reparación especializado de maquinaria y equipo | AV64: 0 | AW64: 5 | AX64: 0 | AY64: PAEF - PAP | BK64: 15367 | BL64: 2 | BM64: 5607 | BN64: 29
C65: 73268 | D65: ESPINAL | E65: 6 | G65: Natural | H65: 73 | I65: TOLIMA | J65: Aprobado con subsidio | K65: MICRO | L65: 4541 | M65: COMERCIO AL POR MAYOR Y AL POR MENOR; REPARACIÓN DE VEHÍCULOS AUTOMOTORES Y MOTOCICLETAS | N65: G | O65: Comercio, mantenimiento y reparación de motocicletas y de sus partes, piezas y accesorios | P65: Comercio, mantenimiento y reparación de motocicletas y de sus partes, piezas y accesorios | Q65: 2 | R65: 4 | S65: 0 | T65: PAEF - PAP | AF65: 0 | AG65: 0 | AH65: 11001 | AI65: BOGOTÁ, D.C. | AJ65: 17 | AK65: 0 | AL65: Natural | AM65: 11 | AN65: BOGOTÁ, D.C. | AO65: Aprobado con subsidio | AP65: PEQUEÑA | AQ65: 1081 | AR65: INDUSTRIAS MANUFACTURERAS | AS65: C | AT65: Elaboración de otros productos alimenticios | AU65: Elaboración de productos alimenticios | AV65: 7 | AW65: 10 | AX65: 0 | AY65: PAEF - PAP | BK65: 73443 | BL65: 6 | BM65: 8296 | BN65: 27
C66: 11001 | D66: BOGOTÁ, D.C. | E66: 15 | G66: Natural | H66: 11 | I66: BOGOTÁ, D.C. | J66: Aprobado con subsidio | K66: PEQUEÑA | L66: 8899 | M66: ACTIVIDADES DE ATENCIÓN DE LA SALUD HUMANA Y DE ASISTENCIA SOCIAL | N66: Q | O66: Otras actividades de asistencia social sin alojamiento | P66: Otras actividades de asistencia social sin alojamiento | Q66: 3 | R66: 12 | S66: 0 | T66: PAEF - PAP - MICRO | AF66: 0 | AG66: 0 | AH66: 50001 | AI66: VILLAVICENCIO | AJ66: 10 | AK66: 0 | AL66: Natural | AM66: 50 | AN66: META | AO66: Aprobado con subsidio | AP66: MICRO | AQ66: 1610 | AR66: INDUSTRIAS MANUFACTURERAS | AS66: C | AT66: Aserrado, acepillado e impregnación de la madera | AU66: Transformación de la madera y fabricación de productos de madera y de corcho, excepto muebles; fabricación de artículos de cestería y espartería | AV66: 0 | AW66: 10 | AX66: 0 | AY66: PAEF - PAP - MICRO | BK66: 66001 | BL66: =COUNTIFS($AO$2:$AO$399999,"Aprobado con subsidio",$AH$2:$AH$399999,BK66) -> 314 | BM66: 68679 | BN66: 26
C67: 25799 | D67: TENJO | E67: 6 | G67: Natural | H67: 25 | I67: CUNDINAMARCA | J67: Aprobado con subsidio | K67: MICRO | L67: 1610 | M67: INDUSTRIAS MANUFACTURERAS | N67: C | O67: Aserrado, acepillado e impregnación de la madera | P67: Transformación de la madera y fabricación de productos de madera y de corcho, excepto muebles; fabricación de artículos de cestería y espartería | Q67: 1 | R67: 5 | S67: 0 | T67: PAEF - PAP | AF67: 0 | AG67: 0 | AH67: 11001 | AI67: BOGOTÁ, D.C. | AJ67: 0 | AK67: 0 | AL67: Natural | AM67: 11 | AN67: BOGOTÁ, D.C. | AO67: 0 | AP67: MICRO | AQ67: 1521 | AR67: INDUSTRIAS MANUFACTURERAS | AS67: C | AT67: Fabricación de calzado | AU67: Curtido y recurtido de cueros; fabricación de calzado; fabricación de artículos de viaje, maletas, bolsos de mano y artículos similares, y fabricación de artículos de talabartería y guarnicionería; adobo y teñido de pieles | AV67: 0 | AW67: 0 | AX67: 0 | AY67: No beneficiario | BK67: 66170 | BL67: 191 | BM67: 5079 | BN67: 26
C68: 63690 | D68: SALENTO | E68: 0 | G68: Natural | H68: 63 | I68: QUINDÍO | J68: Aprobado con subsidio | K68: MICRO | L68: 5511 | M68: ALOJAMIENTO Y SERVICIOS DE COMIDA | N68: I | O68: Actividades de alojamiento de estancias cortas | P68: Actividades de alojamiento de estancias cortas | Q68: 0 | R68: 0 | S68: 0 | T68: PAEF | AF68: 0 | AG68: 0 | AH68: 25754 | AI68: SOACHA | AJ68: 0 | AK68: 0 | AL68: Natural | AM68: 25 | AN68: CUNDINAMARCA | AO68: 0 | AP68: 0 | AQ68: 2511 | AR68: INDUSTRIAS MANUFACTURERAS | AS68: C | AT68: Fabricación de productos metálicos para uso estructural, tanques, depósitos y generadores de vapor. | AU68: Fabricación de productos elaborados de metal, excepto maquinaria y equipo | AV68: 0 | AW68: 0 | AX68: 0 | AY68: No beneficiario | BK68: 63130 | BL68: 24 | BM68: 25269 | BN68: 26
C69: 11001 | D69: BOGOTÁ, D.C. | E69: 0 | G69: Natural | H69: 11 | I69: BOGOTÁ, D.C. | J69: 0 | K69: 0 | L69: 7500 | M69: ACTIVIDADES PROFESIONALES, CIENTÍFICAS Y TÉCNICAS | N69: M | O69: Actividades veterinarias | P69: Actividades veterinarias | Q69: 0 | R69: 0 | S69: 0 | T69: No beneficiario | AF69: 0 | AG69: 0 | AH69: 11001 | AI69: BOGOTÁ, D.C. | AJ69: 18 | AK69: 0 | AL69: Jurídica | AM69: 11 | AN69: BOGOTÁ, D.C. | AO69: Aprobado con subsidio | AP69: PEQUEÑA | AQ69: 1410 | AR69: INDUSTRIAS MANUFACTURERAS | AS69: C | AT69: Confección de prendas de vestir, excepto prendas de piel | AU69: Confección de prendas de vestir | AV69: 15 | AW69: 3 | AX69: 0 | AY69: PAEF | BK69: 17614 | BL69: 7 | BM69: 5148 | BN69: 24
C70: 50001 | D70: VILLAVICENCIO | E70: 0 | G70: Natural | H70: 50 | I70: META | J70: Aprobado con subsidio | K70: MICRO | L70: 5611 | M70: ALOJAMIENTO Y SERVICIOS DE COMIDA | N70: I | O70: Actividades de restaurantes, cafeterías y servicio móvil de comidas | P70: Actividades de restaurantes, cafeterías y servicio móvil de comidas | Q70: 0 | R70: 0 | S70: 0 | T70: PAEF | AF70: 0 | AG70: 0 | AH70: 11001 | AI70: BOGOTÁ, D.C. | AJ70: 6 | AK70: 0 | AL70: Natural | AM70: 11 | AN70: BOGOTÁ, D.C. | AO70: Aprobado con subsidio | AP70: MICRO | AQ70: 2013 | AR70: INDUSTRIAS MANUFACTURERAS | AS70: C | AT70: Fabricación de sustancias químicas básicas, abonos y compuestos inorgánicos nitrogenados, plásticos y caucho sintético en formas primarias | AU70: Fabricación de sustancias y productos químicos | AV70: 1 | AW70: 5 | AX70: 0 | AY70: PAEF - PAP - PARO - MICRO | BK70: 66682 | BL70: 23 | BM70: 63130 | BN70: 24
C71: 5212 | D71: COPACABANA | E71: 3 | G71: Natural | H71: 5 | I71: ANTIOQUIA | J71: Aprobado con subsidio | K71: MICRO | L71: 5611 | M71: ALOJAMIENTO Y SERVICIOS DE COMIDA | N71: I | O71: Actividades de restaurantes, cafeterías y servicio móvil de comidas | P71: Actividades de restaurantes, cafeterías y servicio móvil de comidas | Q71: 1 | R71: 2 | S71: 0 | T71: PAEF - PAP - MICRO | AF71: 0 | AG71: 0 | AH71: 11001 | AI71: BOGOTÁ, D.C. | AJ71: 3 | AK71: 0 | AL71: Natural | AM71: 11 | AN71: BOGOTÁ, D.C. | AO71: Aprobado con subsidio | AP71: MICRO | AQ71: 2599 | AR71: INDUSTRIAS MANUFACTURERAS | AS71: C | AT71: Fabricación de otros productos elaborados de metal y actividades de servicios relacionadas con el trabajo de metales | AU71: Fabricación de productos elaborados de metal, excepto maquinaria y equipo | AV71: 1 | AW71: 2 | AX71: 0 | AY71: PAEF | BK71: 19455 | BL71: 2 | BM71: 41551 | BN71: 24
C72: 11001 | D72: BOGOTÁ, D.C. | E72: 0 | G72: Natural | H72: 11 | I72: BOGOTÁ, D.C. | J72: 0 | K72: 0 | L72: 5611 | M72: ALOJAMIENTO Y SERVICIOS DE COMIDA | N72: I | O72: Actividades de restaurantes, cafeterías y servicio móvil de comidas | P72: Actividades de restaurantes, cafeterías y servicio móvil de comidas | Q72: 0 | R72: 0 | S72: 0 | T72: No beneficiario | AF72: 0 | AG72: 0 | AH72: 25740 | AI72: SIBATÉ | AJ72: 7 | AK72: 0 | AL72: Natural | AM72: 25 | AN72: CUNDINAMARCA | AO72: Aprobado con subsidio | AP72: MICRO | AQ72: 1081 | AR72: INDUSTRIAS MANUFACTURERAS | AS72: C | AT72: Elaboración de otros productos alimenticios | AU72: Elaboración de productos alimenticios | AV72: 5 | AW72: 2 | AX72: 0 | AY72: PAEF - PAP | BK72: 76147 | BL72: 53 | BM72: 66682 | BN72: 23
C73: 52356 | D73: IPIALES | E73: 0 | G73: Natural | H73: 52 | I73: NARIÑO | J73: 0 | K73: 0 | L73: 5611 | M73: ALOJAMIENTO Y SERVICIOS DE COMIDA | N73: I | O73: Actividades de restaurantes, cafeterías y servicio móvil de comidas | P73: Actividades de restaurantes, cafeterías y servicio móvil de comidas | Q73: 0 | R73: 0 | S73: 0 | T73: No beneficiario | AF73: 0 | AG73: 0 | AH73: 11001 | AI73: BOGOTÁ, D.C. | AJ73: 6 | AK73: 0 | AL73: Natural | AM73: 11 | AN73: BOGOTÁ, D.C. | AO73: Aprobado con subsidio | AP73: MICRO | AQ73: 2593 | AR73: INDUSTRIAS MANUFACTURERAS | AS73: C | AT73: Fabricación de otros productos elaborados de metal y actividades de servicios relacionadas con el trabajo de metales | AU73: Fabricación de productos elaborados de metal, excepto maquinaria y equipo | AV73: 1 | AW73: 5 | AX73: 0 | AY73: PAEF - PAP | BK73: 41132 | BL73: 1 | BM73: 25290 | BN73: 23
C74: 52356 | D74: IPIALES | E74: 0 | G74: Natural | H74: 52 | I74: NARIÑO | J74: 0 | K74: 0 | L74: 5611 | M74: ALOJAMIENTO Y SERVICIOS DE COMIDA | N74: I | O74: Actividades de restaurantes, cafeterías y servicio móvil de comidas | P74: Actividades de restaurantes, cafeterías y servicio móvil de comidas | Q74: 0 | R74: 0 | S74: 0 | T74: No beneficiario | AF74: 0 | AG74: 0 | AH74: 11001 | AI74: BOGOTÁ, D.C. | AJ74: 8 | AK74: 0 | AL74: Natural | AM74: 11 | AN74: BOGOTÁ, D.C. | AO74: Aprobado con subsidio | AP74: MICRO | AQ74: 3120 | AR74: INDUSTRIAS MANUFACTURERAS | AS74: C | AT74: Fabricación de colchones y somieres | AU74: Fabricación de muebles, colchones y somieres | AV74: 1 | AW74: 7 | AX74: 0 | AY74: PAEF - PAP | BK74: 41791 | BL74: 1 | BM74: 17873 | BN74: 22
C75: 8001 | D75: BARRANQUILLA | E75: 0 | G75: Natural | H75: 8 | I75: ATLÁNTICO | J75: 0 | K75: 0 | L75: 7490 | M75: ACTIVIDADES PROFESIONALES, CIENTÍFICAS Y TÉCNICAS | N75: M | O75: Otras actividades profesionales, científicas y técnicas n.c.p. | P75: Otras actividades profesionales, científicas y técnicas n.c.p. | Q75: 0 | R75: 0 | S75: 0 | T75: No beneficiario | AF75: 0 | AG75: 0 | AH75: 11001 | AI75: BOGOTÁ, D.C. | AJ75: 0 | AK75: 0 | AL75: Natural | AM75: 11 | AN75: BOGOTÁ, D.C. | AO75: 0 | AP75: MICRO | AQ75: 1313 | AR75: INDUSTRIAS MANUFACTURERAS | AS75: C | AT75: Preparación, hilatura, tejeduría y acabado de productos textiles | AU75: Fabricación de productos textiles | AV75: 0 | AW75: 0 | AX75: 0 | AY75: No beneficiario | BK75: 52001 | BL75: 123 | BM75: 18001 | BN75: 21
C76: 11001 | D76: BOGOTÁ, D.C. | E76: 0 | G76: Natural | H76: 11 | I76: BOGOTÁ, D.C. | J76: 0 | K76: 0 | L76: 4729 | M76: COMERCIO AL POR MAYOR Y AL POR MENOR; REPARACIÓN DE VEHÍCULOS AUTOMOTORES Y MOTOCICLETAS | N76: G | O76: Comercio al por menor de alimentos (víveres en general), bebidas y tabaco, en establecimientos especializados | P76: Comercio al por menor de alimentos (víveres en general), bebidas y tabaco, en establecimientos especializados | Q76: 0 | R76: 0 | S76: 0 | T76: No beneficiario | AF76: 0 | AG76: 0 | AH76: 50001 | AI76: VILLAVICENCIO | AJ76: 3 | AK76: 0 | AL76: Natural | AM76: 50 | AN76: META | AO76: Aprobado con subsidio | AP76: MICRO | AQ76: 2395 | AR76: INDUSTRIAS MANUFACTURERAS | AS76: C | AT76: Fabricación de productos minerales no metálicos n.c.p. | AU76: Fabricación de otros productos minerales no metálicos | AV76: 0 | AW76: 3 | AX76: 0 | AY76: PAEF | BK76: 15469 | BL76: 6 | BM76: 54405 | BN76: 21
C77: 68001 | D77: BUCARAMANGA | E77: 0 | G77: Natural | H77: 68 | I77: SANTANDER | J77: Aprobado con subsidio | K77: MICRO | L77: 4751 | M77: COMERCIO AL POR MAYOR Y AL POR MENOR; REPARACIÓN DE VEHÍCULOS AUTOMOTORES Y MOTOCICLETAS | N77: G | O77: Comercio al por menor de otros enseres domésticos en establecimientos especializados | P77: Comercio al por menor de otros enseres domésticos en establecimientos especializados | Q77: 0 | R77: 0 | S77: 0 | T77: PAEF | AF77: 0 | AG77: 0 | AH77: 76834 | AI77: TULUÁ | AJ77: 87 | AK77: 0 | AL77: Natural | AM77: 76 | AN77: VALLE DEL CAUCA | AO77: Aprobado con subsidio | AP77: GRANDE | AQ77: 1072 | AR77: INDUSTRIAS MANUFACTURERAS | AS77: C | AT77: Elaboración de azúcar y panela | AU77: Elaboración de productos alimenticios | AV77: 15 | AW77: 72 | AX77: 0 | AY77: PARO | BK77: 52585 | BL77: 1 | BM77: 50006 | BN77: 20
C78: 68001 | D78: BUCARAMANGA | E78: 0 | G78: Natural | H78: 68 | I78: SANTANDER | J78: Aprobado con subsidio | K78: MICRO | L78: 4751 | M78: COMERCIO AL POR MAYOR Y AL POR MENOR; REPARACIÓN DE VEHÍCULOS AUTOMOTORES Y MOTOCICLETAS | N78: G | O78: Comercio al por menor de otros enseres domésticos en establecimientos especializados | P78: Comercio al por menor de otros enseres domésticos en establecimientos especializados | Q78: 0 | R78: 0 | S78: 0 | T78: PAEF | AF78: 0 | AG78: 0 | AH78: 25899 | AI78: ZIPAQUIRÁ | AJ78: 4 | AK78: 0 | AL78: Natural | AM78: 25 | AN78: CUNDINAMARCA | AO78: Aprobado con subsidio | AP78: MICRO | AQ78: 2392 | AR78: INDUSTRIAS MANUFACTURERAS | AS78: C | AT78: Fabricación de productos minerales no metálicos n.c.p. | AU78: Fabricación de otros productos minerales no metálicos | AV78: 0 | AW78: 4 | AX78: 0 | AY78: PAEF - PAP | BK78: 54405 | BL78: 21 | BM78: 25200 | BN78: 20
C79: 66001 | D79: PEREIRA | E79: 0 | G79: Natural | H79: 66 | I79: RISARALDA | J79: Aprobado con subsidio | K79: MICRO | L79: 9602 | M79: OTRAS ACTIVIDADES DE SERVICIOS | N79: S | O79: Otras actividades de servicios personales | P79: Otras actividades de servicios personales | Q79: 0 | R79: 0 | S79: 0 | T79: PAEF | AF79: 0 | AG79: 0 | AH79: 11001 | AI79: BOGOTÁ, D.C. | AJ79: 5 | AK79: 0 | AL79: Natural | AM79: 11 | AN79: BOGOTÁ, D.C. | AO79: Aprobado con subsidio | AP79: MICRO | AQ79: 1410 | AR79: INDUSTRIAS MANUFACTURERAS | AS79: C | AT79: Confección de prendas de vestir, excepto prendas de piel | AU79: Confección de prendas de vestir | AV79: 5 | AW79: 0 | AX79: 0 | AY79: PAEF - PAP | BK79: 68276 | BL79: 87 | BM79: 8433 | BN79: 20
C80: 13001 | D80: CARTAGENA | E80: 0 | G80: Natural | H80: 13 | I80: BOLÍVAR | J80: 0 | K80: 0 | L80: 5611 | M80: ALOJAMIENTO Y SERVICIOS DE COMIDA | N80: I | O80: Actividades de restaurantes, cafeterías y servicio móvil de comidas | P80: Actividades de restaurantes, cafeterías y servicio móvil de comidas | Q80: 0 | R80: 0 | S80: 0 | T80: No beneficiario | AF80: 0 | AG80: 0 | AH80: 25875 | AI80: VILLETA | AJ80: 18 | AK80: 0 | AL80: Natural | AM80: 25 | AN80: CUNDINAMARCA | AO80: Aprobado con subsidio | AP80: PEQUEÑA | AQ80: 1081 | AR80: INDUSTRIAS MANUFACTURERAS | AS80: C | AT80: Elaboración de otros productos alimenticios | AU80: Elaboración de productos alimenticios | AV80: 6 | AW80: 12 | AX80: 0 | AY80: PAEF - PAP - MICRO | BK80: 25214 | BL80: 146 | BM80: 13836 | BN80: 20
C81: 11001 | D81: BOGOTÁ, D.C. | E81: 10 | G81: Natural | H81: 11 | I81: BOGOTÁ, D.C. | J81: Aprobado con subsidio | K81: MICRO | L81: 4290 | M81: CONSTRUCCIÓN | N81: F | O81: Construcción de otras obras de ingeniería civil | P81: Construcción de otras obras de ingeniería civil | Q81: 2 | R81: 8 | S81: 0 | T81: PAEF - MICRO | AF81: 0 | AG81: 0 | AH81: 50226 | AI81: CUMARAL | AJ81: 9 | AK81: 0 | AL81: Natural | AM81: 50 | AN81: META | AO81: Aprobado con subsidio | AP81: MICRO | AQ81: 1081 | AR81: INDUSTRIAS MANUFACTURERAS | AS81: C | AT81: Elaboración de otros productos alimenticios | AU81: Elaboración de productos alimenticios | AV81: 6 | AW81: 3 | AX81: 0 | AY81: PAEF - PAP | BK81: 54874 | BL81: 29 | BM81: 88001 | BN81: 18
C82: 18001 | D82: FLORENCIA | E82: 0 | G82: Natural | H82: 18 | I82: CAQUETÁ | J82: 0 | K82: 0 | L82: 8621 | M82: ACTIVIDADES DE ATENCIÓN DE LA SALUD HUMANA Y DE ASISTENCIA SOCIAL | N82: Q | O82: Actividades de práctica médica y odontológica, sin internación | P82: Actividades de práctica médica y odontológica, sin internación | Q82: 0 | R82: 0 | S82: 0 | T82: No beneficiario | AF82: 0 | AG82: 0 | AH82: 11001 | AI82: BOGOTÁ, D.C. | AJ82: 11 | AK82: 0 | AL82: Natural | AM82: 11 | AN82: BOGOTÁ, D.C. | AO82: Aprobado con subsidio | AP82: PEQUEÑA | AQ82: 3290 | AR82: INDUSTRIAS MANUFACTURERAS | AS82: C | AT82: Otras industrias manufactureras n.c.p. | AU82: Otras industrias manufactureras | AV82: 4 | AW82: 7 | AX82: 0 | AY82: PAEF - PAP | BK82: 68147 | BL82: 2 | BM82: 25758 | BN82: 18
C83: 41001 | D83: NEIVA | E83: 0 | G83: Natural | H83: 41 | I83: HUILA | J83: Aprobado con subsidio | K83: MICRO | L83: 5611 | M83: ALOJAMIENTO Y SERVICIOS DE COMIDA | N83: I | O83: Actividades de restaurantes, cafeterías y servicio móvil de comidas | P83: Actividades de restaurantes, cafeterías y servicio móvil de comidas | Q83: 0 | R83: 0 | S83: 0 | T83: PAEF | AF83: 0 | AG83: 0 | AH83: 18001 | AI83: FLORENCIA | AJ83: 39 | AK83: 0 | AL83: Natural | AM83: 18 | AN83: CAQUETÁ | AO83: Aprobado con subsidio | AP83: PEQUEÑA | AQ83: 1081 | AR83: INDUSTRIAS MANUFACTURERAS | AS83: C | AT83: Elaboración de otros productos alimenticios | AU83: Elaboración de productos alimenticios | AV83: 19 | AW83: 20 | AX83: 0 | AY83: PAEF - PAP | BK83: 68755 | BL83: 7 | BM83: 52835 | BN83: 17
C84: 11001 | D84: BOGOTÁ, D.C. | E84: 0 | G84: Natural | H84: 11 | I84: BOGOTÁ, D.C. | J84: 0 | K84: 0 | L84: 5611 | M84: ALOJAMIENTO Y SERVICIOS DE COMIDA | N84: I | O84: Actividades de restaurantes, cafeterías y servicio móvil de comidas | P84: Actividades de restaurantes, cafeterías y servicio móvil de comidas | Q84: 0 | R84: 0 | S84: 0 | T84: No beneficiario | AF84: 0 | AG84: 0 | AH84: 5360 | AI84: ITAGUI | AJ84: 7 | AK84: 0 | AL84: Natural | AM84: 5 | AN84: ANTIOQUIA | AO84: Aprobado con subsidio | AP84: MICRO | AQ84: 1921 | AR84: INDUSTRIAS MANUFACTURERAS | AS84: C | AT84: Fabricación de productos de la refinación del petróleo | AU84: Coquización, fabricación de productos de la refinación del petróleo y actividad de mezcla de combustibles | AV84: 3 | AW84: 4 | AX84: 0 | AY84: PAEF - PAP | BK84: 68307 | BL84: 96 | BM84: 76364 | BN84: 17
C85: 88001 | D85: SAN ANDRÉS | E85: 3 | G85: Natural | H85: 88 | I85: ARCHIPIÉLAGO DE SAN ANDRÉS, PROVIDENCIA Y SANTA CATALINA | J85: Aprobado con subsidio | K85: MICRO | L85: 4773 | M85: COMERCIO AL POR MAYOR Y AL POR MENOR; REPARACIÓN DE VEHÍCULOS AUTOMOTORES Y MOTOCICLETAS | N85: G | O85: Comercio al por menor de otros productos en establecimientos especializados | P85: Comercio al por menor de otros productos en establecimientos especializados | Q85: 3 | R85: 0 | S85: 0 | T85: PAEF - PAP | AF85: 0 | AG85: 0 | AH85: 5001 | AI85: MEDELLÍN | AJ85: 6 | AK85: 0 | AL85: Natural | AM85: 5 | AN85: ANTIOQUIA | AO85: Aprobado con subsidio | AP85: MICRO | AQ85: 2512 | AR85: INDUSTRIAS MANUFACTURERAS | AS85: C | AT85: Fabricación de productos metálicos para uso estructural, tanques, depósitos y generadores de vapor. | AU85: Fabricación de productos elaborados de metal, excepto maquinaria y equipo | AV85: 2 | AW85: 4 | AX85: 0 | AY85: PAEF - PAP | BK85: 68679 | BL85: 26 | BM85: 25307 | BN85: 15
C86: 8001 | D86: BARRANQUILLA | E86: 0 | G86: Natural | H86: 8 | I86: ATLÁNTICO | J86: 0 | K86: 0 | L86: 8621 | M86: ACTIVIDADES DE ATENCIÓN DE LA SALUD HUMANA Y DE ASISTENCIA SOCIAL | N86: Q | O86: Actividades de práctica médica y odontológica, sin internación | P86: Actividades de práctica médica y odontológica, sin internación | Q86: 0 | R86: 0 | S86: 0 | T86: No beneficiario | AF86: 0 | AG86: 0 | AH86: 5088 | AI86: BELLO | AJ86: 0 | AK86: 0 | AL86: Natural | AM86: 5 | AN86: ANTIOQUIA | AO86: 0 | AP86: MICRO | AQ86: 1630 | AR86: INDUSTRIAS MANUFACTURERAS | AS86: C | AT86: Fabricación de partes y piezas de madera, de carpintería y ebanistería para la construcción | AU86: Transformación de la madera y fabricación de productos de madera y de corcho, excepto muebles; fabricación de artículos de cestería y espartería | AV86: 0 | AW86: 0 | AX86: 0 | AY86: No beneficiario | BK86: 68547 | BL86: 30 | BM86: 5686 | BN86: 15
C87: 44430 | D87: MAICAO | E87: 0 | G87: Natural | H87: 44 | I87: LA GUAJIRA | J87: 0 | K87: 0 | L87: 4772 | M87: COMERCIO AL POR MAYOR Y AL POR MENOR; REPARACIÓN DE VEHÍCULOS AUTOMOTORES Y MOTOCICLETAS | N87: G | O87: Comercio al por menor de otros productos en establecimientos especializados | P87: Comercio al por menor de otros productos en establecimientos especializados | Q87: 0 | R87: 0 | S87: 0 | T87: No beneficiario | AF87: 0 | AG87: 0 | AH87: 5001 | AI87: MEDELLÍN | AJ87: 8 | AK87: 0 | AL87: Natural | AM87: 5 | AN87: ANTIOQUIA | AO87: Aprobado con subsidio | AP87: MICRO | AQ87: 1811 | AR87: INDUSTRIAS MANUFACTURERAS | AS87: C | AT87: Actividades de impresión y actividades de servicios relacionados con la impresión | AU87: Actividades de impresión y de producción de copias a partir de grabaciones originales | AV87: 1 | AW87: 7 | AX87: 0 | AY87: PAEF | BK87: 68861 | BL87: 8 | BM87: 5030 | BN87: 15
C88: 76001 | D88: CALI | E88: 0 | G88: Natural | H88: 76 | I88: VALLE DEL CAUCA | J88: 0 | K88: MICRO | L88: 7010 | M88: ACTIVIDADES PROFESIONALES, CIENTÍFICAS Y TÉCNICAS | N88: M | O88: Actividades de administración empresarial | P88: Actividades de administración empresarial | Q88: 0 | R88: 0 | S88: 0 | T88: No beneficiario | AF88: 0 | AG88: 0 | AH88: 5001 | AI88: MEDELLÍN | AJ88: 40 | AK88: 0 | AL88: Natural | AM88: 5 | AN88: ANTIOQUIA | AO88: Aprobado con subsidio | AP88: PEQUEÑA | AQ88: 3290 | AR88: INDUSTRIAS MANUFACTURERAS | AS88: C | AT88: Otras industrias manufactureras n.c.p. | AU88: Otras industrias manufactureras | AV88: 8 | AW88: 32 | AX88: 0 | AY88: PAEF - MICRO | BK88: 73124 | BL88: 2 | BM88: 15516 | BN88: 14
C89: 11001 | D89: BOGOTÁ, D.C. | E89: 0 | G89: Natural | H89: 11 | I89: BOGOTÁ, D.C. | J89: 0 | K89: 0 | L89: 5611 | M89: ALOJAMIENTO Y SERVICIOS DE COMIDA | N89: I | O89: Actividades de restaurantes, cafeterías y servicio móvil de comidas | P89: Actividades de restaurantes, cafeterías y servicio móvil de comidas | Q89: 0 | R89: 0 | S89: 0 | T89: No beneficiario | AF89: 0 | AG89: 0 | AH89: 5001 | AI89: MEDELLÍN | AJ89: 4 | AK89: 0 | AL89: Natural | AM89: 5 | AN89: ANTIOQUIA | AO89: Aprobado con subsidio | AP89: MICRO | AQ89: 1313 | AR89: INDUSTRIAS MANUFACTURERAS | AS89: C | AT89: Preparación, hilatura, tejeduría y acabado de productos textiles | AU89: Fabricación de productos textiles | AV89: 1 | AW89: 3 | AX89: 0 | AY89: PAEF - PAP | BK89: 86001 | BL89: 7 | BM89: 76109 | BN89: 14
C90: 76001 | D90: CALI | E90: 0 | G90: Natural | H90: 76 | I90: VALLE DEL CAUCA | J90: 0 | K90: 0 | L90: 8621 | M90: ACTIVIDADES DE ATENCIÓN DE LA SALUD HUMANA Y DE ASISTENCIA SOCIAL | N90: Q | O90: Actividades de práctica médica y odontológica, sin internación | P90: Actividades de práctica médica y odontológica, sin internación | Q90: 0 | R90: 0 | S90: 0 | T90: No beneficiario | AF90: 0 | AG90: 0 | AH90: 5001 | AI90: MEDELLÍN | AJ90: 4 | AK90: 0 | AL90: Natural | AM90: 5 | AN90: ANTIOQUIA | AO90: Aprobado con subsidio | AP90: MICRO | AQ90: 1081 | AR90: INDUSTRIAS MANUFACTURERAS | AS90: C | AT90: Elaboración de otros productos alimenticios | AU90: Elaboración de productos alimenticios | AV90: 4 | AW90: 0 | AX90: 0 | AY90: PAEF - PAP - MICRO | BK90: 76109 | BL90: 14 | BM90: 19573 | BN90: 14
C91: 25317 | D91: GUACHETÁ | E91: 10 | G91: Natural | H91: 25 | I91: CUNDINAMARCA | J91: Aprobado con subsidio | K91: MICRO | L91: 510 | M91: EXPLOTACIÓN DE MINAS Y CANTERAS | N91: B | O91: Extracción de hulla (carbón de piedra) | P91: Extracción de hulla (carbón de piedra) | Q91: 0 | R91: 10 | S91: 0 | T91: PAEF - PAP - MICRO | AF91: 0 | AG91: 0 | AH91: 5376 | AI91: LA CEJA | AJ91: 4 | AK91: 0 | AL91: Natural | AM91: 5 | AN91: ANTIOQUIA | AO91: Aprobado con subsidio | AP91: MICRO | AQ91: 2599 | AR91: INDUSTRIAS MANUFACTURERAS | AS91: C | AT91: Fabricación de otros productos elaborados de metal y actividades de servicios relacionadas con el trabajo de metales | AU91: Fabricación de productos elaborados de metal, excepto maquinaria y equipo | AV91: 1 | AW91: 3 | AX91: 0 | AY91: PAEF - PAP - MICRO | BK91: 76130 | BL91: 61 | BM91: 73268 | BN91: 13
C92: 41668 | D92: SAN AGUSTÍN | E92: 8 | G92: Natural | H92: 41 | I92: HUILA | J92: Aprobado con subsidio | K92: MICRO | L92: 5511 | M92: ALOJAMIENTO Y SERVICIOS DE COMIDA | N92: I | O92: Actividades de alojamiento de estancias cortas | P92: Actividades de alojamiento de estancias cortas | Q92: 7 | R92: 1 | S92: 0 | T92: PAEF - PAP | AF92: 0 | AG92: 0 | AH92: 5001 | AI92: MEDELLÍN | AJ92: 4 | AK92: 0 | AL92: Natural | AM92: 5 | AN92: ANTIOQUIA | AO92: Aprobado con subsidio | AP92: MICRO | AQ92: 1392 | AR92: INDUSTRIAS MANUFACTURERAS | AS92: C | AT92: Fabricación de otros productos textiles | AU92: Fabricación de productos textiles | AV92: 4 | AW92: 0 | AX92: 0 | AY92: PAEF - PAP - MICRO | BK92: 76248 | BL92: 12 | BM92: 25740 | BN92: 13
C93: 25019 | D93: ALBÁN | E93: 9 | G93: Natural | H93: 25 | I93: CUNDINAMARCA | J93: Aprobado con subsidio | K93: MICRO | L93: 145 | M93: AGRICULTURA, GANADERÍA, CAZA, SILVICULTURA Y PESCA | N93: A | O93: Ganadería | P93: Ganadería | Q93: 0 | R93: 9 | S93: 0 | T93: PAEF - PAP | AF93: 0 | AG93: 0 | AH93: 5001 | AI93: MEDELLÍN | AJ93: 6 | AK93: 0 | AL93: Natural | AM93: 5 | AN93: ANTIOQUIA | AO93: Aprobado con subsidio | AP93: MICRO | AQ93: 3240 | AR93: INDUSTRIAS MANUFACTURERAS | AS93: C | AT93: Fabricación de juegos, juguetes y rompecabezas | AU93: Otras industrias manufactureras | AV93: 4 | AW93: 2 | AX93: 0 | AY93: PAEF - PAP - MICRO | BK93: 5172 | BL93: 7 | BM93: 85440 | BN93: 13
C94: 25328 | D94: GUAYABAL DE SIQUIMA | E94: 5 | G94: Natural | H94: 25 | I94: CUNDINAMARCA | J94: Aprobado con subsidio | K94: MICRO | L94: 145 | M94: AGRICULTURA, GANADERÍA, CAZA, SILVICULTURA Y PESCA | N94: A | O94: Ganadería | P94: Ganadería | Q94: 1 | R94: 4 | S94: 0 | T94: PAEF - PAP | AF94: 0 | AG94: 0 | AH94: 5001 | AI94: MEDELLÍN | AJ94: 45 | AK94: 0 | AL94: Natural | AM94: 5 | AN94: ANTIOQUIA | AO94: Aprobado con subsidio | AP94: PEQUEÑA | AQ94: 1690 | AR94: INDUSTRIAS MANUFACTURERAS | AS94: C | AT94: Fabricación de otros productos de madera; fabricación de artículos de corcho, cestería y espartería | AU94: Transformación de la madera y fabricación de productos de madera y de corcho, excepto muebles; fabricación de artículos de cestería y espartería | AV94: 8 | AW94: 37 | AX94: 0 | AY94: PAEF - PAP | BK94: 76377 | BL94: 1 | BM94: 5154 | BN94: 13
C95: 20001 | D95: VALLEDUPAR | E95: 0 | G95: Natural | H95: 20 | I95: CESAR | J95: Aprobado con subsidio | K95: MICRO | L95: 4751 | M95: COMERCIO AL POR MAYOR Y AL POR MENOR; REPARACIÓN DE VEHÍCULOS AUTOMOTORES Y MOTOCICLETAS | N95: G | O95: Comercio al por menor de otros enseres domésticos en establecimientos especializados | P95: Comercio al por menor de otros enseres domésticos en establecimientos especializados | Q95: 0 | R95: 0 | S95: 0 | T95: PAEF | AF95: 0 | AG95: 0 | AH95: 5001 | AI95: MEDELLÍN | AJ95: 8 | AK95: 0 | AL95: Natural | AM95: 5 | AN95: ANTIOQUIA | AO95: Aprobado con subsidio | AP95: MICRO | AQ95: 3110 | AR95: INDUSTRIAS MANUFACTURERAS | AS95: C | AT95: Fabricación de muebles | AU95: Fabricación de muebles, colchones y somieres | AV95: 2 | AW95: 6 | AX95: 0 | AY95: PAEF - PAP - MICRO | BK95: 76520 | BL95: 185 | BM95: 25843 | BN95: 12
C96: 25001 | D96: AGUA DE DIOS | E96: 7 | G96: Natural | H96: 25 | I96: CUNDINAMARCA | J96: Aprobado con subsidio | K96: MICRO | L96: 145 | M96: AGRICULTURA, GANADERÍA, CAZA, SILVICULTURA Y PESCA | N96: A | O96: Ganadería | P96: Ganadería | Q96: 3 | R96: 4 | S96: 0 | T96: PAEF - PAP | AF96: 0 | AG96: 0 | AH96: 5001 | AI96: MEDELLÍN | AJ96: 108 | AK96: 0 | AL96: Natural | AM96: 5 | AN96: ANTIOQUIA | AO96: Aprobado con subsidio | AP96: MEDIANA | AQ96: 1084 | AR96: INDUSTRIAS MANUFACTURERAS | AS96: C | AT96: Elaboración de otros productos alimenticios | AU96: Elaboración de productos alimenticios | AV96: 49 | AW96: 59 | AX96: 0 | AY96: PAEF - PAP | BK96: 76563 | BL96: 5 | BM96: 76248 | BN96: 12
C97: 76001 | D97: CALI | E97: 0 | G97: Natural | H97: 76 | I97: VALLE DEL CAUCA | J97: 0 | K97: 0 | L97: 5612 | M97: ALOJAMIENTO Y SERVICIOS DE COMIDA | N97: I | O97: Actividades de restaurantes, cafeterías y servicio móvil de comidas | P97: Actividades de restaurantes, cafeterías y servicio móvil de comidas | Q97: 0 | R97: 0 | S97: 0 | T97: No beneficiario | AF97: 0 | AG97: 0 | AH97: 5148 | AI97: EL CARMEN DE VIBORAL | AJ97: 5 | AK97: 0 | AL97: Natural | AM97: 5 | AN97: ANTIOQUIA | AO97: Aprobado con subsidio | AP97: MICRO | AQ97: 1630 | AR97: INDUSTRIAS MANUFACTURERAS | AS97: C | AT97: Fabricación de partes y piezas de madera, de carpintería y ebanistería para la construcción | AU97: Transformación de la madera y fabricación de productos de madera y de corcho, excepto muebles; fabricación de artículos de cestería y espartería | AV97: 0 | AW97: 5 | AX97: 0 | AY97: PAEF - PAP | BK97: 76869 | BL97: 5 | BM97: 41524 | BN97: 12
C98: 44430 | D98: MAICAO | E98: 0 | G98: Natural | H98: 44 | I98: LA GUAJIRA | J98: Aprobado con subsidio | K98: MICRO | L98: 4530 | M98: COMERCIO AL POR MAYOR Y AL POR MENOR; REPARACIÓN DE VEHÍCULOS AUTOMOTORES Y MOTOCICLETAS | N98: G | O98: Comercio de partes, piezas (autopartes) y accesorios (lujos) para vehículos automotores | P98: Comercio de partes, piezas (autopartes) y accesorios (lujos) para vehículos automotores | Q98: 0 | R98: 0 | S98: 0 | T98: PAEF | AF98: 0 | AG98: 0 | AH98: 5360 | AI98: ITAGUI | AJ98: 6 | AK98: 0 | AL98: Natural | AM98: 5 | AN98: ANTIOQUIA | AO98: Aprobado con subsidio | AP98: MICRO | AQ98: 2821 | AR98: INDUSTRIAS MANUFACTURERAS | AS98: C | AT98: Fabricación de maquinaria y equipo de uso especial | AU98: Fabricación de maquinaria y equipo n.c.p. | AV98: 1 | AW98: 5 | AX98: 0 | AY98: PAEF - PAP | BK98: 5212 | BL98: 105 | BM98: 5664 | BN98: 12
C99: 73001 | D99: IBAGUÉ | E99: 0 | G99: Natural | H99: 73 | I99: TOLIMA | J99: 0 | K99: 0 | L99: 4759 | M99: COMERCIO AL POR MAYOR Y AL POR MENOR; REPARACIÓN DE VEHÍCULOS AUTOMOTORES Y MOTOCICLETAS | N99: G | O99: Comercio al por menor de otros enseres domésticos en establecimientos especializados | P99: Comercio al por menor de otros enseres domésticos en establecimientos especializados | Q99: 0 | R99: 0 | S99: 0 | T99: No beneficiario | AF99: 0 | AG99: 0 | AH99: 5237 | AI99: DON MATÍAS | AJ99: 7 | AK99: 0 | AL99: Natural | AM99: 5 | AN99: ANTIOQUIA | AO99: Aprobado con subsidio | AP99: MICRO | AQ99: 3110 | AR99: INDUSTRIAS MANUFACTURERAS | AS99: C | AT99: Fabricación de muebles | AU99: Fabricación de muebles, colchones y somieres | AV99: 0 | AW99: 7 | AX99: 0 | AY99: PAEF - PAP | BK99: 15001 | BL99: 54 | BM99: 25377 | BN99: 12
C100: 8001 | D100: BARRANQUILLA | E100: 0 | G100: Natural | H100: 8 | I100: ATLÁNTICO | J100: Aprobado con subsidio | K100: MICRO | L100: 5611 | M100: ALOJAMIENTO Y SERVICIOS DE COMIDA | N100: I | O100: Actividades de restaurantes, cafeterías y servicio móvil de comidas | P100: Actividades de restaurantes, cafeterías y servicio móvil de comidas | Q100: 0 | R100: 0 | S100: 0 | T100: PAEF | AF100: 0 | AG100: 0 | AH100: 5001 | AI100: MEDELLÍN | AJ100: 4 | AK100: 0 | AL100: Natural | AM100: 5 | AN100: ANTIOQUIA | AO100: Aprobado con subsidio | AP100: MICRO | AQ100: 3110 | AR100: INDUSTRIAS MANUFACTURERAS | AS100: C | AT100: Fabricación de muebles | AU100: Fabricación de muebles, colchones y somieres | AV100: 0 | AW100: 4 | AX100: 0 | AY100: PAP | BK100: 41001 | BL100: 150 | BM100: 81001 | BN100: 12
C101: 5001 | D101: MEDELLÍN | E101: 0 | G101: Natural | H101: 5 | I101: ANTIOQUIA | J101: Aprobado con subsidio | K101: MICRO | L101: 5611 | M101: ALOJAMIENTO Y SERVICIOS DE COMIDA | N101: I | O101: Actividades de restaurantes, cafeterías y servicio móvil de comidas | P101: Actividades de restaurantes, cafeterías y servicio móvil de comidas | Q101: 0 | R101: 0 | S101: 0 | T101: PAEF | AF101: 0 | AG101: 0 | AH101: 5001 | AI101: MEDELLÍN | AJ101: 0 | AK101: 0 | AL101: Natural | AM101: 5 | AN101: ANTIOQUIA | AO101: 0 | AP101: MICRO | AQ101: 1081 | AR101: INDUSTRIAS MANUFACTURERAS | AS101: C | AT101: Elaboración de otros productos alimenticios | AU101: Elaboración de productos alimenticios | AV101: 0 | AW101: 0 | AX101: 0 | AY101: No beneficiario | BK101: 70001 | BL101: 43 | BM101: 54518 | BN101: 11
C102: 25402 | D102: LA VEGA | E102: 11 | G102: Natural | H102: 25 | I102: CUNDINAMARCA | J102: Aprobado con subsidio | K102: PEQUEÑA | L102: 4731 | M102: COMERCIO AL POR MAYOR Y AL POR MENOR; REPARACIÓN DE VEHÍCULOS AUTOMOTORES Y MOTOCICLETAS | N102: G | O102: Comercio al por menor de combustible, lubricantes, aditivos y productos de limpieza para automotores, en establecimientos especializados | P102: Comercio al por menor de combustible, lubricantes, aditivos y productos de limpieza para automotores, en establecimientos especializados | Q102: 2 | R102: 9 | S102: 0 | T102: PAEF - PAP | AF102: 0 | AG102: 0 | AH102: 5308 | AI102: GIRARDOTA | AJ102: 0 | AK102: 0 | AL102: Natural | AM102: 5 | AN102: ANTIOQUIA | AO102: 0 | AP102: MICRO | AQ102: 1410 | AR102: INDUSTRIAS MANUFACTURERAS | AS102: C | AT102: Confección de prendas de vestir, excepto prendas de piel | AU102: Confección de prendas de vestir | AV102: 0 | AW102: 0 | AX102: 0 | AY102: No beneficiario | BK102: 23162 | BL102: 9 | BM102: 17174 | BN102: 11
C103: 23001 | D103: MONTERÍA | E103: 0 | G103: Natural | H103: 23 | I103: CÓRDOBA | J103: 0 | K103: 0 | L103: 5611 | M103: ALOJAMIENTO Y SERVICIOS DE COMIDA | N103: I | O103: Actividades de restaurantes, cafeterías y servicio móvil de comidas | P103: Actividades de restaurantes, cafeterías y servicio móvil de comidas | Q103: 0 | R103: 0 | S103: 0 | T103: No beneficiario | AF103: 0 | AG103: 0 | AH103: 5321 | AI103: GUATAPE | AJ103: 15 | AK103: 0 | AL103: Natural | AM103: 5 | AN103: ANTIOQUIA | AO103: Aprobado con subsidio | AP103: PEQUEÑA | AQ103: 1630 | AR103: INDUSTRIAS MANUFACTURERAS | AS103: C | AT103: Fabricación de partes y piezas de madera, de carpintería y ebanistería para la construcción | AU103: Transformación de la madera y fabricación de productos de madera y de corcho, excepto muebles; fabricación de artículos de cestería y espartería | AV103: 5 | AW103: 10 | AX103: 0 | AY103: PAEF | BK103: 23466 | BL103: 5 | BM103: 19300 | BN103: 11
C104: 68001 | D104: BUCARAMANGA | E104: 0 | G104: Natural | H104: 68 | I104: SANTANDER | J104: Aprobado con subsidio | K104: MICRO | L104: 4751 | M104: COMERCIO AL POR MAYOR Y AL POR MENOR; REPARACIÓN DE VEHÍCULOS AUTOMOTORES Y MOTOCICLETAS | N104: G | O104: Comercio al por menor de otros enseres domésticos en establecimientos especializados | P104: Comercio al por menor de otros enseres domésticos en establecimientos especializados | Q104: 0 | R104: 0 | S104: 0 | T104: PAEF | AF104: 0 | AG104: 0 | AH104: 5001 | AI104: MEDELLÍN | AJ104: 7 | AK104: 0 | AL104: Natural | AM104: 5 | AN104: ANTIOQUIA | AO104: Aprobado con subsidio | AP104: MICRO | AQ104: 2511 | AR104: INDUSTRIAS MANUFACTURERAS | AS104: C | AT104: Fabricación de productos metálicos para uso estructural, tanques, depósitos y generadores de vapor. | AU104: Fabricación de productos elaborados de metal, excepto maquinaria y equipo | AV104: 2 | AW104: 5 | AX104: 0 | AY104: PAEF - PAP - MICRO | BK104: 15693 | BL104: 2 | BM104: 63401 | BN104: 10
C105: 5001 | D105: MEDELLÍN | E105: 0 | G105: Natural | H105: 5 | I105: ANTIOQUIA | J105: Aprobado con subsidio | K105: MICRO | L105: 5611 | M105: ALOJAMIENTO Y SERVICIOS DE COMIDA | N105: I | O105: Actividades de restaurantes, cafeterías y servicio móvil de comidas | P105: Actividades de restaurantes, cafeterías y servicio móvil de comidas | Q105: 0 | R105: 0 | S105: 0 | T105: PAEF | AF105: 0 | AG105: 0 | AH105: 76895 | AI105: ZARZAL | AJ105: 34 | AK105: 0 | AL105: Natural | AM105: 76 | AN105: VALLE DEL CAUCA | AO105: Aprobado con subsidio | AP105: PEQUEÑA | AQ105: 1081 | AR105: INDUSTRIAS MANUFACTURERAS | AS105: C | AT105: Elaboración de otros productos alimenticios | AU105: Elaboración de productos alimenticios | AV105: 24 | AW105: 10 | AX105: 0 | AY105: PAEF - PAP - MICRO | BK105: 15572 | BL105: 5 | BM105: 15646 | BN105: 10
C106: 11001 | D106: BOGOTÁ, D.C. | E106: 0 | G106: Natural | H106: 11 | I106: BOGOTÁ, D.C. | J106: 0 | K106: 0 | L106: 4711 | M106: COMERCIO AL POR MAYOR Y AL POR MENOR; REPARACIÓN DE VEHÍCULOS AUTOMOTORES Y MOTOCICLETAS | N106: G | O106: Comercio al por menor en establecimientos no especializados | P106: Comercio al por menor en establecimientos no especializados | Q106: 0 | R106: 0 | S106: 0 | T106: No beneficiario | AF106: 0 | AG106: 0 | AH106: 76001 | AI106: CALI | AJ106: 5 | AK106: 0 | AL106: Natural | AM106: 76 | AN106: VALLE DEL CAUCA | AO106: Aprobado con subsidio | AP106: MICRO | AQ106: 1081 | AR106: INDUSTRIAS MANUFACTURERAS | AS106: C | AT106: Elaboración de otros productos alimenticios | AU106: Elaboración de productos alimenticios | AV106: 2 | AW106: 3 | AX106: 0 | AY106: PAEF - PAP - MICRO | BK106: 5318 | BL106: 69 | BM106: 44001 | BN106: 10
C107: 52356 | D107: IPIALES | E107: 0 | G107: Natural | H107: 52 | I107: NARIÑO | J107: Aprobado con subsidio | K107: MICRO | L107: 5511 | M107: ALOJAMIENTO Y SERVICIOS DE COMIDA | N107: I | O107: Actividades de alojamiento de estancias cortas | P107: Actividades de alojamiento de estancias cortas | Q107: 0 | R107: 0 | S107: 0 | T107: PAEF | AF107: 0 | AG107: 0 | AH107: 5088 | AI107: BELLO | AJ107: 15 | AK107: 0 | AL107: Natural | AM107: 5 | AN107: ANTIOQUIA | AO107: Aprobado con subsidio | AP107: PEQUEÑA | AQ107: 1081 | AR107: INDUSTRIAS MANUFACTURERAS | AS107: C | AT107: Elaboración de otros productos alimenticios | AU107: Elaboración de productos alimenticios | AV107: 6 | AW107: 9 | AX107: 0 | AY107: PAEF - PAP | BK107: 18592 | BL107: 1 | BM107: 23162 | BN107: 9
C108: 11001 | D108: BOGOTÁ, D.C. | E108: 11 | G108: Natural | H108: 11 | I108: BOGOTÁ, D.C. | J108: Aprobado con subsidio | K108: MICRO | L108: 5611 | M108: ALOJAMIENTO Y SERVICIOS DE COMIDA | N108: I | O108: Actividades de restaurantes, cafeterías y servicio móvil de comidas | P108: Actividades de restaurantes, cafeterías y servicio móvil de comidas | Q108: 9 | R108: 2 | S108: 0 | T108: PAEF - PAP | AF108: 0 | AG108: 0 | AH108: 11001 | AI108: BOGOTÁ, D.C. | AJ108: 12 | AK108: 0 | AL108: Natural | AM108: 11 | AN108: BOGOTÁ, D.C. | AO108: Aprobado con subsidio | AP108: MICRO | AQ108: 1410 | AR108: INDUSTRIAS MANUFACTURERAS | AS108: C | AT108: Confección de prendas de vestir, excepto prendas de piel | AU108: Confección de prendas de vestir | AV108: 7 | AW108: 5 | AX108: 0 | AY108: PAEF - PAP - MICRO | BK108: 41524 | BL108: 12 | BM108: 17380 | BN108: 9
C109: 47001 | D109: SANTA MARTA | E109: 0 | G109: Natural | H109: 47 | I109: MAGDALENA | J109: 0 | K109: 0 | L109: 5611 | M109: ALOJAMIENTO Y SERVICIOS DE COMIDA | N109: I | O109: Actividades de restaurantes, cafeterías y servicio móvil de comidas | P109: Actividades de restaurantes, cafeterías y servicio móvil de comidas | Q109: 0 | R109: 0 | S109: 0 | T109: No beneficiario | AF109: 0 | AG109: 0 | AH109: 76001 | AI109: CALI | AJ109: 225 | AK109: 0 | AL109: Natural | AM109: 76 | AN109: VALLE DEL CAUCA | AO109: Aprobado con subsidio | AP109: GRANDE | AQ109: 1081 | AR109: INDUSTRIAS MANUFACTURERAS | AS109: C | AT109: Elaboración de otros productos alimenticios | AU109: Elaboración de productos alimenticios | AV109: 134 | AW109: 91 | AX109: 0 | AY109: PAEF - PAP | BK109: 18460 | BL109: 1 | BM109: 27001 | BN109: 9
C110: 5001 | D110: MEDELLÍN | E110: 8 | G110: Natural | H110: 5 | I110: ANTIOQUIA | J110: Aprobado con subsidio | K110: MICRO | L110: 4723 | M110: COMERCIO AL POR MAYOR Y AL POR MENOR; REPARACIÓN DE VEHÍCULOS AUTOMOTORES Y MOTOCICLETAS | N110: G | O110: Comercio al por menor de alimentos (víveres en general), bebidas y tabaco, en establecimientos especializados | P110: Comercio al por menor de alimentos (víveres en general), bebidas y tabaco, en establecimientos especializados | Q110: 1 | R110: 7 | S110: 0 | T110: PAEF - PAP - MICRO | AF110: 0 | AG110: 0 | AH110: 76001 | AI110: CALI | AJ110: 28 | AK110: 0 | AL110: Natural | AM110: 76 | AN110: VALLE DEL CAUCA | AO110: Aprobado con subsidio | AP110: PEQUEÑA | AQ110: 1081 | AR110: INDUSTRIAS MANUFACTURERAS | AS110: C | AT110: Elaboración de otros productos alimenticios | AU110: Elaboración de productos alimenticios | AV110: 15 | AW110: 13 | AX110: 0 | AY110: PAEF - PAP - MICRO | BK110: 95001 | BL110: 6 | BM110: 41298 | BN110: 9
C111: 5088 | D111: BELLO | E111: 2 | G111: Natural | H111: 5 | I111: ANTIOQUIA | J111: Aprobado con subsidio | K111: MICRO | L111: 8291 | M111: ACTIVIDADES DE SERVICIOS ADMINISTRATIVOS Y DE APOYO | N111: N | O111: Actividades de servicios de apoyo a las empresas n.c.p. | P111: Actividades de servicios de apoyo a las empresas n.c.p. | Q111: 2 | R111: 0 | S111: 0 | T111: PAEF | AF111: 0 | AG111: 0 | AH111: 5001 | AI111: MEDELLÍN | AJ111: 10 | AK111: 0 | AL111: Natural | AM111: 5 | AN111: ANTIOQUIA | AO111: Aprobado con subsidio | AP111: MICRO | AQ111: 1410 | AR111: INDUSTRIAS MANUFACTURERAS | AS111: C | AT111: Confección de prendas de vestir, excepto prendas de piel | AU111: Confección de prendas de vestir | AV111: 7 | AW111: 3 | AX111: 0 | AY111: PAEF - PAP | BK111: 5079 | BL111: 26 | BM111: 68655 | BN111: 9
C112: 5001 | D112: MEDELLÍN | E112: 0 | G112: Natural | H112: 5 | I112: ANTIOQUIA | J112: 0 | K112: 0 | L112: 2511 | M112: INDUSTRIAS MANUFACTURERAS | N112: C | O112: Fabricación de productos metálicos para uso estructural, tanques, depósitos y generadores de vapor. | P112: Fabricación de productos elaborados de metal, excepto maquinaria y equipo | Q112: 0 | R112: 0 | S112: 0 | T112: No beneficiario | AF112: 0 | AG112: 0 | AH112: 5001 | AI112: MEDELLÍN | AJ112: 6 | AK112: 0 | AL112: Natural | AM112: 5 | AN112: ANTIOQUIA | AO112: Aprobado con subsidio | AP112: PEQUEÑA | AQ112: 1081 | AR112: INDUSTRIAS MANUFACTURERAS | AS112: C | AT112: Elaboración de otros productos alimenticios | AU112: Elaboración de productos alimenticios | AV112: 3 | AW112: 3 | AX112: 0 | AY112: PAEF - PAP | BK112: 5045 | BL112: 41 | BM112: 19845 | BN112: 9
C113: 68001 | D113: BUCARAMANGA | E113: 0 | G113: Natural | H113: 68 | I113: SANTANDER | J113: Aprobado con subsidio | K113: MICRO | L113: 5611 | M113: ALOJAMIENTO Y SERVICIOS DE COMIDA | N113: I | O113: Actividades de restaurantes, cafeterías y servicio móvil de comidas | P113: Actividades de restaurantes, cafeterías y servicio móvil de comidas | Q113: 0 | R113: 0 | S113: 0 | T113: PAEF | AF113: 0 | AG113: 0 | AH113: 5001 | AI113: MEDELLÍN | AJ113: 3 | AK113: 0 | AL113: Natural | AM113: 5 | AN113: ANTIOQUIA | AO113: Aprobado con subsidio | AP113: MICRO | AQ113: 3120 | AR113: INDUSTRIAS MANUFACTURERAS | AS113: C | AT113: Fabricación de colchones y somieres | AU113: Fabricación de muebles, colchones y somieres | AV113: 0 | AW113: 3 | AX113: 0 | AY113: PAEF | BK113: 5686 | BL113: 15 | BM113: 68861 | BN113: 8
C114: 13001 | D114: CARTAGENA | E114: 0 | G114: Natural | H114: 13 | I114: BOLÍVAR | J114: 0 | K114: 0 | L114: 5611 | M114: ALOJAMIENTO Y SERVICIOS DE COMIDA | N114: I | O114: Actividades de restaurantes, cafeterías y servicio móvil de comidas | P114: Actividades de restaurantes, cafeterías y servicio móvil de comidas | Q114: 0 | R114: 0 | S114: 0 | T114: No beneficiario | AF114: 0 | AG114: 0 | AH114: 5001 | AI114: MEDELLÍN | AJ114: 4 | AK114: 0 | AL114: Natural | AM114: 5 | AN114: ANTIOQUIA | AO114: Aprobado con subsidio | AP114: MICRO | AQ114: 1410 | AR114: INDUSTRIAS MANUFACTURERAS | AS114: C | AT114: Confección de prendas de vestir, excepto prendas de piel | AU114: Confección de prendas de vestir | AV114: 4 | AW114: 0 | AX114: 0 | AY114: PAEF | BK114: 5129 | BL114: 68 | BM114: 15491 | BN114: 8
C115: 5001 | D115: MEDELLÍN | E115: 9 | G115: Natural | H115: 5 | I115: ANTIOQUIA | J115: Aprobado con subsidio | K115: MICRO | L115: 5519 | M115: ALOJAMIENTO Y SERVICIOS DE COMIDA | N115: I | O115: Actividades de alojamiento de estancias cortas | P115: Actividades de alojamiento de estancias cortas | Q115: 6 | R115: 3 | S115: 0 | T115: PAEF - PAP | AF115: 0 | AG115: 0 | AH115: 5615 | AI115: RIONEGRO | AJ115: 19 | AK115: 0 | AL115: Natural | AM115: 5 | AN115: ANTIOQUIA | AO115: Aprobado con subsidio | AP115: PEQUEÑA | AQ115: 2395 | AR115: INDUSTRIAS MANUFACTURERAS | AS115: C | AT115: Fabricación de productos minerales no metálicos n.c.p. | AU115: Fabricación de otros productos minerales no metálicos | AV115: 1 | AW115: 18 | AX115: 0 | AY115: PAEF | BK115: 5266 | BL115: 242 | BM115: 66400 | BN115: 8
C116: 63001 | D116: ARMENIA | E116: 0 | G116: Natural | H116: 63 | I116: QUINDÍO | J116: Aprobado con subsidio | K116: MICRO | L116: 5611 | M116: ALOJAMIENTO Y SERVICIOS DE COMIDA | N116: I | O116: Actividades de restaurantes, cafeterías y servicio móvil de comidas | P116: Actividades de restaurantes, cafeterías y servicio móvil de comidas | Q116: 0 | R116: 0 | S116: 0 | T116: PAEF | AF116: 0 | AG116: 0 | AH116: 5360 | AI116: ITAGUI | AJ116: 4 | AK116: 0 | AL116: Natural | AM116: 5 | AN116: ANTIOQUIA | AO116: Aprobado con subsidio | AP116: MICRO | AQ116: 3110 | AR116: INDUSTRIAS MANUFACTURERAS | AS116: C | AT116: Fabricación de muebles | AU116: Fabricación de muebles, colchones y somieres | AV116: 3 | AW116: 1 | AX116: 0 | AY116: PAEF - PAP | BK116: 68081 | BL116: 56 | BM116: 47189 | BN116: 8
C117: 25899 | D117: ZIPAQUIRÁ | E117: 0 | G117: Natural | H117: 25 | I117: CUNDINAMARCA | J117: 0 | K117: MICRO | L117: 4923 | M117: TRANSPORTE Y ALMACENAMIENTO | N117: H | O117: Transporte terrestre publico automotor | P117: Transporte terrestre publico automotor | Q117: 0 | R117: 0 | S117: 0 | T117: No beneficiario | AF117: 0 | AG117: 0 | AH117: 5001 | AI117: MEDELLÍN | AJ117: 15 | AK117: 0 | AL117: Natural | AM117: 5 | AN117: ANTIOQUIA | AO117: Aprobado con subsidio | AP117: MICRO | AQ117: 1040 | AR117: INDUSTRIAS MANUFACTURERAS | AS117: C | AT117: Elaboración de productos lácteos | AU117: Elaboración de productos alimenticios | AV117: 2 | AW117: 13 | AX117: 0 | AY117: PAEF - PAP | BK117: 5631 | BL117: 213 | BM117: 54261 | BN117: 8
C118: 5001 | D118: MEDELLÍN | E118: 0 | G118: Natural | H118: 5 | I118: ANTIOQUIA | J118: 0 | K118: 0 | L118: 5519 | M118: ALOJAMIENTO Y SERVICIOS DE COMIDA | N118: I | O118: Actividades de alojamiento de estancias cortas | P118: Actividades de alojamiento de estancias cortas | Q118: 0 | R118: 0 | S118: 0 | T118: No beneficiario | AF118: 0 | AG118: 0 | AH118: 5360 | AI118: ITAGUI | AJ118: 4 | AK118: 0 | AL118: Natural | AM118: 5 | AN118: ANTIOQUIA | AO118: Aprobado con subsidio | AP118: MICRO | AQ118: 1311 | AR118: INDUSTRIAS MANUFACTURERAS | AS118: C | AT118: Preparación, hilatura, tejeduría y acabado de productos textiles | AU118: Fabricación de productos textiles | AV118: 0 | AW118: 4 | AX118: 0 | AY118: PAEF | BK118: 5649 | BL118: 1 | BM118: 76275 | BN118: 8
C119: 5001 | D119: MEDELLÍN | E119: 2 | G119: Natural | H119: 5 | I119: ANTIOQUIA | J119: Aprobado con subsidio | K119: MICRO | L119: 9609 | M119: OTRAS ACTIVIDADES DE SERVICIOS | N119: S | O119: Otras actividades de servicios personales | P119: Otras actividades de servicios personales | Q119: 2 | R119: 0 | S119: 0 | T119: PAEF | AF119: 0 | AG119: 0 | AH119: 5001 | AI119: MEDELLÍN | AJ119: 18 | AK119: 0 | AL119: Natural | AM119: 5 | AN119: ANTIOQUIA | AO119: Aprobado con subsidio | AP119: PEQUEÑA | AQ119: 1410 | AR119: INDUSTRIAS MANUFACTURERAS | AS119: C | AT119: Confección de prendas de vestir, excepto prendas de piel | AU119: Confección de prendas de vestir | AV119: 3 | AW119: 15 | AX119: 0 | AY119: PAEF - PAP | BK119: 5656 | BL119: 2 | BM119: 5147 | BN119: 8
C120: 5001 | D120: MEDELLÍN | E120: 14 | G120: Natural | H120: 5 | I120: ANTIOQUIA | J120: Aprobado con subsidio | K120: PEQUEÑA | L120: 5611 | M120: ALOJAMIENTO Y SERVICIOS DE COMIDA | N120: I | O120: Actividades de restaurantes, cafeterías y servicio móvil de comidas | P120: Actividades de restaurantes, cafeterías y servicio móvil de comidas | Q120: 9 | R120: 5 | S120: 0 | T120: PAEF - PAP | AF120: 0 | AG120: 0 | AH120: 5604 | AI120: REMEDIOS | AJ120: 4 | AK120: 0 | AL120: Natural | AM120: 5 | AN120: ANTIOQUIA | AO120: Aprobado con subsidio | AP120: MICRO | AQ120: 1081 | AR120: INDUSTRIAS MANUFACTURERAS | AS120: C | AT120: Elaboración de otros productos alimenticios | AU120: Elaboración de productos alimenticios | AV120: 1 | AW120: 3 | AX120: 0 | AY120: PAEF - PAP | BK120: 8078 | BL120: 4 | BM120: 5197 | BN120: 8
C121: 23001 | D121: MONTERÍA | E121: 3 | G121: Natural | H121: 23 | I121: CÓRDOBA | J121: Aprobado con subsidio | K121: MICRO | L121: 141 | M121: AGRICULTURA, GANADERÍA, CAZA, SILVICULTURA Y PESCA | N121: A | O121: Ganadería | P121: Ganadería | Q121: 1 | R121: 2 | S121: 0 | T121: PAEF - PAP | AF121: 0 | AG121: 0 | AH121: 5761 | AI121: SOPETRÁN | AJ121: 3 | AK121: 0 | AL121: Natural | AM121: 5 | AN121: ANTIOQUIA | AO121: Aprobado con subsidio | AP121: MICRO | AQ121: 1081 | AR121: INDUSTRIAS MANUFACTURERAS | AS121: C | AT121: Elaboración de otros productos alimenticios | AU121: Elaboración de productos alimenticios | AV121: 1 | AW121: 2 | AX121: 0 | AY121: PAEF - PAP | BK121: 88001 | BL121: 18 | BM121: 85010 | BN121: 8
C122: 25269 | D122: FACATATIVÁ | E122: 3 | G122: Natural | H122: 25 | I122: CUNDINAMARCA | J122: Aprobado con subsidio | K122: MICRO | L122: 4752 | M122: COMERCIO AL POR MAYOR Y AL POR MENOR; REPARACIÓN DE VEHÍCULOS AUTOMOTORES Y MOTOCICLETAS | N122: G | O122: Comercio al por menor de otros enseres domésticos en establecimientos especializados | P122: Comercio al por menor de otros enseres domésticos en establecimientos especializados | Q122: 1 | R122: 2 | S122: 0 | T122: PAEF - PAP | AF122: 0 | AG122: 0 | AH122: 13052 | AI122: ARJONA | AJ122: 4 | AK122: 0 | AL122: Natural | AM122: 13 | AN122: BOLÍVAR | AO122: Aprobado con subsidio | AP122: MICRO | AQ122: 1081 | AR122: INDUSTRIAS MANUFACTURERAS | AS122: C | AT122: Elaboración de otros productos alimenticios | AU122: Elaboración de productos alimenticios | AV122: 0 | AW122: 4 | AX122: 0 | AY122: PAEF | BK122: 23417 | BL122: 3 | BM122: 25513 | BN122: 7
C123: 5001 | D123: MEDELLÍN | E123: 5 | G123: Natural | H123: 5 | I123: ANTIOQUIA | J123: Aprobado con subsidio | K123: MICRO | L123: 4752 | M123: COMERCIO AL POR MAYOR Y AL POR MENOR; REPARACIÓN DE VEHÍCULOS AUTOMOTORES Y MOTOCICLETAS | N123: G | O123: Comercio al por menor de otros enseres domésticos en establecimientos especializados | P123: Comercio al por menor de otros enseres domésticos en establecimientos especializados | Q123: 1 | R123: 4 | S123: 0 | T123: PAEF | AF123: 0 | AG123: 0 | AH123: 52835 | AI123: SAN ANDRES DE TUMACO | AJ123: 4 | AK123: 0 | AL123: Natural | AM123: 52 | AN123: NARIÑO | AO123: Aprobado con subsidio | AP123: MICRO | AQ123: 3210 | AR123: INDUSTRIAS MANUFACTURERAS | AS123: C | AT123: Fabricación de joyas, bisutería y artículos conexos | AU123: Otras industrias manufactureras | AV123: 2 | AW123: 2 | AX123: 0 | AY123: PAEF - PAP | BK123: 44430 | BL123: 6 | BM123: 17614 | BN123: 7
C124: 73443 | D124: MARIQUITA | E124: 0 | G124: Natural | H124: 73 | I124: TOLIMA | J124: 0 | K124: 0 | L124: 5511 | M124: ALOJAMIENTO Y SERVICIOS DE COMIDA | N124: I | O124: Actividades de alojamiento de estancias cortas | P124: Actividades de alojamiento de estancias cortas | Q124: 0 | R124: 0 | S124: 0 | T124: No beneficiario | AF124: 0 | AG124: 0 | AH124: 15087 | AI124: BELÉN | AJ124: 8 | AK124: 0 | AL124: Natural | AM124: 15 | AN124: BOYACÁ | AO124: Aprobado con subsidio | AP124: MICRO | AQ124: 1040 | AR124: INDUSTRIAS MANUFACTURERAS | AS124: C | AT124: Elaboración de productos lácteos | AU124: Elaboración de productos alimenticios | AV124: 4 | AW124: 4 | AX124: 0 | AY124: PAEF - PAP | BK124: 19001 | BL124: 49 | BM124: 68755 | BN124: 7
C125: 20001 | D125: VALLEDUPAR | E125: 0 | G125: Natural | H125: 20 | I125: CESAR | J125: 0 | K125: 0 | L125: 8512 | M125: EDUCACIÓN | N125: P | O125: Educación de la primera infancia, preescolar y básica primaria | P125: Educación de la primera infancia, preescolar y básica primaria | Q125: 0 | R125: 0 | S125: 0 | T125: No beneficiario | AF125: 0 | AG125: 0 | AH125: 11001 | AI125: BOGOTÁ, D.C. | AJ125: 0 | AK125: 0 | AL125: Natural | AM125: 11 | AN125: BOGOTÁ, D.C. | AO125: 0 | AP125: MICRO | AQ125: 2592 | AR125: INDUSTRIAS MANUFACTURERAS | AS125: C | AT125: Fabricación de otros productos elaborados de metal y actividades de servicios relacionadas con el trabajo de metales | AU125: Fabricación de productos elaborados de metal, excepto maquinaria y equipo | AV125: 0 | AW125: 0 | AX125: 0 | AY125: No beneficiario | BK125: 70702 | BL125: 1 | BM125: 86001 | BN125: 7
C126: 63401 | D126: LA TEBAIDA | E126: 0 | G126: Natural | H126: 63 | I126: QUINDÍO | J126: 0 | K126: 0 | L126: 3210 | M126: INDUSTRIAS MANUFACTURERAS | N126: C | O126: Fabricación de joyas, bisutería y artículos conexos | P126: Otras industrias manufactureras | Q126: 0 | R126: 0 | S126: 0 | T126: No beneficiario | AF126: 0 | AG126: 0 | AH126: 15189 | AI126: CIÉNEGA | AJ126: 48 | AK126: 0 | AL126: Natural | AM126: 15 | AN126: BOYACÁ | AO126: Aprobado con subsidio | AP126: PEQUEÑA | AQ126: 1040 | AR126: INDUSTRIAS MANUFACTURERAS | AS126: C | AT126: Elaboración de productos lácteos | AU126: Elaboración de productos alimenticios | AV126: 13 | AW126: 35 | AX126: 0 | AY126: PAEF - PAP | BK126: 25175 | BL126: 72 | BM126: 5172 | BN126: 7
C127: 5001 | D127: MEDELLÍN | E127: 0 | G127: Natural | H127: 5 | I127: ANTIOQUIA | J127: 0 | K127: 0 | L127: 5511 | M127: ALOJAMIENTO Y SERVICIOS DE COMIDA | N127: I | O127: Actividades de alojamiento de estancias cortas | P127: Actividades de alojamiento de estancias cortas | Q127: 0 | R127: 0 | S127: 0 | T127: No beneficiario | AF127: 0 | AG127: 0 | AH127: 11001 | AI127: BOGOTÁ, D.C. | AJ127: 8 | AK127: 0 | AL127: Natural | AM127: 11 | AN127: BOGOTÁ, D.C. | AO127: Aprobado con subsidio | AP127: MICRO | AQ127: 3120 | AR127: INDUSTRIAS MANUFACTURERAS | AS127: C | AT127: Fabricación de colchones y somieres | AU127: Fabricación de muebles, colchones y somieres | AV127: 1 | AW127: 7 | AX127: 0 | AY127: PAEF - PAP | BK127: 15491 | BL127: 8 | BM127: 20011 | BN127: 7
C128: 5001 | D128: MEDELLÍN | E128: 0 | G128: Natural | H128: 5 | I128: ANTIOQUIA | J128: 0 | K128: 0 | L128: 4641 | M128: COMERCIO AL POR MAYOR Y AL POR MENOR; REPARACIÓN DE VEHÍCULOS AUTOMOTORES Y MOTOCICLETAS | N128: G | O128: Comercio al por mayor de artículos y enseres domésticos (incluidas prendas de vestir) | P128: Comercio al por mayor de artículos y enseres domésticos (incluidas prendas de vestir) | Q128: 0 | R128: 0 | S128: 0 | T128: No beneficiario | AF128: 0 | AG128: 0 | AH128: 15176 | AI128: CHIQUINQUIRÁ | AJ128: 11 | AK128: 0 | AL128: Natural | AM128: 15 | AN128: BOYACÁ | AO128: Aprobado con subsidio | AP128: MICRO | AQ128: 1081 | AR128: INDUSTRIAS MANUFACTURERAS | AS128: C | AT128: Elaboración de otros productos alimenticios | AU128: Elaboración de productos alimenticios | AV128: 5 | AW128: 6 | AX128: 0 | AY128: PAEF - PAP - MICRO | BK128: 20011 | BL128: 7 | BM128: 18753 | BN128: 7
C129: 76001 | D129: CALI | E129: 0 | G129: Natural | H129: 76 | I129: VALLE DEL CAUCA | J129: Aprobado con subsidio | K129: MICRO | L129: 5519 | M129: ALOJAMIENTO Y SERVICIOS DE COMIDA | N129: I | O129: Actividades de alojamiento de estancias cortas | P129: Actividades de alojamiento de estancias cortas | Q129: 0 | R129: 0 | S129: 0 | T129: PAEF | AF129: 0 | AG129: 0 | AH129: 15238 | AI129: DUITAMA | AJ129: 10 | AK129: 0 | AL129: Natural | AM129: 15 | AN129: BOYACÁ | AO129: Aprobado con subsidio | AP129: PEQUEÑA | AQ129: 1040 | AR129: INDUSTRIAS MANUFACTURERAS | AS129: C | AT129: Elaboración de productos lácteos | AU129: Elaboración de productos alimenticios | AV129: 4 | AW129: 6 | AX129: 0 | AY129: PAEF - PAP | BK129: 19548 | BL129: 6 | BM129: 52356 | BN129: 7
C130: 54001 | D130: CÚCUTA | E130: 0 | G130: Natural | H130: 54 | I130: NORTE DE SANTANDER | J130: 0 | K130: 0 | L130: 4711 | M130: COMERCIO AL POR MAYOR Y AL POR MENOR; REPARACIÓN DE VEHÍCULOS AUTOMOTORES Y MOTOCICLETAS | N130: G | O130: Comercio al por menor en establecimientos no especializados | P130: Comercio al por menor en establecimientos no especializados | Q130: 0 | R130: 0 | S130: 0 | T130: No beneficiario | AF130: 0 | AG130: 0 | AH130: 50573 | AI130: PUERTO LÓPEZ | AJ130: 20 | AK130: 0 | AL130: Natural | AM130: 50 | AN130: META | AO130: Aprobado con subsidio | AP130: PEQUEÑA | AQ130: 1081 | AR130: INDUSTRIAS MANUFACTURERAS | AS130: C | AT130: Elaboración de otros productos alimenticios | AU130: Elaboración de productos alimenticios | AV130: 14 | AW130: 6 | AX130: 0 | AY130: PAEF - PAP | BK130: 17380 | BL130: =COUNTIFS($AO$2:$AO$399999,"Aprobado con subsidio",$AH$2:$AH$399999,BK130) -> 9 | BM130: 25295 | BN130: 7
C131: 73268 | D131: ESPINAL | E131: 0 | G131: Natural | H131: 73 | I131: TOLIMA | J131: 0 | K131: 0 | L131: 1084 | M131: INDUSTRIAS MANUFACTURERAS | N131: C | O131: Elaboración de otros productos alimenticios | P131: Elaboración de productos alimenticios | Q131: 0 | R131: 0 | S131: 0 | T131: No beneficiario | AF131: 0 | AG131: 0 | AH131: 11001 | AI131: BOGOTÁ, D.C. | AJ131: 1 | AK131: 0 | AL131: Natural | AM131: 11 | AN131: BOGOTÁ, D.C. | AO131: Aprobado con subsidio | AP131: MICRO | AQ131: 2592 | AR131: INDUSTRIAS MANUFACTURERAS | AS131: C | AT131: Fabricación de otros productos elaborados de metal y actividades de servicios relacionadas con el trabajo de metales | AU131: Fabricación de productos elaborados de metal, excepto maquinaria y equipo | AV131: 0 | AW131: 1 | AX131: 0 | AY131: PAEF | BK131: 66400 | BL131: 8 | BM131: 8634 | BN131: 7
C132: 76001 | D132: CALI | E132: 0 | G132: Natural | H132: 76 | I132: VALLE DEL CAUCA | J132: 0 | K132: 0 | L132: 8621 | M132: ACTIVIDADES DE ATENCIÓN DE LA SALUD HUMANA Y DE ASISTENCIA SOCIAL | N132: Q | O132: Actividades de práctica médica y odontológica, sin internación | P132: Actividades de práctica médica y odontológica, sin internación | Q132: 0 | R132: 0 | S132: 0 | T132: No beneficiario | AF132: 0 | AG132: 0 | AH132: 85440 | AI132: VILLANUEVA | AJ132: 5 | AK132: 0 | AL132: Natural | AM132: 85 | AN132: CASANARE | AO132: Aprobado con subsidio | AP132: MICRO | AQ132: 1051 | AR132: INDUSTRIAS MANUFACTURERAS | AS132: C | AT132: Elaboración de productos de molinería, almidones y productos derivados del almidón | AU132: Elaboración de productos alimenticios | AV132: 0 | AW132: 5 | AX132: 0 | AY132: PAEF | BK132: 17873 | BL132: 22 | BM132: 68077 | BN132: 7
C133: 63001 | D133: ARMENIA | E133: 0 | G133: Natural | H133: 63 | I133: QUINDÍO | J133: 0 | K133: 0 | L133: 5611 | M133: ALOJAMIENTO Y SERVICIOS DE COMIDA | N133: I | O133: Actividades de restaurantes, cafeterías y servicio móvil de comidas | P133: Actividades de restaurantes, cafeterías y servicio móvil de comidas | Q133: 0 | R133: 0 | S133: 0 | T133: No beneficiario | AF133: 0 | AG133: 0 | AH133: 25430 | AI133: MADRID | AJ133: 4 | AK133: 0 | AL133: Natural | AM133: 25 | AN133: CUNDINAMARCA | AO133: Aprobado con subsidio | AP133: MICRO | AQ133: 3290 | AR133: INDUSTRIAS MANUFACTURERAS | AS133: C | AT133: Otras industrias manufactureras n.c.p. | AU133: Otras industrias manufactureras | AV133: 0 | AW133: 4 | AX133: 0 | AY133: PAEF - PAP | BK133: 19698 | BL133: 31 | BM133: 76895 | BN133: 6
C134: 11001 | D134: BOGOTÁ, D.C. | E134: 0 | G134: Natural | H134: 11 | I134: BOGOTÁ, D.C. | J134: 0 | K134: 0 | L134: 5611 | M134: ALOJAMIENTO Y SERVICIOS DE COMIDA | N134: I | O134: Actividades de restaurantes, cafeterías y servicio móvil de comidas | P134: Actividades de restaurantes, cafeterías y servicio móvil de comidas | Q134: 0 | R134: 0 | S134: 0 | T134: No beneficiario | AF134: 0 | AG134: 0 | AH134: 11001 | AI134: BOGOTÁ, D.C. | AJ134: 0 | AK134: 0 | AL134: Natural | AM134: 11 | AN134: BOGOTÁ, D.C. | AO134: 0 | AP134: MICRO | AQ134: 2022 | AR134: INDUSTRIAS MANUFACTURERAS | AS134: C | AT134: Fabricación de otros productos químicos | AU134: Fabricación de sustancias y productos químicos | AV134: 0 | AW134: 0 | AX134: 0 | AY134: No beneficiario | BK134: 63594 | BL134: 3 | BM134: 73443 | BN134: 6
C135: 5001 | D135: MEDELLÍN | E135: 0 | G135: Natural | H135: 5 | I135: ANTIOQUIA | J135: 0 | K135: MICRO | L135: 141 | M135: AGRICULTURA, GANADERÍA, CAZA, SILVICULTURA Y PESCA | N135: A | O135: Ganadería | P135: Ganadería | Q135: 0 | R135: 0 | S135: 0 | T135: No beneficiario | AF135: 0 | AG135: 0 | AH135: 85440 | AI135: VILLANUEVA | AJ135: 3 | AK135: 0 | AL135: Natural | AM135: 85 | AN135: CASANARE | AO135: Aprobado con subsidio | AP135: MICRO | AQ135: 3312 | AR135: INDUSTRIAS MANUFACTURERAS | AS135: C | AT135: Mantenimiento y reparación especializado de productos elaborados en metal y de maquinaria y equipo | AU135: Instalación, mantenimiento y reparación especializado de maquinaria y equipo | AV135: 1 | AW135: 2 | AX135: 0 | AY135: PAEF - PAP | BK135: 73275 | BL135: 4 | BM135: 15469 | BN135: 6
C136: 47001 | D136: SANTA MARTA | E136: 0 | G136: Natural | H136: 47 | I136: MAGDALENA | J136: Aprobado con subsidio | K136: MICRO | L136: 4729 | M136: COMERCIO AL POR MAYOR Y AL POR MENOR; REPARACIÓN DE VEHÍCULOS AUTOMOTORES Y MOTOCICLETAS | N136: G | O136: Comercio al por menor de alimentos (víveres en general), bebidas y tabaco, en establecimientos especializados | P136: Comercio al por menor de alimentos (víveres en general), bebidas y tabaco, en establecimientos especializados | Q136: 0 | R136: 0 | S136: 0 | T136: PAEF | AF136: 0 | AG136: 0 | AH136: 15466 | AI136: MONGUÍ | AJ136: 8 | AK136: 0 | AL136: Natural | AM136: 15 | AN136: BOYACÁ | AO136: Aprobado con subsidio | AP136: MICRO | AQ136: 3230 | AR136: INDUSTRIAS MANUFACTURERAS | AS136: C | AT136: Fabricación de artículos y equipo para la práctica del deporte | AU136: Otras industrias manufactureras | AV136: 5 | AW136: 3 | AX136: 0 | AY136: PAEF | BK136: 25290 | BL136: 23 | BM136: 95001 | BN136: 6
C137: 68001 | D137: BUCARAMANGA | E137: 0 | G137: Natural | H137: 68 | I137: SANTANDER | J137: Aprobado con subsidio | K137: MICRO | L137: 5611 | M137: ALOJAMIENTO Y SERVICIOS DE COMIDA | N137: I | O137: Actividades de restaurantes, cafeterías y servicio móvil de comidas | P137: Actividades de restaurantes, cafeterías y servicio móvil de comidas | Q137: 0 | R137: 0 | S137: 0 | T137: PAEF | AF137: 0 | AG137: 0 | AH137: 11001 | AI137: BOGOTÁ, D.C. | AJ137: 7 | AK137: 0 | AL137: Natural | AM137: 11 | AN137: BOGOTÁ, D.C. | AO137: Aprobado con subsidio | AP137: MICRO | AQ137: 1081 | AR137: INDUSTRIAS MANUFACTURERAS | AS137: C | AT137: Elaboración de otros productos alimenticios | AU137: Elaboración de productos alimenticios | AV137: 3 | AW137: 4 | AX137: 0 | AY137: PAEF - PAP - PARO - MICRO | BK137: 41551 | BL137: 24 | BM137: 44430 | BN137: 6
C138: 66170 | D138: DOSQUEBRADAS | E138: 0 | G138: Natural | H138: 66 | I138: RISARALDA | J138: Aprobado con subsidio | K138: MICRO | L138: 5512 | M138: ALOJAMIENTO Y SERVICIOS DE COMIDA | N138: I | O138: Actividades de alojamiento de estancias cortas | P138: Actividades de alojamiento de estancias cortas | Q138: 0 | R138: 0 | S138: 0 | T138: PAEF | AF138: 0 | AG138: 0 | AH138: 11001 | AI138: BOGOTÁ, D.C. | AJ138: 0 | AK138: 0 | AL138: Natural | AM138: 11 | AN138: BOGOTÁ, D.C. | AO138: 0 | AP138: 0 | AQ138: 1392 | AR138: INDUSTRIAS MANUFACTURERAS | AS138: C | AT138: Fabricación de otros productos textiles | AU138: Fabricación de productos textiles | AV138: 0 | AW138: 0 | AX138: 0 | AY138: No beneficiario | BK138: 25269 | BL138: 26 | BM138: 19548 | BN138: 6
C139: 8001 | D139: BARRANQUILLA | E139: 0 | G139: Natural | H139: 8 | I139: ATLÁNTICO | J139: 0 | K139: 0 | L139: 1410 | M139: INDUSTRIAS MANUFACTURERAS | N139: C | O139: Confección de prendas de vestir, excepto prendas de piel | P139: Confección de prendas de vestir | Q139: 0 | R139: 0 | S139: 0 | T139: No beneficiario | AF139: 0 | AG139: 0 | AH139: 11001 | AI139: BOGOTÁ, D.C. | AJ139: 5 | AK139: 0 | AL139: Natural | AM139: 11 | AN139: BOGOTÁ, D.C. | AO139: Aprobado con subsidio | AP139: MICRO | AQ139: 1084 | AR139: INDUSTRIAS MANUFACTURERAS | AS139: C | AT139: Elaboración de otros productos alimenticios | AU139: Elaboración de productos alimenticios | AV139: 2 | AW139: 3 | AX139: 0 | AY139: PAEF - PAP - PARO - MICRO | BK139: 27001 | BL139: 9 | BM139: 91001 | BN139: 6
C140: 47001 | D140: SANTA MARTA | E140: 0 | G140: Natural | H140: 47 | I140: MAGDALENA | J140: Aprobado con subsidio | K140: MICRO | L140: 5611 | M140: ALOJAMIENTO Y SERVICIOS DE COMIDA | N140: I | O140: Actividades de restaurantes, cafeterías y servicio móvil de comidas | P140: Actividades de restaurantes, cafeterías y servicio móvil de comidas | Q140: 0 | R140: 0 | S140: 0 | T140: PAEF | AF140: 0 | AG140: 0 | AH140: 15516 | AI140: PAIPA | AJ140: 7 | AK140: 0 | AL140: Natural | AM140: 15 | AN140: BOYACÁ | AO140: Aprobado con subsidio | AP140: MICRO | AQ140: 3120 | AR140: INDUSTRIAS MANUFACTURERAS | AS140: C | AT140: Fabricación de colchones y somieres | AU140: Fabricación de muebles, colchones y somieres | AV140: 1 | AW140: 6 | AX140: 0 | AY140: PAEF - PAP | BK140: 41807 | BL140: 1 | BM140: 25001 | BN140: 6
C141: 5001 | D141: MEDELLÍN | E141: 0 | G141: Natural | H141: 5 | I141: ANTIOQUIA | J141: 0 | K141: 0 | L141: 5611 | M141: ALOJAMIENTO Y SERVICIOS DE COMIDA | N141: I | O141: Actividades de restaurantes, cafeterías y servicio móvil de comidas | P141: Actividades de restaurantes, cafeterías y servicio móvil de comidas | Q141: 0 | R141: 0 | S141: 0 | T141: No beneficiario | AF141: 0 | AG141: 0 | AH141: 15087 | AI141: BELÉN | AJ141: 2 | AK141: 0 | AL141: Natural | AM141: 15 | AN141: BOYACÁ | AO141: Aprobado con subsidio | AP141: MICRO | AQ141: 1081 | AR141: INDUSTRIAS MANUFACTURERAS | AS141: C | AT141: Elaboración de otros productos alimenticios | AU141: Elaboración de productos alimenticios | AV141: 1 | AW141: 1 | AX141: 0 | AY141: PAEF - PAP | BK141: 41298 | BL141: 9 | BM141: 50318 | BN141: 6
C142: 76001 | D142: CALI | E142: 0 | G142: Natural | H142: 76 | I142: VALLE DEL CAUCA | J142: 0 | K142: 0 | L142: 5611 | M142: ALOJAMIENTO Y SERVICIOS DE COMIDA | N142: I | O142: Actividades de restaurantes, cafeterías y servicio móvil de comidas | P142: Actividades de restaurantes, cafeterías y servicio móvil de comidas | Q142: 0 | R142: 0 | S142: 0 | T142: No beneficiario | AF142: 0 | AG142: 0 | AH142: 15806 | AI142: TIBASOSA | AJ142: 0 | AK142: 0 | AL142: Natural | AM142: 15 | AN142: BOYACÁ | AO142: 0 | AP142: 0 | AQ142: 2395 | AR142: INDUSTRIAS MANUFACTURERAS | AS142: C | AT142: Fabricación de productos minerales no metálicos n.c.p. | AU142: Fabricación de otros productos minerales no metálicos | AV142: 0 | AW142: 0 | AX142: 0 | AY142: No beneficiario | BK142: 25473 | BL142: 155 | BM142: 5579 | BN142: 6
C143: 50001 | D143: VILLAVICENCIO | E143: 11 | G143: Natural | H143: 50 | I143: META | J143: Aprobado con subsidio | K143: PEQUEÑA | L143: 5611 | M143: ALOJAMIENTO Y SERVICIOS DE COMIDA | N143: I | O143: Actividades de restaurantes, cafeterías y servicio móvil de comidas | P143: Actividades de restaurantes, cafeterías y servicio móvil de comidas | Q143: 5 | R143: 6 | S143: 0 | T143: PAEF - PAP | AF143: 0 | AG143: 0 | AH143: 15759 | AI143: SOGAMOSO | AJ143: 13 | AK143: 0 | AL143: Natural | AM143: 15 | AN143: BOYACÁ | AO143: Aprobado con subsidio | AP143: PEQUEÑA | AQ143: 2395 | AR143: INDUSTRIAS MANUFACTURERAS | AS143: C | AT143: Fabricación de productos minerales no metálicos n.c.p. | AU143: Fabricación de otros productos minerales no metálicos | AV143: 1 | AW143: 12 | AX143: 0 | AY143: PAEF - PAP | BK143: 41396 | BL143: 1 | BM143: 81736 | BN143: 6
C144: 17001 | D144: MANIZALES | E144: 5 | G144: Natural | H144: 17 | I144: CALDAS | J144: Aprobado con subsidio | K144: MICRO | L144: 4771 | M144: COMERCIO AL POR MAYOR Y AL POR MENOR; REPARACIÓN DE VEHÍCULOS AUTOMOTORES Y MOTOCICLETAS | N144: G | O144: Comercio al por menor de otros productos en establecimientos especializados | P144: Comercio al por menor de otros productos en establecimientos especializados | Q144: 5 | R144: 0 | S144: 0 | T144: PAEF - PAP | AF144: 0 | AG144: 0 | AH144: 85001 | AI144: YOPAL | AJ144: 7 | AK144: 0 | AL144: Natural | AM144: 85 | AN144: CASANARE | AO144: Aprobado con subsidio | AP144: MICRO | AQ144: 3110 | AR144: INDUSTRIAS MANUFACTURERAS | AS144: C | AT144: Fabricación de muebles | AU144: Fabricación de muebles, colchones y somieres | AV144: 0 | AW144: 7 | AX144: 0 | AY144: PAEF - PAP - MICRO | BK144: 20001 | BL144: 66 | BM144: 5400 | BN144: 6
C145: 11001 | D145: BOGOTÁ, D.C. | E145: 38 | G145: Natural | H145: 11 | I145: BOGOTÁ, D.C. | J145: Aprobado con subsidio | K145: PEQUEÑA | L145: 3290 | M145: INDUSTRIAS MANUFACTURERAS | N145: C | O145: Otras industrias manufactureras n.c.p. | P145: Otras industrias manufactureras | Q145: 12 | R145: 26 | S145: 0 | T145: PAEF - PAP | AF145: 0 | AG145: 0 | AH145: 15638 | AI145: SÁCHICA | AJ145: 4 | AK145: 0 | AL145: Natural | AM145: 15 | AN145: BOYACÁ | AO145: Aprobado con subsidio | AP145: MICRO | AQ145: 2392 | AR145: INDUSTRIAS MANUFACTURERAS | AS145: C | AT145: Fabricación de productos minerales no metálicos n.c.p. | AU145: Fabricación de otros productos minerales no metálicos | AV145: 0 | AW145: 4 | AX145: 0 | AY145: PAEF - PAP | BK145: 68190 | BL145: 1 | BM145: 5887 | BN145: 6
C146: 11001 | D146: BOGOTÁ, D.C. | E146: 4 | G146: Natural | H146: 11 | I146: BOGOTÁ, D.C. | J146: Aprobado con subsidio | K146: MICRO | L146: 4641 | M146: COMERCIO AL POR MAYOR Y AL POR MENOR; REPARACIÓN DE VEHÍCULOS AUTOMOTORES Y MOTOCICLETAS | N146: G | O146: Comercio al por mayor de artículos y enseres domésticos (incluidas prendas de vestir) | P146: Comercio al por mayor de artículos y enseres domésticos (incluidas prendas de vestir) | Q146: 0 | R146: 4 | S146: 0 | T146: PAEF | AF146: 0 | AG146: 0 | AH146: 11001 | AI146: BOGOTÁ, D.C. | AJ146: 11 | AK146: 0 | AL146: Natural | AM146: 11 | AN146: BOGOTÁ, D.C. | AO146: Aprobado con subsidio | AP146: MICRO | AQ146: 2429 | AR146: INDUSTRIAS MANUFACTURERAS | AS146: C | AT146: Industrias básicas de metales preciosos y de metales no ferrosos | AU146: Fabricación de productos metalúrgicos básicos | AV146: 1 | AW146: 10 | AX146: 0 | AY146: PAEF - PAP - MICRO | BK146: 47189 | BL146: 8 | BM146: 25875 | BN146: 5
C147: 11001 | D147: BOGOTÁ, D.C. | E147: 0 | G147: Natural | H147: 11 | I147: BOGOTÁ, D.C. | J147: 0 | K147: 0 | L147: 9609 | M147: OTRAS ACTIVIDADES DE SERVICIOS | N147: S | O147: Otras actividades de servicios personales | P147: Otras actividades de servicios personales | Q147: 0 | R147: 0 | S147: 0 | T147: No beneficiario | AF147: 0 | AG147: 0 | AH147: 15646 | AI147: SAMACÁ | AJ147: 11 | AK147: 0 | AL147: Natural | AM147: 15 | AN147: BOYACÁ | AO147: Aprobado con subsidio | AP147: PEQUEÑA | AQ147: 2599 | AR147: INDUSTRIAS MANUFACTURERAS | AS147: C | AT147: Fabricación de otros productos elaborados de metal y actividades de servicios relacionadas con el trabajo de metales | AU147: Fabricación de productos elaborados de metal, excepto maquinaria y equipo | AV147: 0 | AW147: 11 | AX147: 0 | AY147: PAEF - PAP | BK147: 70221 | BL147: 1 | BM147: 50573 | BN147: 5
C148: 25307 | D148: GIRARDOT | E148: 7 | G148: Natural | H148: 25 | I148: CUNDINAMARCA | J148: Aprobado con subsidio | K148: MICRO | L148: 1081 | M148: INDUSTRIAS MANUFACTURERAS | N148: C | O148: Elaboración de otros productos alimenticios | P148: Elaboración de productos alimenticios | Q148: 2 | R148: 5 | S148: 0 | T148: PAEF - PAP | AF148: 0 | AG148: 0 | AH148: 25817 | AI148: TOCANCIPÁ | AJ148: 17 | AK148: 0 | AL148: Natural | AM148: 25 | AN148: CUNDINAMARCA | AO148: Aprobado con subsidio | AP148: PEQUEÑA | AQ148: 1081 | AR148: INDUSTRIAS MANUFACTURERAS | AS148: C | AT148: Elaboración de otros productos alimenticios | AU148: Elaboración de productos alimenticios | AV148: 9 | AW148: 8 | AX148: 0 | AY148: PAEF - PAP | BK148: 5380 | BL148: 210 | BM148: 15806 | BN148: 5
C149: 25754 | D149: SOACHA | E149: 15 | G149: Natural | H149: 25 | I149: CUNDINAMARCA | J149: Aprobado con subsidio | K149: MICRO | L149: 4731 | M149: COMERCIO AL POR MAYOR Y AL POR MENOR; REPARACIÓN DE VEHÍCULOS AUTOMOTORES Y MOTOCICLETAS | N149: G | O149: Comercio al por menor de combustible, lubricantes, aditivos y productos de limpieza para automotores, en establecimientos especializados | P149: Comercio al por menor de combustible, lubricantes, aditivos y productos de limpieza para automotores, en establecimientos especializados | Q149: 7 | R149: 8 | S149: 0 | T149: PAEF - PAP - MICRO | AF149: 0 | AG149: 0 | AH149: 11001 | AI149: BOGOTÁ, D.C. | AJ149: 21 | AK149: 0 | AL149: Natural | AM149: 11 | AN149: BOGOTÁ, D.C. | AO149: Aprobado con subsidio | AP149: PEQUEÑA | AQ149: 1410 | AR149: INDUSTRIAS MANUFACTURERAS | AS149: C | AT149: Confección de prendas de vestir, excepto prendas de piel | AU149: Confección de prendas de vestir | AV149: 10 | AW149: 11 | AX149: 0 | AY149: PAEF - PAP | BK149: 52838 | BL149: 1 | BM149: 76563 | BN149: 5
C150: 68001 | D150: BUCARAMANGA | E150: 0 | G150: Natural | H150: 68 | I150: SANTANDER | J150: Aprobado con subsidio | K150: MICRO | L150: 5611 | M150: ALOJAMIENTO Y SERVICIOS DE COMIDA | N150: I | O150: Actividades de restaurantes, cafeterías y servicio móvil de comidas | P150: Actividades de restaurantes, cafeterías y servicio móvil de comidas | Q150: 0 | R150: 0 | S150: 0 | T150: PAEF | AF150: 0 | AG150: 0 | AH150: 11001 | AI150: BOGOTÁ, D.C. | AJ150: 18 | AK150: 0 | AL150: Natural | AM150: 11 | AN150: BOGOTÁ, D.C. | AO150: Aprobado con subsidio | AP150: PEQUEÑA | AQ150: 1410 | AR150: INDUSTRIAS MANUFACTURERAS | AS150: C | AT150: Confección de prendas de vestir, excepto prendas de piel | AU150: Confección de prendas de vestir | AV150: 16 | AW150: 2 | AX150: 0 | AY150: PAEF - MICRO | BK150: 54673 | BL150: 2 | BM150: 76869 | BN150: 5
C151: 17001 | D151: MANIZALES | E151: 0 | G151: Natural | H151: 17 | I151: CALDAS | J151: Aprobado con subsidio | K151: MICRO | L151: 4781 | M151: COMERCIO AL POR MAYOR Y AL POR MENOR; REPARACIÓN DE VEHÍCULOS AUTOMOTORES Y MOTOCICLETAS | N151: G | O151: Comercio al por menor en puestos de venta móviles | P151: Comercio al por menor en puestos de venta móviles | Q151: 0 | R151: 0 | S151: 0 | T151: PAEF | AF151: 0 | AG151: 0 | AH151: 11001 | AI151: BOGOTÁ, D.C. | AJ151: 13 | AK151: 0 | AL151: Natural | AM151: 11 | AN151: BOGOTÁ, D.C. | AO151: Aprobado con subsidio | AP151: PEQUEÑA | AQ151: 1011 | AR151: INDUSTRIAS MANUFACTURERAS | AS151: C | AT151: Procesamiento y conservación de carne, pescado, crustáceos y moluscos | AU151: Elaboración de productos alimenticios | AV151: 7 | AW151: 6 | AX151: 0 | AY151: PAEF - PAP | BK151: 54518 | BL151: 11 | BM151: 23466 | BN151: 5
C152: 25758 | D152: SOPÓ | E152: 5 | G152: Natural | H152: 25 | I152: CUNDINAMARCA | J152: Aprobado con subsidio | K152: MICRO | L152: 4752 | M152: COMERCIO AL POR MAYOR Y AL POR MENOR; REPARACIÓN DE VEHÍCULOS AUTOMOTORES Y MOTOCICLETAS | N152: G | O152: Comercio al por menor de otros enseres domésticos en establecimientos especializados | P152: Comercio al por menor de otros enseres domésticos en establecimientos especializados | Q152: 2 | R152: 3 | S152: 0 | T152: PAEF | AF152: 0 | AG152: 0 | AH152: 11001 | AI152: BOGOTÁ, D.C. | AJ152: 10 | AK152: 0 | AL152: Natural | AM152: 11 | AN152: BOGOTÁ, D.C. | AO152: Aprobado con subsidio | AP152: MICRO | AQ152: 1081 | AR152: INDUSTRIAS MANUFACTURERAS | AS152: C | AT152: Elaboración de otros productos alimenticios | AU152: Elaboración de productos alimenticios | AV152: 5 | AW152: 5 | AX152: 0 | AY152: PAEF - PAP - MICRO | BK152: 54261 | BL152: 8 | BM152: 15572 | BN152: 5
C153: 41001 | D153: NEIVA | E153: 4 | G153: Natural | H153: 41 | I153: HUILA | J153: Aprobado con subsidio | K153: MICRO | L153: 4330 | M153: CONSTRUCCIÓN | N153: F | O153: Terminación y acabado de edificios y obras de ingeniería civil | P153: Terminación y acabado de edificios y obras de ingeniería civil | Q153: 1 | R153: 3 | S153: 0 | T153: PAEF | AF153: 0 | AG153: 0 | AH153: 11001 | AI153: BOGOTÁ, D.C. | AJ153: 7 | AK153: 0 | AL153: Natural | AM153: 11 | AN153: BOGOTÁ, D.C. | AO153: Aprobado con subsidio | AP153: MICRO | AQ153: 2431 | AR153: INDUSTRIAS MANUFACTURERAS | AS153: C | AT153: Fundición de metales | AU153: Fabricación de productos metalúrgicos básicos | AV153: 3 | AW153: 4 | AX153: 0 | AY153: PAEF | BK153: 70215 | BL153: 2 | BM153: 5034 | BN153: 5
C154: 11001 | D154: BOGOTÁ, D.C. | E154: 0 | G154: Natural | H154: 11 | I154: BOGOTÁ, D.C. | J154: 0 | K154: MICRO | L154: 4923 | M154: TRANSPORTE Y ALMACENAMIENTO | N154: H | O154: Transporte terrestre publico automotor | P154: Transporte terrestre publico automotor | Q154: 0 | R154: 0 | S154: 0 | T154: No beneficiario | AF154: 0 | AG154: 0 | AH154: 11001 | AI154: BOGOTÁ, D.C. | AJ154: 11 | AK154: 0 | AL154: Natural | AM154: 11 | AN154: BOGOTÁ, D.C. | AO154: Aprobado con subsidio | AP154: MICRO | AQ154: 2592 | AR154: INDUSTRIAS MANUFACTURERAS | AS154: C | AT154: Fabricación de otros productos elaborados de metal y actividades de servicios relacionadas con el trabajo de metales | AU154: Fabricación de productos elaborados de metal, excepto maquinaria y equipo | AV154: 1 | AW154: 10 | AX154: 0 | AY154: PAEF - PAP - PARO - MICRO | BK154: 68051 | BL154: 0 | BM154: 76113 | BN154: 5
C155: 23001 | D155: MONTERÍA | E155: 0 | G155: Natural | H155: 23 | I155: CÓRDOBA | J155: 0 | K155: 0 | L155: 5511 | M155: ALOJAMIENTO Y SERVICIOS DE COMIDA | N155: I | O155: Actividades de alojamiento de estancias cortas | P155: Actividades de alojamiento de estancias cortas | Q155: 0 | R155: 0 | S155: 0 | T155: No beneficiario | AF155: 0 | AG155: 0 | AH155: 11001 | AI155: BOGOTÁ, D.C. | AJ155: 13 | AK155: 0 | AL155: Natural | AM155: 11 | AN155: BOGOTÁ, D.C. | AO155: Aprobado con subsidio | AP155: MICRO | AQ155: 1522 | AR155: INDUSTRIAS MANUFACTURERAS | AS155: C | AT155: Fabricación de calzado | AU155: Curtido y recurtido de cueros; fabricación de calzado; fabricación de artículos de viaje, maletas, bolsos de mano y artículos similares, y fabricación de artículos de talabartería y guarnicionería; adobo y teñido de pieles | AV155: 3 | AW155: 10 | AX155: 0 | AY155: PAEF - PAP | BK155: 68167 | BL155: 1 | BM155: 50606 | BN155: 5
C156: 11001 | D156: BOGOTÁ, D.C. | E156: 7 | G156: Natural | H156: 11 | I156: BOGOTÁ, D.C. | J156: Aprobado con subsidio | K156: MICRO | L156: 2229 | M156: INDUSTRIAS MANUFACTURERAS | N156: C | O156: Fabricación de productos de plástico | P156: Fabricación de productos de caucho y de plástico | Q156: 3 | R156: 4 | S156: 0 | T156: PAEF - MICRO | AF156: 0 | AG156: 0 | AH156: 11001 | AI156: BOGOTÁ, D.C. | AJ156: 5 | AK156: 0 | AL156: Natural | AM156: 11 | AN156: BOGOTÁ, D.C. | AO156: Aprobado con subsidio | AP156: MICRO | AQ156: 1410 | AR156: INDUSTRIAS MANUFACTURERAS | AS156: C | AT156: Confección de prendas de vestir, excepto prendas de piel | AU156: Confección de prendas de vestir | AV156: 4 | AW156: 1 | AX156: 0 | AY156: PAEF - PAP | BK156: 13688 | BL156: 1 | BM156: 76306 | BN156: 5
C157: 25260 | D157: EL ROSAL | E157: 7 | G157: Natural | H157: 25 | I157: CUNDINAMARCA | J157: Aprobado con subsidio | K157: MICRO | L157: 4731 | M157: COMERCIO AL POR MAYOR Y AL POR MENOR; REPARACIÓN DE VEHÍCULOS AUTOMOTORES Y MOTOCICLETAS | N157: G | O157: Comercio al por menor de combustible, lubricantes, aditivos y productos de limpieza para automotores, en establecimientos especializados | P157: Comercio al por menor de combustible, lubricantes, aditivos y productos de limpieza para automotores, en establecimientos especializados | Q157: 1 | R157: 6 | S157: 0 | T157: PAEF - PAP | AF157: 0 | AG157: 0 | AH157: 25754 | AI157: SOACHA | AJ157: 17 | AK157: 0 | AL157: Jurídica | AM157: 25 | AN157: CUNDINAMARCA | AO157: Aprobado con subsidio | AP157: PEQUEÑA | AQ157: 3120 | AR157: INDUSTRIAS MANUFACTURERAS | AS157: C | AT157: Fabricación de colchones y somieres | AU157: Fabricación de muebles, colchones y somieres | AV157: 5 | AW157: 12 | AX157: 0 | AY157: PAEF - PAP | BK157: 76111 | BL157: 34 | BM157: 76736 | BN157: 5
C158: 25843 | D158: VILLA DE SAN DIEGO DE UBATE | E158: 4 | G158: Natural | H158: 25 | I158: CUNDINAMARCA | J158: Aprobado con subsidio | K158: MICRO | L158: 1610 | M158: INDUSTRIAS MANUFACTURERAS | N158: C | O158: Aserrado, acepillado e impregnación de la madera | P158: Transformación de la madera y fabricación de productos de madera y de corcho, excepto muebles; fabricación de artículos de cestería y espartería | Q158: 1 | R158: 3 | S158: 0 | T158: PAEF - PAP | AF158: 0 | AG158: 0 | AH158: 15367 | AI158: JENESANO | AJ158: 6 | AK158: 0 | AL158: Natural | AM158: 15 | AN158: BOYACÁ | AO158: Aprobado con subsidio | AP158: MICRO | AQ158: 1040 | AR158: INDUSTRIAS MANUFACTURERAS | AS158: C | AT158: Elaboración de productos lácteos | AU158: Elaboración de productos alimenticios | AV158: 1 | AW158: 5 | AX158: 0 | AY158: PAEF | BK158: 70708 | BL158: 3 | BM158: 76400 | BN158: 5
C159: 25843 | D159: VILLA DE SAN DIEGO DE UBATE | E159: 3 | G159: Natural | H159: 25 | I159: CUNDINAMARCA | J159: Aprobado con subsidio | K159: MICRO | L159: 5511 | M159: ALOJAMIENTO Y SERVICIOS DE COMIDA | N159: I | O159: Actividades de alojamiento de estancias cortas | P159: Actividades de alojamiento de estancias cortas | Q159: 2 | R159: 1 | S159: 0 | T159: PAEF - PAP | AF159: 0 | AG159: 0 | AH159: 73443 | AI159: MARIQUITA | AJ159: 0 | AK159: 0 | AL159: Natural | AM159: 73 | AN159: TOLIMA | AO159: 0 | AP159: 0 | AQ159: 2394 | AR159: INDUSTRIAS MANUFACTURERAS | AS159: C | AT159: Fabricación de productos minerales no metálicos n.c.p. | AU159: Fabricación de otros productos minerales no metálicos | AV159: 0 | AW159: 0 | AX159: 0 | AY159: No beneficiario | BK159: 5607 | BL159: 29 | BM159: 76622 | BN159: 5
C160: 11001 | D160: BOGOTÁ, D.C. | E160: 3 | G160: Natural | H160: 11 | I160: BOGOTÁ, D.C. | J160: Aprobado con subsidio | K160: MICRO | L160: 8699 | M160: ACTIVIDADES DE ATENCIÓN DE LA SALUD HUMANA Y DE ASISTENCIA SOCIAL | N160: Q | O160: Otras actividades de atención relacionadas con la salud humana | P160: Otras actividades de atención relacionadas con la salud humana | Q160: 3 | R160: 0 | S160: 0 | T160: PAEF - PAP | AF160: 0 | AG160: 0 | AH160: 17001 | AI160: MANIZALES | AJ160: 0 | AK160: 0 | AL160: Natural | AM160: 17 | AN160: CALDAS | AO160: 0 | AP160: MICRO | AQ160: 1513 | AR160: INDUSTRIAS MANUFACTURERAS | AS160: C | AT160: Curtido y recurtido de cueros; fabricación de artículos de viaje, bolsos de mano y artículos similares, y fabricación de artículos de talabartería y guarnicionería; adobo y teñido de pieles | AU160: Curtido y recurtido de cueros; fabricación de calzado; fabricación de artículos de viaje, maletas, bolsos de mano y artículos similares, y fabricación de artículos de talabartería y guarnicionería; adobo y teñido de pieles | AV160: 0 | AW160: 0 | AX160: 0 | AY160: No beneficiario | BK160: 5042 | BL160: 4 | BM160: 25486 | BN160: 5
C161: 68001 | D161: BUCARAMANGA | E161: 0 | G161: Natural | H161: 68 | I161: SANTANDER | J161: Aprobado con subsidio | K161: MICRO | L161: 4755 | M161: COMERCIO AL POR MAYOR Y AL POR MENOR; REPARACIÓN DE VEHÍCULOS AUTOMOTORES Y MOTOCICLETAS | N161: G | O161: Comercio al por menor de otros enseres domésticos en establecimientos especializados | P161: Comercio al por menor de otros enseres domésticos en establecimientos especializados | Q161: 0 | R161: 0 | S161: 0 | T161: PAEF | AF161: 0 | AG161: 0 | AH161: 11001 | AI161: BOGOTÁ, D.C. | AJ161: 7 | AK161: 0 | AL161: Natural | AM161: 11 | AN161: BOGOTÁ, D.C. | AO161: Aprobado con subsidio | AP161: MICRO | AQ161: 3312 | AR161: INDUSTRIAS MANUFACTURERAS | AS161: C | AT161: Mantenimiento y reparación especializado de productos elaborados en metal y de maquinaria y equipo | AU161: Instalación, mantenimiento y reparación especializado de maquinaria y equipo | AV161: 2 | AW161: 5 | AX161: 0 | AY161: PAEF | BK161: 5440 | BL161: 54 | BM161: 25260 | BN161: 5
C162: 25799 | D162: TENJO | E162: 11 | G162: Natural | H162: 25 | I162: CUNDINAMARCA | J162: Aprobado con subsidio | K162: MICRO | L162: 4923 | M162: TRANSPORTE Y ALMACENAMIENTO | N162: H | O162: Transporte terrestre publico automotor | P162: Transporte terrestre publico automotor | Q162: 1 | R162: 10 | S162: 0 | T162: PAEF - PAP - PARO - MICRO | AF162: 0 | AG162: 0 | AH162: 66001 | AI162: PEREIRA | AJ162: 10 | AK162: 0 | AL162: Natural | AM162: 66 | AN162: RISARALDA | AO162: Aprobado con subsidio | AP162: MICRO | AQ162: 1410 | AR162: INDUSTRIAS MANUFACTURERAS | AS162: C | AT162: Confección de prendas de vestir, excepto prendas de piel | AU162: Confección de prendas de vestir | AV162: 3 | AW162: 7 | AX162: 0 | AY162: PAEF - PAP - MICRO | BK162: 19130 | BL162: 2 | BM162: 25873 | BN162: 5
C163: 11001 | D163: BOGOTÁ, D.C. | E163: 4 | G163: Natural | H163: 11 | I163: BOGOTÁ, D.C. | J163: Aprobado con subsidio | K163: MICRO | L163: 2410 | M163: INDUSTRIAS MANUFACTURERAS | N163: C | O163: Industrias básicas de hierro y de acero | P163: Fabricación de productos metalúrgicos básicos | Q163: 0 | R163: 4 | S163: 0 | T163: PAEF - PAP - MICRO | AF163: 0 | AG163: 0 | AH163: 5001 | AI163: MEDELLÍN | AJ163: 0 | AK163: 0 | AL163: Natural | AM163: 5 | AN163: ANTIOQUIA | AO163: 0 | AP163: 0 | AQ163: 2219 | AR163: INDUSTRIAS MANUFACTURERAS | AS163: C | AT163: Fabricación de productos de caucho | AU163: Fabricación de productos de caucho y de plástico | AV163: 0 | AW163: 0 | AX163: 0 | AY163: No beneficiario | BK163: 5034 | BL163: 5 | BM163: 76670 | BN163: 5
C164: 54001 | D164: CÚCUTA | E164: 4 | G164: Natural | H164: 54 | I164: NORTE DE SANTANDER | J164: Aprobado con subsidio | K164: PEQUEÑA | L164: 4711 | M164: COMERCIO AL POR MAYOR Y AL POR MENOR; REPARACIÓN DE VEHÍCULOS AUTOMOTORES Y MOTOCICLETAS | N164: G | O164: Comercio al por menor en establecimientos no especializados | P164: Comercio al por menor en establecimientos no especializados | Q164: 1 | R164: 3 | S164: 0 | T164: PAEF | AF164: 0 | AG164: 0 | AH164: 66170 | AI164: DOSQUEBRADAS | AJ164: 8 | AK164: 0 | AL164: Natural | AM164: 66 | AN164: RISARALDA | AO164: Aprobado con subsidio | AP164: MICRO | AQ164: 2592 | AR164: INDUSTRIAS MANUFACTURERAS | AS164: C | AT164: Fabricación de otros productos elaborados de metal y actividades de servicios relacionadas con el trabajo de metales | AU164: Fabricación de productos elaborados de metal, excepto maquinaria y equipo | AV164: 1 | AW164: 7 | AX164: 0 | AY164: PAEF - PAP - MICRO | BK164: 91001 | BL164: 6 | BM164: 25743 | BN164: 5
C165: 8001 | D165: BARRANQUILLA | E165: 0 | G165: Natural | H165: 8 | I165: ATLÁNTICO | J165: Aprobado con subsidio | K165: MICRO | L165: 5511 | M165: ALOJAMIENTO Y SERVICIOS DE COMIDA | N165: I | O165: Actividades de alojamiento de estancias cortas | P165: Actividades de alojamiento de estancias cortas | Q165: 0 | R165: 0 | S165: 0 | T165: PAEF | AF165: 0 | AG165: 0 | AH165: 66001 | AI165: PEREIRA | AJ165: 30 | AK165: 0 | AL165: Natural | AM165: 66 | AN165: RISARALDA | AO165: Aprobado con subsidio | AP165: PEQUEÑA | AQ165: 1410 | AR165: INDUSTRIAS MANUFACTURERAS | AS165: C | AT165: Confección de prendas de vestir, excepto prendas de piel | AU165: Confección de prendas de vestir | AV165: 19 | AW165: 11 | AX165: 0 | AY165: PAEF - PAP | BK165: 76364 | BL165: 17 | BM165: 8573 | BN165: 5
C166: 68679 | D166: SAN GIL | E166: 0 | G166: Natural | H166: 68 | I166: SANTANDER | J166: 0 | K166: 0 | L166: 4772 | M166: COMERCIO AL POR MAYOR Y AL POR MENOR; REPARACIÓN DE VEHÍCULOS AUTOMOTORES Y MOTOCICLETAS | N166: G | O166: Comercio al por menor de otros productos en establecimientos especializados | P166: Comercio al por menor de otros productos en establecimientos especializados | Q166: 0 | R166: 0 | S166: 0 | T166: No beneficiario | AF166: 0 | AG166: 0 | AH166: 66170 | AI166: DOSQUEBRADAS | AJ166: 31 | AK166: 0 | AL166: Natural | AM166: 66 | AN166: RISARALDA | AO166: Aprobado con subsidio | AP166: PEQUEÑA | AQ166: 1410 | AR166: INDUSTRIAS MANUFACTURERAS | AS166: C | AT166: Confección de prendas de vestir, excepto prendas de piel | AU166: Confección de prendas de vestir | AV166: 19 | AW166: 12 | AX166: 0 | AY166: PAEF - PAP - MICRO | BK166: 5154 | BL166: 13 | BM166: 68079 | BN166: 4
C167: 47001 | D167: SANTA MARTA | E167: 0 | G167: Natural | H167: 47 | I167: MAGDALENA | J167: Aprobado con subsidio | K167: MICRO | L167: 5514 | M167: ALOJAMIENTO Y SERVICIOS DE COMIDA | N167: I | O167: Actividades de alojamiento de estancias cortas | P167: Actividades de alojamiento de estancias cortas | Q167: 0 | R167: 0 | S167: 0 | T167: PAEF | AF167: 0 | AG167: 0 | AH167: 63130 | AI167: CALARCA | AJ167: 10 | AK167: 0 | AL167: Natural | AM167: 63 | AN167: QUINDÍO | AO167: Aprobado con subsidio | AP167: MICRO | AQ167: 1610 | AR167: INDUSTRIAS MANUFACTURERAS | AS167: C | AT167: Aserrado, acepillado e impregnación de la madera | AU167: Transformación de la madera y fabricación de productos de madera y de corcho, excepto muebles; fabricación de artículos de cestería y espartería | AV167: 1 | AW167: 9 | AX167: 0 | AY167: PAEF - PAP - MICRO | BK167: 19573 | BL167: 14 | BM167: 50226 | BN167: 4
C168: 8001 | D168: BARRANQUILLA | E168: 0 | G168: Natural | H168: 8 | I168: ATLÁNTICO | J168: 0 | K168: 0 | L168: 5611 | M168: ALOJAMIENTO Y SERVICIOS DE COMIDA | N168: I | O168: Actividades de restaurantes, cafeterías y servicio móvil de comidas | P168: Actividades de restaurantes, cafeterías y servicio móvil de comidas | Q168: 0 | R168: 0 | S168: 0 | T168: No beneficiario | AF168: 0 | AG168: 0 | AH168: 5001 | AI168: MEDELLÍN | AJ168: 6 | AK168: 0 | AL168: Natural | AM168: 5 | AN168: ANTIOQUIA | AO168: Aprobado con subsidio | AP168: MICRO | AQ168: 1104 | AR168: INDUSTRIAS MANUFACTURERAS | AS168: C | AT168: Elaboración de bebidas | AU168: Elaboración de bebidas | AV168: 0 | AW168: 6 | AX168: 0 | AY168: PAEF - PAP | BK168: 73449 | BL168: 4 | BM168: 15176 | BN168: 4
C169: 25843 | D169: VILLA DE SAN DIEGO DE UBATE | E169: 4 | G169: Natural | H169: 25 | I169: CUNDINAMARCA | J169: Aprobado con subsidio | K169: MICRO | L169: 9601 | M169: OTRAS ACTIVIDADES DE SERVICIOS | N169: S | O169: Otras actividades de servicios personales | P169: Otras actividades de servicios personales | Q169: 3 | R169: 1 | S169: 0 | T169: PAEF - PAP | AF169: 0 | AG169: 0 | AH169: 66170 | AI169: DOSQUEBRADAS | AJ169: 7 | AK169: 0 | AL169: Natural | AM169: 66 | AN169: RISARALDA | AO169: Aprobado con subsidio | AP169: MICRO | AQ169: 1313 | AR169: INDUSTRIAS MANUFACTURERAS | AS169: C | AT169: Preparación, hilatura, tejeduría y acabado de productos textiles | AU169: Fabricación de productos textiles | AV169: 2 | AW169: 5 | AX169: 0 | AY169: PAEF - PAP - MICRO | BK169: 25286 | BL169: 128 | BM169: 8078 | BN169: 4
C170: 11001 | D170: BOGOTÁ, D.C. | E170: 5 | G170: Natural | H170: 11 | I170: BOGOTÁ, D.C. | J170: Aprobado con subsidio | K170: MICRO | L170: 4922 | M170: TRANSPORTE Y ALMACENAMIENTO | N170: H | O170: Transporte terrestre publico automotor | P170: Transporte terrestre publico automotor | Q170: 2 | R170: 3 | S170: 0 | T170: PAEF - PAP | AF170: 0 | AG170: 0 | AH170: 11001 | AI170: BOGOTÁ, D.C. | AJ170: 3 | AK170: 0 | AL170: Natural | AM170: 11 | AN170: BOGOTÁ, D.C. | AO170: Aprobado con subsidio | AP170: MICRO | AQ170: 1410 | AR170: INDUSTRIAS MANUFACTURERAS | AS170: C | AT170: Confección de prendas de vestir, excepto prendas de piel | AU170: Confección de prendas de vestir | AV170: 0 | AW170: 3 | AX170: 0 | AY170: PAEF - PAP - MICRO | BK170: 5101 | BL170: 2 | BM170: 73275 | BN170: 4
C171: 5088 | D171: BELLO | E171: 0 | G171: Natural | H171: 5 | I171: ANTIOQUIA | J171: 0 | K171: 0 | L171: 4322 | M171: CONSTRUCCIÓN | N171: F | O171: Instalaciones eléctricas, de fontanería y otras instalaciones especializadas | P171: Instalaciones eléctricas, de fontanería y otras instalaciones especializadas | Q171: 0 | R171: 0 | S171: 0 | T171: No beneficiario | AF171: 0 | AG171: 0 | AH171: 11001 | AI171: BOGOTÁ, D.C. | AJ171: 13 | AK171: 0 | AL171: Natural | AM171: 11 | AN171: BOGOTÁ, D.C. | AO171: Aprobado con subsidio | AP171: PEQUEÑA | AQ171: 1089 | AR171: INDUSTRIAS MANUFACTURERAS | AS171: C | AT171: Elaboración de otros productos alimenticios | AU171: Elaboración de productos alimenticios | AV171: 1 | AW171: 12 | AX171: 0 | AY171: PAEF - PAP | BK171: 25001 | BL171: 6 | BM171: 5042 | BN171: 4
C172: 91001 | D172: LETICIA | E172: 5 | G172: Natural | H172: 91 | I172: AMAZONAS | J172: Aprobado con subsidio | K172: MICRO | L172: 4742 | M172: COMERCIO AL POR MAYOR Y AL POR MENOR; REPARACIÓN DE VEHÍCULOS AUTOMOTORES Y MOTOCICLETAS | N172: G | O172: Comercio al por menor de equipos de informática y de comunicaciones, en establecimientos especializados | P172: Comercio al por menor de equipos de informática y de comunicaciones, en establecimientos especializados | Q172: 4 | R172: 1 | S172: 0 | T172: PAEF - PAP | AF172: 0 | AG172: 0 | AH172: 17001 | AI172: MANIZALES | AJ172: 4 | AK172: 0 | AL172: Natural | AM172: 17 | AN172: CALDAS | AO172: Aprobado con subsidio | AP172: MICRO | AQ172: 3290 | AR172: INDUSTRIAS MANUFACTURERAS | AS172: C | AT172: Otras industrias manufactureras n.c.p. | AU172: Otras industrias manufactureras | AV172: 4 | AW172: 0 | AX172: 0 | AY172: PAEF - PAP - MICRO | BK172: 50313 | BL172: 2 | BM172: 73449 | BN172: 4
C173: 52001 | D173: PASTO | E173: 0 | G173: Natural | H173: 52 | I173: NARIÑO | J173: 0 | K173: MICRO | L173: 6810 | M173: ACTIVIDADES INMOBILIARIAS | N173: L | O173: Actividades inmobiliarias realizadas con bienes propios o arrendados | P173: Actividades inmobiliarias realizadas con bienes propios o arrendados | Q173: 0 | R173: 0 | S173: 0 | T173: No beneficiario | AF173: 0 | AG173: 0 | AH173: 17001 | AI173: MANIZALES | AJ173: 4 | AK173: 0 | AL173: Natural | AM173: 17 | AN173: CALDAS | AO173: Aprobado con subsidio | AP173: MICRO | AQ173: 1610 | AR173: INDUSTRIAS MANUFACTURERAS | AS173: C | AT173: Aserrado, acepillado e impregnación de la madera | AU173: Transformación de la madera y fabricación de productos de madera y de corcho, excepto muebles; fabricación de artículos de cestería y espartería | AV173: 1 | AW173: 3 | AX173: 0 | AY173: PAEF - PAP | BK173: 50318 | BL173: 6 | BM173: 25402 | BN173: 4
C174: 11001 | D174: BOGOTÁ, D.C. | E174: 0 | G174: Natural | H174: 11 | I174: BOGOTÁ, D.C. | J174: 0 | K174: MICRO | L174: 4752 | M174: COMERCIO AL POR MAYOR Y AL POR MENOR; REPARACIÓN DE VEHÍCULOS AUTOMOTORES Y MOTOCICLETAS | N174: G | O174: Comercio al por menor de otros enseres domésticos en establecimientos especializados | P174: Comercio al por menor de otros enseres domésticos en establecimientos especializados | Q174: 0 | R174: 0 | S174: 0 | T174: No beneficiario | AF174: 0 | AG174: 0 | AH174: 11001 | AI174: BOGOTÁ, D.C. | AJ174: 3 | AK174: 0 | AL174: Natural | AM174: 11 | AN174: BOGOTÁ, D.C. | AO174: Aprobado con subsidio | AP174: MICRO | AQ174: 2432 | AR174: INDUSTRIAS MANUFACTURERAS | AS174: C | AT174: Fundición de metales | AU174: Fabricación de productos metalúrgicos básicos | AV174: 1 | AW174: 2 | AX174: 0 | AY174: PAEF | BK174: 94001 | BL174: 1 | BM174: 20710 | BN174: 4
C175: 76001 | D175: CALI | E175: 2 | G175: Natural | H175: 76 | I175: VALLE DEL CAUCA | J175: Aprobado con subsidio | K175: MICRO | L175: 1410 | M175: INDUSTRIAS MANUFACTURERAS | N175: C | O175: Confección de prendas de vestir, excepto prendas de piel | P175: Confección de prendas de vestir | Q175: 0 | R175: 2 | S175: 0 | T175: PAEF | AF175: 0 | AG175: 0 | AH175: 76001 | AI175: CALI | AJ175: 5 | AK175: 0 | AL175: Natural | AM175: 76 | AN175: VALLE DEL CAUCA | AO175: Aprobado con subsidio | AP175: MICRO | AQ175: 3110 | AR175: INDUSTRIAS MANUFACTURERAS | AS175: C | AT175: Fabricación de muebles | AU175: Fabricación de muebles, colchones y somieres | AV175: 1 | AW175: 4 | AX175: 0 | AY175: PAEF - PAP | BK175: 18753 | BL175: 7 | BM175: 68406 | BN175: 4
C176: 13001 | D176: CARTAGENA | E176: 0 | G176: Natural | H176: 13 | I176: BOLÍVAR | J176: 0 | K176: MICRO | L176: 1084 | M176: INDUSTRIAS MANUFACTURERAS | N176: C | O176: Elaboración de otros productos alimenticios | P176: Elaboración de productos alimenticios | Q176: 0 | R176: 0 | S176: 0 | T176: No beneficiario | AF176: 0 | AG176: 0 | AH176: 66001 | AI176: PEREIRA | AJ176: 34 | AK176: 0 | AL176: Natural | AM176: 66 | AN176: RISARALDA | AO176: Aprobado con subsidio | AP176: PEQUEÑA | AQ176: 1040 | AR176: INDUSTRIAS MANUFACTURERAS | AS176: C | AT176: Elaboración de productos lácteos | AU176: Elaboración de productos alimenticios | AV176: 3 | AW176: 31 | AX176: 0 | AY176: PAEF | BK176: 76275 | BL176: 8 | BM176: 8638 | BN176: 4
C177: 5001 | D177: MEDELLÍN | E177: 6 | G177: Natural | H177: 5 | I177: ANTIOQUIA | J177: Aprobado con subsidio | K177: MICRO | L177: 3290 | M177: INDUSTRIAS MANUFACTURERAS | N177: C | O177: Otras industrias manufactureras n.c.p. | P177: Otras industrias manufactureras | Q177: 4 | R177: 2 | S177: 0 | T177: PAEF - PAP | AF177: 0 | AG177: 0 | AH177: 66170 | AI177: DOSQUEBRADAS | AJ177: 6 | AK177: 0 | AL177: Natural | AM177: 66 | AN177: RISARALDA | AO177: Aprobado con subsidio | AP177: MICRO | AQ177: 2599 | AR177: INDUSTRIAS MANUFACTURERAS | AS177: C | AT177: Fabricación de otros productos elaborados de metal y actividades de servicios relacionadas con el trabajo de metales | AU177: Fabricación de productos elaborados de metal, excepto maquinaria y equipo | AV177: 0 | AW177: 6 | AX177: 0 | AY177: PAEF - PAP | BK177: 15500 | BL177: 3 | BM177: 54498 | BN177: 4
C178: 25867 | D178: VIANÍ | E178: 5 | G178: Natural | H178: 25 | I178: CUNDINAMARCA | J178: Aprobado con subsidio | K178: MICRO | L178: 5611 | M178: ALOJAMIENTO Y SERVICIOS DE COMIDA | N178: I | O178: Actividades de restaurantes, cafeterías y servicio móvil de comidas | P178: Actividades de restaurantes, cafeterías y servicio móvil de comidas | Q178: 3 | R178: 2 | S178: 0 | T178: PAEF - PAP | AF178: 0 | AG178: 0 | AH178: 66001 | AI178: PEREIRA | AJ178: 14 | AK178: 0 | AL178: Natural | AM178: 66 | AN178: RISARALDA | AO178: Aprobado con subsidio | AP178: PEQUEÑA | AQ178: 2930 | AR178: INDUSTRIAS MANUFACTURERAS | AS178: C | AT178: Fabricación de partes, piezas (autopartes) y accesorios (lujos) para vehículos automotores | AU178: Fabricación de vehículos automotores, remolques y semirremolques | AV178: 2 | AW178: 12 | AX178: 0 | AY178: PAEF - PAP | BK178: 25758 | BL178: 18 | BM178: 76890 | BN178: 4
C179: 25873 | D179: VILLAPINZÓN | E179: 0 | G179: Natural | H179: 25 | I179: CUNDINAMARCA | J179: 0 | K179: MICRO | L179: 4923 | M179: TRANSPORTE Y ALMACENAMIENTO | N179: H | O179: Transporte terrestre publico automotor | P179: Transporte terrestre publico automotor | Q179: 0 | R179: 0 | S179: 0 | T179: No beneficiario | AF179: 0 | AG179: 0 | AH179: 63001 | AI179: ARMENIA | AJ179: 10 | AK179: 0 | AL179: Natural | AM179: 63 | AN179: QUINDÍO | AO179: Aprobado con subsidio | AP179: PEQUEÑA | AQ179: 3110 | AR179: INDUSTRIAS MANUFACTURERAS | AS179: C | AT179: Fabricación de muebles | AU179: Fabricación de muebles, colchones y somieres | AV179: 2 | AW179: 8 | AX179: 0 | AY179: PAEF - PAP | BK179: 52356 | BL179: 7 | BM179: 5756 | BN179: 4
C180: 5001 | D180: MEDELLÍN | E180: 6 | G180: Natural | H180: 5 | I180: ANTIOQUIA | J180: Aprobado con subsidio | K180: MICRO | L180: 9602 | M180: OTRAS ACTIVIDADES DE SERVICIOS | N180: S | O180: Otras actividades de servicios personales | P180: Otras actividades de servicios personales | Q180: 3 | R180: 3 | S180: 0 | T180: PAEF - PAP | AF180: 0 | AG180: 0 | AH180: 66001 | AI180: PEREIRA | AJ180: 3 | AK180: 0 | AL180: Natural | AM180: 66 | AN180: RISARALDA | AO180: Aprobado con subsidio | AP180: MICRO | AQ180: 1610 | AR180: INDUSTRIAS MANUFACTURERAS | AS180: C | AT180: Aserrado, acepillado e impregnación de la madera | AU180: Transformación de la madera y fabricación de productos de madera y de corcho, excepto muebles; fabricación de artículos de cestería y espartería | AV180: 0 | AW180: 3 | AX180: 0 | AY180: PAEF | BK180: 76113 | BL180: 5 | BM180: 5541 | BN180: 4
C181: 25898 | D181: ZIPACÓN | E181: 16 | G181: Natural | H181: 25 | I181: CUNDINAMARCA | J181: Aprobado con subsidio | K181: PEQUEÑA | L181: 125 | M181: AGRICULTURA, GANADERÍA, CAZA, SILVICULTURA Y PESCA | N181: A | O181: Cultivos agrícolas permanentes | P181: Cultivos agrícolas permanentes | Q181: 5 | R181: 11 | S181: 0 | T181: PAEF - PAP | AF181: 0 | AG181: 0 | AH181: 17614 | AI181: RIOSUCIO | AJ181: 7 | AK181: 0 | AL181: Jurídica | AM181: 17 | AN181: CALDAS | AO181: Aprobado con subsidio | AP181: MICRO | AQ181: 1410 | AR181: INDUSTRIAS MANUFACTURERAS | AS181: C | AT181: Confección de prendas de vestir, excepto prendas de piel | AU181: Confección de prendas de vestir | AV181: 6 | AW181: 1 | AX181: 0 | AY181: PAEF - PAP | BK181: 25320 | BL181: 3 | BM181: 25099 | BN181: 4
C182: 73001 | D182: IBAGUÉ | E182: 5 | G182: Natural | H182: 73 | I182: TOLIMA | J182: Aprobado con subsidio | K182: MICRO | L182: 1410 | M182: INDUSTRIAS MANUFACTURERAS | N182: C | O182: Confección de prendas de vestir, excepto prendas de piel | P182: Confección de prendas de vestir | Q182: 2 | R182: 3 | S182: 0 | T182: PAEF - PAP | AF182: 0 | AG182: 0 | AH182: 63001 | AI182: ARMENIA | AJ182: 4 | AK182: 0 | AL182: Natural | AM182: 63 | AN182: QUINDÍO | AO182: Aprobado con subsidio | AP182: MICRO | AQ182: 2410 | AR182: INDUSTRIAS MANUFACTURERAS | AS182: C | AT182: Industrias básicas de hierro y de acero | AU182: Fabricación de productos metalúrgicos básicos | AV182: 1 | AW182: 3 | AX182: 0 | AY182: PAEF - PAP | BK182: 47053 | BL182: 3 | BM182: 68895 | BN182: 4
C183: 66001 | D183: PEREIRA | E183: 0 | G183: Natural | H183: 66 | I183: RISARALDA | J183: Aprobado con subsidio | K183: MICRO | L183: 7912 | M183: ACTIVIDADES DE SERVICIOS ADMINISTRATIVOS Y DE APOYO | N183: N | O183: Actividades de las agencias de viajes y operadores turísticos | P183: Actividades de las agencias de viajes y operadores turísticos | Q183: 0 | R183: 0 | S183: 0 | T183: PAEF | AF183: 0 | AG183: 0 | AH183: 66682 | AI183: SANTA ROSA DE CABAL | AJ183: 4 | AK183: 0 | AL183: Natural | AM183: 66 | AN183: RISARALDA | AO183: Aprobado con subsidio | AP183: MICRO | AQ183: 1812 | AR183: INDUSTRIAS MANUFACTURERAS | AS183: C | AT183: Actividades de impresión y actividades de servicios relacionados con la impresión | AU183: Fabricación de papel, cartón y productos de papel y cartón | AV183: 3 | AW183: 1 | AX183: 0 | AY183: PAEF - PAP - MICRO | BK183: 25151 | BL183: 1 | BM183: 76318 | BN183: 4
C184: 76001 | D184: CALI | E184: 0 | G184: Natural | H184: 76 | I184: VALLE DEL CAUCA | J184: 0 | K184: 0 | L184: 4772 | M184: COMERCIO AL POR MAYOR Y AL POR MENOR; REPARACIÓN DE VEHÍCULOS AUTOMOTORES Y MOTOCICLETAS | N184: G | O184: Comercio al por menor de otros productos en establecimientos especializados | P184: Comercio al por menor de otros productos en establecimientos especializados | Q184: 0 | R184: 0 | S184: 0 | T184: No beneficiario | AF184: 0 | AG184: 0 | AH184: 66682 | AI184: SANTA ROSA DE CABAL | AJ184: 15 | AK184: 0 | AL184: Natural | AM184: 66 | AN184: RISARALDA | AO184: Aprobado con subsidio | AP184: PEQUEÑA | AQ184: 1399 | AR184: INDUSTRIAS MANUFACTURERAS | AS184: C | AT184: Fabricación de otros productos textiles | AU184: Fabricación de productos textiles | AV184: 6 | AW184: 9 | AX184: 0 | AY184: PAEF - PAP - MICRO | BK184: 25402 | BL184: 4 | BM184: 19142 | BN184: 4
C185: 25785 | D185: TABIO | E185: 0 | G185: Natural | H185: 25 | I185: CUNDINAMARCA | J185: 0 | K185: MICRO | L185: 90 | M185: OTRAS | N185: Otras | O185: Otras | P185: Otras | Q185: 0 | R185: 0 | S185: 0 | T185: No beneficiario | AF185: 0 | AG185: 0 | AH185: 11001 | AI185: BOGOTÁ, D.C. | AJ185: 0 | AK185: 0 | AL185: Natural | AM185: 11 | AN185: BOGOTÁ, D.C. | AO185: 0 | AP185: 0 | AQ185: 1521 | AR185: INDUSTRIAS MANUFACTURERAS | AS185: C | AT185: Fabricación de calzado | AU185: Curtido y recurtido de cueros; fabricación de calzado; fabricación de artículos de viaje, maletas, bolsos de mano y artículos similares, y fabricación de artículos de talabartería y guarnicionería; adobo y teñido de pieles | AV185: 0 | AW185: 0 | AX185: 0 | AY185: No beneficiario | BK185: 25438 | BL185: 1 | BM185: 85139 | BN185: 4
C186: 5001 | D186: MEDELLÍN | E186: 3 | G186: Natural | H186: 5 | I186: ANTIOQUIA | J186: Aprobado con subsidio | K186: MICRO | L186: 5611 | M186: ALOJAMIENTO Y SERVICIOS DE COMIDA | N186: I | O186: Actividades de restaurantes, cafeterías y servicio móvil de comidas | P186: Actividades de restaurantes, cafeterías y servicio móvil de comidas | Q186: 0 | R186: 3 | S186: 0 | T186: PARO - MICRO | AF186: 0 | AG186: 0 | AH186: 66682 | AI186: SANTA ROSA DE CABAL | AJ186: 0 | AK186: 0 | AL186: Natural | AM186: 66 | AN186: RISARALDA | AO186: 0 | AP186: MICRO | AQ186: 2599 | AR186: INDUSTRIAS MANUFACTURERAS | AS186: C | AT186: Fabricación de otros productos elaborados de metal y actividades de servicios relacionadas con el trabajo de metales | AU186: Fabricación de productos elaborados de metal, excepto maquinaria y equipo | AV186: 0 | AW186: 0 | AX186: 0 | AY186: No beneficiario | BK186: 50606 | BL186: 5 | BM186: 13430 | BN186: 4
C187: 50226 | D187: CUMARAL | E187: 4 | G187: Natural | H187: 50 | I187: META | J187: Aprobado con subsidio | K187: MICRO | L187: 4752 | M187: COMERCIO AL POR MAYOR Y AL POR MENOR; REPARACIÓN DE VEHÍCULOS AUTOMOTORES Y MOTOCICLETAS | N187: G | O187: Comercio al por menor de otros enseres domésticos en establecimientos especializados | P187: Comercio al por menor de otros enseres domésticos en establecimientos especializados | Q187: 3 | R187: 1 | S187: 0 | T187: PAEF - PAP | AF187: 0 | AG187: 0 | AH187: 19455 | AI187: MIRANDA | AJ187: 9 | AK187: 0 | AL187: Natural | AM187: 19 | AN187: CAUCA | AO187: Aprobado con subsidio | AP187: PEQUEÑA | AQ187: 1081 | AR187: INDUSTRIAS MANUFACTURERAS | AS187: C | AT187: Elaboración de otros productos alimenticios | AU187: Elaboración de productos alimenticios | AV187: 8 | AW187: 1 | AX187: 0 | AY187: PAEF | BK187: 63190 | BL187: 3 | BM187: 5591 | BN187: 4
C188: 5001 | D188: MEDELLÍN | E188: 2 | G188: Natural | H188: 5 | I188: ANTIOQUIA | J188: Aprobado con subsidio | K188: MICRO | L188: 8299 | M188: ACTIVIDADES DE SERVICIOS ADMINISTRATIVOS Y DE APOYO | N188: N | O188: Actividades de servicios de apoyo a las empresas n.c.p. | P188: Actividades de servicios de apoyo a las empresas n.c.p. | Q188: 1 | R188: 1 | S188: 0 | T188: PAEF - PAP | AF188: 0 | AG188: 0 | AH188: 76001 | AI188: CALI | AJ188: 0 | AK188: 0 | AL188: Natural | AM188: 76 | AN188: VALLE DEL CAUCA | AO188: 0 | AP188: 0 | AQ188: 1630 | AR188: INDUSTRIAS MANUFACTURERAS | AS188: C | AT188: Fabricación de partes y piezas de madera, de carpintería y ebanistería para la construcción | AU188: Transformación de la madera y fabricación de productos de madera y de corcho, excepto muebles; fabricación de artículos de cestería y espartería | AV188: 0 | AW188: 0 | AX188: 0 | AY188: No beneficiario | BK188: 5234 | BL188: 1 | BM188: 54810 | BN188: 4
C189: 50001 | D189: VILLAVICENCIO | E189: 17 | G189: Natural | H189: 50 | I189: META | J189: Aprobado con subsidio | K189: MEDIANA | L189: 5611 | M189: ALOJAMIENTO Y SERVICIOS DE COMIDA | N189: I | O189: Actividades de restaurantes, cafeterías y servicio móvil de comidas | P189: Actividades de restaurantes, cafeterías y servicio móvil de comidas | Q189: 10 | R189: 7 | S189: 0 | T189: PAEF - PAP | AF189: 0 | AG189: 0 | AH189: 76147 | AI189: CARTAGO | AJ189: 5 | AK189: 0 | AL189: Natural | AM189: 76 | AN189: VALLE DEL CAUCA | AO189: Aprobado con subsidio | AP189: MICRO | AQ189: 1610 | AR189: INDUSTRIAS MANUFACTURERAS | AS189: C | AT189: Aserrado, acepillado e impregnación de la madera | AU189: Transformación de la madera y fabricación de productos de madera y de corcho, excepto muebles; fabricación de artículos de cestería y espartería | AV189: 1 | AW189: 4 | AX189: 0 | AY189: PAEF - PAP | BK189: 88564 | BL189: 3 | BM189: 25035 | BN189: 4
C190: 76001 | D190: CALI | E190: 0 | G190: Natural | H190: 76 | I190: VALLE DEL CAUCA | J190: 0 | K190: MICRO | L190: 4722 | M190: COMERCIO AL POR MAYOR Y AL POR MENOR; REPARACIÓN DE VEHÍCULOS AUTOMOTORES Y MOTOCICLETAS | N190: G | O190: Comercio al por menor de alimentos (víveres en general), bebidas y tabaco, en establecimientos especializados | P190: Comercio al por menor de alimentos (víveres en general), bebidas y tabaco, en establecimientos especializados | Q190: 0 | R190: 0 | S190: 0 | T190: No beneficiario | AF190: 0 | AG190: 0 | AH190: 41132 | AI190: CAMPOALEGRE | AJ190: 4 | AK190: 0 | AL190: Natural | AM190: 41 | AN190: HUILA | AO190: Aprobado con subsidio | AP190: MICRO | AQ190: 2392 | AR190: INDUSTRIAS MANUFACTURERAS | AS190: C | AT190: Fabricación de productos minerales no metálicos n.c.p. | AU190: Fabricación de otros productos minerales no metálicos | AV190: 0 | AW190: 4 | AX190: 0 | AY190: PAEF | BK190: 15051 | BL190: 1 | BM190: 25386 | BN190: 3
C191: 25530 | D191: PARATEBUENO | E191: 11 | G191: Jurídica | H191: 25 | I191: CUNDINAMARCA | J191: Aprobado con subsidio | K191: MICRO | L191: 1040 | M191: INDUSTRIAS MANUFACTURERAS | N191: C | O191: Elaboración de productos lácteos | P191: Elaboración de productos alimenticios | Q191: 4 | R191: 7 | S191: 0 | T191: PAEF - PAP | AF191: 0 | AG191: 0 | AH191: 11001 | AI191: BOGOTÁ, D.C. | AJ191: 16 | AK191: 0 | AL191: Natural | AM191: 11 | AN191: BOGOTÁ, D.C. | AO191: Aprobado con subsidio | AP191: PEQUEÑA | AQ191: 3290 | AR191: INDUSTRIAS MANUFACTURERAS | AS191: C | AT191: Otras industrias manufactureras n.c.p. | AU191: Otras industrias manufactureras | AV191: 8 | AW191: 8 | AX191: 0 | AY191: PAEF - PAP | BK191: 25295 | BL191: 7 | BM191: 5604 | BN191: 3
C192: 11001 | D192: BOGOTÁ, D.C. | E192: 0 | G192: Natural | H192: 11 | I192: BOGOTÁ, D.C. | J192: Aprobado con subsidio | K192: MICRO | L192: 5611 | M192: ALOJAMIENTO Y SERVICIOS DE COMIDA | N192: I | O192: Actividades de restaurantes, cafeterías y servicio móvil de comidas | P192: Actividades de restaurantes, cafeterías y servicio móvil de comidas | Q192: 0 | R192: 0 | S192: 0 | T192: PAEF | AF192: 0 | AG192: 0 | AH192: 41791 | AI192: TARQUI | AJ192: 23 | AK192: 0 | AL192: Natural | AM192: 41 | AN192: HUILA | AO192: Aprobado con subsidio | AP192: PEQUEÑA | AQ192: 1040 | AR192: INDUSTRIAS MANUFACTURERAS | AS192: C | AT192: Elaboración de productos lácteos | AU192: Elaboración de productos alimenticios | AV192: 8 | AW192: 15 | AX192: 0 | AY192: PAEF - PAP - PARO - MICRO | BK192: 15763 | BL192: 1 | BM192: 13052 | BN192: 3
C193: 68001 | D193: BUCARAMANGA | E193: 6 | G193: Natural | H193: 68 | I193: SANTANDER | J193: Aprobado con subsidio | K193: MICRO | L193: 6499 | M193: ACTIVIDADES FINANCIERAS Y DE SEGUROS | N193: K | O193: Otras actividades de servicio financiero, excepto las de seguros y pensiones | P193: Otras actividades de servicio financiero, excepto las de seguros y pensiones | Q193: 5 | R193: 1 | S193: 0 | T193: PAEF | AF193: 0 | AG193: 0 | AH193: 47001 | AI193: SANTA MARTA | AJ193: 3 | AK193: 0 | AL193: Natural | AM193: 47 | AN193: MAGDALENA | AO193: Aprobado con subsidio | AP193: MICRO | AQ193: 1081 | AR193: INDUSTRIAS MANUFACTURERAS | AS193: C | AT193: Elaboración de otros productos alimenticios | AU193: Elaboración de productos alimenticios | AV193: 0 | AW193: 3 | AX193: 0 | AY193: PAEF | BK193: 15861 | BL193: 2 | BM193: 15087 | BN193: 3
C194: 5266 | D194: ENVIGADO | E194: 0 | G194: Natural | H194: 5 | I194: ANTIOQUIA | J194: 0 | K194: MICRO | L194: 90 | M194: OTRAS | N194: Otras | O194: Otras | P194: Otras | Q194: 0 | R194: 0 | S194: 0 | T194: No beneficiario | AF194: 0 | AG194: 0 | AH194: 52001 | AI194: PASTO | AJ194: 3 | AK194: 0 | AL194: Natural | AM194: 52 | AN194: NARIÑO | AO194: Aprobado con subsidio | AP194: MICRO | AQ194: 1811 | AR194: INDUSTRIAS MANUFACTURERAS | AS194: C | AT194: Actividades de impresión y actividades de servicios relacionados con la impresión | AU194: Actividades de impresión y de producción de copias a partir de grabaciones originales | AV194: 2 | AW194: 1 | AX194: 0 | AY194: PAEF - PAP - MICRO | BK194: 17174 | BL194: =COUNTIFS($AO$2:$AO$399999,"Aprobado con subsidio",$AH$2:$AH$399999,BK194) -> 11 | BM194: 23417 | BN194: 3
C195: 15407 | D195: VILLA DE LEYVA | E195: 0 | G195: Natural | H195: 15 | I195: BOYACÁ | J195: 0 | K195: 0 | L195: 5611 | M195: ALOJAMIENTO Y SERVICIOS DE COMIDA | N195: I | O195: Actividades de restaurantes, cafeterías y servicio móvil de comidas | P195: Actividades de restaurantes, cafeterías y servicio móvil de comidas | Q195: 0 | R195: 0 | S195: 0 | T195: No beneficiario | AF195: 0 | AG195: 0 | AH195: 15469 | AI195: MONIQUIRÁ | AJ195: 23 | AK195: 0 | AL195: Natural | AM195: 15 | AN195: BOYACÁ | AO195: Aprobado con subsidio | AP195: PEQUEÑA | AQ195: 1082 | AR195: INDUSTRIAS MANUFACTURERAS | AS195: C | AT195: Elaboración de otros productos alimenticios | AU195: Elaboración de productos alimenticios | AV195: 10 | AW195: 13 | AX195: 0 | AY195: PAEF - PAP | BK195: 23555 | BL195: 3 | BM195: 63594 | BN195: 3
C196: 5001 | D196: MEDELLÍN | E196: 3 | G196: Natural | H196: 5 | I196: ANTIOQUIA | J196: Aprobado con subsidio | K196: MICRO | L196: 4751 | M196: COMERCIO AL POR MAYOR Y AL POR MENOR; REPARACIÓN DE VEHÍCULOS AUTOMOTORES Y MOTOCICLETAS | N196: G | O196: Comercio al por menor de otros enseres domésticos en establecimientos especializados | P196: Comercio al por menor de otros enseres domésticos en establecimientos especializados | Q196: 1 | R196: 2 | S196: 0 | T196: PAEF - PAP | AF196: 0 | AG196: 0 | AH196: 52001 | AI196: PASTO | AJ196: 5 | AK196: 0 | AL196: Natural | AM196: 52 | AN196: NARIÑO | AO196: Aprobado con subsidio | AP196: MICRO | AQ196: 1081 | AR196: INDUSTRIAS MANUFACTURERAS | AS196: C | AT196: Elaboración de otros productos alimenticios | AU196: Elaboración de productos alimenticios | AV196: 5 | AW196: 0 | AX196: 0 | AY196: PAEF - PAP | BK196: 20710 | BL196: 4 | BM196: 70708 | BN196: 3
C197: 66001 | D197: PEREIRA | E197: 0 | G197: Natural | H197: 66 | I197: RISARALDA | J197: 0 | K197: 0 | L197: 5611 | M197: ALOJAMIENTO Y SERVICIOS DE COMIDA | N197: I | O197: Actividades de restaurantes, cafeterías y servicio móvil de comidas | P197: Actividades de restaurantes, cafeterías y servicio móvil de comidas | Q197: 0 | R197: 0 | S197: 0 | T197: No beneficiario | AF197: 0 | AG197: 0 | AH197: 52001 | AI197: PASTO | AJ197: 2 | AK197: 0 | AL197: Natural | AM197: 52 | AN197: NARIÑO | AO197: Aprobado con subsidio | AP197: MICRO | AQ197: 1630 | AR197: INDUSTRIAS MANUFACTURERAS | AS197: C | AT197: Fabricación de partes y piezas de madera, de carpintería y ebanistería para la construcción | AU197: Transformación de la madera y fabricación de productos de madera y de corcho, excepto muebles; fabricación de artículos de cestería y espartería | AV197: 0 | AW197: 2 | AX197: 0 | AY197: MICRO | BK197: 68406 | BL197: 4 | BM197: 15500 | BN197: 3
C198: 44430 | D198: MAICAO | E198: 7 | G198: Natural | H198: 44 | I198: LA GUAJIRA | J198: Aprobado con subsidio | K198: MICRO | L198: 4752 | M198: COMERCIO AL POR MAYOR Y AL POR MENOR; REPARACIÓN DE VEHÍCULOS AUTOMOTORES Y MOTOCICLETAS | N198: G | O198: Comercio al por menor de otros enseres domésticos en establecimientos especializados | P198: Comercio al por menor de otros enseres domésticos en establecimientos especializados | Q198: 1 | R198: 6 | S198: 0 | T198: PAEF - PAP - MICRO | AF198: 0 | AG198: 0 | AH198: 52001 | AI198: PASTO | AJ198: 5 | AK198: 0 | AL198: Natural | AM198: 52 | AN198: NARIÑO | AO198: Aprobado con subsidio | AP198: MICRO | AQ198: 1081 | AR198: INDUSTRIAS MANUFACTURERAS | AS198: C | AT198: Elaboración de otros productos alimenticios | AU198: Elaboración de productos alimenticios | AV198: 1 | AW198: 4 | AX198: 0 | AY198: PAEF - PAP | BK198: 68432 | BL198: 1 | BM198: 25320 | BN198: 3
C199: 68001 | D199: BUCARAMANGA | E199: 0 | G199: Natural | H199: 68 | I199: SANTANDER | J199: 0 | K199: PEQUEÑA | L199: 141 | M199: AGRICULTURA, GANADERÍA, CAZA, SILVICULTURA Y PESCA | N199: A | O199: Ganadería | P199: Ganadería | Q199: 0 | R199: 0 | S199: 0 | T199: No beneficiario | AF199: 0 | AG199: 0 | AH199: 76001 | AI199: CALI | AJ199: 0 | AK199: 0 | AL199: Natural | AM199: 76 | AN199: VALLE DEL CAUCA | AO199: 0 | AP199: 0 | AQ199: 2392 | AR199: INDUSTRIAS MANUFACTURERAS | AS199: C | AT199: Fabricación de productos minerales no metálicos n.c.p. | AU199: Fabricación de otros productos minerales no metálicos | AV199: 0 | AW199: 0 | AX199: 0 | AY199: No beneficiario | BK199: 8634 | BL199: 7 | BM199: 47053 | BN199: 3
C200: 5697 | D200: EL SANTUARIO | E200: 9 | G200: Natural | H200: 5 | I200: ANTIOQUIA | J200: Aprobado con subsidio | K200: MICRO | L200: 1081 | M200: INDUSTRIAS MANUFACTURERAS | N200: C | O200: Elaboración de otros productos alimenticios | P200: Elaboración de productos alimenticios | Q200: 7 | R200: 2 | S200: 0 | T200: PAEF - PAP | AF200: 0 | AG200: 0 | AH200: 52585 | AI200: PUPIALES | AJ200: 9 | AK200: 0 | AL200: Natural | AM200: 52 | AN200: NARIÑO | AO200: Aprobado con subsidio | AP200: PEQUEÑA | AQ200: 1040 | AR200: INDUSTRIAS MANUFACTURERAS | AS200: C | AT200: Elaboración de productos lácteos | AU200: Elaboración de productos alimenticios | AV200: 1 | AW200: 8 | AX200: 0 | AY200: PAEF | BK200: 18247 | BL200: 1 | BM200: 63190 | BN200: 3
... 2050 more rows

Sheet Hoja4 (hidden)
A1: Descripción Sección Rev. 4 | B1: Sección Rev. 4 | C1: Nombre | D1: Seccion | E1: Total | G1: Nombre | H1: Seccion | I1: Total empleadores | J1: Empleadores % | K1: Total empleados | L1: Empleados % | M1: Monto | N1: Hombres | O1: Mujeres | P1: no disponible | Q1: Actividad | R1: Indice | T1: cod_dpto | U1: Departamento | V1: % empleadores general | W1: ="% empleadores sección "&Visor!$N$4 -> % empleadores sección C | AP1: Combinación de programa | AQ1: Nal Apo | AR1: Sec Apo | AS1: Nal Cot | AT1: Sec Cot | AU1: Nal Rec | AV1: Sec Rec | AY1: Combinación de programa | AZ1: Nal Apo | BA1: Sec Apo | BB1: Nal Cot | BC1: Sec Cot | BD1: Nal Rec | BE1: Sec Rec | BI1: Aportantes | BJ1: Cotizantes | BK1: Recursos | BL1: Aportantes | BM1: Cotizantes | BN1: Recursos
A2: AGRICULTURA, GANADERÍA, CAZA, SILVICULTURA Y PESCA | B2: A | C2: Agricultura, ganadería, caza, silvicultura y pesca | D2: =B2 -> A | E2: =COUNTIFS(insumos2!$N$2:$N$399999,Hoja4!D2,insumos2!$J$2:$J$399999,"Aprobado con subsidio") -> 3487 | G2: =MID(VLOOKUP(H2,$B$2:$C$23,2,FALSE),1,30) -> Comercio al por mayor y al por | H2: =_xlfn._xlws.SORT($D$2:$E$23,2,-1) -> G | I2: 39082 | J2: =I2/$I$24 -> 0.2676391029 | K2: =SUMIFS(insumos2!$E$2:$E$399999,insumos2!$J$2:$J$399999,"Aprobado con subsidio",insumos2!$N$2:$N$399999,Hoja4!H2) -> 659402 | L2: =K2/$K$24 -> 0.1556440751 | M2: =SUMIFS(insumos1!$K$2:$K$372158,insumos1!$H$2:$H$372158,Hoja4!H2) -> 1283567939000 | N2: =SUMIFS(insumos2!$R$2:$R$399999,insumos2!$J$2:$J$399999,"Aprobado con subsidio",insumos2!$N$2:$N$399999,Hoja4!H2) -> 368687 | O2: =SUMIFS(insumos2!$Q$2:$Q$399999,insumos2!$J$2:$J$399999,"Aprobado con subsidio",insumos2!$N$2:$N$399999,Hoja4!H2) -> 290300 | P2: =SUMIFS(insumos2!$S$2:$S$399999,insumos2!$J$2:$J$399999,"Aprobado con subsidio",insumos2!$N$2:$N$399999,Hoja4!H2) -> 415 | Q2: =G2 -> Comercio al por mayor y al por | R2: =O2/N2*100 -> 78.73887607 | T2: 11 | U2: BOGOTÁ, D.C. | V2: =(VLOOKUP(T2,_xlfn.ANCHORARRAY(insumos2!$X$2),2,0)/SUM(insumos2!$Y$2:$Y$34)) -> 0.3360931347 | W2: =VLOOKUP(T2,insumos2!$BA$2:$BB$34,2,FALSE)/insumos2!$BH$30 -> 0.3462384909 | Z2: =_xlfn.UNIQUE(insumos1!F2:F135000) -> ACTIVIDADES INMOBILIARIAS | AA2: =_xlfn.UNIQUE(insumos1!H2:H135000) -> L | AD2: =_xlfn._xlws.SORT(Z2:AA23,2,1) -> AGRICULTURA, GANADERÍA, CAZA, SILVICULTURA Y PESCA | AE2: A | AF2: =IFERROR(VLOOKUP(AE2,$B$2:$C$23,2,0),"") -> Agricultura, ganadería, caza, silvicultura y pesca | AP2: =_xlfn.UNIQUE(insumos1!L2:L300000) -> PAEF | AQ2: =COUNTIFS(insumos2!$T$2:$T$300000,Hoja4!$AP2,insumos2!$J$2:$J$300000,"Aprobado con subsidio") -> 37055 | AR2: =COUNTIFS(insumos2!$T$2:$T$300000,Hoja4!$AP2,insumos2!$J$2:$J$300000,"Aprobado con subsidio",insumos2!$N$2:$N$300000,Visor!$N$4) -> 5445 | AS2: =SUMIFS(insumos2!$E$2:$E$300000,insumos2!$T$2:$T$300000,Hoja4!$AP2,insumos2!$J$2:$J$300000,"Aprobado con subsidio") -> 1009921 | AT2: =SUMIFS(insumos2!$E$2:$E$300000,insumos2!$T$2:$T$300000,Hoja4!$AP2,insumos2!$J$2:$J$300000,"Aprobado con subsidio",insumos2!$N$2:$N$300000,Visor!$N$4) -> 179014 | AU2: =SUMIFS(insumos1!$K$2:$K$300000,insumos1!$L$2:$L$300000,Hoja4!$AP2)/1000000 -> 1060821.889 | AV2: =SUMIFS(insumos1!$K$2:$K$300000,insumos1!$L$2:$L$300000,Hoja4!$AP2,insumos1!$H$2:$H$300000,Visor!$N$4)/1000000 -> 173193.984 | AY2: =_xlfn._xlws.SORT(AP2:AV15,2,-1) -> PAEF - PAP | AZ2: 54671 | BA2: 8333 | BB2: 2083401 | BC2: 245125 | BD2: 4062026.564 | BE2: 481578.3 | BH2: =AY1 -> Combinación de programa | BI2: =AZ1 -> Nal Apo | BJ2: =BB1 -> Nal Cot | BK2: =BD1 -> Nal Rec | BL2: =BA1 -> Sec Apo | BM2: =BC1 -> Sec Cot | BN2: =BE1 -> Sec Rec | BT2: Nacional | BU2: ="Sección "&Visor!$N$4 -> Sección C | BW2: Aportantes
A3: EXPLOTACIÓN DE MINAS Y CANTERAS | B3: B | C3: Explotación de minas y canteras | D3: =B3 -> B | E3: =COUNTIFS(insumos2!$N$2:$N$399999,Hoja4!D3,insumos2!$J$2:$J$399999,"Aprobado con subsidio") -> 836 | G3: =MID(VLOOKUP(H3,$B$2:$C$23,2,FALSE),1,30) -> Industrias manufactureras | H3: C | I3: 22265 | J3: 0.1524738915 | K3: =SUMIFS(insumos2!$E$2:$E$399999,insumos2!$J$2:$J$399999,"Aprobado con subsidio",insumos2!$N$2:$N$399999,Hoja4!H3) -> 662728 | L3: =K3/$K$24 -> 0.1564291383 | M3: =SUMIFS(insumos1!$K$2:$K$372158,insumos1!$H$2:$H$372158,Hoja4!H3) -> 1173057092500 | N3: =SUMIFS(insumos2!$R$2:$R$399999,insumos2!$J$2:$J$399999,"Aprobado con subsidio",insumos2!$N$2:$N$399999,Hoja4!H3) -> 407647 | O3: =SUMIFS(insumos2!$Q$2:$Q$399999,insumos2!$J$2:$J$399999,"Aprobado con subsidio",insumos2!$N$2:$N$399999,Hoja4!H3) -> 254760 | P3: =SUMIFS(insumos2!$S$2:$S$399999,insumos2!$J$2:$J$399999,"Aprobado con subsidio",insumos2!$N$2:$N$399999,Hoja4!H3) -> 321 | Q3: =G3 -> Industrias manufactureras | R3: 62.49524711 | T3: 5 | U3: ANTIOQUIA | V3: =(VLOOKUP(T3,_xlfn.ANCHORARRAY(insumos2!$X$2),2,0)/SUM(insumos2!$Y$2:$Y$34)) -> 0.1994042116 | W3: =VLOOKUP(T3,insumos2!$BA$2:$BB$34,2,FALSE)/insumos2!$BH$30 -> 0.2567258028 | Z3: ALOJAMIENTO Y SERVICIOS DE COMIDA | AA3: I | AD3: EXPLOTACIÓN DE MINAS Y CANTERAS | AE3: B | AF3: =IFERROR(VLOOKUP(AE3,$B$2:$C$23,2,0),"") -> Explotación de minas y canteras | AP3: PAEF - PAP | AQ3: =COUNTIFS(insumos2!$T$2:$T$300000,Hoja4!$AP3,insumos2!$J$2:$J$300000,"Aprobado con subsidio") -> 54671 | AR3: =COUNTIFS(insumos2!$T$2:$T$300000,Hoja4!$AP3,insumos2!$J$2:$J$300000,"Aprobado con subsidio",insumos2!$N$2:$N$300000,Visor!$N$4) -> 8333 | AS3: =SUMIFS(insumos2!$E$2:$E$300000,insumos2!$T$2:$T$300000,Hoja4!$AP3,insumos2!$J$2:$J$300000,"Aprobado con subsidio") -> 2083401 | AT3: =SUMIFS(insumos2!$E$2:$E$300000,insumos2!$T$2:$T$300000,Hoja4!$AP3,insumos2!$J$2:$J$300000,"Aprobado con subsidio",insumos2!$N$2:$N$300000,Visor!$N$4) -> 245125 | AU3: =SUMIFS(insumos1!$K$2:$K$300000,insumos1!$L$2:$L$300000,Hoja4!$AP3)/1000000 -> 4062026.564 | AV3: =SUMIFS(insumos1!$K$2:$K$300000,insumos1!$L$2:$L$300000,Hoja4!$AP3,insumos1!$H$2:$H$300000,Visor!$N$4)/1000000 -> 481578.3 | AY3: PAEF | AZ3: 37055 | BA3: 5445 | BB3: 1009921 | BC3: 179014 | BD3: 1060821.889 | BE3: 173193.984 | BH3: =AY2 -> PAEF - PAP | BI3: =AZ2/SUM($AZ$2:$AZ$15) -> 0.3743947954 | BJ3: =BB2/SUM($BB$2:$BB$15) -> 0.4917622661 | BK3: =BD2/SUM($BD$2:$BD$15) -> 0.5094668732 | BL3: =BA2/SUM($BA$2:$BA$15) -> 0.3742645408 | BM3: =BC2/SUM($BC$2:$BC$15) -> 0.369872708 | BN3: =BE2/SUM($BE$2:$BE$15) -> 0.4105327039 | BR3: 3 | BS3: =BH3 -> PAEF - PAP | BT3: =_xlfn.XLOOKUP(Visor!$S$181,Hoja4!$BH$1:$BK$1,Hoja4!$BH3:$BK3) -> 0.3743947954 | BU3: =_xlfn.XLOOKUP(Visor!$S$181,Hoja4!$BL$1:$BN$1,Hoja4!$BL3:$BN3) -> 0.3742645408 | BW3: Cotizantes
A4: INDUSTRIAS MANUFACTURERAS | B4: C | C4: Industrias manufactureras | D4: C | E4: =COUNTIFS(insumos2!$N$2:$N$399999,Hoja4!D4,insumos2!$J$2:$J$399999,"Aprobado con subsidio") -> 22265 | G4: Actividades profesionales, cie | H4: M | I4: 14501 | J4: 0.09930491354 | K4: =SUMIFS(insumos2!$E$2:$E$399999,insumos2!$J$2:$J$399999,"Aprobado con subsidio",insumos2!$N$2:$N$399999,Hoja4!H4) -> 246700 | L4: 0.05823062917 | M4: =SUMIFS(insumos1!$K$2:$K$372158,insumos1!$H$2:$H$372158,Hoja4!H4) -> 477852232000 | N4: =SUMIFS(insumos2!$R$2:$R$399999,insumos2!$J$2:$J$399999,"Aprobado con subsidio",insumos2!$N$2:$N$399999,Hoja4!H4) -> 138483 | O4: =SUMIFS(insumos2!$Q$2:$Q$399999,insumos2!$J$2:$J$399999,"Aprobado con subsidio",insumos2!$N$2:$N$399999,Hoja4!H4) -> 108062 | P4: =SUMIFS(insumos2!$S$2:$S$399999,insumos2!$J$2:$J$399999,"Aprobado con subsidio",insumos2!$N$2:$N$399999,Hoja4!H4) -> 155 | Q4: Actividades profesionales, cie | R4: 78.03268271 | T4: 76 | U4: VALLE DEL CAUCA | V4: =(VLOOKUP(T4,_xlfn.ANCHORARRAY(insumos2!$X$2),2,0)/SUM(insumos2!$Y$2:$Y$34)) -> 0.09740797809 | W4: =VLOOKUP(T4,insumos2!$BA$2:$BB$34,2,FALSE)/insumos2!$BH$30 -> 0.1058163036 | Z4: INDUSTRIAS MANUFACTURERAS | AA4: C | AD4: INDUSTRIAS MANUFACTURERAS | AE4: C | AF4: Industrias manufactureras | AP4: PAEF - PAP - MICRO | AQ4: =COUNTIFS(insumos2!$T$2:$T$300000,Hoja4!$AP4,insumos2!$J$2:$J$300000,"Aprobado con subsidio") -> 31292 | AR4: =COUNTIFS(insumos2!$T$2:$T$300000,Hoja4!$AP4,insumos2!$J$2:$J$300000,"Aprobado con subsidio",insumos2!$N$2:$N$300000,Visor!$N$4) -> 4792 | AS4: =SUMIFS(insumos2!$E$2:$E$300000,insumos2!$T$2:$T$300000,Hoja4!$AP4,insumos2!$J$2:$J$300000,"Aprobado con subsidio") -> 411245 | AT4: =SUMIFS(insumos2!$E$2:$E$300000,insumos2!$T$2:$T$300000,Hoja4!$AP4,insumos2!$J$2:$J$300000,"Aprobado con subsidio",insumos2!$N$2:$N$300000,Visor!$N$4) -> 66520 | AU4: =SUMIFS(insumos1!$K$2:$K$300000,insumos1!$L$2:$L$300000,Hoja4!$AP4)/1000000 -> 1387604.473 | AV4: =SUMIFS(insumos1!$K$2:$K$300000,insumos1!$L$2:$L$300000,Hoja4!$AP4,insumos1!$H$2:$H$300000,Visor!$N$4)/1000000 -> 225344.733 | AY4: PAEF - PAP - MICRO | AZ4: 31292 | BA4: 4792 | BB4: 411245 | BC4: 66520 | BD4: 1387604.473 | BE4: 225344.733 | BH4: PAEF | BI4: =AZ3/SUM($AZ$2:$AZ$15) -> 0.2537579182 | BJ4: =BB3/SUM($BB$2:$BB$15) -> 0.2383799564 | BK4: =BD3/SUM($BD$2:$BD$15) -> 0.1330502404 | BL4: =BA3/SUM($BA$2:$BA$15) -> 0.2445542331 | BM4: =BC3/SUM($BC$2:$BC$15) -> 0.2701168504 | BN4: =BE3/SUM($BE$2:$BE$15) -> 0.1476432691 | BR4: 4 | BS4: =BH4 -> PAEF | BT4: =_xlfn.XLOOKUP(Visor!$S$181,Hoja4!$BH$1:$BK$1,Hoja4!$BH4:$BK4) -> 0.2537579182 | BU4: =_xlfn.XLOOKUP(Visor!$S$181,Hoja4!$BL$1:$BN$1,Hoja4!$BL4:$BN4) -> 0.2445542331 | BW4: Recursos
A5: SUMINISTRO DE ELECTRICIDAD, GAS, VAPOR Y AIRE ACONDICIONADO | B5: D | C5: Suministro de electricidad, gas, vapor y aire acondicionado | D5: D | E5: =COUNTIFS(insumos2!$N$2:$N$399999,Hoja4!D5,insumos2!$J$2:$J$399999,"Aprobado con subsidio") -> 142 | G5: Construcción | H5: F | I5: 13524 | J5: 0.09261427838 | K5: =SUMIFS(insumos2!$E$2:$E$399999,insumos2!$J$2:$J$399999,"Aprobado con subsidio",insumos2!$N$2:$N$399999,Hoja4!H5) -> 393809 | L5: 0.09295397585 | M5: =SUMIFS(insumos1!$K$2:$K$372158,insumos1!$H$2:$H$372158,Hoja4!H5) -> 674920943500 | N5: =SUMIFS(insumos2!$R$2:$R$399999,insumos2!$J$2:$J$399999,"Aprobado con subsidio",insumos2!$N$2:$N$399999,Hoja4!H5) -> 317823 | O5: =SUMIFS(insumos2!$Q$2:$Q$399999,insumos2!$J$2:$J$399999,"Aprobado con subsidio",insumos2!$N$2:$N$399999,Hoja4!H5) -> 75746 | P5: =SUMIFS(insumos2!$S$2:$S$399999,insumos2!$J$2:$J$399999,"Aprobado con subsidio",insumos2!$N$2:$N$399999,Hoja4!H5) -> 240 | Q5: Construcción | R5: 23.83276226 | T5: 8 | U5: ATLÁNTICO | V5: =(VLOOKUP(T5,_xlfn.ANCHORARRAY(insumos2!$X$2),2,0)/SUM(insumos2!$Y$2:$Y$34)) -> 0.04497859955 | W5: =VLOOKUP(T5,insumos2!$BA$2:$BB$34,2,FALSE)/insumos2!$BH$30 -> 0.03629014148 | Z5: EDUCACIÓN | AA5: P | AD5: SUMINISTRO DE ELECTRICIDAD, GAS, VAPOR Y AIRE ACONDICIONADO | AE5: D | AF5: Suministro de electricidad, gas, vapor y aire acondicionado | AP5: PAEF - MICRO | AQ5: =COUNTIFS(insumos2!$T$2:$T$300000,Hoja4!$AP5,insumos2!$J$2:$J$300000,"Aprobado con subsidio") -> 8239 | AR5: =COUNTIFS(insumos2!$T$2:$T$300000,Hoja4!$AP5,insumos2!$J$2:$J$300000,"Aprobado con subsidio",insumos2!$N$2:$N$300000,Visor!$N$4) -> 997 | AS5: =SUMIFS(insumos2!$E$2:$E$300000,insumos2!$T$2:$T$300000,Hoja4!$AP5,insumos2!$J$2:$J$300000,"Aprobado con subsidio") -> 90100 | AT5: =SUMIFS(insumos2!$E$2:$E$300000,insumos2!$T$2:$T$300000,Hoja4!$AP5,insumos2!$J$2:$J$300000,"Aprobado con subsidio",insumos2!$N$2:$N$300000,Visor!$N$4) -> 12672 | AU5: =SUMIFS(insumos1!$K$2:$K$300000,insumos1!$L$2:$L$300000,Hoja4!$AP5)/1000000 -> 221012.67 | AV5: =SUMIFS(insumos1!$K$2:$K$300000,insumos1!$L$2:$L$300000,Hoja4!$AP5,insumos1!$H$2:$H$300000,Visor!$N$4)/1000000 -> 28138.688 | AY5: PAEF - MICRO | AZ5: 8239 | BA5: 997 | BB5: 90100 | BC5: 12672 | BD5: 221012.67 | BE5: 28138.688 | BH5: PAEF - PAP - MICRO | BI5: 0.2142920733 | BJ5: 0.09706953828 | BK5: 0.1740359155 | BL5: 0.2152256905 | BM5: 0.1003730037 | BN5: 0.1921003969 | BR5: 5 | BS5: PAEF - PAP - MICRO | BT5: =_xlfn.XLOOKUP(Visor!$S$181,Hoja4!$BH$1:$BK$1,Hoja4!$BH5:$BK5) -> 0.2142920733 | BU5: =_xlfn.XLOOKUP(Visor!$S$181,Hoja4!$BL$1:$BN$1,Hoja4!$BL5:$BN5) -> 0.2152256905
A6: DISTRIBUCIÓN DE AGUA; EVACUACIÓN Y TRATAMIENTO DE AGUAS RESIDUALES, GESTIÓN DE DESECHOS Y ACTIVIDADES DE SANEAMIENTO AMBIENTAL | B6: E | C6: Distribución de agua; evacuación y tratamiento de aguas residuales, gestión de desechos y actividades de saneamiento ambiental | D6: E | E6: =COUNTIFS(insumos2!$N$2:$N$399999,Hoja4!D6,insumos2!$J$2:$J$399999,"Aprobado con subsidio") -> 646 | G6: Actividades de atención de la | H6: Q | I6: 8738 | J6: 0.05983906865 | K6: =SUMIFS(insumos2!$E$2:$E$399999,insumos2!$J$2:$J$399999,"Aprobado con subsidio",insumos2!$N$2:$N$399999,Hoja4!H6) -> 266934 | L6: 0.06300662654 | M6: =SUMIFS(insumos1!$K$2:$K$372158,insumos1!$H$2:$H$372158,Hoja4!H6) -> 509313968000 | N6: =SUMIFS(insumos2!$R$2:$R$399999,insumos2!$J$2:$J$399999,"Aprobado con subsidio",insumos2!$N$2:$N$399999,Hoja4!H6) -> 77523 | O6: =SUMIFS(insumos2!$Q$2:$Q$399999,insumos2!$J$2:$J$399999,"Aprobado con subsidio",insumos2!$N$2:$N$399999,Hoja4!H6) -> 189231 | P6: =SUMIFS(insumos2!$S$2:$S$399999,insumos2!$J$2:$J$399999,"Aprobado con subsidio",insumos2!$N$2:$N$399999,Hoja4!H6) -> 180 | Q6: Actividades de atención de la | R6: 244.0965907 | T6: 25 | U6: CUNDINAMARCA | V6: =(VLOOKUP(T6,_xlfn.ANCHORARRAY(insumos2!$X$2),2,0)/SUM(insumos2!$Y$2:$Y$34)) -> 0.04554014724 | W6: =VLOOKUP(T6,insumos2!$BA$2:$BB$34,2,FALSE)/insumos2!$BH$30 -> 0.05308780597 | Z6: COMERCIO AL POR MAYOR Y AL POR MENOR; REPARACIÓN DE VEHÍCULOS AUTOMOTORES Y MOTOCICLETAS | AA6: G | AD6: DISTRIBUCIÓN DE AGUA; EVACUACIÓN Y TRATAMIENTO DE AGUAS RESIDUALES, GESTIÓN DE DESECHOS Y ACTIVIDADES DE SANEAMIENTO AMBIENTAL | AE6: E | AF6: Distribución de agua; evacuación y tratamiento de aguas residuales, gestión de desechos y actividades de saneamiento ambiental | AP6: PAEF - PAP - PARO - MICRO | AQ6: =COUNTIFS(insumos2!$T$2:$T$300000,Hoja4!$AP6,insumos2!$J$2:$J$300000,"Aprobado con subsidio") -> 6751 | AR6: =COUNTIFS(insumos2!$T$2:$T$300000,Hoja4!$AP6,insumos2!$J$2:$J$300000,"Aprobado con subsidio",insumos2!$N$2:$N$300000,Visor!$N$4) -> 1229 | AS6: =SUMIFS(insumos2!$E$2:$E$300000,insumos2!$T$2:$T$300000,Hoja4!$AP6,insumos2!$J$2:$J$300000,"Aprobado con subsidio") -> 105861 | AT6: =SUMIFS(insumos2!$E$2:$E$300000,insumos2!$T$2:$T$300000,Hoja4!$AP6,insumos2!$J$2:$J$300000,"Aprobado con subsidio",insumos2!$N$2:$N$300000,Visor!$N$4) -> 20784 | AU6: =SUMIFS(insumos1!$K$2:$K$300000,insumos1!$L$2:$L$300000,Hoja4!$AP6)/1000000 -> 378748.859 | AV6: =SUMIFS(insumos1!$K$2:$K$300000,insumos1!$L$2:$L$300000,Hoja4!$AP6,insumos1!$H$2:$H$300000,Visor!$N$4)/1000000 -> 76912.8965 | AY6: PAEF - PAP - PARO - MICRO | AZ6: 6751 | BA6: 1229 | BB6: 105861 | BC6: 20784 | BD6: 378748.859 | BE6: 76912.8965 | BH6: PAEF - MICRO | BI6: 0.05642184557 | BJ6: 0.02126704373 | BK6: 0.02771981722 | BL6: 0.04477880081 | BM6: 0.01912096667 | BN6: 0.0239874838 | BR6: 6 | BS6: PAEF - MICRO | BT6: =_xlfn.XLOOKUP(Visor!$S$181,Hoja4!$BH$1:$BK$1,Hoja4!$BH6:$BK6) -> 0.05642184557 | BU6: =_xlfn.XLOOKUP(Visor!$S$181,Hoja4!$BL$1:$BN$1,Hoja4!$BL6:$BN6) -> 0.04477880081
A7: CONSTRUCCIÓN | B7: F | C7: Construcción | D7: F | E7: =COUNTIFS(insumos2!$N$2:$N$399999,Hoja4!D7,insumos2!$J$2:$J$399999,"Aprobado con subsidio") -> 13524 | G7: Alojamiento y servicios de com | H7: I | I7: 7458 | J7: 0.05107344633 | K7: =SUMIFS(insumos2!$E$2:$E$399999,insumos2!$J$2:$J$399999,"Aprobado con subsidio",insumos2!$N$2:$N$399999,Hoja4!H7) -> 169947 | L7: 0.04011398758 | M7: =SUMIFS(insumos1!$K$2:$K$372158,insumos1!$H$2:$H$372158,Hoja4!H7) -> 410122952500 | N7: =SUMIFS(insumos2!$R$2:$R$399999,insumos2!$J$2:$J$399999,"Aprobado con subsidio",insumos2!$N$2:$N$399999,Hoja4!H7) -> 73383 | O7: =SUMIFS(insumos2!$Q$2:$Q$399999,insumos2!$J$2:$J$399999,"Aprobado con subsidio",insumos2!$N$2:$N$399999,Hoja4!H7) -> 96452 | P7: =SUMIFS(insumos2!$S$2:$S$399999,insumos2!$J$2:$J$399999,"Aprobado con subsidio",insumos2!$N$2:$N$399999,Hoja4!H7) -> 112 | Q7: Alojamiento y servicios de com | R7: 131.4364362 | T7: 68 | U7: SANTANDER | V7: =(VLOOKUP(T7,_xlfn.ANCHORARRAY(insumos2!$X$2),2,0)/SUM(insumos2!$Y$2:$Y$34)) -> 0.04414312618 | W7: =VLOOKUP(T7,insumos2!$BA$2:$BB$34,2,FALSE)/insumos2!$BH$30 -> 0.04599146643 | Z7: AGRICULTURA, GANADERÍA, CAZA, SILVICULTURA Y PESCA | AA7: A | AD7: CONSTRUCCIÓN | AE7: F | AF7: Construcción | AP7: PARO - MICRO | AQ7: =COUNTIFS(insumos2!$T$2:$T$300000,Hoja4!$AP7,insumos2!$J$2:$J$300000,"Aprobado con subsidio") -> 312 | AR7: =COUNTIFS(insumos2!$T$2:$T$300000,Hoja4!$AP7,insumos2!$J$2:$J$300000,"Aprobado con subsidio",insumos2!$N$2:$N$300000,Visor!$N$4) -> 47 | AS7: =SUMIFS(insumos2!$E$2:$E$300000,insumos2!$T$2:$T$300000,Hoja4!$AP7,insumos2!$J$2:$J$300000,"Aprobado con subsidio") -> 2883 | AT7: =SUMIFS(insumos2!$E$2:$E$300000,insumos2!$T$2:$T$300000,Hoja4!$AP7,insumos2!$J$2:$J$300000,"Aprobado con subsidio",insumos2!$N$2:$N$300000,Visor!$N$4) -> 503 | AU7: =SUMIFS(insumos1!$K$2:$K$300000,insumos1!$L$2:$L$300000,Hoja4!$AP7)/1000000 -> 3967.4545 | AV7: =SUMIFS(insumos1!$K$2:$K$300000,insumos1!$L$2:$L$300000,Hoja4!$AP7,insumos1!$H$2:$H$300000,Visor!$N$4)/1000000 -> 563.7635 | AY7: PAEF - PAP - PARO | AZ7: 2411 | BA7: 530 | BB7: 332915 | BC7: 66156 | BD7: 667470.767 | BE7: 133144.7675 | BH7: PAEF - PAP - PARO - MICRO | BI7: 0.04623180962 | BJ7: 0.02498724213 | BK7: 0.04750338135 | BL7: 0.05519874242 | BM7: 0.03136128246 | BN7: 0.06556620048 | BR7: 7 | BS7: PAEF - PAP - PARO - MICRO | BT7: =_xlfn.XLOOKUP(Visor!$S$181,Hoja4!$BH$1:$BK$1,Hoja4!$BH7:$BK7) -> 0.04623180962 | BU7: =_xlfn.XLOOKUP(Visor!$S$181,Hoja4!$BL$1:$BN$1,Hoja4!$BL7:$BN7) -> 0.05519874242
A8: COMERCIO AL POR MAYOR Y AL POR MENOR; REPARACIÓN DE VEHÍCULOS AUTOMOTORES Y MOTOCICLETAS | B8: G | C8: Comercio al por mayor y al por menor; reparación de vehículos automotores y motocicletas | D8: G | E8: =COUNTIFS(insumos2!$N$2:$N$399999,Hoja4!D8,insumos2!$J$2:$J$399999,"Aprobado con subsidio") -> 39082 | G8: Transporte y almacenamiento | H8: H | I8: 7214 | J8: 0.04940249957 | K8: =SUMIFS(insumos2!$E$2:$E$399999,insumos2!$J$2:$J$399999,"Aprobado con subsidio",insumos2!$N$2:$N$399999,Hoja4!H8) -> 333085 | L8: 0.07862079091 | M8: =SUMIFS(insumos1!$K$2:$K$372158,insumos1!$H$2:$H$372158,Hoja4!H8) -> 636626041500 | N8: =SUMIFS(insumos2!$R$2:$R$399999,insumos2!$J$2:$J$399999,"Aprobado con subsidio",insumos2!$N$2:$N$399999,Hoja4!H8) -> 269724 | O8: =SUMIFS(insumos2!$Q$2:$Q$399999,insumos2!$J$2:$J$399999,"Aprobado con subsidio",insumos2!$N$2:$N$399999,Hoja4!H8) -> 63063 | P8: =SUMIFS(insumos2!$S$2:$S$399999,insumos2!$J$2:$J$399999,"Aprobado con subsidio",insumos2!$N$2:$N$399999,Hoja4!H8) -> 298 | Q8: Transporte y almacenamiento | R8: 23.3805668 | T8: 13 | U8: BOLÍVAR | V8: =(VLOOKUP(T8,_xlfn.ANCHORARRAY(insumos2!$X$2),2,0)/SUM(insumos2!$Y$2:$Y$34)) -> 0.0265913371 | W8: =VLOOKUP(T8,insumos2!$BA$2:$BB$34,2,FALSE)/insumos2!$BH$30 -> 0.01536043117 | Z8: OTRAS ACTIVIDADES DE SERVICIOS | AA8: S | AD8: COMERCIO AL POR MAYOR Y AL POR MENOR; REPARACIÓN DE VEHÍCULOS AUTOMOTORES Y MOTOCICLETAS | AE8: G | AF8: Comercio al por mayor y al por menor; reparación de vehículos automotores y motocicletas | AP8: PAEF - PAP - PARO | AQ8: =COUNTIFS(insumos2!$T$2:$T$300000,Hoja4!$AP8,insumos2!$J$2:$J$300000,"Aprobado con subsidio") -> 2411 | AR8: =COUNTIFS(insumos2!$T$2:$T$300000,Hoja4!$AP8,insumos2!$J$2:$J$300000,"Aprobado con subsidio",insumos2!$N$2:$N$300000,Visor!$N$4) -> 530 | AS8: =SUMIFS(insumos2!$E$2:$E$300000,insumos2!$T$2:$T$300000,Hoja4!$AP8,insumos2!$J$2:$J$300000,"Aprobado con subsidio") -> 332915 | AT8: =SUMIFS(insumos2!$E$2:$E$300000,insumos2!$T$2:$T$300000,Hoja4!$AP8,insumos2!$J$2:$J$300000,"Aprobado con subsidio",insumos2!$N$2:$N$300000,Visor!$N$4) -> 66156 | AU8: =SUMIFS(insumos1!$K$2:$K$300000,insumos1!$L$2:$L$300000,Hoja4!$AP8)/1000000 -> 667470.767 | AV8: =SUMIFS(insumos1!$K$2:$K$300000,insumos1!$L$2:$L$300000,Hoja4!$AP8,insumos1!$H$2:$H$300000,Visor!$N$4)/1000000 -> 133144.7675 | AY8: MICRO | AZ8: 1902 | BA8: 212 | BB8: 11891 | BC8: 1525 | BD8: 14288.475 | BE8: 1723.214 | BH8: PAEF - PAP - PARO | BI8: 0.01651087143 | BJ8: 0.07858066441 | BK8: 0.08371541624 | BL8: 0.02380417696 | BM8: 0.09982375877 | BN8: 0.1135023763 | BR8: 8 | BS8: PAEF - PAP - PARO | BT8: =_xlfn.XLOOKUP(Visor!$S$181,Hoja4!$BH$1:$BK$1,Hoja4!$BH8:$BK8) -> 0.01651087143 | BU8: =_xlfn.XLOOKUP(Visor!$S$181,Hoja4!$BL$1:$BN$1,Hoja4!$BL8:$BN8) -> 0.02380417696
A9: TRANSPORTE Y ALMACENAMIENTO | B9: H | C9: Transporte y almacenamiento | D9: H | E9: =COUNTIFS(insumos2!$N$2:$N$399999,Hoja4!D9,insumos2!$J$2:$J$399999,"Aprobado con subsidio") -> 7214 | G9: Actividades de servicios admin | H9: N | I9: 6455 | J9: 0.04420475946 | K9: =SUMIFS(insumos2!$E$2:$E$399999,insumos2!$J$2:$J$399999,"Aprobado con subsidio",insumos2!$N$2:$N$399999,Hoja4!H9) -> 774897 | L9: 0.1829053095 | M9: =SUMIFS(insumos1!$K$2:$K$372158,insumos1!$H$2:$H$372158,Hoja4!H9) -> 1328048058000 | N9: =SUMIFS(insumos2!$R$2:$R$399999,insumos2!$J$2:$J$399999,"Aprobado con subsidio",insumos2!$N$2:$N$399999,Hoja4!H9) -> 435753 | O9: =SUMIFS(insumos2!$Q$2:$Q$399999,insumos2!$J$2:$J$399999,"Aprobado con subsidio",insumos2!$N$2:$N$399999,Hoja4!H9) -> 338506 | P9: =SUMIFS(insumos2!$S$2:$S$399999,insumos2!$J$2:$J$399999,"Aprobado con subsidio",insumos2!$N$2:$N$399999,Hoja4!H9) -> 638 | Q9: Actividades de servicios admin | R9: 77.68299931 | T9: 66 | U9: RISARALDA | V9: =(VLOOKUP(T9,_xlfn.ANCHORARRAY(insumos2!$X$2),2,0)/SUM(insumos2!$Y$2:$Y$34)) -> 0.02312617702 | W9: =VLOOKUP(T9,insumos2!$BA$2:$BB$34,2,FALSE)/insumos2!$BH$30 -> 0.02429822592 | Z9: EXPLOTACIÓN DE MINAS Y CANTERAS | AA9: B | AD9: TRANSPORTE Y ALMACENAMIENTO | AE9: H | AF9: Transporte y almacenamiento | AP9: MICRO | AQ9: =COUNTIFS(insumos2!$T$2:$T$300000,Hoja4!$AP9,insumos2!$J$2:$J$300000,"Aprobado con subsidio") -> 1902 | AR9: =COUNTIFS(insumos2!$T$2:$T$300000,Hoja4!$AP9,insumos2!$J$2:$J$300000,"Aprobado con subsidio",insumos2!$N$2:$N$300000,Visor!$N$4) -> 212 | AS9: =SUMIFS(insumos2!$E$2:$E$300000,insumos2!$T$2:$T$300000,Hoja4!$AP9,insumos2!$J$2:$J$300000,"Aprobado con subsidio") -> 11891 | AT9: =SUMIFS(insumos2!$E$2:$E$300000,insumos2!$T$2:$T$300000,Hoja4!$AP9,insumos2!$J$2:$J$300000,"Aprobado con subsidio",insumos2!$N$2:$N$300000,Visor!$N$4) -> 1525 | AU9: =SUMIFS(insumos1!$K$2:$K$300000,insumos1!$L$2:$L$300000,Hoja4!$AP9)/1000000 -> 14288.475 | AV9: =SUMIFS(insumos1!$K$2:$K$300000,insumos1!$L$2:$L$300000,Hoja4!$AP9,insumos1!$H$2:$H$300000,Visor!$N$4)/1000000 -> 1723.214 | AY9: PAEF - PARO - MICRO | AZ9: 1481 | BA9: 232 | BB9: 20054 | BC9: 3549 | BD9: 48042.346 | BE9: 7969.607 | BH9: MICRO | BI9: 0.01302516692 | BJ9: 0.002806730488 | BK9: 0.001792086922 | BL9: 0.009521670784 | BM9: 0.002301094868 | BN9: 0.001468994144 | BR9: 9 | BS9: MICRO | BT9: =_xlfn.XLOOKUP(Visor!$S$181,Hoja4!$BH$1:$BK$1,Hoja4!$BH9:$BK9) -> 0.01302516692 | BU9: =_xlfn.XLOOKUP(Visor!$S$181,Hoja4!$BL$1:$BN$1,Hoja4!$BL9:$BN9) -> 0.009521670784
A10: ALOJAMIENTO Y SERVICIOS DE COMIDA | B10: I | C10: Alojamiento y servicios de comida | D10: I | E10: =COUNTIFS(insumos2!$N$2:$N$399999,Hoja4!D10,insumos2!$J$2:$J$399999,"Aprobado con subsidio") -> 7458 | G10: Otras actividades de servicios | H10: S | I10: 5045 | J10: 0.03454887862 | K10: =SUMIFS(insumos2!$E$2:$E$399999,insumos2!$J$2:$J$399999,"Aprobado con subsidio",insumos2!$N$2:$N$399999,Hoja4!H10) -> 82879 | L10: 0.01956261173 | M10: =SUMIFS(insumos1!$K$2:$K$372158,insumos1!$H$2:$H$372158,Hoja4!H10) -> 184179620000 | N10: =SUMIFS(insumos2!$R$2:$R$399999,insumos2!$J$2:$J$399999,"Aprobado con subsidio",insumos2!$N$2:$N$399999,Hoja4!H10) -> 34955 | O10: =SUMIFS(insumos2!$Q$2:$Q$399999,insumos2!$J$2:$J$399999,"Aprobado con subsidio",insumos2!$N$2:$N$399999,Hoja4!H10) -> 47824 | P10: =SUMIFS(insumos2!$S$2:$S$399999,insumos2!$J$2:$J$399999,"Aprobado con subsidio",insumos2!$N$2:$N$399999,Hoja4!H10) -> 100 | Q10: Otras actividades de servicios | R10: 136.8159062 | T10: 54 | U10: NORTE DE SANTANDER | V10: =(VLOOKUP(T10,_xlfn.ANCHORARRAY(insumos2!$X$2),2,0)/SUM(insumos2!$Y$2:$Y$34)) -> 0.01864064373 | W10: =VLOOKUP(T10,insumos2!$BA$2:$BB$34,2,FALSE)/insumos2!$BH$30 -> 0.01603413429 | Z10: ACTIVIDADES DE SERVICIOS ADMINISTRATIVOS Y DE APOYO | AA10: N | AD10: ALOJAMIENTO Y SERVICIOS DE COMIDA | AE10: I | AF10: Alojamiento y servicios de comida | AP10: PAEF - PARO - MICRO | AQ10: =COUNTIFS(insumos2!$T$2:$T$300000,Hoja4!$AP10,insumos2!$J$2:$J$300000,"Aprobado con subsidio") -> 1481 | AR10: =COUNTIFS(insumos2!$T$2:$T$300000,Hoja4!$AP10,insumos2!$J$2:$J$300000,"Aprobado con subsidio",insumos2!$N$2:$N$300000,Visor!$N$4) -> 232 | AS10: =SUMIFS(insumos2!$E$2:$E$300000,insumos2!$T$2:$T$300000,Hoja4!$AP10,insumos2!$J$2:$J$300000,"Aprobado con subsidio") -> 20054 | AT10: =SUMIFS(insumos2!$E$2:$E$300000,insumos2!$T$2:$T$300000,Hoja4!$AP10,insumos2!$J$2:$J$300000,"Aprobado con subsidio",insumos2!$N$2:$N$300000,Visor!$N$4) -> 3549 | AU10: =SUMIFS(insumos1!$K$2:$K$300000,insumos1!$L$2:$L$300000,Hoja4!$AP10)/1000000 -> 48042.346 | AV10: =SUMIFS(insumos1!$K$2:$K$300000,insumos1!$L$2:$L$300000,Hoja4!$AP10,insumos1!$H$2:$H$300000,Visor!$N$4)/1000000 -> 7969.607 | AY10: PAEF - PARO | AZ10: 1099 | BA10: 269 | BB10: 110518 | BC10: 40902 | BD10: 114941.3445 | BE10: 38729.7195 | BH10: PAEF - PARO - MICRO | BI10: 0.01014209896 | BJ10: 0.004733510488 | BK10: 0.006025559757 | BL10: 0.01041994161 | BM10: 0.005355138156 | BN10: 0.006793878193 | BR10: 10 | BS10: PAEF - PARO - MICRO | BT10: =_xlfn.XLOOKUP(Visor!$S$181,Hoja4!$BH$1:$BK$1,Hoja4!$BH10:$BK10) -> 0.01014209896 | BU10: =_xlfn.XLOOKUP(Visor!$S$181,Hoja4!$BL$1:$BN$1,Hoja4!$BL10:$BN10) -> 0.01041994161
A11: INFORMACIÓN Y COMUNICACIONES | B11: J | C11: información y comunicaciones | D11: J | E11: =COUNTIFS(insumos2!$N$2:$N$399999,Hoja4!D11,insumos2!$J$2:$J$399999,"Aprobado con subsidio") -> 3894 | G11: Educación | H11: P | I11: 4543 | J11: 0.03111111111 | K11: =SUMIFS(insumos2!$E$2:$E$399999,insumos2!$J$2:$J$399999,"Aprobado con subsidio",insumos2!$N$2:$N$399999,Hoja4!H11) -> 146040 | L11: 0.03447102182 | M11: =SUMIFS(insumos1!$K$2:$K$372158,insumos1!$H$2:$H$372158,Hoja4!H11) -> 345982928500 | N11: =SUMIFS(insumos2!$R$2:$R$399999,insumos2!$J$2:$J$399999,"Aprobado con subsidio",insumos2!$N$2:$N$399999,Hoja4!H11) -> 51444 | O11: =SUMIFS(insumos2!$Q$2:$Q$399999,insumos2!$J$2:$J$399999,"Aprobado con subsidio",insumos2!$N$2:$N$399999,Hoja4!H11) -> 94262 | P11: =SUMIFS(insumos2!$S$2:$S$399999,insumos2!$J$2:$J$399999,"Aprobado con subsidio",insumos2!$N$2:$N$399999,Hoja4!H11) -> 334 | Q11: Educación | R11: 183.2322525 | T11: 15 | U11: BOYACÁ | V11: =(VLOOKUP(T11,_xlfn.ANCHORARRAY(insumos2!$X$2),2,0)/SUM(insumos2!$Y$2:$Y$34)) -> 0.01659304914 | W11: =VLOOKUP(T11,insumos2!$BA$2:$BB$34,2,FALSE)/insumos2!$BH$30 -> 0.01235122389 | Z11: ACTIVIDADES DE ATENCIÓN DE LA SALUD HUMANA Y DE ASISTENCIA SOCIAL | AA11: Q | AD11: INFORMACIÓN Y COMUNICACIONES | AE11: J | AF11: información y comunicaciones | AP11: PARO | AQ11: =COUNTIFS(insumos2!$T$2:$T$300000,Hoja4!$AP11,insumos2!$J$2:$J$300000,"Aprobado con subsidio") -> 630 | AR11: =COUNTIFS(insumos2!$T$2:$T$300000,Hoja4!$AP11,insumos2!$J$2:$J$300000,"Aprobado con subsidio",insumos2!$N$2:$N$300000,Visor!$N$4) -> 157 | AS11: =SUMIFS(insumos2!$E$2:$E$300000,insumos2!$T$2:$T$300000,Hoja4!$AP11,insumos2!$J$2:$J$300000,"Aprobado con subsidio") -> 57037 | AT11: =SUMIFS(insumos2!$E$2:$E$300000,insumos2!$T$2:$T$300000,Hoja4!$AP11,insumos2!$J$2:$J$300000,"Aprobado con subsidio",insumos2!$N$2:$N$300000,Visor!$N$4) -> 25890 | AU11: =SUMIFS(insumos1!$K$2:$K$300000,insumos1!$L$2:$L$300000,Hoja4!$AP11)/1000000 -> 13866.6 | AV11: =SUMIFS(insumos1!$K$2:$K$300000,insumos1!$L$2:$L$300000,Hoja4!$AP11,insumos1!$H$2:$H$300000,Visor!$N$4)/1000000 -> 5736.6705 | AY11: PARO | AZ11: 630 | BA11: 157 | BB11: 57037 | BC11: 25890 | BD11: 13866.6 | BE11: 5736.6705 | BH11: PAEF - PARO | BI11: 0.007526108543 | BJ11: 0.02608647213 | BK11: 0.01441615569 | BL11: 0.01208174265 | BM11: 0.06171762774 | BN11: 0.03301605672 | BR11: 11 | BS11: PAEF - PARO | BT11: =_xlfn.XLOOKUP(Visor!$S$181,Hoja4!$BH$1:$BK$1,Hoja4!$BH11:$BK11) -> 0.007526108543 | BU11: =_xlfn.XLOOKUP(Visor!$S$181,Hoja4!$BL$1:$BN$1,Hoja4!$BL11:$BN11) -> 0.01208174265
A12: ACTIVIDADES FINANCIERAS Y DE SEGUROS | B12: K | C12: Actividades financieras y de seguros | D12: K | E12: =COUNTIFS(insumos2!$N$2:$N$399999,Hoja4!D12,insumos2!$J$2:$J$399999,"Aprobado con subsidio") -> 2283 | G12: Actividades inmobiliarias | H12: L | I12: 4250 | J12: 0.02910460538 | K12: =SUMIFS(insumos2!$E$2:$E$399999,insumos2!$J$2:$J$399999,"Aprobado con subsidio",insumos2!$N$2:$N$399999,Hoja4!H12) -> 37368 | L12: 0.00882027625 | M12: =SUMIFS(insumos1!$K$2:$K$372158,insumos1!$H$2:$H$372158,Hoja4!H12) -> 97509856000 | N12: =SUMIFS(insumos2!$R$2:$R$399999,insumos2!$J$2:$J$399999,"Aprobado con subsidio",insumos2!$N$2:$N$399999,Hoja4!H12) -> 17761 | O12: =SUMIFS(insumos2!$Q$2:$Q$399999,insumos2!$J$2:$J$399999,"Aprobado con subsidio",insumos2!$N$2:$N$399999,Hoja4!H12) -> 19582 | P12: =SUMIFS(insumos2!$S$2:$S$399999,insumos2!$J$2:$J$399999,"Aprobado con subsidio",insumos2!$N$2:$N$399999,Hoja4!H12) -> 25 | Q12: Actividades inmobiliarias | R12: 110.2528011 | T12: 73 | U12: TOLIMA | V12: =(VLOOKUP(T12,_xlfn.ANCHORARRAY(insumos2!$X$2),2,0)/SUM(insumos2!$Y$2:$Y$34)) -> 0.01531929464 | W12: =VLOOKUP(T12,insumos2!$BA$2:$BB$34,2,FALSE)/insumos2!$BH$30 -> 0.01109364473 | Z12: CONSTRUCCIÓN | AA12: F | AD12: ACTIVIDADES FINANCIERAS Y DE SEGUROS | AE12: K | AF12: Actividades financieras y de seguros | AP12: PAEF - PARO | AQ12: =COUNTIFS(insumos2!$T$2:$T$300000,Hoja4!$AP12,insumos2!$J$2:$J$300000,"Aprobado con subsidio") -> 1099 | AR12: =COUNTIFS(insumos2!$T$2:$T$300000,Hoja4!$AP12,insumos2!$J$2:$J$300000,"Aprobado con subsidio",insumos2!$N$2:$N$300000,Visor!$N$4) -> 269 | AS12: =SUMIFS(insumos2!$E$2:$E$300000,insumos2!$T$2:$T$300000,Hoja4!$AP12,insumos2!$J$2:$J$300000,"Aprobado con subsidio") -> 110518 | AT12: =SUMIFS(insumos2!$E$2:$E$300000,insumos2!$T$2:$T$300000,Hoja4!$AP12,insumos2!$J$2:$J$300000,"Aprobado con subsidio",insumos2!$N$2:$N$300000,Visor!$N$4) -> 40902 | AU12: =SUMIFS(insumos1!$K$2:$K$300000,insumos1!$L$2:$L$300000,Hoja4!$AP12)/1000000 -> 114941.3445 | AV12: =SUMIFS(insumos1!$K$2:$K$300000,insumos1!$L$2:$L$300000,Hoja4!$AP12,insumos1!$H$2:$H$300000,Visor!$N$4)/1000000 -> 38729.7195 | AY12: PARO - MICRO | AZ12: 312 | BA12: 47 | BB12: 2883 | BC12: 503 | BD12: 3967.4545 | BE12: 563.7635 | BH12: PARO | BI12: 0.004314329738 | BJ12: 0.01346291202 | BK12: 0.00173917458 | BL12: 0.007051426005 | BM12: 0.03906580075 | BN12: 0.004890359162 | BR12: 12 | BS12: PARO | BT12: =_xlfn.XLOOKUP(Visor!$S$181,Hoja4!$BH$1:$BK$1,Hoja4!$BH12:$BK12) -> 0.004314329738 | BU12: =_xlfn.XLOOKUP(Visor!$S$181,Hoja4!$BL$1:$BN$1,Hoja4!$BL12:$BN12) -> 0.007051426005
